Workbook

Sheet Index
B1: JGN Ancillary Reference Services Forecast Model
B2: =IFERROR(MID(CELL("filename",A1),FIND("]",CELL("filename",A1))+1,255),"") -> Index | C2: Overall Check: | D2: ='Model Validation'!C4 -> 0
B5: Worksheet summary
B7: Worksheet name | C7: Check: | F7: Input required? | H7: Description
B8: ='Output|Charges'!C2 -> Output|Charges | C8: ='Model Validation'!C8 -> 0 | F8: N | H8: Contains caclulated charges and X factors for Ancillary Reference Services charges.
B9: ='Input|Setup'!B2 -> Input|Setup | C9: ='Model Validation'!C9 -> 0 | F9: Y | H9: Sets up model with relevant years and output categories.
B10: ='Input|Escalations'!B2 -> Input|Escalations | C10: ='Model Validation'!C10 -> 0 | F10: Y | H10: Sets up the inflation and labour escalations.
B11: ='Input|Indirect Cost Rates'!B2 -> Input|Indirect Cost Rates | C11: ='Model Validation'!C11 -> NA | F11: Y | H11: Input for indirect cost rates.
B12: ='Input|Labour Rates'!B2 -> Input|Labour Rates | C12: ='Model Validation'!C12 -> 0 | F12: Y | H12: Input for labour cost components.
B13: ='Input|Units'!B2 -> Input|Units | C13: ='Model Validation'!C13 -> 0 | F13: Y | H13: Input for Ancillary Reference Services costs and service information.
B14: ='Input|Mapping'!B2 -> Input|Mapping | C14: ='Model Validation'!C14 -> NA | F14: Y | H14: Aligns historical and proposed Ancillary Reference Services information.
B15: ='Calc|Labour Rates'!B2 -> Calc|Labour Rates | C15: ='Model Validation'!C15 -> NA | F15: N | H15: Calculation tables for labour rates.
B16: ='Calc|Charges'!B2 -> Calc|Charges | C16: ='Model Validation'!C16 -> 0 | F16: N | H16: Calculation tables for Ancillary Reference Services charges.
B17: ='Model Validation'!B2 -> Model Validation | C17: ='Model Validation'!C17 -> NA | F17: N | H17: Checks and traces possible input errors.
B20: Table summary
B22: Name | C22: Tab | F22: Input required? | H22: Description
B23: ='Output|Charges'!B5 -> 1.1 X-factors for each year of 2025-26 to 2029-30 regulatory period, (per cent) | C23: =B8 -> Output|Charges | F23: N | H23: Contains X-factors to apply to fee-based services for years 2-5 of the forthcoming regulatory control period.
B24: ='Output|Charges'!B10 -> 1.2 Ancillary Reference Services for 2025-26 | C24: =$C$23 -> Output|Charges | F24: N | H24: Contains the calculated charge for each Ancillary Reference Service, in nominal terms, for year 1 of the forthcoming regulatory control period.
B25: ='Input|Setup'!A5 & " " & 'Input|Setup'!B5 -> 2.1 Years setup | C25: ='Input|Setup'!B2 -> Input|Setup | F25: Y | H25: Please choose the first year of the forthcoming regulatory period and the base year for inputs.
B26: ='Input|Setup'!A10 & " " & 'Input|Setup'!B10 -> 2.2 Current regulatory period | C26: =$C$25 -> Input|Setup | F26: N | H26: Contains the regulatory years of the current regulatory control period.
B27: ='Input|Setup'!D10 & " " & 'Input|Setup'!E10 -> 2.3 Forecast regulatory period | C27: =$C$25 -> Input|Setup | F27: N | H27: Contains the regulatory years of the forthcoming regulatory control period.
B28: ='Input|Setup'!A18 & " " & 'Input|Setup'!B18 -> 2.4 Conversions | C28: =$C$25 -> Input|Setup | F28: Optional | H28: Lists figures used for conversions in formulas.
B29: ='Input|Setup'!A24 & " " & 'Input|Setup'!B24 -> 2.5 Hours | C29: Input|Setup | F29: Y | H29: Please enter time periods that would result in different rates applied for the same service or labour type (e.g. business hours, after hours).
B30: ='Input|Setup'!A30 & " " & 'Input|Setup'!B30 -> 2.6 Labour type | C30: Input|Setup | F30: Y | H30: Please enter the specific labour types used to provide Ancilary Reference Services.
B31: ='Input|Setup'!D30 & " " & 'Input|Setup'!E30 -> 2.7 Service category | C31: Input|Setup | F31: Y | H31: Please enter the major service categories for Ancillary Reference Services (e.g. disconnections and reconnections, abolishments, or special meter reads).
B32: ='Input|Setup'!G30 & " " & 'Input|Setup'!H30 -> 2.8 [label] | C32: Input|Setup | F32: Optional | H32: Please enter distributor-specific categories for fee-based services, if required.
B33: ='Input|Setup'!G40 & " " & 'Input|Setup'!H40 -> 2.9 [label] | C33: Input|Setup | F33: Optional | H33: Please enter distributor-specific categories for fee-based services, if required.
B34: ='Input|Escalations'!A5 & " " & 'Input|Escalations'!B5 -> 3.1 Escalation setup | C34: ='Input|Escalations'!B2 -> Input|Escalations | F34: N | H34: Contains the first year of the forthcoming regulatory control period and the nominated base year. These are used in calculations in the 'Input|Escalation' sheet.
B35: ='Input|Escalations'!A13 & " " & 'Input|Escalations'!B13 -> 3.2 Inflation | C35: =$C$34 -> Input|Escalations | F35: Y | H35: Please enter ABS index, all groups CPI inflation series A2325846C, up to latest available December. Please enter forecast CPI, including source, for other years.
B36: ='Input|Escalations'!A25 & " " & 'Input|Escalations'!B25 -> 3.3 Real price escalation | C36: =$C$34 -> Input|Escalations | F36: Optional | H36: Calculates X factor (real wage price escalation). Other real escalators are set to equal X factor by default, but can be amended by distributors.
B37: ='Input|Escalations'!A35 & " " & 'Input|Escalations'!B35 -> 3.3.1 Real wage price escalation | C37: =$C$34 -> Input|Escalations | F37: Y | H37: Please enter sources and forecasts for real wage price escalation, including weightings for each source, in the green input cells. Grey cells will calculate the forecast real wage price escalation.
B38: ='Input|Escalations'!A55& " " & 'Input|Escalations'!B55 -> 3.3.2 Real price escalation (non-wage) | C38: =$C$34 -> Input|Escalations | F38: N | H38: Contains the calculated forecast real escalation for non-wage inputs.
B39: ='Input|Indirect Cost Rates'!A5 & " " & 'Input|Indirect Cost Rates'!B5 -> 4.1 On costs | C39: ='Input|Indirect Cost Rates'!B2 -> Input|Indirect Cost Rates | F39: Y | H39: Please enter relevant on-cost rates. Distributors may enter a total on-cost rate only. Alternatively, disaggregated on-cost rates may be provided with the total on-cost rate calculated in row 19, as required.
B40: ='Input|Indirect Cost Rates'!A22 & " " & 'Input|Indirect Cost Rates'!B22 -> 4.2 Overhead | C40: =$C$39 -> Input|Indirect Cost Rates | F40: Y | H40: Please enter rates for network overhead and corporate overhead. Where relevant, distributors may enter other overhead rates (e.g. a total overhead rate).
B41: ='Input|Indirect Cost Rates'!A32 & " " & 'Input|Indirect Cost Rates'!B32 -> 4.3 Margins | C41: =$C$39 -> Input|Indirect Cost Rates | F41: Y | H41: Please enter margin rates as required.
B42: ='Input|Indirect Cost Rates'!A41 & " " & 'Input|Indirect Cost Rates'!B41 -> 4.4 Tax recovery rate | C42: =$C$39 -> Input|Indirect Cost Rates | F42: Y | H42: Please enter tax recovery rates as required.
B43: ='Input|Labour Rates'!B7 -> 5.1 Labour rates | C43: ='Input|Labour Rates'!B2 -> Input|Labour Rates | F43: Y | H43: Please enter required information regarding labour rates (in base year dollar terms) used to provide ANS. For on-cost and overhead rates, please use formulas to reference tables 5.1 and 5.2, respectively.
B44: ='Input|Labour Rates'!J7 -> 5.2 Notes and sources for "Other costs" | C44: =$C$43 -> Input|Labour Rates | F44: Y | H44: Please describe "Other costs" used to derive total labour rates, where appropriate, and provide sources.
B45: ='Input|Units'!B6 -> 6.1 Ancillary Reference Services | C45: ='Input|Units'!B2 -> Input|Units | F45: Y | H45: Please list the name and service code of the fee-based services, including hours provided and general service category.
B46: ='Input|Units'!I6 -> 6.2 Service cost build up - DIRECT COSTS, $'s ($2023-24) | C46: =$C$45 -> Input|Units | F46: Y | H46: Please input the direct costs in base year dollar terms incurred for providinng each Ancillary Reference Service, and other requested information such as the total time in minutes each labour type is required to provide the service.
B47: ='Input|Units'!AV6 -> 6.3 Service cost build - INDIRECT COSTS (per cent) | C47: =$C$45 -> Input|Units | F47: Y | H47: Please use formulas to reference in the 'Input|Indirect Cost Rates' sheet as appropriate.
B48: ='Input|Units'!BD6 -> 6.4 Notes and sources for "Other costs" | C48: =$C$45 -> Input|Units | F48: Y | H48: Please describe "Other costs" used to derive the year 1 charge for Ancillary Reference Services, where appropriate, and provide sources.
B49: ='Input|Mapping'!B9 -> 7 .1 Current regulatory period - Ancillary Reference Services | C49: ='Input|Mapping'!B2 -> Input|Mapping | F49: Y | H49: Please enter approved Ancillary Reference Services and charges (in nominal dollar terms) for the current regulatory control perod (including the final decision charges in column K). Please align with the Ancillary Reference Services for the forthcoming regulatory control period in table 8.2.
B50: ='Input|Mapping'!L9 -> 7.2 Forecast regulatory period - Ancillary Reference Services | C50: =$C$49 -> Input|Mapping | F50: N | H50: Includes the year 1 charge for Ancillary Reference Services (from 'Calc|Charges' sheet), then calculates charges for years 2 to 5 of the forthcoming regulatory control period using forecast inflation and X factors.
B51: ='Calc|Labour Rates'!B7 -> 8.1 Year 1 labour rates | C51: ='Calc|Labour Rates'!B2 -> Calc|Labour Rates | F51: N | H51: Calculates labour rate for each labour type used to provide Ancillary Reference Services, in nominal terms, for year 1 of the forthcoming regulatory control period.
B52: ='Calc|Labour Rates'!F7 -> 8.2 Year 1 labour rates build up, $'s ($2025-26) | C52: =$C$51 -> Calc|Labour Rates | F52: N | H52: Calculates labour rate for each labour type used to provide Ancillary Reference Services for year 1 of the forthcoming regulatory control period.
B53: ='Calc|Charges'!B6 -> 9.1 Ancillary Reference Services | C53: ='Calc|Charges'!$B$2 -> Calc|Charges | F53: N | H53: Calculates the charge for each Ancillary Reference Service, in nominal terms, for year 1 of the forthcoming regulatory control period.
B54: ='Calc|Charges'!J6 -> 10.2 Year 1 service cost build up - DIRECT COSTS, $'s ($2025-26) | C54: =$C$53 -> Calc|Charges | F54: N | H54: Calculates the direct costs for each Ancillary Reference Service, in base year dollar terms, for year 1 of the forthcoming regulatory control period.
B55: ='Calc|Charges'!AX6 -> 10.3 Year 1 Service cost build up - INDIRECT COSTS, $'s ($2025-26) | C55: =$C$53 -> Calc|Charges | F55: N | H55: Calculates the indirect costs for each Ancillary Reference Service, in base year dollar terms, for year 1 of the forthcoming regulatory control period.

Sheet Output|Charges
C1: =Index!B1 -> JGN Ancillary Reference Services Forecast Model | D1: Key: | E1: Input | H1: Sheet Validation | I1: ='Model Validation'!C8 -> 0
C2: =MID(CELL("filename",A1),FIND("]",CELL("filename",A1))+1,255) -> Output|Charges | E2: Formula
D4: =IF(D7='Input|Escalations'!J28,0,1) -> 0 | E4: =IF(E7='Input|Escalations'!K28,0,1) -> 0 | F4: =IF(F7='Input|Escalations'!L28,0,1) -> 0 | G4: =IF(G7='Input|Escalations'!M28,0,1) -> 0
B5: =IFERROR("1.1 X-factors for each year of "&'Input|Setup'!$E$11&" to "&'Input|Setup'!$E$15&" regulatory period, (per cent)","") -> 1.1 X-factors for each year of 2025-26 to 2029-30 regulatory period, (per cent)
C6: ='Input|Setup'!$E$11 -> 2025-26 | D6: ='Input|Setup'!$E$12 -> 2026-27 | E6: ='Input|Setup'!$E$13 -> 2027-28 | F6: ='Input|Setup'!$E$14 -> 2028-29 | G6: ='Input|Setup'!$E$15 -> 2029-30
D7: ='Input|Escalations'!J28 -> -0.004890017186 | E7: ='Input|Escalations'!K28 -> -0.004560282756 | F7: ='Input|Escalations'!L28 -> -0.00532946532 | G7: ='Input|Escalations'!M28 -> -0.005733433357
B10: =IFERROR("1.2 Ancillary Reference Services for "&'Input|Setup'!$E$11,"") -> 1.2 Ancillary Reference Services for 2025-26
B11: ='Calc|Charges'!B9 -> Service code | C11: ='Calc|Charges'!C9 -> Service | D11: ='Input|Setup'!B24 -> Hours | E11: ='Input|Setup'!E30 -> Service category | F11: ='Input|Setup'!H30 -> [label] | G11: ='Input|Setup'!H40 -> [label] | H11: ="Charge ($" & 'Input|Setup'!$E$8 & ")" -> Charge ($2025-26)
A12: 1 | B12: ='Calc|Charges'!B10 ->  | C12: ='Calc|Charges'!C10 -> Hourly charge – non-standard retailer-initiated requests and queries | D12: ='Calc|Charges'!D10 -> Business hours | E12: ='Calc|Charges'!E10 -> Other | F12: ='Calc|Charges'!F10 ->  | G12: ='Calc|Charges'!G10 ->  | H12: =ROUND('Calc|Charges'!H10,0) -> 206 | I12: =IF(AND(B12='Calc|Charges'!B10,C12='Calc|Charges'!C10,D12='Calc|Charges'!D10,E12='Calc|Charges'!E10, F12='Calc|Charges'!F10,G12='Calc|Charges'!G10, H12=ROUND('Calc|Charges'!H10,0)),0,1) -> 0
A13: 2 | B13: ='Calc|Charges'!B11 ->  | C13: ='Calc|Charges'!C11 -> Disconnection – Volume Customers – Completed | D13: ='Calc|Charges'!D11 -> Business hours | E13: ='Calc|Charges'!E11 -> Disconnections and reconnections | F13: ='Calc|Charges'!F11 ->  | G13: ='Calc|Charges'!G11 ->  | H13: =ROUND('Calc|Charges'!H11,0) -> 84 | I13: =IF(AND(B13='Calc|Charges'!B11,C13='Calc|Charges'!C11,D13='Calc|Charges'!D11,E13='Calc|Charges'!E11, F13='Calc|Charges'!F11,G13='Calc|Charges'!G11, H13=ROUND('Calc|Charges'!H11,0)),0,1) -> 0
A14: 3 | B14: ='Calc|Charges'!B12 ->  | C14: ='Calc|Charges'!C12 -> Disconnection – Volume Customers – Wasted Visit | D14: ='Calc|Charges'!D12 -> Business hours | E14: ='Calc|Charges'!E12 -> Disconnections and reconnections | F14: ='Calc|Charges'!F12 ->  | G14: ='Calc|Charges'!G12 ->  | H14: =ROUND('Calc|Charges'!H12,0) -> 46 | I14: =IF(AND(B14='Calc|Charges'!B12,C14='Calc|Charges'!C12,D14='Calc|Charges'!D12,E14='Calc|Charges'!E12, F14='Calc|Charges'!F12,G14='Calc|Charges'!G12, H14=ROUND('Calc|Charges'!H12,0)),0,1) -> 0
A15: 4 | B15: ='Calc|Charges'!B13 ->  | C15: ='Calc|Charges'!C13 -> Reconnection – Volume Customers – Completed | D15: ='Calc|Charges'!D13 -> Business hours | E15: ='Calc|Charges'!E13 -> Disconnections and reconnections | F15: ='Calc|Charges'!F13 ->  | G15: ='Calc|Charges'!G13 ->  | H15: =ROUND('Calc|Charges'!H13,0) -> 118 | I15: =IF(AND(B15='Calc|Charges'!B13,C15='Calc|Charges'!C13,D15='Calc|Charges'!D13,E15='Calc|Charges'!E13, F15='Calc|Charges'!F13,G15='Calc|Charges'!G13, H15=ROUND('Calc|Charges'!H13,0)),0,1) -> 0
A16: 5 | B16: ='Calc|Charges'!B14 ->  | C16: ='Calc|Charges'!C14 -> Reconnection – Volume Customers – Wasted Visit | D16: ='Calc|Charges'!D14 -> Business hours | E16: ='Calc|Charges'!E14 -> Disconnections and reconnections | F16: ='Calc|Charges'!F14 ->  | G16: ='Calc|Charges'!G14 ->  | H16: =ROUND('Calc|Charges'!H14,0) -> 118 | I16: =IF(AND(B16='Calc|Charges'!B14,C16='Calc|Charges'!C14,D16='Calc|Charges'!D14,E16='Calc|Charges'!E14, F16='Calc|Charges'!F14,G16='Calc|Charges'!G14, H16=ROUND('Calc|Charges'!H14,0)),0,1) -> 0
A17: 6 | B17: ='Calc|Charges'!B15 ->  | C17: ='Calc|Charges'!C15 -> Expedited reconnection | D17: ='Calc|Charges'!D15 -> Business hours | E17: ='Calc|Charges'!E15 -> Disconnections and reconnections | F17: ='Calc|Charges'!F15 ->  | G17: ='Calc|Charges'!G15 ->  | H17: =ROUND('Calc|Charges'!H15,0) -> 196 | I17: =IF(AND(B17='Calc|Charges'!B15,C17='Calc|Charges'!C15,D17='Calc|Charges'!D15,E17='Calc|Charges'!E15, F17='Calc|Charges'!F15,G17='Calc|Charges'!G15, H17=ROUND('Calc|Charges'!H15,0)),0,1) -> 0
A18: 7 | B18: ='Calc|Charges'!B16 ->  | C18: ='Calc|Charges'!C16 -> Abolishment – Up to 25m3/hr – Completed | D18: ='Calc|Charges'!D16 -> Business hours | E18: ='Calc|Charges'!E16 -> Abolishments | F18: ='Calc|Charges'!F16 ->  | G18: ='Calc|Charges'!G16 ->  | H18: =ROUND('Calc|Charges'!H16,0) -> 1472 | I18: =IF(AND(B18='Calc|Charges'!B16,C18='Calc|Charges'!C16,D18='Calc|Charges'!D16,E18='Calc|Charges'!E16, F18='Calc|Charges'!F16,G18='Calc|Charges'!G16, H18=ROUND('Calc|Charges'!H16,0)),0,1) -> 0
A19: 8 | B19: ='Calc|Charges'!B17 ->  | C19: ='Calc|Charges'!C17 -> Special meter read – Completed | D19: ='Calc|Charges'!D17 -> Business hours | E19: ='Calc|Charges'!E17 -> Special meter reads | F19: ='Calc|Charges'!F17 ->  | G19: ='Calc|Charges'!G17 ->  | H19: =ROUND('Calc|Charges'!H17,0) -> 17 | I19: =IF(AND(B19='Calc|Charges'!B17,C19='Calc|Charges'!C17,D19='Calc|Charges'!D17,E19='Calc|Charges'!E17, F19='Calc|Charges'!F17,G19='Calc|Charges'!G17, H19=ROUND('Calc|Charges'!H17,0)),0,1) -> 0
A20: 9 | B20: ='Calc|Charges'!B18 ->  | C20: ='Calc|Charges'!C18 -> Special meter read – Wasted Visit | D20: ='Calc|Charges'!D18 -> Business hours | E20: ='Calc|Charges'!E18 -> Special meter reads | F20: ='Calc|Charges'!F18 ->  | G20: ='Calc|Charges'!G18 ->  | H20: =ROUND('Calc|Charges'!H18,0) -> 17 | I20: =IF(AND(B20='Calc|Charges'!B18,C20='Calc|Charges'!C18,D20='Calc|Charges'!D18,E20='Calc|Charges'!E18, F20='Calc|Charges'!F18,G20='Calc|Charges'!G18, H20=ROUND('Calc|Charges'!H18,0)),0,1) -> 0
A21: 10 | B21: ='Calc|Charges'!B19 ->  | C21: ='Calc|Charges'!C19 ->  | D21: ='Calc|Charges'!D19 ->  | E21: ='Calc|Charges'!E19 ->  | F21: ='Calc|Charges'!F19 ->  | G21: ='Calc|Charges'!G19 ->  | H21: ='Calc|Charges'!H19 -> 0 | I21: =IF(AND(B21='Calc|Charges'!B19,C21='Calc|Charges'!C19,D21='Calc|Charges'!D19,E21='Calc|Charges'!E19, F21='Calc|Charges'!F19,G21='Calc|Charges'!G19, H21=ROUND('Calc|Charges'!H19,0)),0,1) -> 0
A22: 11 | B22: ='Calc|Charges'!B20 ->  | C22: ='Calc|Charges'!C20 ->  | D22: ='Calc|Charges'!D20 ->  | E22: ='Calc|Charges'!E20 ->  | F22: ='Calc|Charges'!F20 ->  | G22: ='Calc|Charges'!G20 ->  | H22: ='Calc|Charges'!H20 -> 0 | I22: =IF(AND(B22='Calc|Charges'!B20,C22='Calc|Charges'!C20,D22='Calc|Charges'!D20,E22='Calc|Charges'!E20, F22='Calc|Charges'!F20,G22='Calc|Charges'!G20, H22=ROUND('Calc|Charges'!H20,0)),0,1) -> 0
A23: 12 | B23: ='Calc|Charges'!B21 ->  | C23: ='Calc|Charges'!C21 ->  | D23: ='Calc|Charges'!D21 ->  | E23: ='Calc|Charges'!E21 ->  | F23: ='Calc|Charges'!F21 ->  | G23: ='Calc|Charges'!G21 ->  | H23: ='Calc|Charges'!H21 -> 0 | I23: =IF(AND(B23='Calc|Charges'!B21,C23='Calc|Charges'!C21,D23='Calc|Charges'!D21,E23='Calc|Charges'!E21, F23='Calc|Charges'!F21,G23='Calc|Charges'!G21, H23=ROUND('Calc|Charges'!H21,0)),0,1) -> 0
A24: 13 | B24: ='Calc|Charges'!B22 ->  | C24: ='Calc|Charges'!C22 ->  | D24: ='Calc|Charges'!D22 ->  | E24: ='Calc|Charges'!E22 ->  | F24: ='Calc|Charges'!F22 ->  | G24: ='Calc|Charges'!G22 ->  | H24: ='Calc|Charges'!H22 -> 0 | I24: =IF(AND(B24='Calc|Charges'!B22,C24='Calc|Charges'!C22,D24='Calc|Charges'!D22,E24='Calc|Charges'!E22, F24='Calc|Charges'!F22,G24='Calc|Charges'!G22, H24=ROUND('Calc|Charges'!H22,0)),0,1) -> 0
A25: 14 | B25: ='Calc|Charges'!B23 ->  | C25: ='Calc|Charges'!C23 ->  | D25: ='Calc|Charges'!D23 ->  | E25: ='Calc|Charges'!E23 ->  | F25: ='Calc|Charges'!F23 ->  | G25: ='Calc|Charges'!G23 ->  | H25: ='Calc|Charges'!H23 -> 0 | I25: =IF(AND(B25='Calc|Charges'!B23,C25='Calc|Charges'!C23,D25='Calc|Charges'!D23,E25='Calc|Charges'!E23, F25='Calc|Charges'!F23,G25='Calc|Charges'!G23, H25=ROUND('Calc|Charges'!H23,0)),0,1) -> 0
A26: 15 | B26: ='Calc|Charges'!B24 ->  | C26: ='Calc|Charges'!C24 ->  | D26: ='Calc|Charges'!D24 ->  | E26: ='Calc|Charges'!E24 ->  | F26: ='Calc|Charges'!F24 ->  | G26: ='Calc|Charges'!G24 ->  | H26: ='Calc|Charges'!H24 -> 0 | I26: =IF(AND(B26='Calc|Charges'!B24,C26='Calc|Charges'!C24,D26='Calc|Charges'!D24,E26='Calc|Charges'!E24, F26='Calc|Charges'!F24,G26='Calc|Charges'!G24, H26=ROUND('Calc|Charges'!H24,0)),0,1) -> 0
A27: 16 | B27: ='Calc|Charges'!B25 ->  | C27: ='Calc|Charges'!C25 ->  | D27: ='Calc|Charges'!D25 ->  | E27: ='Calc|Charges'!E25 ->  | F27: ='Calc|Charges'!F25 ->  | G27: ='Calc|Charges'!G25 ->  | H27: ='Calc|Charges'!H25 -> 0 | I27: =IF(AND(B27='Calc|Charges'!B25,C27='Calc|Charges'!C25,D27='Calc|Charges'!D25,E27='Calc|Charges'!E25, F27='Calc|Charges'!F25,G27='Calc|Charges'!G25, H27=ROUND('Calc|Charges'!H25,0)),0,1) -> 0
A28: 17 | B28: ='Calc|Charges'!B26 ->  | C28: ='Calc|Charges'!C26 ->  | D28: ='Calc|Charges'!D26 ->  | E28: ='Calc|Charges'!E26 ->  | F28: ='Calc|Charges'!F26 ->  | G28: ='Calc|Charges'!G26 ->  | H28: ='Calc|Charges'!H26 -> 0 | I28: =IF(AND(B28='Calc|Charges'!B26,C28='Calc|Charges'!C26,D28='Calc|Charges'!D26,E28='Calc|Charges'!E26, F28='Calc|Charges'!F26,G28='Calc|Charges'!G26, H28=ROUND('Calc|Charges'!H26,0)),0,1) -> 0
A29: 18 | B29: ='Calc|Charges'!B27 ->  | C29: ='Calc|Charges'!C27 ->  | D29: ='Calc|Charges'!D27 ->  | E29: ='Calc|Charges'!E27 ->  | F29: ='Calc|Charges'!F27 ->  | G29: ='Calc|Charges'!G27 ->  | H29: ='Calc|Charges'!H27 -> 0 | I29: =IF(AND(B29='Calc|Charges'!B27,C29='Calc|Charges'!C27,D29='Calc|Charges'!D27,E29='Calc|Charges'!E27, F29='Calc|Charges'!F27,G29='Calc|Charges'!G27, H29=ROUND('Calc|Charges'!H27,0)),0,1) -> 0
A30: 19 | B30: ='Calc|Charges'!B28 ->  | C30: ='Calc|Charges'!C28 ->  | D30: ='Calc|Charges'!D28 ->  | E30: ='Calc|Charges'!E28 ->  | F30: ='Calc|Charges'!F28 ->  | G30: ='Calc|Charges'!G28 ->  | H30: ='Calc|Charges'!H28 -> 0 | I30: =IF(AND(B30='Calc|Charges'!B28,C30='Calc|Charges'!C28,D30='Calc|Charges'!D28,E30='Calc|Charges'!E28, F30='Calc|Charges'!F28,G30='Calc|Charges'!G28, H30=ROUND('Calc|Charges'!H28,0)),0,1) -> 0
A31: 20 | B31: ='Calc|Charges'!B29 ->  | C31: ='Calc|Charges'!C29 ->  | D31: ='Calc|Charges'!D29 ->  | E31: ='Calc|Charges'!E29 ->  | F31: ='Calc|Charges'!F29 ->  | G31: ='Calc|Charges'!G29 ->  | H31: ='Calc|Charges'!H29 -> 0 | I31: =IF(AND(B31='Calc|Charges'!B29,C31='Calc|Charges'!C29,D31='Calc|Charges'!D29,E31='Calc|Charges'!E29, F31='Calc|Charges'!F29,G31='Calc|Charges'!G29, H31=ROUND('Calc|Charges'!H29,0)),0,1) -> 0
A32: 21 | B32: ='Calc|Charges'!B30 ->  | C32: ='Calc|Charges'!C30 ->  | D32: ='Calc|Charges'!D30 ->  | E32: ='Calc|Charges'!E30 ->  | F32: ='Calc|Charges'!F30 ->  | G32: ='Calc|Charges'!G30 ->  | H32: ='Calc|Charges'!H30 -> 0 | I32: =IF(AND(B32='Calc|Charges'!B30,C32='Calc|Charges'!C30,D32='Calc|Charges'!D30,E32='Calc|Charges'!E30, F32='Calc|Charges'!F30,G32='Calc|Charges'!G30, H32=ROUND('Calc|Charges'!H30,0)),0,1) -> 0
A33: 22 | B33: ='Calc|Charges'!B31 ->  | C33: ='Calc|Charges'!C31 ->  | D33: ='Calc|Charges'!D31 ->  | E33: ='Calc|Charges'!E31 ->  | F33: ='Calc|Charges'!F31 ->  | G33: ='Calc|Charges'!G31 ->  | H33: ='Calc|Charges'!H31 -> 0 | I33: =IF(AND(B33='Calc|Charges'!B31,C33='Calc|Charges'!C31,D33='Calc|Charges'!D31,E33='Calc|Charges'!E31, F33='Calc|Charges'!F31,G33='Calc|Charges'!G31, H33=ROUND('Calc|Charges'!H31,0)),0,1) -> 0
A34: 23 | B34: ='Calc|Charges'!B32 ->  | C34: ='Calc|Charges'!C32 ->  | D34: ='Calc|Charges'!D32 ->  | E34: ='Calc|Charges'!E32 ->  | F34: ='Calc|Charges'!F32 ->  | G34: ='Calc|Charges'!G32 ->  | H34: ='Calc|Charges'!H32 -> 0 | I34: =IF(AND(B34='Calc|Charges'!B32,C34='Calc|Charges'!C32,D34='Calc|Charges'!D32,E34='Calc|Charges'!E32, F34='Calc|Charges'!F32,G34='Calc|Charges'!G32, H34=ROUND('Calc|Charges'!H32,0)),0,1) -> 0
A35: 24 | B35: ='Calc|Charges'!B33 ->  | C35: ='Calc|Charges'!C33 ->  | D35: ='Calc|Charges'!D33 ->  | E35: ='Calc|Charges'!E33 ->  | F35: ='Calc|Charges'!F33 ->  | G35: ='Calc|Charges'!G33 ->  | H35: ='Calc|Charges'!H33 -> 0 | I35: =IF(AND(B35='Calc|Charges'!B33,C35='Calc|Charges'!C33,D35='Calc|Charges'!D33,E35='Calc|Charges'!E33, F35='Calc|Charges'!F33,G35='Calc|Charges'!G33, H35=ROUND('Calc|Charges'!H33,0)),0,1) -> 0
A36: 25 | B36: ='Calc|Charges'!B34 ->  | C36: ='Calc|Charges'!C34 ->  | D36: ='Calc|Charges'!D34 ->  | E36: ='Calc|Charges'!E34 ->  | F36: ='Calc|Charges'!F34 ->  | G36: ='Calc|Charges'!G34 ->  | H36: ='Calc|Charges'!H34 -> 0 | I36: =IF(AND(B36='Calc|Charges'!B34,C36='Calc|Charges'!C34,D36='Calc|Charges'!D34,E36='Calc|Charges'!E34, F36='Calc|Charges'!F34,G36='Calc|Charges'!G34, H36=ROUND('Calc|Charges'!H34,0)),0,1) -> 0
A37: 26 | B37: ='Calc|Charges'!B35 ->  | C37: ='Calc|Charges'!C35 ->  | D37: ='Calc|Charges'!D35 ->  | E37: ='Calc|Charges'!E35 ->  | F37: ='Calc|Charges'!F35 ->  | G37: ='Calc|Charges'!G35 ->  | H37: ='Calc|Charges'!H35 -> 0 | I37: =IF(AND(B37='Calc|Charges'!B35,C37='Calc|Charges'!C35,D37='Calc|Charges'!D35,E37='Calc|Charges'!E35, F37='Calc|Charges'!F35,G37='Calc|Charges'!G35, H37=ROUND('Calc|Charges'!H35,0)),0,1) -> 0
A38: 27 | B38: ='Calc|Charges'!B36 ->  | C38: ='Calc|Charges'!C36 ->  | D38: ='Calc|Charges'!D36 ->  | E38: ='Calc|Charges'!E36 ->  | F38: ='Calc|Charges'!F36 ->  | G38: ='Calc|Charges'!G36 ->  | H38: ='Calc|Charges'!H36 -> 0 | I38: =IF(AND(B38='Calc|Charges'!B36,C38='Calc|Charges'!C36,D38='Calc|Charges'!D36,E38='Calc|Charges'!E36, F38='Calc|Charges'!F36,G38='Calc|Charges'!G36, H38=ROUND('Calc|Charges'!H36,0)),0,1) -> 0
A39: 28 | B39: ='Calc|Charges'!B37 ->  | C39: ='Calc|Charges'!C37 ->  | D39: ='Calc|Charges'!D37 ->  | E39: ='Calc|Charges'!E37 ->  | F39: ='Calc|Charges'!F37 ->  | G39: ='Calc|Charges'!G37 ->  | H39: ='Calc|Charges'!H37 -> 0 | I39: =IF(AND(B39='Calc|Charges'!B37,C39='Calc|Charges'!C37,D39='Calc|Charges'!D37,E39='Calc|Charges'!E37, F39='Calc|Charges'!F37,G39='Calc|Charges'!G37, H39=ROUND('Calc|Charges'!H37,0)),0,1) -> 0
A40: 29 | B40: ='Calc|Charges'!B38 ->  | C40: ='Calc|Charges'!C38 ->  | D40: ='Calc|Charges'!D38 ->  | E40: ='Calc|Charges'!E38 ->  | F40: ='Calc|Charges'!F38 ->  | G40: ='Calc|Charges'!G38 ->  | H40: ='Calc|Charges'!H38 -> 0 | I40: =IF(AND(B40='Calc|Charges'!B38,C40='Calc|Charges'!C38,D40='Calc|Charges'!D38,E40='Calc|Charges'!E38, F40='Calc|Charges'!F38,G40='Calc|Charges'!G38, H40=ROUND('Calc|Charges'!H38,0)),0,1) -> 0
A41: 30 | B41: ='Calc|Charges'!B39 ->  | C41: ='Calc|Charges'!C39 ->  | D41: ='Calc|Charges'!D39 ->  | E41: ='Calc|Charges'!E39 ->  | F41: ='Calc|Charges'!F39 ->  | G41: ='Calc|Charges'!G39 ->  | H41: ='Calc|Charges'!H39 -> 0 | I41: =IF(AND(B41='Calc|Charges'!B39,C41='Calc|Charges'!C39,D41='Calc|Charges'!D39,E41='Calc|Charges'!E39, F41='Calc|Charges'!F39,G41='Calc|Charges'!G39, H41=ROUND('Calc|Charges'!H39,0)),0,1) -> 0
A42: 31 | B42: ='Calc|Charges'!B40 ->  | C42: ='Calc|Charges'!C40 ->  | D42: ='Calc|Charges'!D40 ->  | E42: ='Calc|Charges'!E40 ->  | F42: ='Calc|Charges'!F40 ->  | G42: ='Calc|Charges'!G40 ->  | H42: ='Calc|Charges'!H40 -> 0 | I42: =IF(AND(B42='Calc|Charges'!B40,C42='Calc|Charges'!C40,D42='Calc|Charges'!D40,E42='Calc|Charges'!E40, F42='Calc|Charges'!F40,G42='Calc|Charges'!G40, H42=ROUND('Calc|Charges'!H40,0)),0,1) -> 0
A43: 32 | B43: ='Calc|Charges'!B41 ->  | C43: ='Calc|Charges'!C41 ->  | D43: ='Calc|Charges'!D41 ->  | E43: ='Calc|Charges'!E41 ->  | F43: ='Calc|Charges'!F41 ->  | G43: ='Calc|Charges'!G41 ->  | H43: ='Calc|Charges'!H41 -> 0 | I43: =IF(AND(B43='Calc|Charges'!B41,C43='Calc|Charges'!C41,D43='Calc|Charges'!D41,E43='Calc|Charges'!E41, F43='Calc|Charges'!F41,G43='Calc|Charges'!G41, H43=ROUND('Calc|Charges'!H41,0)),0,1) -> 0
A44: 33 | B44: ='Calc|Charges'!B42 ->  | C44: ='Calc|Charges'!C42 ->  | D44: ='Calc|Charges'!D42 ->  | E44: ='Calc|Charges'!E42 ->  | F44: ='Calc|Charges'!F42 ->  | G44: ='Calc|Charges'!G42 ->  | H44: ='Calc|Charges'!H42 -> 0 | I44: =IF(AND(B44='Calc|Charges'!B42,C44='Calc|Charges'!C42,D44='Calc|Charges'!D42,E44='Calc|Charges'!E42, F44='Calc|Charges'!F42,G44='Calc|Charges'!G42, H44=ROUND('Calc|Charges'!H42,0)),0,1) -> 0
A45: 34 | B45: ='Calc|Charges'!B43 ->  | C45: ='Calc|Charges'!C43 ->  | D45: ='Calc|Charges'!D43 ->  | E45: ='Calc|Charges'!E43 ->  | F45: ='Calc|Charges'!F43 ->  | G45: ='Calc|Charges'!G43 ->  | H45: ='Calc|Charges'!H43 -> 0 | I45: =IF(AND(B45='Calc|Charges'!B43,C45='Calc|Charges'!C43,D45='Calc|Charges'!D43,E45='Calc|Charges'!E43, F45='Calc|Charges'!F43,G45='Calc|Charges'!G43, H45=ROUND('Calc|Charges'!H43,0)),0,1) -> 0
A46: 35 | B46: ='Calc|Charges'!B44 ->  | C46: ='Calc|Charges'!C44 ->  | D46: ='Calc|Charges'!D44 ->  | E46: ='Calc|Charges'!E44 ->  | F46: ='Calc|Charges'!F44 ->  | G46: ='Calc|Charges'!G44 ->  | H46: ='Calc|Charges'!H44 -> 0 | I46: =IF(AND(B46='Calc|Charges'!B44,C46='Calc|Charges'!C44,D46='Calc|Charges'!D44,E46='Calc|Charges'!E44, F46='Calc|Charges'!F44,G46='Calc|Charges'!G44, H46=ROUND('Calc|Charges'!H44,0)),0,1) -> 0
A47: 36 | B47: ='Calc|Charges'!B45 ->  | C47: ='Calc|Charges'!C45 ->  | D47: ='Calc|Charges'!D45 ->  | E47: ='Calc|Charges'!E45 ->  | F47: ='Calc|Charges'!F45 ->  | G47: ='Calc|Charges'!G45 ->  | H47: ='Calc|Charges'!H45 -> 0 | I47: =IF(AND(B47='Calc|Charges'!B45,C47='Calc|Charges'!C45,D47='Calc|Charges'!D45,E47='Calc|Charges'!E45, F47='Calc|Charges'!F45,G47='Calc|Charges'!G45, H47=ROUND('Calc|Charges'!H45,0)),0,1) -> 0
A48: 37 | B48: ='Calc|Charges'!B46 ->  | C48: ='Calc|Charges'!C46 ->  | D48: ='Calc|Charges'!D46 ->  | E48: ='Calc|Charges'!E46 ->  | F48: ='Calc|Charges'!F46 ->  | G48: ='Calc|Charges'!G46 ->  | H48: ='Calc|Charges'!H46 -> 0 | I48: =IF(AND(B48='Calc|Charges'!B46,C48='Calc|Charges'!C46,D48='Calc|Charges'!D46,E48='Calc|Charges'!E46, F48='Calc|Charges'!F46,G48='Calc|Charges'!G46, H48=ROUND('Calc|Charges'!H46,0)),0,1) -> 0
A49: 38 | B49: ='Calc|Charges'!B47 ->  | C49: ='Calc|Charges'!C47 ->  | D49: ='Calc|Charges'!D47 ->  | E49: ='Calc|Charges'!E47 ->  | F49: ='Calc|Charges'!F47 ->  | G49: ='Calc|Charges'!G47 ->  | H49: ='Calc|Charges'!H47 -> 0 | I49: =IF(AND(B49='Calc|Charges'!B47,C49='Calc|Charges'!C47,D49='Calc|Charges'!D47,E49='Calc|Charges'!E47, F49='Calc|Charges'!F47,G49='Calc|Charges'!G47, H49=ROUND('Calc|Charges'!H47,0)),0,1) -> 0
A50: 39 | B50: ='Calc|Charges'!B48 ->  | C50: ='Calc|Charges'!C48 ->  | D50: ='Calc|Charges'!D48 ->  | E50: ='Calc|Charges'!E48 ->  | F50: ='Calc|Charges'!F48 ->  | G50: ='Calc|Charges'!G48 ->  | H50: ='Calc|Charges'!H48 -> 0 | I50: =IF(AND(B50='Calc|Charges'!B48,C50='Calc|Charges'!C48,D50='Calc|Charges'!D48,E50='Calc|Charges'!E48, F50='Calc|Charges'!F48,G50='Calc|Charges'!G48, H50=ROUND('Calc|Charges'!H48,0)),0,1) -> 0
A51: 40 | B51: ='Calc|Charges'!B49 ->  | C51: ='Calc|Charges'!C49 ->  | D51: ='Calc|Charges'!D49 ->  | E51: ='Calc|Charges'!E49 ->  | F51: ='Calc|Charges'!F49 ->  | G51: ='Calc|Charges'!G49 ->  | H51: ='Calc|Charges'!H49 -> 0 | I51: =IF(AND(B51='Calc|Charges'!B49,C51='Calc|Charges'!C49,D51='Calc|Charges'!D49,E51='Calc|Charges'!E49, F51='Calc|Charges'!F49,G51='Calc|Charges'!G49, H51=ROUND('Calc|Charges'!H49,0)),0,1) -> 0
A52: 41 | B52: ='Calc|Charges'!B50 ->  | C52: ='Calc|Charges'!C50 ->  | D52: ='Calc|Charges'!D50 ->  | E52: ='Calc|Charges'!E50 ->  | F52: ='Calc|Charges'!F50 ->  | G52: ='Calc|Charges'!G50 ->  | H52: ='Calc|Charges'!H50 -> 0 | I52: =IF(AND(B52='Calc|Charges'!B50,C52='Calc|Charges'!C50,D52='Calc|Charges'!D50,E52='Calc|Charges'!E50, F52='Calc|Charges'!F50,G52='Calc|Charges'!G50, H52=ROUND('Calc|Charges'!H50,0)),0,1) -> 0
A53: 42 | B53: ='Calc|Charges'!B51 ->  | C53: ='Calc|Charges'!C51 ->  | D53: ='Calc|Charges'!D51 ->  | E53: ='Calc|Charges'!E51 ->  | F53: ='Calc|Charges'!F51 ->  | G53: ='Calc|Charges'!G51 ->  | H53: ='Calc|Charges'!H51 -> 0 | I53: =IF(AND(B53='Calc|Charges'!B51,C53='Calc|Charges'!C51,D53='Calc|Charges'!D51,E53='Calc|Charges'!E51, F53='Calc|Charges'!F51,G53='Calc|Charges'!G51, H53=ROUND('Calc|Charges'!H51,0)),0,1) -> 0
A54: 43 | B54: ='Calc|Charges'!B52 ->  | C54: ='Calc|Charges'!C52 ->  | D54: ='Calc|Charges'!D52 ->  | E54: ='Calc|Charges'!E52 ->  | F54: ='Calc|Charges'!F52 ->  | G54: ='Calc|Charges'!G52 ->  | H54: ='Calc|Charges'!H52 -> 0 | I54: =IF(AND(B54='Calc|Charges'!B52,C54='Calc|Charges'!C52,D54='Calc|Charges'!D52,E54='Calc|Charges'!E52, F54='Calc|Charges'!F52,G54='Calc|Charges'!G52, H54=ROUND('Calc|Charges'!H52,0)),0,1) -> 0
A55: 44 | B55: ='Calc|Charges'!B53 ->  | C55: ='Calc|Charges'!C53 ->  | D55: ='Calc|Charges'!D53 ->  | E55: ='Calc|Charges'!E53 ->  | F55: ='Calc|Charges'!F53 ->  | G55: ='Calc|Charges'!G53 ->  | H55: ='Calc|Charges'!H53 -> 0 | I55: =IF(AND(B55='Calc|Charges'!B53,C55='Calc|Charges'!C53,D55='Calc|Charges'!D53,E55='Calc|Charges'!E53, F55='Calc|Charges'!F53,G55='Calc|Charges'!G53, H55=ROUND('Calc|Charges'!H53,0)),0,1) -> 0
A56: 45 | B56: ='Calc|Charges'!B54 ->  | C56: ='Calc|Charges'!C54 ->  | D56: ='Calc|Charges'!D54 ->  | E56: ='Calc|Charges'!E54 ->  | F56: ='Calc|Charges'!F54 ->  | G56: ='Calc|Charges'!G54 ->  | H56: ='Calc|Charges'!H54 -> 0 | I56: =IF(AND(B56='Calc|Charges'!B54,C56='Calc|Charges'!C54,D56='Calc|Charges'!D54,E56='Calc|Charges'!E54, F56='Calc|Charges'!F54,G56='Calc|Charges'!G54, H56=ROUND('Calc|Charges'!H54,0)),0,1) -> 0
A57: 46 | B57: ='Calc|Charges'!B55 ->  | C57: ='Calc|Charges'!C55 ->  | D57: ='Calc|Charges'!D55 ->  | E57: ='Calc|Charges'!E55 ->  | F57: ='Calc|Charges'!F55 ->  | G57: ='Calc|Charges'!G55 ->  | H57: ='Calc|Charges'!H55 -> 0 | I57: =IF(AND(B57='Calc|Charges'!B55,C57='Calc|Charges'!C55,D57='Calc|Charges'!D55,E57='Calc|Charges'!E55, F57='Calc|Charges'!F55,G57='Calc|Charges'!G55, H57=ROUND('Calc|Charges'!H55,0)),0,1) -> 0
A58: 47 | B58: ='Calc|Charges'!B56 ->  | C58: ='Calc|Charges'!C56 ->  | D58: ='Calc|Charges'!D56 ->  | E58: ='Calc|Charges'!E56 ->  | F58: ='Calc|Charges'!F56 ->  | G58: ='Calc|Charges'!G56 ->  | H58: ='Calc|Charges'!H56 -> 0 | I58: =IF(AND(B58='Calc|Charges'!B56,C58='Calc|Charges'!C56,D58='Calc|Charges'!D56,E58='Calc|Charges'!E56, F58='Calc|Charges'!F56,G58='Calc|Charges'!G56, H58=ROUND('Calc|Charges'!H56,0)),0,1) -> 0
A59: 48 | B59: ='Calc|Charges'!B57 ->  | C59: ='Calc|Charges'!C57 ->  | D59: ='Calc|Charges'!D57 ->  | E59: ='Calc|Charges'!E57 ->  | F59: ='Calc|Charges'!F57 ->  | G59: ='Calc|Charges'!G57 ->  | H59: ='Calc|Charges'!H57 -> 0 | I59: =IF(AND(B59='Calc|Charges'!B57,C59='Calc|Charges'!C57,D59='Calc|Charges'!D57,E59='Calc|Charges'!E57, F59='Calc|Charges'!F57,G59='Calc|Charges'!G57, H59=ROUND('Calc|Charges'!H57,0)),0,1) -> 0
A60: 49 | B60: ='Calc|Charges'!B58 ->  | C60: ='Calc|Charges'!C58 ->  | D60: ='Calc|Charges'!D58 ->  | E60: ='Calc|Charges'!E58 ->  | F60: ='Calc|Charges'!F58 ->  | G60: ='Calc|Charges'!G58 ->  | H60: ='Calc|Charges'!H58 -> 0 | I60: =IF(AND(B60='Calc|Charges'!B58,C60='Calc|Charges'!C58,D60='Calc|Charges'!D58,E60='Calc|Charges'!E58, F60='Calc|Charges'!F58,G60='Calc|Charges'!G58, H60=ROUND('Calc|Charges'!H58,0)),0,1) -> 0
A61: 50 | B61: ='Calc|Charges'!B59 ->  | C61: ='Calc|Charges'!C59 ->  | D61: ='Calc|Charges'!D59 ->  | E61: ='Calc|Charges'!E59 ->  | F61: ='Calc|Charges'!F59 ->  | G61: ='Calc|Charges'!G59 ->  | H61: ='Calc|Charges'!H59 -> 0 | I61: =IF(AND(B61='Calc|Charges'!B59,C61='Calc|Charges'!C59,D61='Calc|Charges'!D59,E61='Calc|Charges'!E59, F61='Calc|Charges'!F59,G61='Calc|Charges'!G59, H61=ROUND('Calc|Charges'!H59,0)),0,1) -> 0
A62: 51 | B62: ='Calc|Charges'!B60 ->  | C62: ='Calc|Charges'!C60 ->  | D62: ='Calc|Charges'!D60 ->  | E62: ='Calc|Charges'!E60 ->  | F62: ='Calc|Charges'!F60 ->  | G62: ='Calc|Charges'!G60 ->  | H62: ='Calc|Charges'!H60 -> 0 | I62: =IF(AND(B62='Calc|Charges'!B60,C62='Calc|Charges'!C60,D62='Calc|Charges'!D60,E62='Calc|Charges'!E60, F62='Calc|Charges'!F60,G62='Calc|Charges'!G60, H62=ROUND('Calc|Charges'!H60,0)),0,1) -> 0
A63: 52 | B63: ='Calc|Charges'!B61 ->  | C63: ='Calc|Charges'!C61 ->  | D63: ='Calc|Charges'!D61 ->  | E63: ='Calc|Charges'!E61 ->  | F63: ='Calc|Charges'!F61 ->  | G63: ='Calc|Charges'!G61 ->  | H63: ='Calc|Charges'!H61 -> 0 | I63: =IF(AND(B63='Calc|Charges'!B61,C63='Calc|Charges'!C61,D63='Calc|Charges'!D61,E63='Calc|Charges'!E61, F63='Calc|Charges'!F61,G63='Calc|Charges'!G61, H63=ROUND('Calc|Charges'!H61,0)),0,1) -> 0
A64: 53 | B64: ='Calc|Charges'!B62 ->  | C64: ='Calc|Charges'!C62 ->  | D64: ='Calc|Charges'!D62 ->  | E64: ='Calc|Charges'!E62 ->  | F64: ='Calc|Charges'!F62 ->  | G64: ='Calc|Charges'!G62 ->  | H64: ='Calc|Charges'!H62 -> 0 | I64: =IF(AND(B64='Calc|Charges'!B62,C64='Calc|Charges'!C62,D64='Calc|Charges'!D62,E64='Calc|Charges'!E62, F64='Calc|Charges'!F62,G64='Calc|Charges'!G62, H64=ROUND('Calc|Charges'!H62,0)),0,1) -> 0
A65: 54 | B65: ='Calc|Charges'!B63 ->  | C65: ='Calc|Charges'!C63 ->  | D65: ='Calc|Charges'!D63 ->  | E65: ='Calc|Charges'!E63 ->  | F65: ='Calc|Charges'!F63 ->  | G65: ='Calc|Charges'!G63 ->  | H65: ='Calc|Charges'!H63 -> 0 | I65: =IF(AND(B65='Calc|Charges'!B63,C65='Calc|Charges'!C63,D65='Calc|Charges'!D63,E65='Calc|Charges'!E63, F65='Calc|Charges'!F63,G65='Calc|Charges'!G63, H65=ROUND('Calc|Charges'!H63,0)),0,1) -> 0
A66: 55 | B66: ='Calc|Charges'!B64 ->  | C66: ='Calc|Charges'!C64 ->  | D66: ='Calc|Charges'!D64 ->  | E66: ='Calc|Charges'!E64 ->  | F66: ='Calc|Charges'!F64 ->  | G66: ='Calc|Charges'!G64 ->  | H66: ='Calc|Charges'!H64 -> 0 | I66: =IF(AND(B66='Calc|Charges'!B64,C66='Calc|Charges'!C64,D66='Calc|Charges'!D64,E66='Calc|Charges'!E64, F66='Calc|Charges'!F64,G66='Calc|Charges'!G64, H66=ROUND('Calc|Charges'!H64,0)),0,1) -> 0
A67: 56 | B67: ='Calc|Charges'!B65 ->  | C67: ='Calc|Charges'!C65 ->  | D67: ='Calc|Charges'!D65 ->  | E67: ='Calc|Charges'!E65 ->  | F67: ='Calc|Charges'!F65 ->  | G67: ='Calc|Charges'!G65 ->  | H67: ='Calc|Charges'!H65 -> 0 | I67: =IF(AND(B67='Calc|Charges'!B65,C67='Calc|Charges'!C65,D67='Calc|Charges'!D65,E67='Calc|Charges'!E65, F67='Calc|Charges'!F65,G67='Calc|Charges'!G65, H67=ROUND('Calc|Charges'!H65,0)),0,1) -> 0
A68: 57 | B68: ='Calc|Charges'!B66 ->  | C68: ='Calc|Charges'!C66 ->  | D68: ='Calc|Charges'!D66 ->  | E68: ='Calc|Charges'!E66 ->  | F68: ='Calc|Charges'!F66 ->  | G68: ='Calc|Charges'!G66 ->  | H68: ='Calc|Charges'!H66 -> 0 | I68: =IF(AND(B68='Calc|Charges'!B66,C68='Calc|Charges'!C66,D68='Calc|Charges'!D66,E68='Calc|Charges'!E66, F68='Calc|Charges'!F66,G68='Calc|Charges'!G66, H68=ROUND('Calc|Charges'!H66,0)),0,1) -> 0
A69: 58 | B69: ='Calc|Charges'!B67 ->  | C69: ='Calc|Charges'!C67 ->  | D69: ='Calc|Charges'!D67 ->  | E69: ='Calc|Charges'!E67 ->  | F69: ='Calc|Charges'!F67 ->  | G69: ='Calc|Charges'!G67 ->  | H69: ='Calc|Charges'!H67 -> 0 | I69: =IF(AND(B69='Calc|Charges'!B67,C69='Calc|Charges'!C67,D69='Calc|Charges'!D67,E69='Calc|Charges'!E67, F69='Calc|Charges'!F67,G69='Calc|Charges'!G67, H69=ROUND('Calc|Charges'!H67,0)),0,1) -> 0
A70: 59 | B70: ='Calc|Charges'!B68 ->  | C70: ='Calc|Charges'!C68 ->  | D70: ='Calc|Charges'!D68 ->  | E70: ='Calc|Charges'!E68 ->  | F70: ='Calc|Charges'!F68 ->  | G70: ='Calc|Charges'!G68 ->  | H70: ='Calc|Charges'!H68 -> 0 | I70: =IF(AND(B70='Calc|Charges'!B68,C70='Calc|Charges'!C68,D70='Calc|Charges'!D68,E70='Calc|Charges'!E68, F70='Calc|Charges'!F68,G70='Calc|Charges'!G68, H70=ROUND('Calc|Charges'!H68,0)),0,1) -> 0
A71: 60 | B71: ='Calc|Charges'!B69 ->  | C71: ='Calc|Charges'!C69 ->  | D71: ='Calc|Charges'!D69 ->  | E71: ='Calc|Charges'!E69 ->  | F71: ='Calc|Charges'!F69 ->  | G71: ='Calc|Charges'!G69 ->  | H71: ='Calc|Charges'!H69 -> 0 | I71: =IF(AND(B71='Calc|Charges'!B69,C71='Calc|Charges'!C69,D71='Calc|Charges'!D69,E71='Calc|Charges'!E69, F71='Calc|Charges'!F69,G71='Calc|Charges'!G69, H71=ROUND('Calc|Charges'!H69,0)),0,1) -> 0
A72: 61 | B72: ='Calc|Charges'!B70 ->  | C72: ='Calc|Charges'!C70 ->  | D72: ='Calc|Charges'!D70 ->  | E72: ='Calc|Charges'!E70 ->  | F72: ='Calc|Charges'!F70 ->  | G72: ='Calc|Charges'!G70 ->  | H72: ='Calc|Charges'!H70 -> 0 | I72: =IF(AND(B72='Calc|Charges'!B70,C72='Calc|Charges'!C70,D72='Calc|Charges'!D70,E72='Calc|Charges'!E70, F72='Calc|Charges'!F70,G72='Calc|Charges'!G70, H72=ROUND('Calc|Charges'!H70,0)),0,1) -> 0
A73: 62 | B73: ='Calc|Charges'!B71 ->  | C73: ='Calc|Charges'!C71 ->  | D73: ='Calc|Charges'!D71 ->  | E73: ='Calc|Charges'!E71 ->  | F73: ='Calc|Charges'!F71 ->  | G73: ='Calc|Charges'!G71 ->  | H73: ='Calc|Charges'!H71 -> 0 | I73: =IF(AND(B73='Calc|Charges'!B71,C73='Calc|Charges'!C71,D73='Calc|Charges'!D71,E73='Calc|Charges'!E71, F73='Calc|Charges'!F71,G73='Calc|Charges'!G71, H73=ROUND('Calc|Charges'!H71,0)),0,1) -> 0
A74: 63 | B74: ='Calc|Charges'!B72 ->  | C74: ='Calc|Charges'!C72 ->  | D74: ='Calc|Charges'!D72 ->  | E74: ='Calc|Charges'!E72 ->  | F74: ='Calc|Charges'!F72 ->  | G74: ='Calc|Charges'!G72 ->  | H74: ='Calc|Charges'!H72 -> 0 | I74: =IF(AND(B74='Calc|Charges'!B72,C74='Calc|Charges'!C72,D74='Calc|Charges'!D72,E74='Calc|Charges'!E72, F74='Calc|Charges'!F72,G74='Calc|Charges'!G72, H74=ROUND('Calc|Charges'!H72,0)),0,1) -> 0
A75: 64 | B75: ='Calc|Charges'!B73 ->  | C75: ='Calc|Charges'!C73 ->  | D75: ='Calc|Charges'!D73 ->  | E75: ='Calc|Charges'!E73 ->  | F75: ='Calc|Charges'!F73 ->  | G75: ='Calc|Charges'!G73 ->  | H75: ='Calc|Charges'!H73 -> 0 | I75: =IF(AND(B75='Calc|Charges'!B73,C75='Calc|Charges'!C73,D75='Calc|Charges'!D73,E75='Calc|Charges'!E73, F75='Calc|Charges'!F73,G75='Calc|Charges'!G73, H75=ROUND('Calc|Charges'!H73,0)),0,1) -> 0
A76: 65 | B76: ='Calc|Charges'!B74 ->  | C76: ='Calc|Charges'!C74 ->  | D76: ='Calc|Charges'!D74 ->  | E76: ='Calc|Charges'!E74 ->  | F76: ='Calc|Charges'!F74 ->  | G76: ='Calc|Charges'!G74 ->  | H76: ='Calc|Charges'!H74 -> 0 | I76: =IF(AND(B76='Calc|Charges'!B74,C76='Calc|Charges'!C74,D76='Calc|Charges'!D74,E76='Calc|Charges'!E74, F76='Calc|Charges'!F74,G76='Calc|Charges'!G74, H76=ROUND('Calc|Charges'!H74,0)),0,1) -> 0
A77: 66 | B77: ='Calc|Charges'!B75 ->  | C77: ='Calc|Charges'!C75 ->  | D77: ='Calc|Charges'!D75 ->  | E77: ='Calc|Charges'!E75 ->  | F77: ='Calc|Charges'!F75 ->  | G77: ='Calc|Charges'!G75 ->  | H77: ='Calc|Charges'!H75 -> 0 | I77: =IF(AND(B77='Calc|Charges'!B75,C77='Calc|Charges'!C75,D77='Calc|Charges'!D75,E77='Calc|Charges'!E75, F77='Calc|Charges'!F75,G77='Calc|Charges'!G75, H77=ROUND('Calc|Charges'!H75,0)),0,1) -> 0
A78: 67 | B78: ='Calc|Charges'!B76 ->  | C78: ='Calc|Charges'!C76 ->  | D78: ='Calc|Charges'!D76 ->  | E78: ='Calc|Charges'!E76 ->  | F78: ='Calc|Charges'!F76 ->  | G78: ='Calc|Charges'!G76 ->  | H78: ='Calc|Charges'!H76 -> 0 | I78: =IF(AND(B78='Calc|Charges'!B76,C78='Calc|Charges'!C76,D78='Calc|Charges'!D76,E78='Calc|Charges'!E76, F78='Calc|Charges'!F76,G78='Calc|Charges'!G76, H78=ROUND('Calc|Charges'!H76,0)),0,1) -> 0
A79: 68 | B79: ='Calc|Charges'!B77 ->  | C79: ='Calc|Charges'!C77 ->  | D79: ='Calc|Charges'!D77 ->  | E79: ='Calc|Charges'!E77 ->  | F79: ='Calc|Charges'!F77 ->  | G79: ='Calc|Charges'!G77 ->  | H79: ='Calc|Charges'!H77 -> 0 | I79: =IF(AND(B79='Calc|Charges'!B77,C79='Calc|Charges'!C77,D79='Calc|Charges'!D77,E79='Calc|Charges'!E77, F79='Calc|Charges'!F77,G79='Calc|Charges'!G77, H79=ROUND('Calc|Charges'!H77,0)),0,1) -> 0
A80: 69 | B80: ='Calc|Charges'!B78 ->  | C80: ='Calc|Charges'!C78 ->  | D80: ='Calc|Charges'!D78 ->  | E80: ='Calc|Charges'!E78 ->  | F80: ='Calc|Charges'!F78 ->  | G80: ='Calc|Charges'!G78 ->  | H80: ='Calc|Charges'!H78 -> 0 | I80: =IF(AND(B80='Calc|Charges'!B78,C80='Calc|Charges'!C78,D80='Calc|Charges'!D78,E80='Calc|Charges'!E78, F80='Calc|Charges'!F78,G80='Calc|Charges'!G78, H80=ROUND('Calc|Charges'!H78,0)),0,1) -> 0
A81: 70 | B81: ='Calc|Charges'!B79 ->  | C81: ='Calc|Charges'!C79 ->  | D81: ='Calc|Charges'!D79 ->  | E81: ='Calc|Charges'!E79 ->  | F81: ='Calc|Charges'!F79 ->  | G81: ='Calc|Charges'!G79 ->  | H81: ='Calc|Charges'!H79 -> 0 | I81: =IF(AND(B81='Calc|Charges'!B79,C81='Calc|Charges'!C79,D81='Calc|Charges'!D79,E81='Calc|Charges'!E79, F81='Calc|Charges'!F79,G81='Calc|Charges'!G79, H81=ROUND('Calc|Charges'!H79,0)),0,1) -> 0
A82: 71 | B82: ='Calc|Charges'!B80 ->  | C82: ='Calc|Charges'!C80 ->  | D82: ='Calc|Charges'!D80 ->  | E82: ='Calc|Charges'!E80 ->  | F82: ='Calc|Charges'!F80 ->  | G82: ='Calc|Charges'!G80 ->  | H82: ='Calc|Charges'!H80 -> 0 | I82: =IF(AND(B82='Calc|Charges'!B80,C82='Calc|Charges'!C80,D82='Calc|Charges'!D80,E82='Calc|Charges'!E80, F82='Calc|Charges'!F80,G82='Calc|Charges'!G80, H82=ROUND('Calc|Charges'!H80,0)),0,1) -> 0
A83: 72 | B83: ='Calc|Charges'!B81 ->  | C83: ='Calc|Charges'!C81 ->  | D83: ='Calc|Charges'!D81 ->  | E83: ='Calc|Charges'!E81 ->  | F83: ='Calc|Charges'!F81 ->  | G83: ='Calc|Charges'!G81 ->  | H83: ='Calc|Charges'!H81 -> 0 | I83: =IF(AND(B83='Calc|Charges'!B81,C83='Calc|Charges'!C81,D83='Calc|Charges'!D81,E83='Calc|Charges'!E81, F83='Calc|Charges'!F81,G83='Calc|Charges'!G81, H83=ROUND('Calc|Charges'!H81,0)),0,1) -> 0
A84: 73 | B84: ='Calc|Charges'!B82 ->  | C84: ='Calc|Charges'!C82 ->  | D84: ='Calc|Charges'!D82 ->  | E84: ='Calc|Charges'!E82 ->  | F84: ='Calc|Charges'!F82 ->  | G84: ='Calc|Charges'!G82 ->  | H84: ='Calc|Charges'!H82 -> 0 | I84: =IF(AND(B84='Calc|Charges'!B82,C84='Calc|Charges'!C82,D84='Calc|Charges'!D82,E84='Calc|Charges'!E82, F84='Calc|Charges'!F82,G84='Calc|Charges'!G82, H84=ROUND('Calc|Charges'!H82,0)),0,1) -> 0
A85: 74 | B85: ='Calc|Charges'!B83 ->  | C85: ='Calc|Charges'!C83 ->  | D85: ='Calc|Charges'!D83 ->  | E85: ='Calc|Charges'!E83 ->  | F85: ='Calc|Charges'!F83 ->  | G85: ='Calc|Charges'!G83 ->  | H85: ='Calc|Charges'!H83 -> 0 | I85: =IF(AND(B85='Calc|Charges'!B83,C85='Calc|Charges'!C83,D85='Calc|Charges'!D83,E85='Calc|Charges'!E83, F85='Calc|Charges'!F83,G85='Calc|Charges'!G83, H85=ROUND('Calc|Charges'!H83,0)),0,1) -> 0
A86: 75 | B86: ='Calc|Charges'!B84 ->  | C86: ='Calc|Charges'!C84 ->  | D86: ='Calc|Charges'!D84 ->  | E86: ='Calc|Charges'!E84 ->  | F86: ='Calc|Charges'!F84 ->  | G86: ='Calc|Charges'!G84 ->  | H86: ='Calc|Charges'!H84 -> 0 | I86: =IF(AND(B86='Calc|Charges'!B84,C86='Calc|Charges'!C84,D86='Calc|Charges'!D84,E86='Calc|Charges'!E84, F86='Calc|Charges'!F84,G86='Calc|Charges'!G84, H86=ROUND('Calc|Charges'!H84,0)),0,1) -> 0
A87: 76 | B87: ='Calc|Charges'!B85 ->  | C87: ='Calc|Charges'!C85 ->  | D87: ='Calc|Charges'!D85 ->  | E87: ='Calc|Charges'!E85 ->  | F87: ='Calc|Charges'!F85 ->  | G87: ='Calc|Charges'!G85 ->  | H87: ='Calc|Charges'!H85 -> 0 | I87: =IF(AND(B87='Calc|Charges'!B85,C87='Calc|Charges'!C85,D87='Calc|Charges'!D85,E87='Calc|Charges'!E85, F87='Calc|Charges'!F85,G87='Calc|Charges'!G85, H87=ROUND('Calc|Charges'!H85,0)),0,1) -> 0
A88: 77 | B88: ='Calc|Charges'!B86 ->  | C88: ='Calc|Charges'!C86 ->  | D88: ='Calc|Charges'!D86 ->  | E88: ='Calc|Charges'!E86 ->  | F88: ='Calc|Charges'!F86 ->  | G88: ='Calc|Charges'!G86 ->  | H88: ='Calc|Charges'!H86 -> 0 | I88: =IF(AND(B88='Calc|Charges'!B86,C88='Calc|Charges'!C86,D88='Calc|Charges'!D86,E88='Calc|Charges'!E86, F88='Calc|Charges'!F86,G88='Calc|Charges'!G86, H88=ROUND('Calc|Charges'!H86,0)),0,1) -> 0
A89: 78 | B89: ='Calc|Charges'!B87 ->  | C89: ='Calc|Charges'!C87 ->  | D89: ='Calc|Charges'!D87 ->  | E89: ='Calc|Charges'!E87 ->  | F89: ='Calc|Charges'!F87 ->  | G89: ='Calc|Charges'!G87 ->  | H89: ='Calc|Charges'!H87 -> 0 | I89: =IF(AND(B89='Calc|Charges'!B87,C89='Calc|Charges'!C87,D89='Calc|Charges'!D87,E89='Calc|Charges'!E87, F89='Calc|Charges'!F87,G89='Calc|Charges'!G87, H89=ROUND('Calc|Charges'!H87,0)),0,1) -> 0
A90: 79 | B90: ='Calc|Charges'!B88 ->  | C90: ='Calc|Charges'!C88 ->  | D90: ='Calc|Charges'!D88 ->  | E90: ='Calc|Charges'!E88 ->  | F90: ='Calc|Charges'!F88 ->  | G90: ='Calc|Charges'!G88 ->  | H90: ='Calc|Charges'!H88 -> 0 | I90: =IF(AND(B90='Calc|Charges'!B88,C90='Calc|Charges'!C88,D90='Calc|Charges'!D88,E90='Calc|Charges'!E88, F90='Calc|Charges'!F88,G90='Calc|Charges'!G88, H90=ROUND('Calc|Charges'!H88,0)),0,1) -> 0
A91: 80 | B91: ='Calc|Charges'!B89 ->  | C91: ='Calc|Charges'!C89 ->  | D91: ='Calc|Charges'!D89 ->  | E91: ='Calc|Charges'!E89 ->  | F91: ='Calc|Charges'!F89 ->  | G91: ='Calc|Charges'!G89 ->  | H91: ='Calc|Charges'!H89 -> 0 | I91: =IF(AND(B91='Calc|Charges'!B89,C91='Calc|Charges'!C89,D91='Calc|Charges'!D89,E91='Calc|Charges'!E89, F91='Calc|Charges'!F89,G91='Calc|Charges'!G89, H91=ROUND('Calc|Charges'!H89,0)),0,1) -> 0
A92: 81 | B92: ='Calc|Charges'!B90 ->  | C92: ='Calc|Charges'!C90 ->  | D92: ='Calc|Charges'!D90 ->  | E92: ='Calc|Charges'!E90 ->  | F92: ='Calc|Charges'!F90 ->  | G92: ='Calc|Charges'!G90 ->  | H92: ='Calc|Charges'!H90 -> 0 | I92: =IF(AND(B92='Calc|Charges'!B90,C92='Calc|Charges'!C90,D92='Calc|Charges'!D90,E92='Calc|Charges'!E90, F92='Calc|Charges'!F90,G92='Calc|Charges'!G90, H92=ROUND('Calc|Charges'!H90,0)),0,1) -> 0
A93: 82 | B93: ='Calc|Charges'!B91 ->  | C93: ='Calc|Charges'!C91 ->  | D93: ='Calc|Charges'!D91 ->  | E93: ='Calc|Charges'!E91 ->  | F93: ='Calc|Charges'!F91 ->  | G93: ='Calc|Charges'!G91 ->  | H93: ='Calc|Charges'!H91 -> 0 | I93: =IF(AND(B93='Calc|Charges'!B91,C93='Calc|Charges'!C91,D93='Calc|Charges'!D91,E93='Calc|Charges'!E91, F93='Calc|Charges'!F91,G93='Calc|Charges'!G91, H93=ROUND('Calc|Charges'!H91,0)),0,1) -> 0
A94: 83 | B94: ='Calc|Charges'!B92 ->  | C94: ='Calc|Charges'!C92 ->  | D94: ='Calc|Charges'!D92 ->  | E94: ='Calc|Charges'!E92 ->  | F94: ='Calc|Charges'!F92 ->  | G94: ='Calc|Charges'!G92 ->  | H94: ='Calc|Charges'!H92 -> 0 | I94: =IF(AND(B94='Calc|Charges'!B92,C94='Calc|Charges'!C92,D94='Calc|Charges'!D92,E94='Calc|Charges'!E92, F94='Calc|Charges'!F92,G94='Calc|Charges'!G92, H94=ROUND('Calc|Charges'!H92,0)),0,1) -> 0
A95: 84 | B95: ='Calc|Charges'!B93 ->  | C95: ='Calc|Charges'!C93 ->  | D95: ='Calc|Charges'!D93 ->  | E95: ='Calc|Charges'!E93 ->  | F95: ='Calc|Charges'!F93 ->  | G95: ='Calc|Charges'!G93 ->  | H95: ='Calc|Charges'!H93 -> 0 | I95: =IF(AND(B95='Calc|Charges'!B93,C95='Calc|Charges'!C93,D95='Calc|Charges'!D93,E95='Calc|Charges'!E93, F95='Calc|Charges'!F93,G95='Calc|Charges'!G93, H95=ROUND('Calc|Charges'!H93,0)),0,1) -> 0
A96: 85 | B96: ='Calc|Charges'!B94 ->  | C96: ='Calc|Charges'!C94 ->  | D96: ='Calc|Charges'!D94 ->  | E96: ='Calc|Charges'!E94 ->  | F96: ='Calc|Charges'!F94 ->  | G96: ='Calc|Charges'!G94 ->  | H96: ='Calc|Charges'!H94 -> 0 | I96: =IF(AND(B96='Calc|Charges'!B94,C96='Calc|Charges'!C94,D96='Calc|Charges'!D94,E96='Calc|Charges'!E94, F96='Calc|Charges'!F94,G96='Calc|Charges'!G94, H96=ROUND('Calc|Charges'!H94,0)),0,1) -> 0
A97: 86 | B97: ='Calc|Charges'!B95 ->  | C97: ='Calc|Charges'!C95 ->  | D97: ='Calc|Charges'!D95 ->  | E97: ='Calc|Charges'!E95 ->  | F97: ='Calc|Charges'!F95 ->  | G97: ='Calc|Charges'!G95 ->  | H97: ='Calc|Charges'!H95 -> 0 | I97: =IF(AND(B97='Calc|Charges'!B95,C97='Calc|Charges'!C95,D97='Calc|Charges'!D95,E97='Calc|Charges'!E95, F97='Calc|Charges'!F95,G97='Calc|Charges'!G95, H97=ROUND('Calc|Charges'!H95,0)),0,1) -> 0
A98: 87 | B98: ='Calc|Charges'!B96 ->  | C98: ='Calc|Charges'!C96 ->  | D98: ='Calc|Charges'!D96 ->  | E98: ='Calc|Charges'!E96 ->  | F98: ='Calc|Charges'!F96 ->  | G98: ='Calc|Charges'!G96 ->  | H98: ='Calc|Charges'!H96 -> 0 | I98: =IF(AND(B98='Calc|Charges'!B96,C98='Calc|Charges'!C96,D98='Calc|Charges'!D96,E98='Calc|Charges'!E96, F98='Calc|Charges'!F96,G98='Calc|Charges'!G96, H98=ROUND('Calc|Charges'!H96,0)),0,1) -> 0
A99: 88 | B99: ='Calc|Charges'!B97 ->  | C99: ='Calc|Charges'!C97 ->  | D99: ='Calc|Charges'!D97 ->  | E99: ='Calc|Charges'!E97 ->  | F99: ='Calc|Charges'!F97 ->  | G99: ='Calc|Charges'!G97 ->  | H99: ='Calc|Charges'!H97 -> 0 | I99: =IF(AND(B99='Calc|Charges'!B97,C99='Calc|Charges'!C97,D99='Calc|Charges'!D97,E99='Calc|Charges'!E97, F99='Calc|Charges'!F97,G99='Calc|Charges'!G97, H99=ROUND('Calc|Charges'!H97,0)),0,1) -> 0
A100: 89 | B100: ='Calc|Charges'!B98 ->  | C100: ='Calc|Charges'!C98 ->  | D100: ='Calc|Charges'!D98 ->  | E100: ='Calc|Charges'!E98 ->  | F100: ='Calc|Charges'!F98 ->  | G100: ='Calc|Charges'!G98 ->  | H100: ='Calc|Charges'!H98 -> 0 | I100: =IF(AND(B100='Calc|Charges'!B98,C100='Calc|Charges'!C98,D100='Calc|Charges'!D98,E100='Calc|Charges'!E98, F100='Calc|Charges'!F98,G100='Calc|Charges'!G98, H100=ROUND('Calc|Charges'!H98,0)),0,1) -> 0
A101: 90 | B101: ='Calc|Charges'!B99 ->  | C101: ='Calc|Charges'!C99 ->  | D101: ='Calc|Charges'!D99 ->  | E101: ='Calc|Charges'!E99 ->  | F101: ='Calc|Charges'!F99 ->  | G101: ='Calc|Charges'!G99 ->  | H101: ='Calc|Charges'!H99 -> 0 | I101: =IF(AND(B101='Calc|Charges'!B99,C101='Calc|Charges'!C99,D101='Calc|Charges'!D99,E101='Calc|Charges'!E99, F101='Calc|Charges'!F99,G101='Calc|Charges'!G99, H101=ROUND('Calc|Charges'!H99,0)),0,1) -> 0
A102: 91 | B102: ='Calc|Charges'!B100 ->  | C102: ='Calc|Charges'!C100 ->  | D102: ='Calc|Charges'!D100 ->  | E102: ='Calc|Charges'!E100 ->  | F102: ='Calc|Charges'!F100 ->  | G102: ='Calc|Charges'!G100 ->  | H102: ='Calc|Charges'!H100 -> 0 | I102: =IF(AND(B102='Calc|Charges'!B100,C102='Calc|Charges'!C100,D102='Calc|Charges'!D100,E102='Calc|Charges'!E100, F102='Calc|Charges'!F100,G102='Calc|Charges'!G100, H102=ROUND('Calc|Charges'!H100,0)),0,1) -> 0
A103: 92 | B103: ='Calc|Charges'!B101 ->  | C103: ='Calc|Charges'!C101 ->  | D103: ='Calc|Charges'!D101 ->  | E103: ='Calc|Charges'!E101 ->  | F103: ='Calc|Charges'!F101 ->  | G103: ='Calc|Charges'!G101 ->  | H103: ='Calc|Charges'!H101 -> 0 | I103: =IF(AND(B103='Calc|Charges'!B101,C103='Calc|Charges'!C101,D103='Calc|Charges'!D101,E103='Calc|Charges'!E101, F103='Calc|Charges'!F101,G103='Calc|Charges'!G101, H103=ROUND('Calc|Charges'!H101,0)),0,1) -> 0
A104: 93 | B104: ='Calc|Charges'!B102 ->  | C104: ='Calc|Charges'!C102 ->  | D104: ='Calc|Charges'!D102 ->  | E104: ='Calc|Charges'!E102 ->  | F104: ='Calc|Charges'!F102 ->  | G104: ='Calc|Charges'!G102 ->  | H104: ='Calc|Charges'!H102 -> 0 | I104: =IF(AND(B104='Calc|Charges'!B102,C104='Calc|Charges'!C102,D104='Calc|Charges'!D102,E104='Calc|Charges'!E102, F104='Calc|Charges'!F102,G104='Calc|Charges'!G102, H104=ROUND('Calc|Charges'!H102,0)),0,1) -> 0
A105: 94 | B105: ='Calc|Charges'!B103 ->  | C105: ='Calc|Charges'!C103 ->  | D105: ='Calc|Charges'!D103 ->  | E105: ='Calc|Charges'!E103 ->  | F105: ='Calc|Charges'!F103 ->  | G105: ='Calc|Charges'!G103 ->  | H105: ='Calc|Charges'!H103 -> 0 | I105: =IF(AND(B105='Calc|Charges'!B103,C105='Calc|Charges'!C103,D105='Calc|Charges'!D103,E105='Calc|Charges'!E103, F105='Calc|Charges'!F103,G105='Calc|Charges'!G103, H105=ROUND('Calc|Charges'!H103,0)),0,1) -> 0
A106: 95 | B106: ='Calc|Charges'!B104 ->  | C106: ='Calc|Charges'!C104 ->  | D106: ='Calc|Charges'!D104 ->  | E106: ='Calc|Charges'!E104 ->  | F106: ='Calc|Charges'!F104 ->  | G106: ='Calc|Charges'!G104 ->  | H106: ='Calc|Charges'!H104 -> 0 | I106: =IF(AND(B106='Calc|Charges'!B104,C106='Calc|Charges'!C104,D106='Calc|Charges'!D104,E106='Calc|Charges'!E104, F106='Calc|Charges'!F104,G106='Calc|Charges'!G104, H106=ROUND('Calc|Charges'!H104,0)),0,1) -> 0
A107: 96 | B107: ='Calc|Charges'!B105 ->  | C107: ='Calc|Charges'!C105 ->  | D107: ='Calc|Charges'!D105 ->  | E107: ='Calc|Charges'!E105 ->  | F107: ='Calc|Charges'!F105 ->  | G107: ='Calc|Charges'!G105 ->  | H107: ='Calc|Charges'!H105 -> 0 | I107: =IF(AND(B107='Calc|Charges'!B105,C107='Calc|Charges'!C105,D107='Calc|Charges'!D105,E107='Calc|Charges'!E105, F107='Calc|Charges'!F105,G107='Calc|Charges'!G105, H107=ROUND('Calc|Charges'!H105,0)),0,1) -> 0
A108: 97 | B108: ='Calc|Charges'!B106 ->  | C108: ='Calc|Charges'!C106 ->  | D108: ='Calc|Charges'!D106 ->  | E108: ='Calc|Charges'!E106 ->  | F108: ='Calc|Charges'!F106 ->  | G108: ='Calc|Charges'!G106 ->  | H108: ='Calc|Charges'!H106 -> 0 | I108: =IF(AND(B108='Calc|Charges'!B106,C108='Calc|Charges'!C106,D108='Calc|Charges'!D106,E108='Calc|Charges'!E106, F108='Calc|Charges'!F106,G108='Calc|Charges'!G106, H108=ROUND('Calc|Charges'!H106,0)),0,1) -> 0
A109: 98 | B109: ='Calc|Charges'!B107 ->  | C109: ='Calc|Charges'!C107 ->  | D109: ='Calc|Charges'!D107 ->  | E109: ='Calc|Charges'!E107 ->  | F109: ='Calc|Charges'!F107 ->  | G109: ='Calc|Charges'!G107 ->  | H109: ='Calc|Charges'!H107 -> 0 | I109: =IF(AND(B109='Calc|Charges'!B107,C109='Calc|Charges'!C107,D109='Calc|Charges'!D107,E109='Calc|Charges'!E107, F109='Calc|Charges'!F107,G109='Calc|Charges'!G107, H109=ROUND('Calc|Charges'!H107,0)),0,1) -> 0
A110: 99 | B110: ='Calc|Charges'!B108 ->  | C110: ='Calc|Charges'!C108 ->  | D110: ='Calc|Charges'!D108 ->  | E110: ='Calc|Charges'!E108 ->  | F110: ='Calc|Charges'!F108 ->  | G110: ='Calc|Charges'!G108 ->  | H110: ='Calc|Charges'!H108 -> 0 | I110: =IF(AND(B110='Calc|Charges'!B108,C110='Calc|Charges'!C108,D110='Calc|Charges'!D108,E110='Calc|Charges'!E108, F110='Calc|Charges'!F108,G110='Calc|Charges'!G108, H110=ROUND('Calc|Charges'!H108,0)),0,1) -> 0
A111: 100 | B111: ='Calc|Charges'!B109 ->  | C111: ='Calc|Charges'!C109 ->  | D111: ='Calc|Charges'!D109 ->  | E111: ='Calc|Charges'!E109 ->  | F111: ='Calc|Charges'!F109 ->  | G111: ='Calc|Charges'!G109 ->  | H111: ='Calc|Charges'!H109 -> 0 | I111: =IF(AND(B111='Calc|Charges'!B109,C111='Calc|Charges'!C109,D111='Calc|Charges'!D109,E111='Calc|Charges'!E109, F111='Calc|Charges'!F109,G111='Calc|Charges'!G109, H111=ROUND('Calc|Charges'!H109,0)),0,1) -> 0
A112: 101 | B112: ='Calc|Charges'!B110 ->  | C112: ='Calc|Charges'!C110 ->  | D112: ='Calc|Charges'!D110 ->  | E112: ='Calc|Charges'!E110 ->  | F112: ='Calc|Charges'!F110 ->  | G112: ='Calc|Charges'!G110 ->  | H112: ='Calc|Charges'!H110 -> 0 | I112: =IF(AND(B112='Calc|Charges'!B110,C112='Calc|Charges'!C110,D112='Calc|Charges'!D110,E112='Calc|Charges'!E110, F112='Calc|Charges'!F110,G112='Calc|Charges'!G110, H112=ROUND('Calc|Charges'!H110,0)),0,1) -> 0
A113: 102 | B113: ='Calc|Charges'!B111 ->  | C113: ='Calc|Charges'!C111 ->  | D113: ='Calc|Charges'!D111 ->  | E113: ='Calc|Charges'!E111 ->  | F113: ='Calc|Charges'!F111 ->  | G113: ='Calc|Charges'!G111 ->  | H113: ='Calc|Charges'!H111 -> 0 | I113: =IF(AND(B113='Calc|Charges'!B111,C113='Calc|Charges'!C111,D113='Calc|Charges'!D111,E113='Calc|Charges'!E111, F113='Calc|Charges'!F111,G113='Calc|Charges'!G111, H113=ROUND('Calc|Charges'!H111,0)),0,1) -> 0
A114: 103 | B114: ='Calc|Charges'!B112 ->  | C114: ='Calc|Charges'!C112 ->  | D114: ='Calc|Charges'!D112 ->  | E114: ='Calc|Charges'!E112 ->  | F114: ='Calc|Charges'!F112 ->  | G114: ='Calc|Charges'!G112 ->  | H114: ='Calc|Charges'!H112 -> 0 | I114: =IF(AND(B114='Calc|Charges'!B112,C114='Calc|Charges'!C112,D114='Calc|Charges'!D112,E114='Calc|Charges'!E112, F114='Calc|Charges'!F112,G114='Calc|Charges'!G112, H114=ROUND('Calc|Charges'!H112,0)),0,1) -> 0
A115: 104 | B115: ='Calc|Charges'!B113 ->  | C115: ='Calc|Charges'!C113 ->  | D115: ='Calc|Charges'!D113 ->  | E115: ='Calc|Charges'!E113 ->  | F115: ='Calc|Charges'!F113 ->  | G115: ='Calc|Charges'!G113 ->  | H115: ='Calc|Charges'!H113 -> 0 | I115: =IF(AND(B115='Calc|Charges'!B113,C115='Calc|Charges'!C113,D115='Calc|Charges'!D113,E115='Calc|Charges'!E113, F115='Calc|Charges'!F113,G115='Calc|Charges'!G113, H115=ROUND('Calc|Charges'!H113,0)),0,1) -> 0
A116: 105 | B116: ='Calc|Charges'!B114 ->  | C116: ='Calc|Charges'!C114 ->  | D116: ='Calc|Charges'!D114 ->  | E116: ='Calc|Charges'!E114 ->  | F116: ='Calc|Charges'!F114 ->  | G116: ='Calc|Charges'!G114 ->  | H116: ='Calc|Charges'!H114 -> 0 | I116: =IF(AND(B116='Calc|Charges'!B114,C116='Calc|Charges'!C114,D116='Calc|Charges'!D114,E116='Calc|Charges'!E114, F116='Calc|Charges'!F114,G116='Calc|Charges'!G114, H116=ROUND('Calc|Charges'!H114,0)),0,1) -> 0
A117: 106 | B117: ='Calc|Charges'!B115 ->  | C117: ='Calc|Charges'!C115 ->  | D117: ='Calc|Charges'!D115 ->  | E117: ='Calc|Charges'!E115 ->  | F117: ='Calc|Charges'!F115 ->  | G117: ='Calc|Charges'!G115 ->  | H117: ='Calc|Charges'!H115 -> 0 | I117: =IF(AND(B117='Calc|Charges'!B115,C117='Calc|Charges'!C115,D117='Calc|Charges'!D115,E117='Calc|Charges'!E115, F117='Calc|Charges'!F115,G117='Calc|Charges'!G115, H117=ROUND('Calc|Charges'!H115,0)),0,1) -> 0
A118: 107 | B118: ='Calc|Charges'!B116 ->  | C118: ='Calc|Charges'!C116 ->  | D118: ='Calc|Charges'!D116 ->  | E118: ='Calc|Charges'!E116 ->  | F118: ='Calc|Charges'!F116 ->  | G118: ='Calc|Charges'!G116 ->  | H118: ='Calc|Charges'!H116 -> 0 | I118: =IF(AND(B118='Calc|Charges'!B116,C118='Calc|Charges'!C116,D118='Calc|Charges'!D116,E118='Calc|Charges'!E116, F118='Calc|Charges'!F116,G118='Calc|Charges'!G116, H118=ROUND('Calc|Charges'!H116,0)),0,1) -> 0
A119: 108 | B119: ='Calc|Charges'!B117 ->  | C119: ='Calc|Charges'!C117 ->  | D119: ='Calc|Charges'!D117 ->  | E119: ='Calc|Charges'!E117 ->  | F119: ='Calc|Charges'!F117 ->  | G119: ='Calc|Charges'!G117 ->  | H119: ='Calc|Charges'!H117 -> 0 | I119: =IF(AND(B119='Calc|Charges'!B117,C119='Calc|Charges'!C117,D119='Calc|Charges'!D117,E119='Calc|Charges'!E117, F119='Calc|Charges'!F117,G119='Calc|Charges'!G117, H119=ROUND('Calc|Charges'!H117,0)),0,1) -> 0
A120: 109 | B120: ='Calc|Charges'!B118 ->  | C120: ='Calc|Charges'!C118 ->  | D120: ='Calc|Charges'!D118 ->  | E120: ='Calc|Charges'!E118 ->  | F120: ='Calc|Charges'!F118 ->  | G120: ='Calc|Charges'!G118 ->  | H120: ='Calc|Charges'!H118 -> 0 | I120: =IF(AND(B120='Calc|Charges'!B118,C120='Calc|Charges'!C118,D120='Calc|Charges'!D118,E120='Calc|Charges'!E118, F120='Calc|Charges'!F118,G120='Calc|Charges'!G118, H120=ROUND('Calc|Charges'!H118,0)),0,1) -> 0
A121: 110 | B121: ='Calc|Charges'!B119 ->  | C121: ='Calc|Charges'!C119 ->  | D121: ='Calc|Charges'!D119 ->  | E121: ='Calc|Charges'!E119 ->  | F121: ='Calc|Charges'!F119 ->  | G121: ='Calc|Charges'!G119 ->  | H121: ='Calc|Charges'!H119 -> 0 | I121: =IF(AND(B121='Calc|Charges'!B119,C121='Calc|Charges'!C119,D121='Calc|Charges'!D119,E121='Calc|Charges'!E119, F121='Calc|Charges'!F119,G121='Calc|Charges'!G119, H121=ROUND('Calc|Charges'!H119,0)),0,1) -> 0
A122: 111 | B122: ='Calc|Charges'!B120 ->  | C122: ='Calc|Charges'!C120 ->  | D122: ='Calc|Charges'!D120 ->  | E122: ='Calc|Charges'!E120 ->  | F122: ='Calc|Charges'!F120 ->  | G122: ='Calc|Charges'!G120 ->  | H122: ='Calc|Charges'!H120 -> 0 | I122: =IF(AND(B122='Calc|Charges'!B120,C122='Calc|Charges'!C120,D122='Calc|Charges'!D120,E122='Calc|Charges'!E120, F122='Calc|Charges'!F120,G122='Calc|Charges'!G120, H122=ROUND('Calc|Charges'!H120,0)),0,1) -> 0
A123: 112 | B123: ='Calc|Charges'!B121 ->  | C123: ='Calc|Charges'!C121 ->  | D123: ='Calc|Charges'!D121 ->  | E123: ='Calc|Charges'!E121 ->  | F123: ='Calc|Charges'!F121 ->  | G123: ='Calc|Charges'!G121 ->  | H123: ='Calc|Charges'!H121 -> 0 | I123: =IF(AND(B123='Calc|Charges'!B121,C123='Calc|Charges'!C121,D123='Calc|Charges'!D121,E123='Calc|Charges'!E121, F123='Calc|Charges'!F121,G123='Calc|Charges'!G121, H123=ROUND('Calc|Charges'!H121,0)),0,1) -> 0
A124: 113 | B124: ='Calc|Charges'!B122 ->  | C124: ='Calc|Charges'!C122 ->  | D124: ='Calc|Charges'!D122 ->  | E124: ='Calc|Charges'!E122 ->  | F124: ='Calc|Charges'!F122 ->  | G124: ='Calc|Charges'!G122 ->  | H124: ='Calc|Charges'!H122 -> 0 | I124: =IF(AND(B124='Calc|Charges'!B122,C124='Calc|Charges'!C122,D124='Calc|Charges'!D122,E124='Calc|Charges'!E122, F124='Calc|Charges'!F122,G124='Calc|Charges'!G122, H124=ROUND('Calc|Charges'!H122,0)),0,1) -> 0
A125: 114 | B125: ='Calc|Charges'!B123 ->  | C125: ='Calc|Charges'!C123 ->  | D125: ='Calc|Charges'!D123 ->  | E125: ='Calc|Charges'!E123 ->  | F125: ='Calc|Charges'!F123 ->  | G125: ='Calc|Charges'!G123 ->  | H125: ='Calc|Charges'!H123 -> 0 | I125: =IF(AND(B125='Calc|Charges'!B123,C125='Calc|Charges'!C123,D125='Calc|Charges'!D123,E125='Calc|Charges'!E123, F125='Calc|Charges'!F123,G125='Calc|Charges'!G123, H125=ROUND('Calc|Charges'!H123,0)),0,1) -> 0
A126: 115 | B126: ='Calc|Charges'!B124 ->  | C126: ='Calc|Charges'!C124 ->  | D126: ='Calc|Charges'!D124 ->  | E126: ='Calc|Charges'!E124 ->  | F126: ='Calc|Charges'!F124 ->  | G126: ='Calc|Charges'!G124 ->  | H126: ='Calc|Charges'!H124 -> 0 | I126: =IF(AND(B126='Calc|Charges'!B124,C126='Calc|Charges'!C124,D126='Calc|Charges'!D124,E126='Calc|Charges'!E124, F126='Calc|Charges'!F124,G126='Calc|Charges'!G124, H126=ROUND('Calc|Charges'!H124,0)),0,1) -> 0
A127: 116 | B127: ='Calc|Charges'!B125 ->  | C127: ='Calc|Charges'!C125 ->  | D127: ='Calc|Charges'!D125 ->  | E127: ='Calc|Charges'!E125 ->  | F127: ='Calc|Charges'!F125 ->  | G127: ='Calc|Charges'!G125 ->  | H127: ='Calc|Charges'!H125 -> 0 | I127: =IF(AND(B127='Calc|Charges'!B125,C127='Calc|Charges'!C125,D127='Calc|Charges'!D125,E127='Calc|Charges'!E125, F127='Calc|Charges'!F125,G127='Calc|Charges'!G125, H127=ROUND('Calc|Charges'!H125,0)),0,1) -> 0
A128: 117 | B128: ='Calc|Charges'!B126 ->  | C128: ='Calc|Charges'!C126 ->  | D128: ='Calc|Charges'!D126 ->  | E128: ='Calc|Charges'!E126 ->  | F128: ='Calc|Charges'!F126 ->  | G128: ='Calc|Charges'!G126 ->  | H128: ='Calc|Charges'!H126 -> 0 | I128: =IF(AND(B128='Calc|Charges'!B126,C128='Calc|Charges'!C126,D128='Calc|Charges'!D126,E128='Calc|Charges'!E126, F128='Calc|Charges'!F126,G128='Calc|Charges'!G126, H128=ROUND('Calc|Charges'!H126,0)),0,1) -> 0
A129: 118 | B129: ='Calc|Charges'!B127 ->  | C129: ='Calc|Charges'!C127 ->  | D129: ='Calc|Charges'!D127 ->  | E129: ='Calc|Charges'!E127 ->  | F129: ='Calc|Charges'!F127 ->  | G129: ='Calc|Charges'!G127 ->  | H129: ='Calc|Charges'!H127 -> 0 | I129: =IF(AND(B129='Calc|Charges'!B127,C129='Calc|Charges'!C127,D129='Calc|Charges'!D127,E129='Calc|Charges'!E127, F129='Calc|Charges'!F127,G129='Calc|Charges'!G127, H129=ROUND('Calc|Charges'!H127,0)),0,1) -> 0
A130: 119 | B130: ='Calc|Charges'!B128 ->  | C130: ='Calc|Charges'!C128 ->  | D130: ='Calc|Charges'!D128 ->  | E130: ='Calc|Charges'!E128 ->  | F130: ='Calc|Charges'!F128 ->  | G130: ='Calc|Charges'!G128 ->  | H130: ='Calc|Charges'!H128 -> 0 | I130: =IF(AND(B130='Calc|Charges'!B128,C130='Calc|Charges'!C128,D130='Calc|Charges'!D128,E130='Calc|Charges'!E128, F130='Calc|Charges'!F128,G130='Calc|Charges'!G128, H130=ROUND('Calc|Charges'!H128,0)),0,1) -> 0
A131: 120 | B131: ='Calc|Charges'!B129 ->  | C131: ='Calc|Charges'!C129 ->  | D131: ='Calc|Charges'!D129 ->  | E131: ='Calc|Charges'!E129 ->  | F131: ='Calc|Charges'!F129 ->  | G131: ='Calc|Charges'!G129 ->  | H131: ='Calc|Charges'!H129 -> 0 | I131: =IF(AND(B131='Calc|Charges'!B129,C131='Calc|Charges'!C129,D131='Calc|Charges'!D129,E131='Calc|Charges'!E129, F131='Calc|Charges'!F129,G131='Calc|Charges'!G129, H131=ROUND('Calc|Charges'!H129,0)),0,1) -> 0
A132: 121 | B132: ='Calc|Charges'!B130 ->  | C132: ='Calc|Charges'!C130 ->  | D132: ='Calc|Charges'!D130 ->  | E132: ='Calc|Charges'!E130 ->  | F132: ='Calc|Charges'!F130 ->  | G132: ='Calc|Charges'!G130 ->  | H132: ='Calc|Charges'!H130 -> 0 | I132: =IF(AND(B132='Calc|Charges'!B130,C132='Calc|Charges'!C130,D132='Calc|Charges'!D130,E132='Calc|Charges'!E130, F132='Calc|Charges'!F130,G132='Calc|Charges'!G130, H132=ROUND('Calc|Charges'!H130,0)),0,1) -> 0
A133: 122 | B133: ='Calc|Charges'!B131 ->  | C133: ='Calc|Charges'!C131 ->  | D133: ='Calc|Charges'!D131 ->  | E133: ='Calc|Charges'!E131 ->  | F133: ='Calc|Charges'!F131 ->  | G133: ='Calc|Charges'!G131 ->  | H133: ='Calc|Charges'!H131 -> 0 | I133: =IF(AND(B133='Calc|Charges'!B131,C133='Calc|Charges'!C131,D133='Calc|Charges'!D131,E133='Calc|Charges'!E131, F133='Calc|Charges'!F131,G133='Calc|Charges'!G131, H133=ROUND('Calc|Charges'!H131,0)),0,1) -> 0
A134: 123 | B134: ='Calc|Charges'!B132 ->  | C134: ='Calc|Charges'!C132 ->  | D134: ='Calc|Charges'!D132 ->  | E134: ='Calc|Charges'!E132 ->  | F134: ='Calc|Charges'!F132 ->  | G134: ='Calc|Charges'!G132 ->  | H134: ='Calc|Charges'!H132 -> 0 | I134: =IF(AND(B134='Calc|Charges'!B132,C134='Calc|Charges'!C132,D134='Calc|Charges'!D132,E134='Calc|Charges'!E132, F134='Calc|Charges'!F132,G134='Calc|Charges'!G132, H134=ROUND('Calc|Charges'!H132,0)),0,1) -> 0
A135: 124 | B135: ='Calc|Charges'!B133 ->  | C135: ='Calc|Charges'!C133 ->  | D135: ='Calc|Charges'!D133 ->  | E135: ='Calc|Charges'!E133 ->  | F135: ='Calc|Charges'!F133 ->  | G135: ='Calc|Charges'!G133 ->  | H135: ='Calc|Charges'!H133 -> 0 | I135: =IF(AND(B135='Calc|Charges'!B133,C135='Calc|Charges'!C133,D135='Calc|Charges'!D133,E135='Calc|Charges'!E133, F135='Calc|Charges'!F133,G135='Calc|Charges'!G133, H135=ROUND('Calc|Charges'!H133,0)),0,1) -> 0
A136: 125 | B136: ='Calc|Charges'!B134 ->  | C136: ='Calc|Charges'!C134 ->  | D136: ='Calc|Charges'!D134 ->  | E136: ='Calc|Charges'!E134 ->  | F136: ='Calc|Charges'!F134 ->  | G136: ='Calc|Charges'!G134 ->  | H136: ='Calc|Charges'!H134 -> 0 | I136: =IF(AND(B136='Calc|Charges'!B134,C136='Calc|Charges'!C134,D136='Calc|Charges'!D134,E136='Calc|Charges'!E134, F136='Calc|Charges'!F134,G136='Calc|Charges'!G134, H136=ROUND('Calc|Charges'!H134,0)),0,1) -> 0
A137: 126 | B137: ='Calc|Charges'!B135 ->  | C137: ='Calc|Charges'!C135 ->  | D137: ='Calc|Charges'!D135 ->  | E137: ='Calc|Charges'!E135 ->  | F137: ='Calc|Charges'!F135 ->  | G137: ='Calc|Charges'!G135 ->  | H137: ='Calc|Charges'!H135 -> 0 | I137: =IF(AND(B137='Calc|Charges'!B135,C137='Calc|Charges'!C135,D137='Calc|Charges'!D135,E137='Calc|Charges'!E135, F137='Calc|Charges'!F135,G137='Calc|Charges'!G135, H137=ROUND('Calc|Charges'!H135,0)),0,1) -> 0
A138: 127 | B138: ='Calc|Charges'!B136 ->  | C138: ='Calc|Charges'!C136 ->  | D138: ='Calc|Charges'!D136 ->  | E138: ='Calc|Charges'!E136 ->  | F138: ='Calc|Charges'!F136 ->  | G138: ='Calc|Charges'!G136 ->  | H138: ='Calc|Charges'!H136 -> 0 | I138: =IF(AND(B138='Calc|Charges'!B136,C138='Calc|Charges'!C136,D138='Calc|Charges'!D136,E138='Calc|Charges'!E136, F138='Calc|Charges'!F136,G138='Calc|Charges'!G136, H138=ROUND('Calc|Charges'!H136,0)),0,1) -> 0
A139: 128 | B139: ='Calc|Charges'!B137 ->  | C139: ='Calc|Charges'!C137 ->  | D139: ='Calc|Charges'!D137 ->  | E139: ='Calc|Charges'!E137 ->  | F139: ='Calc|Charges'!F137 ->  | G139: ='Calc|Charges'!G137 ->  | H139: ='Calc|Charges'!H137 -> 0 | I139: =IF(AND(B139='Calc|Charges'!B137,C139='Calc|Charges'!C137,D139='Calc|Charges'!D137,E139='Calc|Charges'!E137, F139='Calc|Charges'!F137,G139='Calc|Charges'!G137, H139=ROUND('Calc|Charges'!H137,0)),0,1) -> 0
A140: 129 | B140: ='Calc|Charges'!B138 ->  | C140: ='Calc|Charges'!C138 ->  | D140: ='Calc|Charges'!D138 ->  | E140: ='Calc|Charges'!E138 ->  | F140: ='Calc|Charges'!F138 ->  | G140: ='Calc|Charges'!G138 ->  | H140: ='Calc|Charges'!H138 -> 0 | I140: =IF(AND(B140='Calc|Charges'!B138,C140='Calc|Charges'!C138,D140='Calc|Charges'!D138,E140='Calc|Charges'!E138, F140='Calc|Charges'!F138,G140='Calc|Charges'!G138, H140=ROUND('Calc|Charges'!H138,0)),0,1) -> 0
A141: 130 | B141: ='Calc|Charges'!B139 ->  | C141: ='Calc|Charges'!C139 ->  | D141: ='Calc|Charges'!D139 ->  | E141: ='Calc|Charges'!E139 ->  | F141: ='Calc|Charges'!F139 ->  | G141: ='Calc|Charges'!G139 ->  | H141: ='Calc|Charges'!H139 -> 0 | I141: =IF(AND(B141='Calc|Charges'!B139,C141='Calc|Charges'!C139,D141='Calc|Charges'!D139,E141='Calc|Charges'!E139, F141='Calc|Charges'!F139,G141='Calc|Charges'!G139, H141=ROUND('Calc|Charges'!H139,0)),0,1) -> 0
A142: 131 | B142: ='Calc|Charges'!B140 ->  | C142: ='Calc|Charges'!C140 ->  | D142: ='Calc|Charges'!D140 ->  | E142: ='Calc|Charges'!E140 ->  | F142: ='Calc|Charges'!F140 ->  | G142: ='Calc|Charges'!G140 ->  | H142: ='Calc|Charges'!H140 -> 0 | I142: =IF(AND(B142='Calc|Charges'!B140,C142='Calc|Charges'!C140,D142='Calc|Charges'!D140,E142='Calc|Charges'!E140, F142='Calc|Charges'!F140,G142='Calc|Charges'!G140, H142=ROUND('Calc|Charges'!H140,0)),0,1) -> 0
A143: 132 | B143: ='Calc|Charges'!B141 ->  | C143: ='Calc|Charges'!C141 ->  | D143: ='Calc|Charges'!D141 ->  | E143: ='Calc|Charges'!E141 ->  | F143: ='Calc|Charges'!F141 ->  | G143: ='Calc|Charges'!G141 ->  | H143: ='Calc|Charges'!H141 -> 0 | I143: =IF(AND(B143='Calc|Charges'!B141,C143='Calc|Charges'!C141,D143='Calc|Charges'!D141,E143='Calc|Charges'!E141, F143='Calc|Charges'!F141,G143='Calc|Charges'!G141, H143=ROUND('Calc|Charges'!H141,0)),0,1) -> 0
A144: 133 | B144: ='Calc|Charges'!B142 ->  | C144: ='Calc|Charges'!C142 ->  | D144: ='Calc|Charges'!D142 ->  | E144: ='Calc|Charges'!E142 ->  | F144: ='Calc|Charges'!F142 ->  | G144: ='Calc|Charges'!G142 ->  | H144: ='Calc|Charges'!H142 -> 0 | I144: =IF(AND(B144='Calc|Charges'!B142,C144='Calc|Charges'!C142,D144='Calc|Charges'!D142,E144='Calc|Charges'!E142, F144='Calc|Charges'!F142,G144='Calc|Charges'!G142, H144=ROUND('Calc|Charges'!H142,0)),0,1) -> 0
A145: 134 | B145: ='Calc|Charges'!B143 ->  | C145: ='Calc|Charges'!C143 ->  | D145: ='Calc|Charges'!D143 ->  | E145: ='Calc|Charges'!E143 ->  | F145: ='Calc|Charges'!F143 ->  | G145: ='Calc|Charges'!G143 ->  | H145: ='Calc|Charges'!H143 -> 0 | I145: =IF(AND(B145='Calc|Charges'!B143,C145='Calc|Charges'!C143,D145='Calc|Charges'!D143,E145='Calc|Charges'!E143, F145='Calc|Charges'!F143,G145='Calc|Charges'!G143, H145=ROUND('Calc|Charges'!H143,0)),0,1) -> 0
A146: 135 | B146: ='Calc|Charges'!B144 ->  | C146: ='Calc|Charges'!C144 ->  | D146: ='Calc|Charges'!D144 ->  | E146: ='Calc|Charges'!E144 ->  | F146: ='Calc|Charges'!F144 ->  | G146: ='Calc|Charges'!G144 ->  | H146: ='Calc|Charges'!H144 -> 0 | I146: =IF(AND(B146='Calc|Charges'!B144,C146='Calc|Charges'!C144,D146='Calc|Charges'!D144,E146='Calc|Charges'!E144, F146='Calc|Charges'!F144,G146='Calc|Charges'!G144, H146=ROUND('Calc|Charges'!H144,0)),0,1) -> 0
A147: 136 | B147: ='Calc|Charges'!B145 ->  | C147: ='Calc|Charges'!C145 ->  | D147: ='Calc|Charges'!D145 ->  | E147: ='Calc|Charges'!E145 ->  | F147: ='Calc|Charges'!F145 ->  | G147: ='Calc|Charges'!G145 ->  | H147: ='Calc|Charges'!H145 -> 0 | I147: =IF(AND(B147='Calc|Charges'!B145,C147='Calc|Charges'!C145,D147='Calc|Charges'!D145,E147='Calc|Charges'!E145, F147='Calc|Charges'!F145,G147='Calc|Charges'!G145, H147=ROUND('Calc|Charges'!H145,0)),0,1) -> 0
A148: 137 | B148: ='Calc|Charges'!B146 ->  | C148: ='Calc|Charges'!C146 ->  | D148: ='Calc|Charges'!D146 ->  | E148: ='Calc|Charges'!E146 ->  | F148: ='Calc|Charges'!F146 ->  | G148: ='Calc|Charges'!G146 ->  | H148: ='Calc|Charges'!H146 -> 0 | I148: =IF(AND(B148='Calc|Charges'!B146,C148='Calc|Charges'!C146,D148='Calc|Charges'!D146,E148='Calc|Charges'!E146, F148='Calc|Charges'!F146,G148='Calc|Charges'!G146, H148=ROUND('Calc|Charges'!H146,0)),0,1) -> 0
A149: 138 | B149: ='Calc|Charges'!B147 ->  | C149: ='Calc|Charges'!C147 ->  | D149: ='Calc|Charges'!D147 ->  | E149: ='Calc|Charges'!E147 ->  | F149: ='Calc|Charges'!F147 ->  | G149: ='Calc|Charges'!G147 ->  | H149: ='Calc|Charges'!H147 -> 0 | I149: =IF(AND(B149='Calc|Charges'!B147,C149='Calc|Charges'!C147,D149='Calc|Charges'!D147,E149='Calc|Charges'!E147, F149='Calc|Charges'!F147,G149='Calc|Charges'!G147, H149=ROUND('Calc|Charges'!H147,0)),0,1) -> 0
A150: 139 | B150: ='Calc|Charges'!B148 ->  | C150: ='Calc|Charges'!C148 ->  | D150: ='Calc|Charges'!D148 ->  | E150: ='Calc|Charges'!E148 ->  | F150: ='Calc|Charges'!F148 ->  | G150: ='Calc|Charges'!G148 ->  | H150: ='Calc|Charges'!H148 -> 0 | I150: =IF(AND(B150='Calc|Charges'!B148,C150='Calc|Charges'!C148,D150='Calc|Charges'!D148,E150='Calc|Charges'!E148, F150='Calc|Charges'!F148,G150='Calc|Charges'!G148, H150=ROUND('Calc|Charges'!H148,0)),0,1) -> 0
A151: 140 | B151: ='Calc|Charges'!B149 ->  | C151: ='Calc|Charges'!C149 ->  | D151: ='Calc|Charges'!D149 ->  | E151: ='Calc|Charges'!E149 ->  | F151: ='Calc|Charges'!F149 ->  | G151: ='Calc|Charges'!G149 ->  | H151: ='Calc|Charges'!H149 -> 0 | I151: =IF(AND(B151='Calc|Charges'!B149,C151='Calc|Charges'!C149,D151='Calc|Charges'!D149,E151='Calc|Charges'!E149, F151='Calc|Charges'!F149,G151='Calc|Charges'!G149, H151=ROUND('Calc|Charges'!H149,0)),0,1) -> 0
A152: 141 | B152: ='Calc|Charges'!B150 ->  | C152: ='Calc|Charges'!C150 ->  | D152: ='Calc|Charges'!D150 ->  | E152: ='Calc|Charges'!E150 ->  | F152: ='Calc|Charges'!F150 ->  | G152: ='Calc|Charges'!G150 ->  | H152: ='Calc|Charges'!H150 -> 0 | I152: =IF(AND(B152='Calc|Charges'!B150,C152='Calc|Charges'!C150,D152='Calc|Charges'!D150,E152='Calc|Charges'!E150, F152='Calc|Charges'!F150,G152='Calc|Charges'!G150, H152=ROUND('Calc|Charges'!H150,0)),0,1) -> 0
A153: 142 | B153: ='Calc|Charges'!B151 ->  | C153: ='Calc|Charges'!C151 ->  | D153: ='Calc|Charges'!D151 ->  | E153: ='Calc|Charges'!E151 ->  | F153: ='Calc|Charges'!F151 ->  | G153: ='Calc|Charges'!G151 ->  | H153: ='Calc|Charges'!H151 -> 0 | I153: =IF(AND(B153='Calc|Charges'!B151,C153='Calc|Charges'!C151,D153='Calc|Charges'!D151,E153='Calc|Charges'!E151, F153='Calc|Charges'!F151,G153='Calc|Charges'!G151, H153=ROUND('Calc|Charges'!H151,0)),0,1) -> 0
A154: 143 | B154: ='Calc|Charges'!B152 ->  | C154: ='Calc|Charges'!C152 ->  | D154: ='Calc|Charges'!D152 ->  | E154: ='Calc|Charges'!E152 ->  | F154: ='Calc|Charges'!F152 ->  | G154: ='Calc|Charges'!G152 ->  | H154: ='Calc|Charges'!H152 -> 0 | I154: =IF(AND(B154='Calc|Charges'!B152,C154='Calc|Charges'!C152,D154='Calc|Charges'!D152,E154='Calc|Charges'!E152, F154='Calc|Charges'!F152,G154='Calc|Charges'!G152, H154=ROUND('Calc|Charges'!H152,0)),0,1) -> 0
A155: 144 | B155: ='Calc|Charges'!B153 ->  | C155: ='Calc|Charges'!C153 ->  | D155: ='Calc|Charges'!D153 ->  | E155: ='Calc|Charges'!E153 ->  | F155: ='Calc|Charges'!F153 ->  | G155: ='Calc|Charges'!G153 ->  | H155: ='Calc|Charges'!H153 -> 0 | I155: =IF(AND(B155='Calc|Charges'!B153,C155='Calc|Charges'!C153,D155='Calc|Charges'!D153,E155='Calc|Charges'!E153, F155='Calc|Charges'!F153,G155='Calc|Charges'!G153, H155=ROUND('Calc|Charges'!H153,0)),0,1) -> 0
A156: 145 | B156: ='Calc|Charges'!B154 ->  | C156: ='Calc|Charges'!C154 ->  | D156: ='Calc|Charges'!D154 ->  | E156: ='Calc|Charges'!E154 ->  | F156: ='Calc|Charges'!F154 ->  | G156: ='Calc|Charges'!G154 ->  | H156: ='Calc|Charges'!H154 -> 0 | I156: =IF(AND(B156='Calc|Charges'!B154,C156='Calc|Charges'!C154,D156='Calc|Charges'!D154,E156='Calc|Charges'!E154, F156='Calc|Charges'!F154,G156='Calc|Charges'!G154, H156=ROUND('Calc|Charges'!H154,0)),0,1) -> 0
A157: 146 | B157: ='Calc|Charges'!B155 ->  | C157: ='Calc|Charges'!C155 ->  | D157: ='Calc|Charges'!D155 ->  | E157: ='Calc|Charges'!E155 ->  | F157: ='Calc|Charges'!F155 ->  | G157: ='Calc|Charges'!G155 ->  | H157: ='Calc|Charges'!H155 -> 0 | I157: =IF(AND(B157='Calc|Charges'!B155,C157='Calc|Charges'!C155,D157='Calc|Charges'!D155,E157='Calc|Charges'!E155, F157='Calc|Charges'!F155,G157='Calc|Charges'!G155, H157=ROUND('Calc|Charges'!H155,0)),0,1) -> 0
A158: 147 | B158: ='Calc|Charges'!B156 ->  | C158: ='Calc|Charges'!C156 ->  | D158: ='Calc|Charges'!D156 ->  | E158: ='Calc|Charges'!E156 ->  | F158: ='Calc|Charges'!F156 ->  | G158: ='Calc|Charges'!G156 ->  | H158: ='Calc|Charges'!H156 -> 0 | I158: =IF(AND(B158='Calc|Charges'!B156,C158='Calc|Charges'!C156,D158='Calc|Charges'!D156,E158='Calc|Charges'!E156, F158='Calc|Charges'!F156,G158='Calc|Charges'!G156, H158=ROUND('Calc|Charges'!H156,0)),0,1) -> 0
A159: 148 | B159: ='Calc|Charges'!B157 ->  | C159: ='Calc|Charges'!C157 ->  | D159: ='Calc|Charges'!D157 ->  | E159: ='Calc|Charges'!E157 ->  | F159: ='Calc|Charges'!F157 ->  | G159: ='Calc|Charges'!G157 ->  | H159: ='Calc|Charges'!H157 -> 0 | I159: =IF(AND(B159='Calc|Charges'!B157,C159='Calc|Charges'!C157,D159='Calc|Charges'!D157,E159='Calc|Charges'!E157, F159='Calc|Charges'!F157,G159='Calc|Charges'!G157, H159=ROUND('Calc|Charges'!H157,0)),0,1) -> 0
A160: 149 | B160: ='Calc|Charges'!B158 ->  | C160: ='Calc|Charges'!C158 ->  | D160: ='Calc|Charges'!D158 ->  | E160: ='Calc|Charges'!E158 ->  | F160: ='Calc|Charges'!F158 ->  | G160: ='Calc|Charges'!G158 ->  | H160: ='Calc|Charges'!H158 -> 0 | I160: =IF(AND(B160='Calc|Charges'!B158,C160='Calc|Charges'!C158,D160='Calc|Charges'!D158,E160='Calc|Charges'!E158, F160='Calc|Charges'!F158,G160='Calc|Charges'!G158, H160=ROUND('Calc|Charges'!H158,0)),0,1) -> 0
A161: 150 | B161: ='Calc|Charges'!B159 ->  | C161: ='Calc|Charges'!C159 ->  | D161: ='Calc|Charges'!D159 ->  | E161: ='Calc|Charges'!E159 ->  | F161: ='Calc|Charges'!F159 ->  | G161: ='Calc|Charges'!G159 ->  | H161: ='Calc|Charges'!H159 -> 0 | I161: =IF(AND(B161='Calc|Charges'!B159,C161='Calc|Charges'!C159,D161='Calc|Charges'!D159,E161='Calc|Charges'!E159, F161='Calc|Charges'!F159,G161='Calc|Charges'!G159, H161=ROUND('Calc|Charges'!H159,0)),0,1) -> 0
A162: 151 | B162: ='Calc|Charges'!B160 ->  | C162: ='Calc|Charges'!C160 ->  | D162: ='Calc|Charges'!D160 ->  | E162: ='Calc|Charges'!E160 ->  | F162: ='Calc|Charges'!F160 ->  | G162: ='Calc|Charges'!G160 ->  | H162: ='Calc|Charges'!H160 -> 0 | I162: =IF(AND(B162='Calc|Charges'!B160,C162='Calc|Charges'!C160,D162='Calc|Charges'!D160,E162='Calc|Charges'!E160, F162='Calc|Charges'!F160,G162='Calc|Charges'!G160, H162=ROUND('Calc|Charges'!H160,0)),0,1) -> 0
A163: 152 | B163: ='Calc|Charges'!B161 ->  | C163: ='Calc|Charges'!C161 ->  | D163: ='Calc|Charges'!D161 ->  | E163: ='Calc|Charges'!E161 ->  | F163: ='Calc|Charges'!F161 ->  | G163: ='Calc|Charges'!G161 ->  | H163: ='Calc|Charges'!H161 -> 0 | I163: =IF(AND(B163='Calc|Charges'!B161,C163='Calc|Charges'!C161,D163='Calc|Charges'!D161,E163='Calc|Charges'!E161, F163='Calc|Charges'!F161,G163='Calc|Charges'!G161, H163=ROUND('Calc|Charges'!H161,0)),0,1) -> 0
A164: 153 | B164: ='Calc|Charges'!B162 ->  | C164: ='Calc|Charges'!C162 ->  | D164: ='Calc|Charges'!D162 ->  | E164: ='Calc|Charges'!E162 ->  | F164: ='Calc|Charges'!F162 ->  | G164: ='Calc|Charges'!G162 ->  | H164: ='Calc|Charges'!H162 -> 0 | I164: =IF(AND(B164='Calc|Charges'!B162,C164='Calc|Charges'!C162,D164='Calc|Charges'!D162,E164='Calc|Charges'!E162, F164='Calc|Charges'!F162,G164='Calc|Charges'!G162, H164=ROUND('Calc|Charges'!H162,0)),0,1) -> 0
A165: 154 | B165: ='Calc|Charges'!B163 ->  | C165: ='Calc|Charges'!C163 ->  | D165: ='Calc|Charges'!D163 ->  | E165: ='Calc|Charges'!E163 ->  | F165: ='Calc|Charges'!F163 ->  | G165: ='Calc|Charges'!G163 ->  | H165: ='Calc|Charges'!H163 -> 0 | I165: =IF(AND(B165='Calc|Charges'!B163,C165='Calc|Charges'!C163,D165='Calc|Charges'!D163,E165='Calc|Charges'!E163, F165='Calc|Charges'!F163,G165='Calc|Charges'!G163, H165=ROUND('Calc|Charges'!H163,0)),0,1) -> 0
A166: 155 | B166: ='Calc|Charges'!B164 ->  | C166: ='Calc|Charges'!C164 ->  | D166: ='Calc|Charges'!D164 ->  | E166: ='Calc|Charges'!E164 ->  | F166: ='Calc|Charges'!F164 ->  | G166: ='Calc|Charges'!G164 ->  | H166: ='Calc|Charges'!H164 -> 0 | I166: =IF(AND(B166='Calc|Charges'!B164,C166='Calc|Charges'!C164,D166='Calc|Charges'!D164,E166='Calc|Charges'!E164, F166='Calc|Charges'!F164,G166='Calc|Charges'!G164, H166=ROUND('Calc|Charges'!H164,0)),0,1) -> 0
A167: 156 | B167: ='Calc|Charges'!B165 ->  | C167: ='Calc|Charges'!C165 ->  | D167: ='Calc|Charges'!D165 ->  | E167: ='Calc|Charges'!E165 ->  | F167: ='Calc|Charges'!F165 ->  | G167: ='Calc|Charges'!G165 ->  | H167: ='Calc|Charges'!H165 -> 0 | I167: =IF(AND(B167='Calc|Charges'!B165,C167='Calc|Charges'!C165,D167='Calc|Charges'!D165,E167='Calc|Charges'!E165, F167='Calc|Charges'!F165,G167='Calc|Charges'!G165, H167=ROUND('Calc|Charges'!H165,0)),0,1) -> 0
A168: 157 | B168: ='Calc|Charges'!B166 ->  | C168: ='Calc|Charges'!C166 ->  | D168: ='Calc|Charges'!D166 ->  | E168: ='Calc|Charges'!E166 ->  | F168: ='Calc|Charges'!F166 ->  | G168: ='Calc|Charges'!G166 ->  | H168: ='Calc|Charges'!H166 -> 0 | I168: =IF(AND(B168='Calc|Charges'!B166,C168='Calc|Charges'!C166,D168='Calc|Charges'!D166,E168='Calc|Charges'!E166, F168='Calc|Charges'!F166,G168='Calc|Charges'!G166, H168=ROUND('Calc|Charges'!H166,0)),0,1) -> 0
A169: 158 | B169: ='Calc|Charges'!B167 ->  | C169: ='Calc|Charges'!C167 ->  | D169: ='Calc|Charges'!D167 ->  | E169: ='Calc|Charges'!E167 ->  | F169: ='Calc|Charges'!F167 ->  | G169: ='Calc|Charges'!G167 ->  | H169: ='Calc|Charges'!H167 -> 0 | I169: =IF(AND(B169='Calc|Charges'!B167,C169='Calc|Charges'!C167,D169='Calc|Charges'!D167,E169='Calc|Charges'!E167, F169='Calc|Charges'!F167,G169='Calc|Charges'!G167, H169=ROUND('Calc|Charges'!H167,0)),0,1) -> 0
A170: 159 | B170: ='Calc|Charges'!B168 ->  | C170: ='Calc|Charges'!C168 ->  | D170: ='Calc|Charges'!D168 ->  | E170: ='Calc|Charges'!E168 ->  | F170: ='Calc|Charges'!F168 ->  | G170: ='Calc|Charges'!G168 ->  | H170: ='Calc|Charges'!H168 -> 0 | I170: =IF(AND(B170='Calc|Charges'!B168,C170='Calc|Charges'!C168,D170='Calc|Charges'!D168,E170='Calc|Charges'!E168, F170='Calc|Charges'!F168,G170='Calc|Charges'!G168, H170=ROUND('Calc|Charges'!H168,0)),0,1) -> 0
A171: 160 | B171: ='Calc|Charges'!B169 ->  | C171: ='Calc|Charges'!C169 ->  | D171: ='Calc|Charges'!D169 ->  | E171: ='Calc|Charges'!E169 ->  | F171: ='Calc|Charges'!F169 ->  | G171: ='Calc|Charges'!G169 ->  | H171: ='Calc|Charges'!H169 -> 0 | I171: =IF(AND(B171='Calc|Charges'!B169,C171='Calc|Charges'!C169,D171='Calc|Charges'!D169,E171='Calc|Charges'!E169, F171='Calc|Charges'!F169,G171='Calc|Charges'!G169, H171=ROUND('Calc|Charges'!H169,0)),0,1) -> 0
A172: 161 | B172: ='Calc|Charges'!B170 ->  | C172: ='Calc|Charges'!C170 ->  | D172: ='Calc|Charges'!D170 ->  | E172: ='Calc|Charges'!E170 ->  | F172: ='Calc|Charges'!F170 ->  | G172: ='Calc|Charges'!G170 ->  | H172: ='Calc|Charges'!H170 -> 0 | I172: =IF(AND(B172='Calc|Charges'!B170,C172='Calc|Charges'!C170,D172='Calc|Charges'!D170,E172='Calc|Charges'!E170, F172='Calc|Charges'!F170,G172='Calc|Charges'!G170, H172=ROUND('Calc|Charges'!H170,0)),0,1) -> 0
A173: 162 | B173: ='Calc|Charges'!B171 ->  | C173: ='Calc|Charges'!C171 ->  | D173: ='Calc|Charges'!D171 ->  | E173: ='Calc|Charges'!E171 ->  | F173: ='Calc|Charges'!F171 ->  | G173: ='Calc|Charges'!G171 ->  | H173: ='Calc|Charges'!H171 -> 0 | I173: =IF(AND(B173='Calc|Charges'!B171,C173='Calc|Charges'!C171,D173='Calc|Charges'!D171,E173='Calc|Charges'!E171, F173='Calc|Charges'!F171,G173='Calc|Charges'!G171, H173=ROUND('Calc|Charges'!H171,0)),0,1) -> 0
A174: 163 | B174: ='Calc|Charges'!B172 ->  | C174: ='Calc|Charges'!C172 ->  | D174: ='Calc|Charges'!D172 ->  | E174: ='Calc|Charges'!E172 ->  | F174: ='Calc|Charges'!F172 ->  | G174: ='Calc|Charges'!G172 ->  | H174: ='Calc|Charges'!H172 -> 0 | I174: =IF(AND(B174='Calc|Charges'!B172,C174='Calc|Charges'!C172,D174='Calc|Charges'!D172,E174='Calc|Charges'!E172, F174='Calc|Charges'!F172,G174='Calc|Charges'!G172, H174=ROUND('Calc|Charges'!H172,0)),0,1) -> 0
A175: 164 | B175: ='Calc|Charges'!B173 ->  | C175: ='Calc|Charges'!C173 ->  | D175: ='Calc|Charges'!D173 ->  | E175: ='Calc|Charges'!E173 ->  | F175: ='Calc|Charges'!F173 ->  | G175: ='Calc|Charges'!G173 ->  | H175: ='Calc|Charges'!H173 -> 0 | I175: =IF(AND(B175='Calc|Charges'!B173,C175='Calc|Charges'!C173,D175='Calc|Charges'!D173,E175='Calc|Charges'!E173, F175='Calc|Charges'!F173,G175='Calc|Charges'!G173, H175=ROUND('Calc|Charges'!H173,0)),0,1) -> 0
A176: 165 | B176: ='Calc|Charges'!B174 ->  | C176: ='Calc|Charges'!C174 ->  | D176: ='Calc|Charges'!D174 ->  | E176: ='Calc|Charges'!E174 ->  | F176: ='Calc|Charges'!F174 ->  | G176: ='Calc|Charges'!G174 ->  | H176: ='Calc|Charges'!H174 -> 0 | I176: =IF(AND(B176='Calc|Charges'!B174,C176='Calc|Charges'!C174,D176='Calc|Charges'!D174,E176='Calc|Charges'!E174, F176='Calc|Charges'!F174,G176='Calc|Charges'!G174, H176=ROUND('Calc|Charges'!H174,0)),0,1) -> 0
A177: 166 | B177: ='Calc|Charges'!B175 ->  | C177: ='Calc|Charges'!C175 ->  | D177: ='Calc|Charges'!D175 ->  | E177: ='Calc|Charges'!E175 ->  | F177: ='Calc|Charges'!F175 ->  | G177: ='Calc|Charges'!G175 ->  | H177: ='Calc|Charges'!H175 -> 0 | I177: =IF(AND(B177='Calc|Charges'!B175,C177='Calc|Charges'!C175,D177='Calc|Charges'!D175,E177='Calc|Charges'!E175, F177='Calc|Charges'!F175,G177='Calc|Charges'!G175, H177=ROUND('Calc|Charges'!H175,0)),0,1) -> 0
A178: 167 | B178: ='Calc|Charges'!B176 ->  | C178: ='Calc|Charges'!C176 ->  | D178: ='Calc|Charges'!D176 ->  | E178: ='Calc|Charges'!E176 ->  | F178: ='Calc|Charges'!F176 ->  | G178: ='Calc|Charges'!G176 ->  | H178: ='Calc|Charges'!H176 -> 0 | I178: =IF(AND(B178='Calc|Charges'!B176,C178='Calc|Charges'!C176,D178='Calc|Charges'!D176,E178='Calc|Charges'!E176, F178='Calc|Charges'!F176,G178='Calc|Charges'!G176, H178=ROUND('Calc|Charges'!H176,0)),0,1) -> 0
A179: 168 | B179: ='Calc|Charges'!B177 ->  | C179: ='Calc|Charges'!C177 ->  | D179: ='Calc|Charges'!D177 ->  | E179: ='Calc|Charges'!E177 ->  | F179: ='Calc|Charges'!F177 ->  | G179: ='Calc|Charges'!G177 ->  | H179: ='Calc|Charges'!H177 -> 0 | I179: =IF(AND(B179='Calc|Charges'!B177,C179='Calc|Charges'!C177,D179='Calc|Charges'!D177,E179='Calc|Charges'!E177, F179='Calc|Charges'!F177,G179='Calc|Charges'!G177, H179=ROUND('Calc|Charges'!H177,0)),0,1) -> 0
A180: 169 | B180: ='Calc|Charges'!B178 ->  | C180: ='Calc|Charges'!C178 ->  | D180: ='Calc|Charges'!D178 ->  | E180: ='Calc|Charges'!E178 ->  | F180: ='Calc|Charges'!F178 ->  | G180: ='Calc|Charges'!G178 ->  | H180: ='Calc|Charges'!H178 -> 0 | I180: =IF(AND(B180='Calc|Charges'!B178,C180='Calc|Charges'!C178,D180='Calc|Charges'!D178,E180='Calc|Charges'!E178, F180='Calc|Charges'!F178,G180='Calc|Charges'!G178, H180=ROUND('Calc|Charges'!H178,0)),0,1) -> 0
A181: 170 | B181: ='Calc|Charges'!B179 ->  | C181: ='Calc|Charges'!C179 ->  | D181: ='Calc|Charges'!D179 ->  | E181: ='Calc|Charges'!E179 ->  | F181: ='Calc|Charges'!F179 ->  | G181: ='Calc|Charges'!G179 ->  | H181: ='Calc|Charges'!H179 -> 0 | I181: =IF(AND(B181='Calc|Charges'!B179,C181='Calc|Charges'!C179,D181='Calc|Charges'!D179,E181='Calc|Charges'!E179, F181='Calc|Charges'!F179,G181='Calc|Charges'!G179, H181=ROUND('Calc|Charges'!H179,0)),0,1) -> 0
A182: 171 | B182: ='Calc|Charges'!B180 ->  | C182: ='Calc|Charges'!C180 ->  | D182: ='Calc|Charges'!D180 ->  | E182: ='Calc|Charges'!E180 ->  | F182: ='Calc|Charges'!F180 ->  | G182: ='Calc|Charges'!G180 ->  | H182: ='Calc|Charges'!H180 -> 0 | I182: =IF(AND(B182='Calc|Charges'!B180,C182='Calc|Charges'!C180,D182='Calc|Charges'!D180,E182='Calc|Charges'!E180, F182='Calc|Charges'!F180,G182='Calc|Charges'!G180, H182=ROUND('Calc|Charges'!H180,0)),0,1) -> 0
A183: 172 | B183: ='Calc|Charges'!B181 ->  | C183: ='Calc|Charges'!C181 ->  | D183: ='Calc|Charges'!D181 ->  | E183: ='Calc|Charges'!E181 ->  | F183: ='Calc|Charges'!F181 ->  | G183: ='Calc|Charges'!G181 ->  | H183: ='Calc|Charges'!H181 -> 0 | I183: =IF(AND(B183='Calc|Charges'!B181,C183='Calc|Charges'!C181,D183='Calc|Charges'!D181,E183='Calc|Charges'!E181, F183='Calc|Charges'!F181,G183='Calc|Charges'!G181, H183=ROUND('Calc|Charges'!H181,0)),0,1) -> 0
A184: 173 | B184: ='Calc|Charges'!B182 ->  | C184: ='Calc|Charges'!C182 ->  | D184: ='Calc|Charges'!D182 ->  | E184: ='Calc|Charges'!E182 ->  | F184: ='Calc|Charges'!F182 ->  | G184: ='Calc|Charges'!G182 ->  | H184: ='Calc|Charges'!H182 -> 0 | I184: =IF(AND(B184='Calc|Charges'!B182,C184='Calc|Charges'!C182,D184='Calc|Charges'!D182,E184='Calc|Charges'!E182, F184='Calc|Charges'!F182,G184='Calc|Charges'!G182, H184=ROUND('Calc|Charges'!H182,0)),0,1) -> 0
A185: 174 | B185: ='Calc|Charges'!B183 ->  | C185: ='Calc|Charges'!C183 ->  | D185: ='Calc|Charges'!D183 ->  | E185: ='Calc|Charges'!E183 ->  | F185: ='Calc|Charges'!F183 ->  | G185: ='Calc|Charges'!G183 ->  | H185: ='Calc|Charges'!H183 -> 0 | I185: =IF(AND(B185='Calc|Charges'!B183,C185='Calc|Charges'!C183,D185='Calc|Charges'!D183,E185='Calc|Charges'!E183, F185='Calc|Charges'!F183,G185='Calc|Charges'!G183, H185=ROUND('Calc|Charges'!H183,0)),0,1) -> 0
A186: 175 | B186: ='Calc|Charges'!B184 ->  | C186: ='Calc|Charges'!C184 ->  | D186: ='Calc|Charges'!D184 ->  | E186: ='Calc|Charges'!E184 ->  | F186: ='Calc|Charges'!F184 ->  | G186: ='Calc|Charges'!G184 ->  | H186: ='Calc|Charges'!H184 -> 0 | I186: =IF(AND(B186='Calc|Charges'!B184,C186='Calc|Charges'!C184,D186='Calc|Charges'!D184,E186='Calc|Charges'!E184, F186='Calc|Charges'!F184,G186='Calc|Charges'!G184, H186=ROUND('Calc|Charges'!H184,0)),0,1) -> 0
A187: 176 | B187: ='Calc|Charges'!B185 ->  | C187: ='Calc|Charges'!C185 ->  | D187: ='Calc|Charges'!D185 ->  | E187: ='Calc|Charges'!E185 ->  | F187: ='Calc|Charges'!F185 ->  | G187: ='Calc|Charges'!G185 ->  | H187: ='Calc|Charges'!H185 -> 0 | I187: =IF(AND(B187='Calc|Charges'!B185,C187='Calc|Charges'!C185,D187='Calc|Charges'!D185,E187='Calc|Charges'!E185, F187='Calc|Charges'!F185,G187='Calc|Charges'!G185, H187=ROUND('Calc|Charges'!H185,0)),0,1) -> 0
A188: 177 | B188: ='Calc|Charges'!B186 ->  | C188: ='Calc|Charges'!C186 ->  | D188: ='Calc|Charges'!D186 ->  | E188: ='Calc|Charges'!E186 ->  | F188: ='Calc|Charges'!F186 ->  | G188: ='Calc|Charges'!G186 ->  | H188: ='Calc|Charges'!H186 -> 0 | I188: =IF(AND(B188='Calc|Charges'!B186,C188='Calc|Charges'!C186,D188='Calc|Charges'!D186,E188='Calc|Charges'!E186, F188='Calc|Charges'!F186,G188='Calc|Charges'!G186, H188=ROUND('Calc|Charges'!H186,0)),0,1) -> 0
A189: 178 | B189: ='Calc|Charges'!B187 ->  | C189: ='Calc|Charges'!C187 ->  | D189: ='Calc|Charges'!D187 ->  | E189: ='Calc|Charges'!E187 ->  | F189: ='Calc|Charges'!F187 ->  | G189: ='Calc|Charges'!G187 ->  | H189: ='Calc|Charges'!H187 -> 0 | I189: =IF(AND(B189='Calc|Charges'!B187,C189='Calc|Charges'!C187,D189='Calc|Charges'!D187,E189='Calc|Charges'!E187, F189='Calc|Charges'!F187,G189='Calc|Charges'!G187, H189=ROUND('Calc|Charges'!H187,0)),0,1) -> 0
A190: 179 | B190: ='Calc|Charges'!B188 ->  | C190: ='Calc|Charges'!C188 ->  | D190: ='Calc|Charges'!D188 ->  | E190: ='Calc|Charges'!E188 ->  | F190: ='Calc|Charges'!F188 ->  | G190: ='Calc|Charges'!G188 ->  | H190: ='Calc|Charges'!H188 -> 0 | I190: =IF(AND(B190='Calc|Charges'!B188,C190='Calc|Charges'!C188,D190='Calc|Charges'!D188,E190='Calc|Charges'!E188, F190='Calc|Charges'!F188,G190='Calc|Charges'!G188, H190=ROUND('Calc|Charges'!H188,0)),0,1) -> 0
A191: 180 | B191: ='Calc|Charges'!B189 ->  | C191: ='Calc|Charges'!C189 ->  | D191: ='Calc|Charges'!D189 ->  | E191: ='Calc|Charges'!E189 ->  | F191: ='Calc|Charges'!F189 ->  | G191: ='Calc|Charges'!G189 ->  | H191: ='Calc|Charges'!H189 -> 0 | I191: =IF(AND(B191='Calc|Charges'!B189,C191='Calc|Charges'!C189,D191='Calc|Charges'!D189,E191='Calc|Charges'!E189, F191='Calc|Charges'!F189,G191='Calc|Charges'!G189, H191=ROUND('Calc|Charges'!H189,0)),0,1) -> 0
A192: 181 | B192: ='Calc|Charges'!B190 ->  | C192: ='Calc|Charges'!C190 ->  | D192: ='Calc|Charges'!D190 ->  | E192: ='Calc|Charges'!E190 ->  | F192: ='Calc|Charges'!F190 ->  | G192: ='Calc|Charges'!G190 ->  | H192: ='Calc|Charges'!H190 -> 0 | I192: =IF(AND(B192='Calc|Charges'!B190,C192='Calc|Charges'!C190,D192='Calc|Charges'!D190,E192='Calc|Charges'!E190, F192='Calc|Charges'!F190,G192='Calc|Charges'!G190, H192=ROUND('Calc|Charges'!H190,0)),0,1) -> 0
A193: 182 | B193: ='Calc|Charges'!B191 ->  | C193: ='Calc|Charges'!C191 ->  | D193: ='Calc|Charges'!D191 ->  | E193: ='Calc|Charges'!E191 ->  | F193: ='Calc|Charges'!F191 ->  | G193: ='Calc|Charges'!G191 ->  | H193: ='Calc|Charges'!H191 -> 0 | I193: =IF(AND(B193='Calc|Charges'!B191,C193='Calc|Charges'!C191,D193='Calc|Charges'!D191,E193='Calc|Charges'!E191, F193='Calc|Charges'!F191,G193='Calc|Charges'!G191, H193=ROUND('Calc|Charges'!H191,0)),0,1) -> 0
A194: 183 | B194: ='Calc|Charges'!B192 ->  | C194: ='Calc|Charges'!C192 ->  | D194: ='Calc|Charges'!D192 ->  | E194: ='Calc|Charges'!E192 ->  | F194: ='Calc|Charges'!F192 ->  | G194: ='Calc|Charges'!G192 ->  | H194: ='Calc|Charges'!H192 -> 0 | I194: =IF(AND(B194='Calc|Charges'!B192,C194='Calc|Charges'!C192,D194='Calc|Charges'!D192,E194='Calc|Charges'!E192, F194='Calc|Charges'!F192,G194='Calc|Charges'!G192, H194=ROUND('Calc|Charges'!H192,0)),0,1) -> 0
A195: 184 | B195: ='Calc|Charges'!B193 ->  | C195: ='Calc|Charges'!C193 ->  | D195: ='Calc|Charges'!D193 ->  | E195: ='Calc|Charges'!E193 ->  | F195: ='Calc|Charges'!F193 ->  | G195: ='Calc|Charges'!G193 ->  | H195: ='Calc|Charges'!H193 -> 0 | I195: =IF(AND(B195='Calc|Charges'!B193,C195='Calc|Charges'!C193,D195='Calc|Charges'!D193,E195='Calc|Charges'!E193, F195='Calc|Charges'!F193,G195='Calc|Charges'!G193, H195=ROUND('Calc|Charges'!H193,0)),0,1) -> 0
A196: 185 | B196: ='Calc|Charges'!B194 ->  | C196: ='Calc|Charges'!C194 ->  | D196: ='Calc|Charges'!D194 ->  | E196: ='Calc|Charges'!E194 ->  | F196: ='Calc|Charges'!F194 ->  | G196: ='Calc|Charges'!G194 ->  | H196: ='Calc|Charges'!H194 -> 0 | I196: =IF(AND(B196='Calc|Charges'!B194,C196='Calc|Charges'!C194,D196='Calc|Charges'!D194,E196='Calc|Charges'!E194, F196='Calc|Charges'!F194,G196='Calc|Charges'!G194, H196=ROUND('Calc|Charges'!H194,0)),0,1) -> 0
A197: 186 | B197: ='Calc|Charges'!B195 ->  | C197: ='Calc|Charges'!C195 ->  | D197: ='Calc|Charges'!D195 ->  | E197: ='Calc|Charges'!E195 ->  | F197: ='Calc|Charges'!F195 ->  | G197: ='Calc|Charges'!G195 ->  | H197: ='Calc|Charges'!H195 -> 0 | I197: =IF(AND(B197='Calc|Charges'!B195,C197='Calc|Charges'!C195,D197='Calc|Charges'!D195,E197='Calc|Charges'!E195, F197='Calc|Charges'!F195,G197='Calc|Charges'!G195, H197=ROUND('Calc|Charges'!H195,0)),0,1) -> 0
A198: 187 | B198: ='Calc|Charges'!B196 ->  | C198: ='Calc|Charges'!C196 ->  | D198: ='Calc|Charges'!D196 ->  | E198: ='Calc|Charges'!E196 ->  | F198: ='Calc|Charges'!F196 ->  | G198: ='Calc|Charges'!G196 ->  | H198: ='Calc|Charges'!H196 -> 0 | I198: =IF(AND(B198='Calc|Charges'!B196,C198='Calc|Charges'!C196,D198='Calc|Charges'!D196,E198='Calc|Charges'!E196, F198='Calc|Charges'!F196,G198='Calc|Charges'!G196, H198=ROUND('Calc|Charges'!H196,0)),0,1) -> 0
A199: 188 | B199: ='Calc|Charges'!B197 ->  | C199: ='Calc|Charges'!C197 ->  | D199: ='Calc|Charges'!D197 ->  | E199: ='Calc|Charges'!E197 ->  | F199: ='Calc|Charges'!F197 ->  | G199: ='Calc|Charges'!G197 ->  | H199: ='Calc|Charges'!H197 -> 0 | I199: =IF(AND(B199='Calc|Charges'!B197,C199='Calc|Charges'!C197,D199='Calc|Charges'!D197,E199='Calc|Charges'!E197, F199='Calc|Charges'!F197,G199='Calc|Charges'!G197, H199=ROUND('Calc|Charges'!H197,0)),0,1) -> 0
A200: 189 | B200: ='Calc|Charges'!B198 ->  | C200: ='Calc|Charges'!C198 ->  | D200: ='Calc|Charges'!D198 ->  | E200: ='Calc|Charges'!E198 ->  | F200: ='Calc|Charges'!F198 ->  | G200: ='Calc|Charges'!G198 ->  | H200: ='Calc|Charges'!H198 -> 0 | I200: =IF(AND(B200='Calc|Charges'!B198,C200='Calc|Charges'!C198,D200='Calc|Charges'!D198,E200='Calc|Charges'!E198, F200='Calc|Charges'!F198,G200='Calc|Charges'!G198, H200=ROUND('Calc|Charges'!H198,0)),0,1) -> 0
A201: 190 | B201: ='Calc|Charges'!B199 ->  | C201: ='Calc|Charges'!C199 ->  | D201: ='Calc|Charges'!D199 ->  | E201: ='Calc|Charges'!E199 ->  | F201: ='Calc|Charges'!F199 ->  | G201: ='Calc|Charges'!G199 ->  | H201: ='Calc|Charges'!H199 -> 0 | I201: =IF(AND(B201='Calc|Charges'!B199,C201='Calc|Charges'!C199,D201='Calc|Charges'!D199,E201='Calc|Charges'!E199, F201='Calc|Charges'!F199,G201='Calc|Charges'!G199, H201=ROUND('Calc|Charges'!H199,0)),0,1) -> 0
A202: 191 | B202: ='Calc|Charges'!B200 ->  | C202: ='Calc|Charges'!C200 ->  | D202: ='Calc|Charges'!D200 ->  | E202: ='Calc|Charges'!E200 ->  | F202: ='Calc|Charges'!F200 ->  | G202: ='Calc|Charges'!G200 ->  | H202: ='Calc|Charges'!H200 -> 0 | I202: =IF(AND(B202='Calc|Charges'!B200,C202='Calc|Charges'!C200,D202='Calc|Charges'!D200,E202='Calc|Charges'!E200, F202='Calc|Charges'!F200,G202='Calc|Charges'!G200, H202=ROUND('Calc|Charges'!H200,0)),0,1) -> 0
A203: 192 | B203: ='Calc|Charges'!B201 ->  | C203: ='Calc|Charges'!C201 ->  | D203: ='Calc|Charges'!D201 ->  | E203: ='Calc|Charges'!E201 ->  | F203: ='Calc|Charges'!F201 ->  | G203: ='Calc|Charges'!G201 ->  | H203: ='Calc|Charges'!H201 -> 0 | I203: =IF(AND(B203='Calc|Charges'!B201,C203='Calc|Charges'!C201,D203='Calc|Charges'!D201,E203='Calc|Charges'!E201, F203='Calc|Charges'!F201,G203='Calc|Charges'!G201, H203=ROUND('Calc|Charges'!H201,0)),0,1) -> 0
... 308 more rows

Sheet Input|Setup
B1: =IFERROR(Index!B1,"") -> JGN Ancillary Reference Services Forecast Model | D1: Key: | E1: Input | H1: Sheet Validation | I1: ='Model Validation'!C9 -> 0
B2: =IFERROR(MID(CELL("filename",A1),FIND("]",CELL("filename",A1))+1,255),"") -> Input|Setup | E2: Formula
Q4: For AER only
A5: 2.1 | B5: Years setup | E5: Year? | F5: =IF(COUNTA(E6:E7)=0,1,0) -> 0 | Q5: Years
B6: First year of forecast regulatory control period | E6: 2025-26 | Q6: 2016-17
B7: Base year for inputs | E7: 2023-24 | Q7: =LEFT(Q6,4)+1&"-"&RIGHT(Q6,2)+1 -> 2017-18
B8: Base year for outputs | E8: =E6 -> 2025-26 | Q8: 2018-19
Q9: 2019-20
A10: 2.2 | B10: Current regulatory period | D10: 2.3 | E10: Forecast regulatory period | Q10: 2020-21
A11: 1 | B11: =LEFT(B12,4)-1&"-"&RIGHT(B12,2)-1 -> 2020-21 | D11: 1 | E11: =E6 -> 2025-26 | Q11: 2021-22
A12: =A11+1 -> 2 | B12: =LEFT(B13,4)-1&"-"&RIGHT(B13,2)-1 -> 2021-22 | D12: =D11+1 -> 2 | E12: =LEFT(E11,4)+1&"-"&RIGHT(E11,2)+1 -> 2026-27 | Q12: 2022-23
A13: =A12+1 -> 3 | B13: =LEFT(B14,4)-1&"-"&RIGHT(B14,2)-1 -> 2022-23 | D13: =D12+1 -> 3 | E13: =LEFT(E12,4)+1&"-"&RIGHT(E12,2)+1 -> 2027-28 | Q13: 2023-24
A14: =A13+1 -> 4 | B14: =LEFT(B15,4)-1&"-"&RIGHT(B15,2)-1 -> 2023-24 | D14: =D13+1 -> 4 | E14: =LEFT(E13,4)+1&"-"&RIGHT(E13,2)+1 -> 2028-29 | Q14: 2024-25
A15: =A14+1 -> 5 | B15: =LEFT(E11,4)-1&"-"&RIGHT(E11,2)-1 -> 2024-25 | D15: =D14+1 -> 5 | E15: =LEFT(E14,4)+1&"-"&RIGHT(E14,2)+1 -> 2029-30 | Q15: 2025-26
Q16: 2026-27
Q17: 2027-28
A18: 2.4 | B18: Conversions | Q18: 2028-29
B19: 60 | C19: mins | Q19: 2029-30
Q20: 2030-31
Q21: 2031-32
Q22: 2032-33
Q23: 2033-34
A24: 2.5 | B24: Hours | C24: =IF(COUNTA(B25:B27)=0,1,0) -> 0 | Q24: 2034-35
B25: Business hours
B26: After hours
A30: 2.6 | B30: Labour type | C30: =IF(COUNTA(B31:B49)=0,1,0) -> 0 | D30: 2.7 | E30: Service category | F30: =IF(COUNTA(E31:E49)=0,1,0) -> 0 | G30: ="2.8" -> 2.8 | H30: [label]
A31: 1 | B31: Billing | E31: Disconnections and reconnections
A32: =A31+1 -> 2 | B32: Commercial | E32: Abolishments
A33: =A32+1 -> 3 | B33: Zinfra Back Office | E33: Special meter reads
A34: =A33+1 -> 4 | B34: Zinfra GST | E34: Other
A35: 5 | B35: Startek SME
A36: 6 | B36: Startek Agent
A37: 7
A38: 8
A39: 9
A40: 10 | G40: ="2.9" -> 2.9 | H40: [label]
A41: 11
A42: 12
A43: 13
A44: 14
A45: 15
A46: 16
A47: 17
A48: 18
A49: 19

Sheet Input|Escalations
B1: =IFERROR(Index!B1,"") -> JGN Ancillary Reference Services Forecast Model | C1: Key: | D1: Input | F1: Sheet Validation | G1: ='Model Validation'!C10 -> 0
B2: =IFERROR(MID(CELL("filename",A1),FIND("]",CELL("filename",A1))+1,255),"") -> Input|Escalations | D2: Formula
A5: 3.1 | B5: Escalation setup
C7: Year | M7: Labour share
B8: First year of forecast regulatory control period | C8: ='Input|Setup'!E6 -> 2025-26 | M8: 0.5
B9: Base year for inputs | C9: ='Input|Setup'!E7 -> 2023-24
B10: Base year for outputs | C10: ='Input|Setup'!E8 -> 2025-26
A13: 3.2 | B13: Inflation | D13: Current regulatory period | I13: Forecast regulatory period
D15: =IFERROR((LEFT(E15,4)-1&IF(MID(E15,5,1)="","","-"&TEXT(MOD(MID(E15,6,2)-1,100),"00"))),"") -> 2020-21 | E15: =IFERROR((LEFT(F15,4)-1&IF(MID(F15,5,1)="","","-"&TEXT(MOD(MID(F15,6,2)-1,100),"00"))),"") -> 2021-22 | F15: =IFERROR((LEFT(G15,4)-1&IF(MID(G15,5,1)="","","-"&TEXT(MOD(MID(G15,6,2)-1,100),"00"))),"") -> 2022-23 | G15: =IFERROR((LEFT(H15,4)-1&IF(MID(H15,5,1)="","","-"&TEXT(MOD(MID(H15,6,2)-1,100),"00"))),"") -> 2023-24 | H15: =IFERROR((LEFT(I15,4)-1&IF(MID(I15,5,1)="","","-"&TEXT(MOD(MID(I15,6,2)-1,100),"00"))),"") -> 2024-25 | I15: =$C$8 -> 2025-26 | J15: =IFERROR((LEFT(I15,4)+1&IF(MID(I15,5,1)="","","-"&TEXT(MOD(MID(I15,6,2)+1,100),"00"))),"") -> 2026-27 | K15: =IFERROR((LEFT(J15,4)+1&IF(MID(J15,5,1)="","","-"&TEXT(MOD(MID(J15,6,2)+1,100),"00"))),"") -> 2027-28 | L15: =IFERROR((LEFT(K15,4)+1&IF(MID(K15,5,1)="","","-"&TEXT(MOD(MID(K15,6,2)+1,100),"00"))),"") -> 2028-29 | M15: =IFERROR((LEFT(L15,4)+1&IF(MID(L15,5,1)="","","-"&TEXT(MOD(MID(L15,6,2)+1,100),"00"))),"") -> 2029-30
B16: CPI year on year change (%) - lagged one year (actual/estimate) | E16: =IFERROR(E21/D21-1,0) -> 0.008605851979 | F16: 0.03498293515 | G16: 0.07831821929 | H16: 0.04051987768 | I16: 0.033 | J16: 0.028 | K16: 0.02789756045 | L16: 0.02789756045 | M16: 0.02789756045
B17: Cumulative Inflation Index | D17: 1 | E17: =IFERROR(D17*(1+E16),"") -> 1.008605852 | F17: =E17*(1+F16) -> 1.043889845 | G17: 1.125645439 | H17: 1.171256454 | I17: 1.209907917 | J17: 1.243785339 | K17: 1.278483916 | L17: 1.314150498 | M17: 1.350812091
B18: Real 2025-26 to Real 2024-25 | H18: =+I17/H17 -> 1.033
B19: =IFERROR("Real "&C9 &" "&LEFT(D9,9)&" to "& "Real "&C10 &" "&LEFT(D10,9),"") -> Real 2023-24 to Real 2025-26 | I19: =I$17/INDEX($D$15:$M$17,3, MATCH($C$9,$D$15:$M$15,0)) -> 1.074857034
B20: ABS index, all groups CPI inflation series A2325846C, weighted average for the eight capital cities | D20: ="Dec-" & RIGHT(D15,2)-2 -> Dec-19 | E20: Dec-20 | F20: Dec-21 | G20: Dec-22 | H20: Dec-23 | I20: Dec-24 | J20: Dec-25 | K20: Dec-26 | L20: Dec-27 | M20: Dec-28
D21: 116.2 | E21: 117.2 | F21: 121.3 | G21: 130.8 | H21: 136.1 | I21: =H21*(1+I22) -> 140.5913 | J21: =I21*(1+J22) -> 144.5278564 | K21: =J21*(1+K22) -> 148.559831 | L21: =K21*(1+L22) -> 152.7042879 | M21: =L21*(1+M22) -> 156.964365 | N21: =IF(COUNTA(D21:M21)=0,1,0) -> 0
B22: Source (where ABS index is not available. E.g. forecast CPI) | I22: 0.033 | J22: 0.028 | K22: 0.02789756045 | L22: 0.02789756045 | M22: 0.02789756045 | N22: =IF(COUNTA(G22:M22)=0,1,0) -> 0
I23: RBA, Feb 24 SMP | J23: RBA, Feb 24 SMP | K23: JGN PTRM
A25: 3.3 | B25: Real price escalation | D25: Current regulatory period | I25: Forecast regulatory period
D27: =IFERROR((LEFT(E27,4)-1&IF(MID(E27,5,1)="","","-"&TEXT(MOD(MID(E27,6,2)-1,100),"00"))),"") -> 2020-21 | E27: =IFERROR((LEFT(F27,4)-1&IF(MID(F27,5,1)="","","-"&TEXT(MOD(MID(F27,6,2)-1,100),"00"))),"") -> 2021-22 | F27: =IFERROR((LEFT(G27,4)-1&IF(MID(G27,5,1)="","","-"&TEXT(MOD(MID(G27,6,2)-1,100),"00"))),"") -> 2022-23 | G27: =IFERROR((LEFT(H27,4)-1&IF(MID(H27,5,1)="","","-"&TEXT(MOD(MID(H27,6,2)-1,100),"00"))),"") -> 2023-24 | H27: =IFERROR((LEFT(I27,4)-1&IF(MID(I27,5,1)="","","-"&TEXT(MOD(MID(I27,6,2)-1,100),"00"))),"") -> 2024-25 | I27: =$C$8 -> 2025-26 | J27: =IFERROR((LEFT(I27,4)+1&IF(MID(I27,5,1)="","","-"&TEXT(MOD(MID(I27,6,2)+1,100),"00"))),"") -> 2026-27 | K27: =IFERROR((LEFT(J27,4)+1&IF(MID(J27,5,1)="","","-"&TEXT(MOD(MID(J27,6,2)+1,100),"00"))),"") -> 2027-28 | L27: =IFERROR((LEFT(K27,4)+1&IF(MID(K27,5,1)="","","-"&TEXT(MOD(MID(K27,6,2)+1,100),"00"))),"") -> 2028-29 | M27: =IFERROR((LEFT(L27,4)+1&IF(MID(L27,5,1)="","","-"&TEXT(MOD(MID(L27,6,2)+1,100),"00"))),"") -> 2029-30
B28: X-factor (real wage price escalation) | D28: =-D38*$M$8 -> -4.117991193e-05 | E28: 0.01088456415 | F28: 0.01709105174 | G28: -0.003157222438 | H28: -0.005508805791 | I28: -0.007052119789 | J28: -0.004890017186 | K28: -0.004560282756 | L28: -0.00532946532 | M28: -0.005733433357
B29: Materials | D29: 0 | E29: 0 | F29: 0 | G29: 0 | H29: 0 | I29: 0 | J29: 0 | K29: 0 | L29: 0 | M29: 0
B30: Contracts | D30: =D38 -> 8.235982387e-05 | E30: =E38 -> -0.02176912829 | F30: -0.03418210348 | G30: 0.006314444876 | H30: 0.01101761158 | I30: 0.01410423958 | J30: 0.009780034371 | K30: 0.009120565513 | L30: 0.01065893064 | M30: 0.01146686671
B31: Vehicles | D31: 0 | E31: 0 | F31: 0 | G31: 0 | H31: 0 | I31: 0 | J31: 0 | K31: 0 | L31: 0 | M31: 0
B32: Other | D32: 0 | E32: 0 | F32: 0 | G32: 0 | H32: 0 | I32: 0 | J32: 0 | K32: 0 | L32: 0 | M32: 0
A35: 3.3.1 | B35: Real wage price escalation | D35: Current regulatory period | I35: Forecast regulatory period
D37: =IFERROR((LEFT(E37,4)-1&IF(MID(E37,5,1)="","","-"&TEXT(MOD(MID(E37,6,2)-1,100),"00"))),"") -> 2020-21 | E37: =IFERROR((LEFT(F37,4)-1&IF(MID(F37,5,1)="","","-"&TEXT(MOD(MID(F37,6,2)-1,100),"00"))),"") -> 2021-22 | F37: =IFERROR((LEFT(G37,4)-1&IF(MID(G37,5,1)="","","-"&TEXT(MOD(MID(G37,6,2)-1,100),"00"))),"") -> 2022-23 | G37: =IFERROR((LEFT(H37,4)-1&IF(MID(H37,5,1)="","","-"&TEXT(MOD(MID(H37,6,2)-1,100),"00"))),"") -> 2023-24 | H37: =IFERROR((LEFT(I37,4)-1&IF(MID(I37,5,1)="","","-"&TEXT(MOD(MID(I37,6,2)-1,100),"00"))),"") -> 2024-25 | I37: =$C$8 -> 2025-26 | J37: =IFERROR((LEFT(I37,4)+1&IF(MID(I37,5,1)="","","-"&TEXT(MOD(MID(I37,6,2)+1,100),"00"))),"") -> 2026-27 | K37: =IFERROR((LEFT(J37,4)+1&IF(MID(J37,5,1)="","","-"&TEXT(MOD(MID(J37,6,2)+1,100),"00"))),"") -> 2027-28 | L37: =IFERROR((LEFT(K37,4)+1&IF(MID(K37,5,1)="","","-"&TEXT(MOD(MID(K37,6,2)+1,100),"00"))),"") -> 2028-29 | M37: =IFERROR((LEFT(L37,4)+1&IF(MID(L37,5,1)="","","-"&TEXT(MOD(MID(L37,6,2)+1,100),"00"))),"") -> 2029-30
B38: Labour - Real wage price growth | D38: =SUM((D43*D49),(D44*D50),(D45*D51),(D46*D52))+D45 -> 8.235982387e-05 | E38: =SUM((E43*E49),(E44*E50),(E45*E51),(E46*E52))+E45 -> -0.02176912829 | F38: =SUM((F43*F49),(F44*F50),(F45*F51),(F46*F52))+F45 -> -0.03418210348 | G38: 0.006314444876 | H38: 0.01101761158 | I38: 0.01410423958 | J38: 0.009780034371 | K38: 0.009120565513 | L38: 0.01065893064 | M38: 0.01146686671
B39: Cumulative Labour - Wage price growth index | D39: =1+D38 -> 1.00008236 | E39: =IFERROR(D39*(1+E38),"") -> 0.9783114386 | F39: 0.9448706958 | G39: 0.9508370297 | H39: 0.9613129828 | I39: 0.9748715714 | J39: 0.9844058489 | K39: 0.9933841869 | L39: 1.0039726 | M39: 1.01548502
B40: ="Escalate from base year to " & C8 -> Escalate from base year to 2025-26 | I40: =I39/INDEX($D$37:$M$39,3,MATCH($C$9,$D$37:$M$37,0)) -> 1.025277246
B42: Forecast/Source | D42: =IFERROR((LEFT(E42,4)-1&IF(MID(E42,5,1)="","","-"&TEXT(MOD(MID(E42,6,2)-1,100),"00"))),"") -> 2020-21 | E42: =IFERROR((LEFT(F42,4)-1&IF(MID(F42,5,1)="","","-"&TEXT(MOD(MID(F42,6,2)-1,100),"00"))),"") -> 2021-22 | F42: =IFERROR((LEFT(G42,4)-1&IF(MID(G42,5,1)="","","-"&TEXT(MOD(MID(G42,6,2)-1,100),"00"))),"") -> 2022-23 | G42: =IFERROR((LEFT(H42,4)-1&IF(MID(H42,5,1)="","","-"&TEXT(MOD(MID(H42,6,2)-1,100),"00"))),"") -> 2023-24 | H42: =IFERROR((LEFT(I42,4)-1&IF(MID(I42,5,1)="","","-"&TEXT(MOD(MID(I42,6,2)-1,100),"00"))),"") -> 2024-25 | I42: =$C$8 -> 2025-26 | J42: =IFERROR((LEFT(I42,4)+1&IF(MID(I42,5,1)="","","-"&TEXT(MOD(MID(I42,6,2)+1,100),"00"))),"") -> 2026-27 | K42: =IFERROR((LEFT(J42,4)+1&IF(MID(J42,5,1)="","","-"&TEXT(MOD(MID(J42,6,2)+1,100),"00"))),"") -> 2027-28 | L42: =IFERROR((LEFT(K42,4)+1&IF(MID(K42,5,1)="","","-"&TEXT(MOD(MID(K42,6,2)+1,100),"00"))),"") -> 2028-29 | M42: =IFERROR((LEFT(L42,4)+1&IF(MID(L42,5,1)="","","-"&TEXT(MOD(MID(L42,6,2)+1,100),"00"))),"") -> 2029-30 | N42: =IF(COUNTA(B43:M46)=0,1,0) -> 0
B43: Labour- KPMG (placeholder from NSW draft decision) | D43: 8.834597186e-05 | E43: -0.02676570298 | F43: -0.03833115733 | G43: 0.004553044669 | H43: 0.002916229319 | I43: 0.006510468159 | J43: 0.008456533981 | K43: 0.009262759636 | L43: 0.009471219253 | M43: =L43 -> 0.009471219253
B44: Labour- BIS Oxford (EGWWS WPI - NSW, March 2024) | D44: 7.637367588e-05 | E44: -0.02677255361 | F44: -0.04003304964 | G44: -0.001924154918 | H44: 0.009118993847 | I44: 0.011698011 | J44: 0.01110353476 | K44: 0.008978371389 | L44: 0.01184664203 | M44: 0.01346251417
B45: Superannuation adjustment | E45: 0.005 | F45: 0.005 | G45: 0.005 | H45: 0.005 | I45: 0.005
B48: Weights (per cent) | D48: =IFERROR((LEFT(E48,4)-1&IF(MID(E48,5,1)="","","-"&TEXT(MOD(MID(E48,6,2)-1,100),"00"))),"") -> 2020-21 | E48: =IFERROR((LEFT(F48,4)-1&IF(MID(F48,5,1)="","","-"&TEXT(MOD(MID(F48,6,2)-1,100),"00"))),"") -> 2021-22 | F48: =IFERROR((LEFT(G48,4)-1&IF(MID(G48,5,1)="","","-"&TEXT(MOD(MID(G48,6,2)-1,100),"00"))),"") -> 2022-23 | G48: =IFERROR((LEFT(H48,4)-1&IF(MID(H48,5,1)="","","-"&TEXT(MOD(MID(H48,6,2)-1,100),"00"))),"") -> 2023-24 | H48: =IFERROR((LEFT(I48,4)-1&IF(MID(I48,5,1)="","","-"&TEXT(MOD(MID(I48,6,2)-1,100),"00"))),"") -> 2024-25 | I48: =$C$8 -> 2025-26 | J48: =IFERROR((LEFT(I48,4)+1&IF(MID(I48,5,1)="","","-"&TEXT(MOD(MID(I48,6,2)+1,100),"00"))),"") -> 2026-27 | K48: =IFERROR((LEFT(J48,4)+1&IF(MID(J48,5,1)="","","-"&TEXT(MOD(MID(J48,6,2)+1,100),"00"))),"") -> 2027-28 | L48: =IFERROR((LEFT(K48,4)+1&IF(MID(K48,5,1)="","","-"&TEXT(MOD(MID(K48,6,2)+1,100),"00"))),"") -> 2028-29 | M48: =IFERROR((LEFT(L48,4)+1&IF(MID(L48,5,1)="","","-"&TEXT(MOD(MID(L48,6,2)+1,100),"00"))),"") -> 2029-30 | N48: =IF(COUNTA(D49:M52)=0,1,0) -> 0
B49: =B43 -> Labour- KPMG (placeholder from NSW draft decision) | D49: 0.5 | E49: 0.5 | F49: 0.5 | G49: 0.5 | H49: 0.5 | I49: 0.5 | J49: 0.5 | K49: 0.5 | L49: 0.5 | M49: 0.5
B50: =B44 -> Labour- BIS Oxford (EGWWS WPI - NSW, March 2024) | D50: =1-D49 -> 0.5 | E50: =1-E49 -> 0.5 | F50: =1-F49 -> 0.5 | G50: =1-G49 -> 0.5 | H50: 0.5 | I50: 0.5 | J50: 0.5 | K50: 0.5 | L50: 0.5 | M50: 0.5
B51: =B45 -> Superannuation adjustment
B52: =B46 -> 0
D53: =IF(OR(SUM(D49:D52)=0,SUM(D49:D52)=1),0,1) -> 0 | E53: 0 | F53: =IF(OR(SUM(F49:F52)=0,SUM(F49:F52)=1),0,1) -> 0 | G53: 0 | H53: 0 | I53: 0 | J53: 0 | K53: 0 | L53: 0 | M53: 0 | N53: =IF(SUM(D53:M53)=0,0,1) -> 0
A55: 3.3.2 | B55: Real price escalation (non-wage) | D55: Current regulatory period | I55: Forecast regulatory period
D57: =IFERROR((LEFT(E57,4)-1&IF(MID(E57,5,1)="","","-"&TEXT(MOD(MID(E57,6,2)-1,100),"00"))),"") -> 2020-21 | E57: =IFERROR((LEFT(F57,4)-1&IF(MID(F57,5,1)="","","-"&TEXT(MOD(MID(F57,6,2)-1,100),"00"))),"") -> 2021-22 | F57: =IFERROR((LEFT(G57,4)-1&IF(MID(G57,5,1)="","","-"&TEXT(MOD(MID(G57,6,2)-1,100),"00"))),"") -> 2022-23 | G57: =IFERROR((LEFT(H57,4)-1&IF(MID(H57,5,1)="","","-"&TEXT(MOD(MID(H57,6,2)-1,100),"00"))),"") -> 2023-24 | H57: =IFERROR((LEFT(I57,4)-1&IF(MID(I57,5,1)="","","-"&TEXT(MOD(MID(I57,6,2)-1,100),"00"))),"") -> 2024-25 | I57: =$C$8 -> 2025-26 | J57: =IFERROR((LEFT(I57,4)+1&IF(MID(I57,5,1)="","","-"&TEXT(MOD(MID(I57,6,2)+1,100),"00"))),"") -> 2026-27 | K57: =IFERROR((LEFT(J57,4)+1&IF(MID(J57,5,1)="","","-"&TEXT(MOD(MID(J57,6,2)+1,100),"00"))),"") -> 2027-28 | L57: =IFERROR((LEFT(K57,4)+1&IF(MID(K57,5,1)="","","-"&TEXT(MOD(MID(K57,6,2)+1,100),"00"))),"") -> 2028-29 | M57: =IFERROR((LEFT(L57,4)+1&IF(MID(L57,5,1)="","","-"&TEXT(MOD(MID(L57,6,2)+1,100),"00"))),"") -> 2029-30
B58: Materials - Real price growth | D58: =-D$29 -> 0 | E58: 0 | F58: 0 | G58: 0 | H58: 0 | I58: 0 | J58: 0 | K58: 0 | L58: 0 | M58: 0
B59: Cumulative Labour - Wage price growth index | D59: =1+D58 -> 1 | E59: =IFERROR(D59*(1+E58),"") -> 1 | F59: 1 | G59: 1 | H59: 1 | I59: 1 | J59: 1 | K59: 1 | L59: 1 | M59: 1
B60: ="Escalate from base year to " & C29 -> Escalate from base year to | I60: =I59/INDEX($D$57:$M$59,3,MATCH($C$9,$D$57:$M$57,0)) -> 1
D62: =IFERROR((LEFT(E62,4)-1&IF(MID(E62,5,1)="","","-"&TEXT(MOD(MID(E62,6,2)-1,100),"00"))),"") -> 2020-21 | E62: =IFERROR((LEFT(F62,4)-1&IF(MID(F62,5,1)="","","-"&TEXT(MOD(MID(F62,6,2)-1,100),"00"))),"") -> 2021-22 | F62: =IFERROR((LEFT(G62,4)-1&IF(MID(G62,5,1)="","","-"&TEXT(MOD(MID(G62,6,2)-1,100),"00"))),"") -> 2022-23 | G62: =IFERROR((LEFT(H62,4)-1&IF(MID(H62,5,1)="","","-"&TEXT(MOD(MID(H62,6,2)-1,100),"00"))),"") -> 2023-24 | H62: =IFERROR((LEFT(I62,4)-1&IF(MID(I62,5,1)="","","-"&TEXT(MOD(MID(I62,6,2)-1,100),"00"))),"") -> 2024-25 | I62: =$C$8 -> 2025-26 | J62: =IFERROR((LEFT(I62,4)+1&IF(MID(I62,5,1)="","","-"&TEXT(MOD(MID(I62,6,2)+1,100),"00"))),"") -> 2026-27 | K62: =IFERROR((LEFT(J62,4)+1&IF(MID(J62,5,1)="","","-"&TEXT(MOD(MID(J62,6,2)+1,100),"00"))),"") -> 2027-28 | L62: =IFERROR((LEFT(K62,4)+1&IF(MID(K62,5,1)="","","-"&TEXT(MOD(MID(K62,6,2)+1,100),"00"))),"") -> 2028-29 | M62: =IFERROR((LEFT(L62,4)+1&IF(MID(L62,5,1)="","","-"&TEXT(MOD(MID(L62,6,2)+1,100),"00"))),"") -> 2029-30
B63: Contracts - Real price growth | D63: =-D$30 -> -8.235982387e-05 | E63: 0.02176912829 | F63: 0.03418210348 | G63: -0.006314444876 | H63: -0.01101761158 | I63: -0.01410423958 | J63: -0.009780034371 | K63: -0.009120565513 | L63: -0.01065893064 | M63: -0.01146686671
B64: Cumulative Labour - Wage price growth index | D64: =1+D63 -> 0.9999176402 | E64: =IFERROR(D64*(1+E63),"") -> 1.021684976 | F64: 1.056608317 | G64: 1.049936422 | H64: 1.03836863 | I64: 1.023723231 | J64: 1.013711182 | K64: 1.004465563 | L64: 0.9937590341 | M64: 0.9823637318
B65: ="Escalate from base year to " & C34 -> Escalate from base year to | I65: =I64/INDEX($D$62:$M$64,3,MATCH($C$9,$D$62:$M$62,0)) -> 0.9750335439
D67: =IFERROR((LEFT(E67,4)-1&IF(MID(E67,5,1)="","","-"&TEXT(MOD(MID(E67,6,2)-1,100),"00"))),"") -> 2020-21 | E67: =IFERROR((LEFT(F67,4)-1&IF(MID(F67,5,1)="","","-"&TEXT(MOD(MID(F67,6,2)-1,100),"00"))),"") -> 2021-22 | F67: =IFERROR((LEFT(G67,4)-1&IF(MID(G67,5,1)="","","-"&TEXT(MOD(MID(G67,6,2)-1,100),"00"))),"") -> 2022-23 | G67: =IFERROR((LEFT(H67,4)-1&IF(MID(H67,5,1)="","","-"&TEXT(MOD(MID(H67,6,2)-1,100),"00"))),"") -> 2023-24 | H67: =IFERROR((LEFT(I67,4)-1&IF(MID(I67,5,1)="","","-"&TEXT(MOD(MID(I67,6,2)-1,100),"00"))),"") -> 2024-25 | I67: =$C$8 -> 2025-26 | J67: =IFERROR((LEFT(I67,4)+1&IF(MID(I67,5,1)="","","-"&TEXT(MOD(MID(I67,6,2)+1,100),"00"))),"") -> 2026-27 | K67: =IFERROR((LEFT(J67,4)+1&IF(MID(J67,5,1)="","","-"&TEXT(MOD(MID(J67,6,2)+1,100),"00"))),"") -> 2027-28 | L67: =IFERROR((LEFT(K67,4)+1&IF(MID(K67,5,1)="","","-"&TEXT(MOD(MID(K67,6,2)+1,100),"00"))),"") -> 2028-29 | M67: =IFERROR((LEFT(L67,4)+1&IF(MID(L67,5,1)="","","-"&TEXT(MOD(MID(L67,6,2)+1,100),"00"))),"") -> 2029-30
B68: Vehicles - Real price growth | D68: =-D$31 -> 0 | E68: 0 | F68: 0 | G68: 0 | H68: 0 | I68: 0 | J68: 0 | K68: 0 | L68: 0 | M68: 0
B69: Cumulative Labour - Wage price growth index | D69: =1+D68 -> 1 | E69: =IFERROR(D69*(1+E68),"") -> 1 | F69: 1 | G69: 1 | H69: 1 | I69: 1 | J69: 1 | K69: 1 | L69: 1 | M69: 1
B70: ="Escalate from base year to " & C39 -> Escalate from base year to | I70: =I69/INDEX($D$67:$M$69,3,MATCH($C$9,$D$67:$M$67,0)) -> 1
D72: =IFERROR((LEFT(E72,4)-1&IF(MID(E72,5,1)="","","-"&TEXT(MOD(MID(E72,6,2)-1,100),"00"))),"") -> 2020-21 | E72: =IFERROR((LEFT(F72,4)-1&IF(MID(F72,5,1)="","","-"&TEXT(MOD(MID(F72,6,2)-1,100),"00"))),"") -> 2021-22 | F72: =IFERROR((LEFT(G72,4)-1&IF(MID(G72,5,1)="","","-"&TEXT(MOD(MID(G72,6,2)-1,100),"00"))),"") -> 2022-23 | G72: =IFERROR((LEFT(H72,4)-1&IF(MID(H72,5,1)="","","-"&TEXT(MOD(MID(H72,6,2)-1,100),"00"))),"") -> 2023-24 | H72: =IFERROR((LEFT(I72,4)-1&IF(MID(I72,5,1)="","","-"&TEXT(MOD(MID(I72,6,2)-1,100),"00"))),"") -> 2024-25 | I72: =$C$8 -> 2025-26 | J72: =IFERROR((LEFT(I72,4)+1&IF(MID(I72,5,1)="","","-"&TEXT(MOD(MID(I72,6,2)+1,100),"00"))),"") -> 2026-27 | K72: =IFERROR((LEFT(J72,4)+1&IF(MID(J72,5,1)="","","-"&TEXT(MOD(MID(J72,6,2)+1,100),"00"))),"") -> 2027-28 | L72: =IFERROR((LEFT(K72,4)+1&IF(MID(K72,5,1)="","","-"&TEXT(MOD(MID(K72,6,2)+1,100),"00"))),"") -> 2028-29 | M72: =IFERROR((LEFT(L72,4)+1&IF(MID(L72,5,1)="","","-"&TEXT(MOD(MID(L72,6,2)+1,100),"00"))),"") -> 2029-30
B73: Other - Real price growth | D73: =-D$32 -> 0 | E73: 0 | F73: 0 | G73: 0 | H73: 0 | I73: 0 | J73: 0 | K73: 0 | L73: 0 | M73: 0
B74: Cumulative Labour - Wage price growth index | D74: =1+D73 -> 1 | E74: =IFERROR(D74*(1+E73),"") -> 1 | F74: 1 | G74: 1 | H74: 1 | I74: 1 | J74: 1 | K74: 1 | L74: 1 | M74: 1
B75: ="Escalate from base year to " & C44 -> Escalate from base year to | I75: =I74/INDEX($D$72:$M$74,3,MATCH($C$9,$D$72:$M$72,0)) -> 1

Sheet Input|Indirect Cost Rates
B1: =IFERROR(Index!B1,"") -> JGN Ancillary Reference Services Forecast Model | C1: Key: | D1: Input | F1: Sheet Validation | G1: NA
B2: =IFERROR(MID(CELL("filename",A1),FIND("]",CELL("filename",A1))+1,255),"") -> Input|Indirect Cost Rates | D2: Formula
A5: 4.1 | B5: On costs
B7: On cost drivers | C7: Unit | D7: Non-field staff | E7: [label] | F7: [label] | G7: [label] | H7: [label] | I7: [label] | J7: [label]
B8: Standard leave (annual leave, sick leave, public holidays) | C8: Per cent | D8: 0.1818
B9: Superannuation | C9: Per cent | D9: 0.12
B10: Workers Compensation | C10: Per cent | D10: 0.01381
B11: Payroll tax | C11: Per cent | D11: 0.0545
B12: Annual leave loading | C12: Per cent | D12: 0.0135
B13: Long Service leave allowance | C13: Per cent | D13: 0.025
B14: Non-chargeable time | C14: Per cent
B15: Other | C15: Per cent
B16: Allowances | C16: Per cent
C17: Per cent
C18: Per cent
B19: Compounded on cost factor | C19: Per cent | D19: =PRODUCT(--1+D8:D16)-1 -> 0.4699845883
A22: 4.2 | B22: Overhead
B24: Type of Overhead | C24: Unit | D24: Input | F24: Notes
B25: Network Overhead | C25: Per cent | D25: 0.1058368852
B26: Corporate Overhead | C26: Per cent | D26: 0.2634400046
C27: Per cent
C28: Per cent
C29: Per cent
A32: 4.3 | B32: Margins
C34: Unit | D34: Input | F34: Notes
C35: Per cent
C36: Per cent
C37: Per cent
C38: Per cent
A41: 4.4 | B41: Tax recovery rate
C43: Unit | D43: Input
C44: Per cent
C45: Per cent
C46: Per cent
C47: Per cent

Sheet Input|Labour Rates
B1: =IFERROR(Index!B1,"") -> JGN Ancillary Reference Services Forecast Model | D1: Key: | E1: Input | G1: Sheet Validation | H1: ='Model Validation'!C12 -> 0
B2: =IFERROR(MID(CELL("filename",A1),FIND("]",CELL("filename",A1))+1,255),"") -> Input|Labour Rates | E2: Formula
B7: 5.1 Labour rates | J7: 5.2 Notes and sources for "Other costs"
B9: Labour type (List) | C9: Hours (List) | D9: Base labour rate ($2023-24) | E9: On costs (%) | F9: Overhead (%) | G9: Vehicle ($2023-24) | H9: Other costs ($2023-24)
A10: 1 | B10: Billing | C10: Business hours | E10: 0.4699845883 | I10: 0 | K10: 0
A11: 2 | B11: Commercial | C11: Business hours | E11: 0.4699845883 | I11: 0 | K11: 0
A12: 3 | B12: Zinfra Back Office | C12: Business hours | I12: 0 | K12: 0
A13: 4 | B13: Zinfra GST | C13: Business hours | I13: 0 | K13: 0
A14: 5 | B14: Startek SME | C14: Business hours | I14: 0 | K14: 0
A15: 6 | B15: Startek Agent | C15: Business hours | I15: 0 | K15: 0
A16: 7 | I16: 0 | K16: 0
A17: 8 | I17: 0 | K17: 0
A18: 9 | I18: 0 | K18: 0
A19: 10 | I19: 0 | K19: 0
A20: 11 | I20: 0 | K20: 0
A21: 12 | I21: 0 | K21: 0
A22: 13 | I22: 0 | K22: 0
A23: 14 | I23: 0 | K23: 0
A24: 15 | I24: 0 | K24: 0
A25: 16 | I25: 0 | K25: 0
A26: 17 | I26: 0 | K26: 0
A27: 18 | I27: 0 | K27: 0
A28: 19 | I28: 0 | K28: 0
A29: 20 | I29: 0 | K29: 0
A30: 21 | I30: 0 | K30: 0
A31: 22 | I31: 0 | K31: 0
A32: 23 | I32: 0 | K32: 0
A33: 24 | I33: 0 | K33: 0
A34: 25 | I34: 0 | K34: 0
A35: 26 | I35: 0 | K35: 0
A36: 27 | I36: 0 | K36: 0
A37: 28 | I37: 0 | K37: 0
A38: 29 | I38: 0 | K38: 0
A39: 30 | I39: 0 | K39: 0

Sheet Input|Units
B1: =IFERROR(Index!B1,"") -> JGN Ancillary Reference Services Forecast Model | D1: Key: | E1: Input | I1: Sheet Validation | J1: ='Model Validation'!C13 -> 0
B2: =IFERROR(MID(CELL("filename",A1),FIND("]",CELL("filename",A1))+1,255),"") -> Input|Units | E2: Formula
B6: 6.1 Ancillary Reference Services | F6: Mapping categories | I6: =IFERROR("6.2 Service cost build up - DIRECT COSTS, $'s ($"&'Input|Escalations'!$C$9&")","") -> 6.2 Service cost build up - DIRECT COSTS, $'s ($2023-24) | AV6: 6.3 Service cost build - INDIRECT COSTS (per cent) | BD6: 6.4 Notes and sources for "Other costs"
I8: 6.2.1 Non-field based labour | U8: 0 | V8: 6.2.2 Field based labour | AP8: 0 | AQ8: 7.2.3 Direct non-labour | AV8: Indirect Costs
B9: Service code | C9: Service | D9: Hours (List) | E9: Service category (List) | F9: [label] (List) | G9: [label] (List) | I9: Labour category 1 (List) | J9: Hours (List) | K9: FTE | L9: Time on task (Minutes) | M9: Labour category 2 (List) | N9: Hours (List) | O9: FTE | P9: Time on task (Minutes) | Q9: Labour category 3 (List) | R9: Hours (List) | S9: FTE | T9: Time on task (Minutes) | V9: Labour category 1 (List) | W9: Hours (List) | X9: FTE | Y9: Travel time (Minutes) | Z9: Time on task (Minutes) | AA9: Labour category 2 (List) | AB9: Hours (List) | AC9: FTE | AD9: Travel time (Minutes) | AE9: Time on task (Minutes) | AF9: Labour category 3 (List) | AG9: Hours (List) | AH9: FTE | AI9: Travel time (Minutes) | AJ9: Time on task (Minutes) | AK9: Labour category 4 (List) | AL9: Hours (List) | AM9: FTE | AN9: Travel time (Minutes) | AO9: Time on task (Minutes) | AQ9: Materials ($2023-24) | AR9: Contracts ($2023-24) | AS9: Vehicles ($2023-24) | AT9: Other ($2023-24) | AV9: Network Overhead (%) | AW9: Corporate Overhead (%) | AX9: Margin (%) | AY9: Tax recovery (%) | BD9: Notes and sources for "Other costs"
A10: 1 | C10: Hourly charge – non-standard retailer-initiated requests and queries | D10: Business hours | E10: Other | H10: 0 | I10: Commercial | J10: Business hours | K10: 1 | L10: 40 | M10: Billing | N10: Business hours | O10: 1 | P10: 20 | U10: 0 | AP10: 0 | AV10: 0.1058368852 | AW10: 0.2634400046 | AZ10: 0 | BA10: 0 | BB10: 0 | BC10: 0 | BE10: 0
A11: 2 | C11: Disconnection – Volume Customers – Completed | D11: Business hours | E11: Disconnections and reconnections | H11: 0 | I11: Zinfra Back Office | J11: Business hours | K11: 1 | L11: 1 | M11: Startek SME | N11: Business hours | O11: 1 | P11: 1.5 | Q11: Startek Agent | R11: Business hours | S11: 1 | T11: 2 | U11: 0 | V11: Zinfra GST | W11: Business hours | X11: 1 | Z11: 7.68 | AP11: 0 | AV11: 0.1058368852 | AW11: 0.2634400046 | AZ11: 0 | BA11: 0 | BB11: 0 | BC11: 0 | BE11: 0
A12: 3 | C12: Disconnection – Volume Customers – Wasted Visit | D12: Business hours | E12: Disconnections and reconnections | H12: 0 | I12: Zinfra Back Office | J12: Business hours | K12: 1 | L12: 1 | M12: Startek SME | N12: Business hours | O12: 1 | P12: 3 | Q12: Startek Agent | R12: Business hours | S12: 1 | T12: 0.4 | U12: 0 | V12: Zinfra GST | W12: Business hours | X12: 1 | Z12: 8.1 | AP12: 0 | AV12: 0.1058368852 | AW12: 0.2634400046 | AZ12: 0 | BA12: 0 | BB12: 0 | BC12: 0 | BE12: 0
A13: 4 | C13: Reconnection – Volume Customers – Completed | D13: Business hours | E13: Disconnections and reconnections | H13: 0 | I13: Zinfra Back Office | J13: Business hours | K13: 1 | L13: 1 | M13: Startek SME | N13: Business hours | O13: 2 | P13: 5.26 | Q13: Startek Agent | R13: Business hours | S13: 1 | T13: 8 | U13: 0 | V13: Zinfra GST | W13: Business hours | X13: 1 | Z13: 14.79 | AP13: 0 | AV13: 0.1058368852 | AW13: 0.2634400046 | AZ13: 0 | BA13: 0 | BB13: 0 | BC13: 0 | BE13: 0
A14: 5 | C14: Reconnection – Volume Customers – Wasted Visit | D14: Business hours | E14: Disconnections and reconnections | H14: 0 | I14: Zinfra Back Office | J14: Business hours | K14: 1 | L14: 1 | M14: Startek SME | N14: Business hours | O14: 2 | P14: 4.126 | Q14: Startek Agent | R14: Business hours | S14: 1 | T14: 8 | U14: 0 | V14: Zinfra GST | W14: Business hours | X14: 1 | Z14: 22.88574 | AP14: 0 | AV14: 0.1058368852 | AW14: 0.2634400046 | AZ14: 0 | BA14: 0 | BB14: 0 | BC14: 0 | BE14: 0
A15: 6 | C15: Expedited reconnection | D15: Business hours | E15: Disconnections and reconnections | H15: 0 | I15: Zinfra Back Office | J15: Business hours | K15: 1 | L15: 1 | M15: Startek SME | N15: Business hours | O15: 2 | P15: 5.26 | Q15: Startek Agent | R15: Business hours | S15: 1 | T15: 8 | U15: 0 | V15: Zinfra GST | W15: Business hours | X15: 1 | Z15: 57 | AP15: 0 | AV15: 0.1058368852 | AW15: 0.2634400046 | AZ15: 0 | BA15: 0 | BB15: 0 | BC15: 0 | BE15: 0
A16: 7 | C16: Abolishment – Up to 25m3/hr – Completed | D16: Business hours | E16: Abolishments | H16: 0 | I16: Zinfra Back Office | J16: Business hours | K16: 4 | L16: 7.25 | U16: 0 | AP16: 0 | AV16: 0.1058368852 | AW16: 0.2634400046 | AZ16: 0 | BA16: 0 | BB16: 0 | BC16: 0 | BE16: 0
A17: 8 | C17: Special meter read – Completed | D17: Business hours | E17: Special meter reads | H17: 0 | U17: 0 | AP17: 0 | AV17: 0.1058368852 | AW17: 0.2634400046 | AZ17: 0 | BA17: 0 | BB17: 0 | BC17: 0 | BE17: 0
A18: 9 | C18: Special meter read – Wasted Visit | D18: Business hours | E18: Special meter reads | H18: 0 | U18: 0 | AP18: 0 | AV18: 0.1058368852 | AW18: 0.2634400046 | AZ18: 0 | BA18: 0 | BB18: 0 | BC18: 0 | BE18: 0
A19: 10 | H19: 0 | U19: 0 | AP19: 0 | AZ19: 0 | BA19: 0 | BB19: 0 | BC19: 0 | BE19: 0
A20: 11 | H20: 0 | U20: 0 | AP20: 0 | AZ20: 0 | BA20: 0 | BB20: 0 | BC20: 0 | BE20: 0
A21: 12 | H21: 0 | U21: 0 | AP21: 0 | AZ21: 0 | BA21: 0 | BB21: 0 | BC21: 0 | BE21: 0
A22: 13 | H22: 0 | U22: 0 | AP22: 0 | AZ22: 0 | BA22: 0 | BB22: 0 | BC22: 0 | BE22: 0
A23: 14 | H23: 0 | U23: 0 | AP23: 0 | AZ23: 0 | BA23: 0 | BB23: 0 | BC23: 0 | BE23: 0
A24: 15 | H24: 0 | U24: 0 | AP24: 0 | AZ24: 0 | BA24: 0 | BB24: 0 | BC24: 0 | BE24: 0
A25: 16 | H25: 0 | U25: 0 | AP25: 0 | AZ25: 0 | BA25: 0 | BB25: 0 | BC25: 0 | BE25: 0
A26: 17 | H26: 0 | U26: 0 | AP26: 0 | AZ26: 0 | BA26: 0 | BB26: 0 | BC26: 0 | BE26: 0
A27: 18 | H27: 0 | U27: 0 | AP27: 0 | AZ27: 0 | BA27: 0 | BB27: 0 | BC27: 0 | BE27: 0
A28: 19 | H28: 0 | U28: 0 | AP28: 0 | AZ28: 0 | BA28: 0 | BB28: 0 | BC28: 0 | BE28: 0
A29: 20 | H29: 0 | U29: 0 | AP29: 0 | AZ29: 0 | BA29: 0 | BB29: 0 | BC29: 0 | BE29: 0
A30: 21 | H30: 0 | U30: 0 | AP30: 0 | AZ30: 0 | BA30: 0 | BB30: 0 | BC30: 0 | BE30: 0
A31: 22 | H31: 0 | U31: 0 | AP31: 0 | AZ31: 0 | BA31: 0 | BB31: 0 | BC31: 0 | BE31: 0
A32: 23 | H32: 0 | U32: 0 | AP32: 0 | AZ32: 0 | BA32: 0 | BB32: 0 | BC32: 0 | BE32: 0
A33: 24 | H33: 0 | U33: 0 | AP33: 0 | AZ33: 0 | BA33: 0 | BB33: 0 | BC33: 0 | BE33: 0
A34: 25 | H34: 0 | U34: 0 | AP34: 0 | AZ34: 0 | BA34: 0 | BB34: 0 | BC34: 0 | BE34: 0
A35: 26 | H35: 0 | U35: 0 | AP35: 0 | AZ35: 0 | BA35: 0 | BB35: 0 | BC35: 0 | BE35: 0
A36: 27 | H36: 0 | U36: 0 | AP36: 0 | AZ36: 0 | BA36: 0 | BB36: 0 | BC36: 0 | BE36: 0
A37: 28 | H37: 0 | U37: 0 | AP37: 0 | AZ37: 0 | BA37: 0 | BB37: 0 | BC37: 0 | BE37: 0
A38: 29 | H38: 0 | U38: 0 | AP38: 0 | AZ38: 0 | BA38: 0 | BB38: 0 | BC38: 0 | BE38: 0
A39: 30 | H39: 0 | U39: 0 | AP39: 0 | AZ39: 0 | BA39: 0 | BB39: 0 | BC39: 0 | BE39: 0
A40: 31 | H40: 0 | U40: 0 | AP40: 0 | AZ40: 0 | BA40: 0 | BB40: 0 | BC40: 0 | BE40: 0
A41: 32 | H41: 0 | U41: 0 | AP41: 0 | AZ41: 0 | BA41: 0 | BB41: 0 | BC41: 0 | BE41: 0
A42: 33 | H42: 0 | U42: 0 | AP42: 0 | AZ42: 0 | BA42: 0 | BB42: 0 | BC42: 0 | BE42: 0
A43: 34 | H43: 0 | U43: 0 | AP43: 0 | AZ43: 0 | BA43: 0 | BB43: 0 | BC43: 0 | BE43: 0
A44: 35 | H44: 0 | U44: 0 | AP44: 0 | AZ44: 0 | BA44: 0 | BB44: 0 | BC44: 0 | BE44: 0
A45: 36 | H45: 0 | U45: 0 | AP45: 0 | AZ45: 0 | BA45: 0 | BB45: 0 | BC45: 0 | BE45: 0
A46: 37 | H46: 0 | U46: 0 | AP46: 0 | AZ46: 0 | BA46: 0 | BB46: 0 | BC46: 0 | BE46: 0
A47: 38 | H47: 0 | U47: 0 | AP47: 0 | AZ47: 0 | BA47: 0 | BB47: 0 | BC47: 0 | BE47: 0
A48: 39 | H48: 0 | U48: 0 | AP48: 0 | AZ48: 0 | BA48: 0 | BB48: 0 | BC48: 0 | BE48: 0
A49: 40 | H49: 0 | U49: 0 | AP49: 0 | AZ49: 0 | BA49: 0 | BB49: 0 | BC49: 0 | BE49: 0
A50: 41 | H50: 0 | U50: 0 | AP50: 0 | AZ50: 0 | BA50: 0 | BB50: 0 | BC50: 0 | BE50: 0
A51: 42 | H51: 0 | U51: 0 | AP51: 0 | AZ51: 0 | BA51: 0 | BB51: 0 | BC51: 0 | BE51: 0
A52: 43 | H52: 0 | U52: 0 | AP52: 0 | AZ52: 0 | BA52: 0 | BB52: 0 | BC52: 0 | BE52: 0
A53: 44 | H53: 0 | U53: 0 | AP53: 0 | AZ53: 0 | BA53: 0 | BB53: 0 | BC53: 0 | BE53: 0
A54: 45 | H54: 0 | U54: 0 | AP54: 0 | AZ54: 0 | BA54: 0 | BB54: 0 | BC54: 0 | BE54: 0
A55: 46 | H55: 0 | U55: 0 | AP55: 0 | AZ55: 0 | BA55: 0 | BB55: 0 | BC55: 0 | BE55: 0
A56: 47 | H56: 0 | U56: 0 | AP56: 0 | AZ56: 0 | BA56: 0 | BB56: 0 | BC56: 0 | BE56: 0
A57: 48 | H57: 0 | U57: 0 | AP57: 0 | AZ57: 0 | BA57: 0 | BB57: 0 | BC57: 0 | BE57: 0
A58: 49 | H58: 0 | U58: 0 | AP58: 0 | AZ58: 0 | BA58: 0 | BB58: 0 | BC58: 0 | BE58: 0
A59: 50 | H59: 0 | U59: 0 | AP59: 0 | AZ59: 0 | BA59: 0 | BB59: 0 | BC59: 0 | BE59: 0
A60: 51 | H60: 0 | U60: 0 | AP60: 0 | AZ60: 0 | BA60: 0 | BB60: 0 | BC60: 0 | BE60: 0
A61: 52 | H61: 0 | U61: 0 | AP61: 0 | AZ61: 0 | BA61: 0 | BB61: 0 | BC61: 0 | BE61: 0
A62: 53 | H62: 0 | U62: 0 | AP62: 0 | AZ62: 0 | BA62: 0 | BB62: 0 | BC62: 0 | BE62: 0
A63: 54 | H63: 0 | U63: 0 | AP63: 0 | AZ63: 0 | BA63: 0 | BB63: 0 | BC63: 0 | BE63: 0
A64: 55 | H64: 0 | U64: 0 | AP64: 0 | AZ64: 0 | BA64: 0 | BB64: 0 | BC64: 0 | BE64: 0
A65: 56 | H65: 0 | U65: 0 | AP65: 0 | AZ65: 0 | BA65: 0 | BB65: 0 | BC65: 0 | BE65: 0
A66: 57 | H66: 0 | U66: 0 | AP66: 0 | AZ66: 0 | BA66: 0 | BB66: 0 | BC66: 0 | BE66: 0
A67: 58 | H67: 0 | U67: 0 | AP67: 0 | AZ67: 0 | BA67: 0 | BB67: 0 | BC67: 0 | BE67: 0
A68: 59 | H68: 0 | U68: 0 | AP68: 0 | AZ68: 0 | BA68: 0 | BB68: 0 | BC68: 0 | BE68: 0
A69: 60 | H69: 0 | U69: 0 | AP69: 0 | AZ69: 0 | BA69: 0 | BB69: 0 | BC69: 0 | BE69: 0
A70: 61 | H70: 0 | U70: 0 | AP70: 0 | AZ70: 0 | BA70: 0 | BB70: 0 | BC70: 0 | BE70: 0
A71: 62 | H71: 0 | U71: 0 | AP71: 0 | AZ71: 0 | BA71: 0 | BB71: 0 | BC71: 0 | BE71: 0
A72: 63 | H72: 0 | U72: 0 | AP72: 0 | AZ72: 0 | BA72: 0 | BB72: 0 | BC72: 0 | BE72: 0
A73: 64 | H73: 0 | U73: 0 | AP73: 0 | AZ73: 0 | BA73: 0 | BB73: 0 | BC73: 0 | BE73: 0
A74: 65 | H74: 0 | U74: 0 | AP74: 0 | AZ74: 0 | BA74: 0 | BB74: 0 | BC74: 0 | BE74: 0
A75: 66 | H75: 0 | U75: 0 | AP75: 0 | AZ75: 0 | BA75: 0 | BB75: 0 | BC75: 0 | BE75: 0
A76: 67 | H76: 0 | U76: 0 | AP76: 0 | AZ76: 0 | BA76: 0 | BB76: 0 | BC76: 0 | BE76: 0
A77: 68 | H77: 0 | U77: 0 | AP77: 0 | AZ77: 0 | BA77: 0 | BB77: 0 | BC77: 0 | BE77: 0
A78: 69 | H78: 0 | U78: 0 | AP78: 0 | AZ78: 0 | BA78: 0 | BB78: 0 | BC78: 0 | BE78: 0
A79: 70 | H79: 0 | U79: 0 | AP79: 0 | AZ79: 0 | BA79: 0 | BB79: 0 | BC79: 0 | BE79: 0
A80: 71 | H80: 0 | U80: 0 | AP80: 0 | AZ80: 0 | BA80: 0 | BB80: 0 | BC80: 0 | BE80: 0
A81: 72 | H81: 0 | U81: 0 | AP81: 0 | AZ81: 0 | BA81: 0 | BB81: 0 | BC81: 0 | BE81: 0
A82: 73 | H82: 0 | U82: 0 | AP82: 0 | AZ82: 0 | BA82: 0 | BB82: 0 | BC82: 0 | BE82: 0
A83: 74 | H83: 0 | U83: 0 | AP83: 0 | AZ83: 0 | BA83: 0 | BB83: 0 | BC83: 0 | BE83: 0
A84: 75 | H84: 0 | U84: 0 | AP84: 0 | AZ84: 0 | BA84: 0 | BB84: 0 | BC84: 0 | BE84: 0
A85: 76 | H85: 0 | U85: 0 | AP85: 0 | AZ85: 0 | BA85: 0 | BB85: 0 | BC85: 0 | BE85: 0
A86: 77 | H86: 0 | U86: 0 | AP86: 0 | AZ86: 0 | BA86: 0 | BB86: 0 | BC86: 0 | BE86: 0
A87: 78 | H87: 0 | U87: 0 | AP87: 0 | AZ87: 0 | BA87: 0 | BB87: 0 | BC87: 0 | BE87: 0
A88: 79 | H88: 0 | U88: 0 | AP88: 0 | AZ88: 0 | BA88: 0 | BB88: 0 | BC88: 0 | BE88: 0
A89: 80 | H89: 0 | U89: 0 | AP89: 0 | AZ89: 0 | BA89: 0 | BB89: 0 | BC89: 0 | BE89: 0
A90: 81 | H90: 0 | U90: 0 | AP90: 0 | AZ90: 0 | BA90: 0 | BB90: 0 | BC90: 0 | BE90: 0
A91: 82 | H91: 0 | U91: 0 | AP91: 0 | AZ91: 0 | BA91: 0 | BB91: 0 | BC91: 0 | BE91: 0
A92: 83 | H92: 0 | U92: 0 | AP92: 0 | AZ92: 0 | BA92: 0 | BB92: 0 | BC92: 0 | BE92: 0
A93: 84 | H93: 0 | U93: 0 | AP93: 0 | AZ93: 0 | BA93: 0 | BB93: 0 | BC93: 0 | BE93: 0
A94: 85 | H94: 0 | U94: 0 | AP94: 0 | AZ94: 0 | BA94: 0 | BB94: 0 | BC94: 0 | BE94: 0
A95: 86 | H95: 0 | U95: 0 | AP95: 0 | AZ95: 0 | BA95: 0 | BB95: 0 | BC95: 0 | BE95: 0
A96: 87 | H96: 0 | U96: 0 | AP96: 0 | AZ96: 0 | BA96: 0 | BB96: 0 | BC96: 0 | BE96: 0
A97: 88 | H97: 0 | U97: 0 | AP97: 0 | AZ97: 0 | BA97: 0 | BB97: 0 | BC97: 0 | BE97: 0
A98: 89 | H98: 0 | U98: 0 | AP98: 0 | AZ98: 0 | BA98: 0 | BB98: 0 | BC98: 0 | BE98: 0
A99: 90 | H99: 0 | U99: 0 | AP99: 0 | AZ99: 0 | BA99: 0 | BB99: 0 | BC99: 0 | BE99: 0
A100: 91 | H100: 0 | U100: 0 | AP100: 0 | AZ100: 0 | BA100: 0 | BB100: 0 | BC100: 0 | BE100: 0
A101: 92 | H101: 0 | U101: 0 | AP101: 0 | AZ101: 0 | BA101: 0 | BB101: 0 | BC101: 0 | BE101: 0
A102: 93 | H102: 0 | U102: 0 | AP102: 0 | AZ102: 0 | BA102: 0 | BB102: 0 | BC102: 0 | BE102: 0
A103: 94 | H103: 0 | U103: 0 | AP103: 0 | AZ103: 0 | BA103: 0 | BB103: 0 | BC103: 0 | BE103: 0
A104: 95 | H104: 0 | U104: 0 | AP104: 0 | AZ104: 0 | BA104: 0 | BB104: 0 | BC104: 0 | BE104: 0
A105: 96 | H105: 0 | U105: 0 | AP105: 0 | AZ105: 0 | BA105: 0 | BB105: 0 | BC105: 0 | BE105: 0
A106: 97 | H106: 0 | U106: 0 | AP106: 0 | AZ106: 0 | BA106: 0 | BB106: 0 | BC106: 0 | BE106: 0
A107: 98 | H107: 0 | U107: 0 | AP107: 0 | AZ107: 0 | BA107: 0 | BB107: 0 | BC107: 0 | BE107: 0
A108: 99 | H108: 0 | U108: 0 | AP108: 0 | AZ108: 0 | BA108: 0 | BB108: 0 | BC108: 0 | BE108: 0
A109: 100 | H109: 0 | U109: 0 | AP109: 0 | AZ109: 0 | BA109: 0 | BB109: 0 | BC109: 0 | BE109: 0
A110: 101 | H110: 0 | U110: 0 | AP110: 0 | AZ110: 0 | BA110: 0 | BB110: 0 | BC110: 0 | BE110: 0
A111: 102 | H111: 0 | U111: 0 | AP111: 0 | AZ111: 0 | BA111: 0 | BB111: 0 | BC111: 0 | BE111: 0
A112: 103 | H112: 0 | U112: 0 | AP112: 0 | AZ112: 0 | BA112: 0 | BB112: 0 | BC112: 0 | BE112: 0
A113: 104 | H113: 0 | U113: 0 | AP113: 0 | AZ113: 0 | BA113: 0 | BB113: 0 | BC113: 0 | BE113: 0
A114: 105 | H114: 0 | U114: 0 | AP114: 0 | AZ114: 0 | BA114: 0 | BB114: 0 | BC114: 0 | BE114: 0
A115: 106 | H115: 0 | U115: 0 | AP115: 0 | AZ115: 0 | BA115: 0 | BB115: 0 | BC115: 0 | BE115: 0
A116: 107 | H116: 0 | U116: 0 | AP116: 0 | AZ116: 0 | BA116: 0 | BB116: 0 | BC116: 0 | BE116: 0
A117: 108 | H117: 0 | U117: 0 | AP117: 0 | AZ117: 0 | BA117: 0 | BB117: 0 | BC117: 0 | BE117: 0
A118: 109 | H118: 0 | U118: 0 | AP118: 0 | AZ118: 0 | BA118: 0 | BB118: 0 | BC118: 0 | BE118: 0
A119: 110 | H119: 0 | U119: 0 | AP119: 0 | AZ119: 0 | BA119: 0 | BB119: 0 | BC119: 0 | BE119: 0
A120: 111 | H120: 0 | U120: 0 | AP120: 0 | AZ120: 0 | BA120: 0 | BB120: 0 | BC120: 0 | BE120: 0
A121: 112 | H121: 0 | U121: 0 | AP121: 0 | AZ121: 0 | BA121: 0 | BB121: 0 | BC121: 0 | BE121: 0
A122: 113 | H122: 0 | U122: 0 | AP122: 0 | AZ122: 0 | BA122: 0 | BB122: 0 | BC122: 0 | BE122: 0
A123: 114 | H123: 0 | U123: 0 | AP123: 0 | AZ123: 0 | BA123: 0 | BB123: 0 | BC123: 0 | BE123: 0
A124: 115 | H124: 0 | U124: 0 | AP124: 0 | AZ124: 0 | BA124: 0 | BB124: 0 | BC124: 0 | BE124: 0
A125: 116 | H125: 0 | U125: 0 | AP125: 0 | AZ125: 0 | BA125: 0 | BB125: 0 | BC125: 0 | BE125: 0
A126: 117 | H126: 0 | U126: 0 | AP126: 0 | AZ126: 0 | BA126: 0 | BB126: 0 | BC126: 0 | BE126: 0
A127: 118 | H127: 0 | U127: 0 | AP127: 0 | AZ127: 0 | BA127: 0 | BB127: 0 | BC127: 0 | BE127: 0
A128: 119 | H128: 0 | U128: 0 | AP128: 0 | AZ128: 0 | BA128: 0 | BB128: 0 | BC128: 0 | BE128: 0
A129: 120 | H129: 0 | U129: 0 | AP129: 0 | AZ129: 0 | BA129: 0 | BB129: 0 | BC129: 0 | BE129: 0
A130: 121 | H130: 0 | U130: 0 | AP130: 0 | AZ130: 0 | BA130: 0 | BB130: 0 | BC130: 0 | BE130: 0
A131: 122 | H131: 0 | U131: 0 | AP131: 0 | AZ131: 0 | BA131: 0 | BB131: 0 | BC131: 0 | BE131: 0
A132: 123 | H132: 0 | U132: 0 | AP132: 0 | AZ132: 0 | BA132: 0 | BB132: 0 | BC132: 0 | BE132: 0
A133: 124 | H133: 0 | U133: 0 | AP133: 0 | AZ133: 0 | BA133: 0 | BB133: 0 | BC133: 0 | BE133: 0
A134: 125 | H134: 0 | U134: 0 | AP134: 0 | AZ134: 0 | BA134: 0 | BB134: 0 | BC134: 0 | BE134: 0
A135: 126 | H135: 0 | U135: 0 | AP135: 0 | AZ135: 0 | BA135: 0 | BB135: 0 | BC135: 0 | BE135: 0
A136: 127 | H136: 0 | U136: 0 | AP136: 0 | AZ136: 0 | BA136: 0 | BB136: 0 | BC136: 0 | BE136: 0
A137: 128 | H137: 0 | U137: 0 | AP137: 0 | AZ137: 0 | BA137: 0 | BB137: 0 | BC137: 0 | BE137: 0
A138: 129 | H138: 0 | U138: 0 | AP138: 0 | AZ138: 0 | BA138: 0 | BB138: 0 | BC138: 0 | BE138: 0
A139: 130 | H139: 0 | U139: 0 | AP139: 0 | AZ139: 0 | BA139: 0 | BB139: 0 | BC139: 0 | BE139: 0
A140: 131 | H140: 0 | U140: 0 | AP140: 0 | AZ140: 0 | BA140: 0 | BB140: 0 | BC140: 0 | BE140: 0
A141: 132 | H141: 0 | U141: 0 | AP141: 0 | AZ141: 0 | BA141: 0 | BB141: 0 | BC141: 0 | BE141: 0
A142: 133 | H142: 0 | U142: 0 | AP142: 0 | AZ142: 0 | BA142: 0 | BB142: 0 | BC142: 0 | BE142: 0
A143: 134 | H143: 0 | U143: 0 | AP143: 0 | AZ143: 0 | BA143: 0 | BB143: 0 | BC143: 0 | BE143: 0
A144: 135 | H144: 0 | U144: 0 | AP144: 0 | AZ144: 0 | BA144: 0 | BB144: 0 | BC144: 0 | BE144: 0
A145: 136 | H145: 0 | U145: 0 | AP145: 0 | AZ145: 0 | BA145: 0 | BB145: 0 | BC145: 0 | BE145: 0
A146: 137 | H146: 0 | U146: 0 | AP146: 0 | AZ146: 0 | BA146: 0 | BB146: 0 | BC146: 0 | BE146: 0
A147: 138 | H147: 0 | U147: 0 | AP147: 0 | AZ147: 0 | BA147: 0 | BB147: 0 | BC147: 0 | BE147: 0
A148: 139 | H148: 0 | U148: 0 | AP148: 0 | AZ148: 0 | BA148: 0 | BB148: 0 | BC148: 0 | BE148: 0
A149: 140 | H149: 0 | U149: 0 | AP149: 0 | AZ149: 0 | BA149: 0 | BB149: 0 | BC149: 0 | BE149: 0
A150: 141 | H150: 0 | U150: 0 | AP150: 0 | AZ150: 0 | BA150: 0 | BB150: 0 | BC150: 0 | BE150: 0
A151: 142 | H151: 0 | U151: 0 | AP151: 0 | AZ151: 0 | BA151: 0 | BB151: 0 | BC151: 0 | BE151: 0
A152: 143 | H152: 0 | U152: 0 | AP152: 0 | AZ152: 0 | BA152: 0 | BB152: 0 | BC152: 0 | BE152: 0
A153: 144 | H153: 0 | U153: 0 | AP153: 0 | AZ153: 0 | BA153: 0 | BB153: 0 | BC153: 0 | BE153: 0
A154: 145 | H154: 0 | U154: 0 | AP154: 0 | AZ154: 0 | BA154: 0 | BB154: 0 | BC154: 0 | BE154: 0
A155: 146 | H155: 0 | U155: 0 | AP155: 0 | AZ155: 0 | BA155: 0 | BB155: 0 | BC155: 0 | BE155: 0
A156: 147 | H156: 0 | U156: 0 | AP156: 0 | AZ156: 0 | BA156: 0 | BB156: 0 | BC156: 0 | BE156: 0
A157: 148 | H157: 0 | U157: 0 | AP157: 0 | AZ157: 0 | BA157: 0 | BB157: 0 | BC157: 0 | BE157: 0
A158: 149 | H158: 0 | U158: 0 | AP158: 0 | AZ158: 0 | BA158: 0 | BB158: 0 | BC158: 0 | BE158: 0
A159: 150 | H159: 0 | U159: 0 | AP159: 0 | AZ159: 0 | BA159: 0 | BB159: 0 | BC159: 0 | BE159: 0
A160: 151 | H160: 0 | U160: 0 | AP160: 0 | AZ160: 0 | BA160: 0 | BB160: 0 | BC160: 0 | BE160: 0
A161: 152 | H161: 0 | U161: 0 | AP161: 0 | AZ161: 0 | BA161: 0 | BB161: 0 | BC161: 0 | BE161: 0
A162: 153 | H162: 0 | U162: 0 | AP162: 0 | AZ162: 0 | BA162: 0 | BB162: 0 | BC162: 0 | BE162: 0
A163: 154 | H163: 0 | U163: 0 | AP163: 0 | AZ163: 0 | BA163: 0 | BB163: 0 | BC163: 0 | BE163: 0
A164: 155 | H164: 0 | U164: 0 | AP164: 0 | AZ164: 0 | BA164: 0 | BB164: 0 | BC164: 0 | BE164: 0
A165: 156 | H165: 0 | U165: 0 | AP165: 0 | AZ165: 0 | BA165: 0 | BB165: 0 | BC165: 0 | BE165: 0
A166: 157 | H166: 0 | U166: 0 | AP166: 0 | AZ166: 0 | BA166: 0 | BB166: 0 | BC166: 0 | BE166: 0
A167: 158 | H167: 0 | U167: 0 | AP167: 0 | AZ167: 0 | BA167: 0 | BB167: 0 | BC167: 0 | BE167: 0
A168: 159 | H168: 0 | U168: 0 | AP168: 0 | AZ168: 0 | BA168: 0 | BB168: 0 | BC168: 0 | BE168: 0
A169: 160 | H169: 0 | U169: 0 | AP169: 0 | AZ169: 0 | BA169: 0 | BB169: 0 | BC169: 0 | BE169: 0
A170: 161 | H170: 0 | U170: 0 | AP170: 0 | AZ170: 0 | BA170: 0 | BB170: 0 | BC170: 0 | BE170: 0
A171: 162 | H171: 0 | U171: 0 | AP171: 0 | AZ171: 0 | BA171: 0 | BB171: 0 | BC171: 0 | BE171: 0
A172: 163 | H172: 0 | U172: 0 | AP172: 0 | AZ172: 0 | BA172: 0 | BB172: 0 | BC172: 0 | BE172: 0
A173: 164 | H173: 0 | U173: 0 | AP173: 0 | AZ173: 0 | BA173: 0 | BB173: 0 | BC173: 0 | BE173: 0
A174: 165 | H174: 0 | U174: 0 | AP174: 0 | AZ174: 0 | BA174: 0 | BB174: 0 | BC174: 0 | BE174: 0
A175: 166 | H175: 0 | U175: 0 | AP175: 0 | AZ175: 0 | BA175: 0 | BB175: 0 | BC175: 0 | BE175: 0
A176: 167 | H176: 0 | U176: 0 | AP176: 0 | AZ176: 0 | BA176: 0 | BB176: 0 | BC176: 0 | BE176: 0
A177: 168 | H177: 0 | U177: 0 | AP177: 0 | AZ177: 0 | BA177: 0 | BB177: 0 | BC177: 0 | BE177: 0
A178: 169 | H178: 0 | U178: 0 | AP178: 0 | AZ178: 0 | BA178: 0 | BB178: 0 | BC178: 0 | BE178: 0
A179: 170 | H179: 0 | U179: 0 | AP179: 0 | AZ179: 0 | BA179: 0 | BB179: 0 | BC179: 0 | BE179: 0
A180: 171 | H180: 0 | U180: 0 | AP180: 0 | AZ180: 0 | BA180: 0 | BB180: 0 | BC180: 0 | BE180: 0
A181: 172 | H181: 0 | U181: 0 | AP181: 0 | AZ181: 0 | BA181: 0 | BB181: 0 | BC181: 0 | BE181: 0
A182: 173 | H182: 0 | U182: 0 | AP182: 0 | AZ182: 0 | BA182: 0 | BB182: 0 | BC182: 0 | BE182: 0
A183: 174 | H183: 0 | U183: 0 | AP183: 0 | AZ183: 0 | BA183: 0 | BB183: 0 | BC183: 0 | BE183: 0
A184: 175 | H184: 0 | U184: 0 | AP184: 0 | AZ184: 0 | BA184: 0 | BB184: 0 | BC184: 0 | BE184: 0
A185: 176 | H185: 0 | U185: 0 | AP185: 0 | AZ185: 0 | BA185: 0 | BB185: 0 | BC185: 0 | BE185: 0
A186: 177 | H186: 0 | U186: 0 | AP186: 0 | AZ186: 0 | BA186: 0 | BB186: 0 | BC186: 0 | BE186: 0
A187: 178 | H187: 0 | U187: 0 | AP187: 0 | AZ187: 0 | BA187: 0 | BB187: 0 | BC187: 0 | BE187: 0
A188: 179 | H188: 0 | U188: 0 | AP188: 0 | AZ188: 0 | BA188: 0 | BB188: 0 | BC188: 0 | BE188: 0
A189: 180 | H189: 0 | U189: 0 | AP189: 0 | AZ189: 0 | BA189: 0 | BB189: 0 | BC189: 0 | BE189: 0
A190: 181 | H190: 0 | U190: 0 | AP190: 0 | AZ190: 0 | BA190: 0 | BB190: 0 | BC190: 0 | BE190: 0
A191: 182 | H191: 0 | U191: 0 | AP191: 0 | AZ191: 0 | BA191: 0 | BB191: 0 | BC191: 0 | BE191: 0
A192: 183 | H192: 0 | U192: 0 | AP192: 0 | AZ192: 0 | BA192: 0 | BB192: 0 | BC192: 0 | BE192: 0
A193: 184 | H193: 0 | U193: 0 | AP193: 0 | AZ193: 0 | BA193: 0 | BB193: 0 | BC193: 0 | BE193: 0
A194: 185 | H194: 0 | U194: 0 | AP194: 0 | AZ194: 0 | BA194: 0 | BB194: 0 | BC194: 0 | BE194: 0
A195: 186 | H195: 0 | U195: 0 | AP195: 0 | AZ195: 0 | BA195: 0 | BB195: 0 | BC195: 0 | BE195: 0
A196: 187 | H196: 0 | U196: 0 | AP196: 0 | AZ196: 0 | BA196: 0 | BB196: 0 | BC196: 0 | BE196: 0
A197: 188 | H197: 0 | U197: 0 | AP197: 0 | AZ197: 0 | BA197: 0 | BB197: 0 | BC197: 0 | BE197: 0
A198: 189 | H198: 0 | U198: 0 | AP198: 0 | AZ198: 0 | BA198: 0 | BB198: 0 | BC198: 0 | BE198: 0
A199: 190 | H199: 0 | U199: 0 | AP199: 0 | AZ199: 0 | BA199: 0 | BB199: 0 | BC199: 0 | BE199: 0
A200: 191 | H200: 0 | U200: 0 | AP200: 0 | AZ200: 0 | BA200: 0 | BB200: 0 | BC200: 0 | BE200: 0
A201: 192 | H201: 0 | U201: 0 | AP201: 0 | AZ201: 0 | BA201: 0 | BB201: 0 | BC201: 0 | BE201: 0
A202: 193 | H202: 0 | U202: 0 | AP202: 0 | AZ202: 0 | BA202: 0 | BB202: 0 | BC202: 0 | BE202: 0
A203: 194 | H203: 0 | U203: 0 | AP203: 0 | AZ203: 0 | BA203: 0 | BB203: 0 | BC203: 0 | BE203: 0
A204: 195 | H204: 0 | U204: 0 | AP204: 0 | AZ204: 0 | BA204: 0 | BB204: 0 | BC204: 0 | BE204: 0
... 305 more rows

Sheet Input|Mapping
B1: =IFERROR(Index!B1,"") -> JGN Ancillary Reference Services Forecast Model | D1: Key: | E1: Input | G1: Sheet Validation | H1: ='Model Validation'!C14 -> NA
B2: =IFERROR(MID(CELL("filename",A1),FIND("]",CELL("filename",A1))+1,255),"") -> Input|Mapping | E2: Formula
P4: =IFERROR('Input|Setup'!$E$6,"") -> 2025-26 | Q4: =IFERROR((LEFT(P4,4)+1&IF(MID(P4,5,1)="","","-"&TEXT(MOD(MID(P4,6,2)+1,100),"00"))),"") -> 2026-27 | R4: =IFERROR((LEFT(Q4,4)+1&IF(MID(Q4,5,1)="","","-"&TEXT(MOD(MID(Q4,6,2)+1,100),"00"))),"") -> 2027-28 | S4: =IFERROR((LEFT(R4,4)+1&IF(MID(R4,5,1)="","","-"&TEXT(MOD(MID(R4,6,2)+1,100),"00"))),"") -> 2028-29 | T4: =IFERROR((LEFT(S4,4)+1&IF(MID(S4,5,1)="","","-"&TEXT(MOD(MID(S4,6,2)+1,100),"00"))),"") -> 2029-30
P5: CPI | Q5: ='Input|Escalations'!J16 -> 0.028 | R5: ='Input|Escalations'!K16 -> 0.02789756045 | S5: ='Input|Escalations'!L16 -> 0.02789756045 | T5: ='Input|Escalations'!M16 -> 0.02789756045
P6: X factors | Q6: ='Input|Escalations'!J28 -> -0.004890017186 | R6: ='Input|Escalations'!K28 -> -0.004560282756 | S6: ='Input|Escalations'!L28 -> -0.00532946532 | T6: ='Input|Escalations'!M28 -> -0.005733433357
B9: 7 .1 Current regulatory period - Ancillary Reference Services | D9: Mapping categories | E9: =IFERROR("Approved charge, $ ($nominal)","") -> Approved charge, $ ($nominal) | L9: 7.2 Forecast regulatory period - Ancillary Reference Services | P9: =IFERROR("Charge for service, $ ($,nominal)","") -> Charge for service, $ ($,nominal)
B11: Service code | C11: Ancillary Reference Service | D11: Hours (List) | E11: ='Input|Setup'!B11 -> 2020-21 | F11: ='Input|Setup'!B12 -> 2021-22 | G11: ='Input|Setup'!B13 -> 2022-23 | H11: ='Input|Setup'!B14 -> 2023-24 | I11: ='Input|Setup'!B15 -> 2024-25 | M11: Ancillary Reference Service | N11: ='Input|Setup'!$B$24 -> Hours | O11: ='Input|Setup'!E30 -> Service category | P11: ='Input|Setup'!E11 -> 2025-26 | Q11: =LEFT(P11,4)+1&"-"&RIGHT(P11,2)+1 -> 2026-27 | R11: =LEFT(Q11,4)+1&"-"&RIGHT(Q11,2)+1 -> 2027-28 | S11: =LEFT(R11,4)+1&"-"&RIGHT(R11,2)+1 -> 2028-29 | T11: =LEFT(S11,4)+1&"-"&RIGHT(S11,2)+1 -> 2029-30
A12: 1 | C12: Hourly charge – non-standard retailer-initiated requests and queries | D12: Business hours | E12: 153 | F12: =G12 -> 154 | G12: 154 | H12: 185 | I12: 217 | K12: 1 | L12: ='Calc|Charges'!B10 ->  | M12: ='Calc|Charges'!C10 -> Hourly charge – non-standard retailer-initiated requests and queries | N12: ='Calc|Charges'!D10 -> Business hours | O12: ='Calc|Charges'!F10 ->  | P12: ='Calc|Charges'!H10 -> 205.9343094 | Q12: =P12*(1+Q$5)*(1-Q$6) -> 212.735689 | R12: 219.667695 | S12: 226.9992591 | T12: 234.6697781
A13: =IFERROR(A12+1,"") -> 2 | C13: Disconnection – Volume Customers – Completed | D13: Business hours | E13: 101 | F13: =G13 -> 102 | G13: 102 | H13: 122 | I13: 143 | K13: =IFERROR(K12+1,"") -> 2 | L13: ='Calc|Charges'!B11 ->  | M13: ='Calc|Charges'!C11 -> Disconnection – Volume Customers – Completed | N13: ='Calc|Charges'!D11 -> Business hours | O13: ='Calc|Charges'!F11 ->  | P13: ='Calc|Charges'!H11 -> 84.25019738 | Q13: 87.0327234 | R13: 89.86869026 | S13: 92.86812114 | T13: 96.00622249
A14: =IFERROR(A13+1,"") -> 3 | C14: Disconnection – Volume Customers – Wasted Visit | D14: Business hours | E14: 66 | F14: =G14 -> 67 | G14: 67 | H14: 80 | I14: 94 | K14: =IFERROR(K13+1,"") -> 3 | L14: ='Calc|Charges'!B12 ->  | M14: ='Calc|Charges'!C12 -> Disconnection – Volume Customers – Wasted Visit | N14: ='Calc|Charges'!D12 -> Business hours | O14: ='Calc|Charges'!F12 ->  | P14: ='Calc|Charges'!H12 -> 46.37756408 | Q14: 47.90927299 | R14: 49.47039972 | S14: 51.12150918 | T14: 52.84895316
A15: 4 | C15: Reconnection – Volume Customers – Completed | D15: Business hours | E15: 81 | F15: =G15 -> 82 | G15: 82 | H15: 98 | I15: 115 | K15: =IFERROR(K14+1,"") -> 4 | L15: ='Calc|Charges'!B13 ->  | M15: ='Calc|Charges'!C13 -> Reconnection – Volume Customers – Completed | N15: ='Calc|Charges'!D13 -> Business hours | O15: ='Calc|Charges'!F13 ->  | P15: ='Calc|Charges'!H13 -> 118.011853 | Q15: 121.9094231 | R15: 125.8818495 | S15: 130.0832449 | T15: 134.4788804
A16: 5 | C16: Reconnection – Volume Customers – Wasted Visit | D16: Business hours | E16: =E14 -> 66 | F16: =F14 -> 67 | G16: =G14 -> 67 | H16: =H14 -> 80 | I16: =I14 -> 94 | K16: 5 | L16: ='Calc|Charges'!B14 ->  | M16: ='Calc|Charges'!C14 -> Reconnection – Volume Customers – Wasted Visit | N16: ='Calc|Charges'!D14 -> Business hours | O16: ='Calc|Charges'!F14 ->  | P16: ='Calc|Charges'!H14 -> 118.0104937 | Q16: 121.9080189 | R16: 125.8803995 | S16: 130.0817465 | T16: 134.4773314
A17: 6 | C17: Expedited reconnection | D17: Business hours | E17: 160 | F17: =G17 -> 243 | G17: 243 | H17: 292 | I17: 342 | K17: 6 | L17: ='Calc|Charges'!B15 ->  | M17: ='Calc|Charges'!C15 -> Expedited reconnection | N17: ='Calc|Charges'!D15 -> Business hours | O17: ='Calc|Charges'!F15 ->  | P17: ='Calc|Charges'!H15 -> 196.4611757 | Q17: 202.9496867 | R17: 209.5628152 | S17: 216.5571219 | T17: 223.8747911
A18: 7 | C18: Abolishment – Up to 25m3/hr – Completed | D18: Business hours | E18: 1038 | F18: =G18 -> 1047 | G18: 1047 | H18: 1256 | I18: 1470.81 | K18: 7 | L18: ='Calc|Charges'!B16 ->  | M18: ='Calc|Charges'!C16 -> Abolishment – Up to 25m3/hr – Completed | N18: ='Calc|Charges'!D16 -> Business hours | O18: ='Calc|Charges'!F16 ->  | P18: ='Calc|Charges'!H16 -> 1472.461512 | Q18: 1521.092406 | R18: 1570.6573 | S18: 1623.079094 | T18: 1677.924467
A19: 8 | C19: Special meter read – Completed | D19: Business hours | E19: 11.3 | F19: =G19 -> 11.4 | G19: 11.4 | H19: 13.7 | I19: 16 | K19: 8 | L19: ='Calc|Charges'!B17 ->  | M19: ='Calc|Charges'!C17 -> Special meter read – Completed | N19: ='Calc|Charges'!D17 -> Business hours | O19: ='Calc|Charges'!F17 ->  | P19: ='Calc|Charges'!H17 -> 16.63253571 | Q19: 17.18185743 | R19: 17.74172935 | S19: 18.33387208 | T19: 18.95339089
A20: 9 | C20: Special meter read – Wasted Visit | D20: Business hours | E20: 11.3 | F20: =G20 -> 11.4 | G20: 11.4 | H20: 13.7 | I20: 16 | K20: 9 | L20: ='Calc|Charges'!B18 ->  | M20: ='Calc|Charges'!C18 -> Special meter read – Wasted Visit | N20: ='Calc|Charges'!D18 -> Business hours | O20: ='Calc|Charges'!F18 ->  | P20: ='Calc|Charges'!H18 -> 16.63253571 | Q20: 17.18185743 | R20: 17.74172935 | S20: 18.33387208 | T20: 18.95339089
A21: 10 | C21: Disconnection (and reconnection) - Volume Customers - Completed | D21: Business hours | E21: 182 | F21: =NA() ->  | G21: =NA() ->  | H21: =NA() ->  | I21: =NA() ->  | K21: 10 | L21: ='Calc|Charges'!B19 ->  | M21: ='Calc|Charges'!C19 ->  | N21: ='Calc|Charges'!D19 ->  | O21: ='Calc|Charges'!F19 ->  | P21: ='Calc|Charges'!H19 -> 0 | Q21: 0 | R21: 0 | S21: 0 | T21: 0
A22: 11 | K22: 11 | L22: ='Calc|Charges'!B20 ->  | M22: ='Calc|Charges'!C20 ->  | N22: ='Calc|Charges'!D20 ->  | O22: ='Calc|Charges'!F20 ->  | P22: ='Calc|Charges'!H20 -> 0 | Q22: 0 | R22: 0 | S22: 0 | T22: 0
A23: 12 | K23: 12 | L23: ='Calc|Charges'!B21 ->  | M23: ='Calc|Charges'!C21 ->  | N23: ='Calc|Charges'!D21 ->  | O23: ='Calc|Charges'!F21 ->  | P23: ='Calc|Charges'!H21 -> 0 | Q23: 0 | R23: 0 | S23: 0 | T23: 0
A24: 13 | K24: 13 | L24: ='Calc|Charges'!B22 ->  | M24: ='Calc|Charges'!C22 ->  | N24: ='Calc|Charges'!D22 ->  | O24: ='Calc|Charges'!F22 ->  | P24: ='Calc|Charges'!H22 -> 0 | Q24: 0 | R24: 0 | S24: 0 | T24: 0
A25: 14 | K25: 14 | L25: ='Calc|Charges'!B23 ->  | M25: ='Calc|Charges'!C23 ->  | N25: ='Calc|Charges'!D23 ->  | O25: ='Calc|Charges'!F23 ->  | P25: ='Calc|Charges'!H23 -> 0 | Q25: 0 | R25: 0 | S25: 0 | T25: 0
A26: 15 | K26: 15 | L26: ='Calc|Charges'!B24 ->  | M26: ='Calc|Charges'!C24 ->  | N26: ='Calc|Charges'!D24 ->  | O26: ='Calc|Charges'!F24 ->  | P26: ='Calc|Charges'!H24 -> 0 | Q26: 0 | R26: 0 | S26: 0 | T26: 0
A27: 16 | K27: 16 | L27: ='Calc|Charges'!B25 ->  | M27: ='Calc|Charges'!C25 ->  | N27: ='Calc|Charges'!D25 ->  | O27: ='Calc|Charges'!F25 ->  | P27: ='Calc|Charges'!H25 -> 0 | Q27: 0 | R27: 0 | S27: 0 | T27: 0
A28: 17 | K28: 17 | L28: ='Calc|Charges'!B26 ->  | M28: ='Calc|Charges'!C26 ->  | N28: ='Calc|Charges'!D26 ->  | O28: ='Calc|Charges'!F26 ->  | P28: ='Calc|Charges'!H26 -> 0 | Q28: 0 | R28: 0 | S28: 0 | T28: 0
A29: 18 | K29: 18 | L29: ='Calc|Charges'!B27 ->  | M29: ='Calc|Charges'!C27 ->  | N29: ='Calc|Charges'!D27 ->  | O29: ='Calc|Charges'!F27 ->  | P29: ='Calc|Charges'!H27 -> 0 | Q29: 0 | R29: 0 | S29: 0 | T29: 0
A30: 19 | K30: 19 | L30: ='Calc|Charges'!B28 ->  | M30: ='Calc|Charges'!C28 ->  | N30: ='Calc|Charges'!D28 ->  | O30: ='Calc|Charges'!F28 ->  | P30: ='Calc|Charges'!H28 -> 0 | Q30: 0 | R30: 0 | S30: 0 | T30: 0
A31: 20 | K31: 20 | L31: ='Calc|Charges'!B29 ->  | M31: ='Calc|Charges'!C29 ->  | N31: ='Calc|Charges'!D29 ->  | O31: ='Calc|Charges'!F29 ->  | P31: ='Calc|Charges'!H29 -> 0 | Q31: 0 | R31: 0 | S31: 0 | T31: 0
A32: 21 | K32: 21 | L32: ='Calc|Charges'!B30 ->  | M32: ='Calc|Charges'!C30 ->  | N32: ='Calc|Charges'!D30 ->  | O32: ='Calc|Charges'!F30 ->  | P32: ='Calc|Charges'!H30 -> 0 | Q32: =P32*(1+Q$5)*(1-Q$6) -> 0 | R32: 0 | S32: 0 | T32: 0
A33: 22 | K33: 22 | L33: ='Calc|Charges'!B31 ->  | M33: ='Calc|Charges'!C31 ->  | N33: ='Calc|Charges'!D31 ->  | O33: ='Calc|Charges'!F31 ->  | P33: ='Calc|Charges'!H31 -> 0 | Q33: 0 | R33: 0 | S33: 0 | T33: 0
A34: 23 | K34: 23 | L34: ='Calc|Charges'!B32 ->  | M34: ='Calc|Charges'!C32 ->  | N34: ='Calc|Charges'!D32 ->  | O34: ='Calc|Charges'!F32 ->  | P34: ='Calc|Charges'!H32 -> 0 | Q34: 0 | R34: 0 | S34: 0 | T34: 0
A35: 24 | K35: 24 | L35: ='Calc|Charges'!B33 ->  | M35: ='Calc|Charges'!C33 ->  | N35: ='Calc|Charges'!D33 ->  | O35: ='Calc|Charges'!F33 ->  | P35: ='Calc|Charges'!H33 -> 0 | Q35: 0 | R35: 0 | S35: 0 | T35: 0
A36: 25 | K36: 25 | L36: ='Calc|Charges'!B34 ->  | M36: ='Calc|Charges'!C34 ->  | N36: ='Calc|Charges'!D34 ->  | O36: ='Calc|Charges'!F34 ->  | P36: ='Calc|Charges'!H34 -> 0 | Q36: 0 | R36: 0 | S36: 0 | T36: 0
A37: 26 | K37: 26 | L37: ='Calc|Charges'!B35 ->  | M37: ='Calc|Charges'!C35 ->  | N37: ='Calc|Charges'!D35 ->  | O37: ='Calc|Charges'!F35 ->  | P37: ='Calc|Charges'!H35 -> 0 | Q37: 0 | R37: 0 | S37: 0 | T37: 0
A38: 27 | K38: 27 | L38: ='Calc|Charges'!B36 ->  | M38: ='Calc|Charges'!C36 ->  | N38: ='Calc|Charges'!D36 ->  | O38: ='Calc|Charges'!F36 ->  | P38: ='Calc|Charges'!H36 -> 0 | Q38: 0 | R38: 0 | S38: 0 | T38: 0
A39: 28 | K39: 28 | L39: ='Calc|Charges'!B37 ->  | M39: ='Calc|Charges'!C37 ->  | N39: ='Calc|Charges'!D37 ->  | O39: ='Calc|Charges'!F37 ->  | P39: ='Calc|Charges'!H37 -> 0 | Q39: 0 | R39: 0 | S39: 0 | T39: 0
A40: 29 | K40: 29 | L40: ='Calc|Charges'!B38 ->  | M40: ='Calc|Charges'!C38 ->  | N40: ='Calc|Charges'!D38 ->  | O40: ='Calc|Charges'!F38 ->  | P40: ='Calc|Charges'!H38 -> 0 | Q40: 0 | R40: 0 | S40: 0 | T40: 0
A41: 30 | K41: 30 | L41: ='Calc|Charges'!B39 ->  | M41: ='Calc|Charges'!C39 ->  | N41: ='Calc|Charges'!D39 ->  | O41: ='Calc|Charges'!F39 ->  | P41: ='Calc|Charges'!H39 -> 0 | Q41: 0 | R41: 0 | S41: 0 | T41: 0
A42: 31 | K42: 31 | L42: ='Calc|Charges'!B40 ->  | M42: ='Calc|Charges'!C40 ->  | N42: ='Calc|Charges'!D40 ->  | O42: ='Calc|Charges'!F40 ->  | P42: ='Calc|Charges'!H40 -> 0 | Q42: 0 | R42: 0 | S42: 0 | T42: 0
A43: 32 | K43: 32 | L43: ='Calc|Charges'!B41 ->  | M43: ='Calc|Charges'!C41 ->  | N43: ='Calc|Charges'!D41 ->  | O43: ='Calc|Charges'!F41 ->  | P43: ='Calc|Charges'!H41 -> 0 | Q43: 0 | R43: 0 | S43: 0 | T43: 0
A44: 33 | K44: 33 | L44: ='Calc|Charges'!B42 ->  | M44: ='Calc|Charges'!C42 ->  | N44: ='Calc|Charges'!D42 ->  | O44: ='Calc|Charges'!F42 ->  | P44: ='Calc|Charges'!H42 -> 0 | Q44: 0 | R44: 0 | S44: 0 | T44: 0
A45: 34 | K45: 34 | L45: ='Calc|Charges'!B43 ->  | M45: ='Calc|Charges'!C43 ->  | N45: ='Calc|Charges'!D43 ->  | O45: ='Calc|Charges'!F43 ->  | P45: ='Calc|Charges'!H43 -> 0 | Q45: 0 | R45: 0 | S45: 0 | T45: 0
A46: 35 | K46: 35 | L46: ='Calc|Charges'!B44 ->  | M46: ='Calc|Charges'!C44 ->  | N46: ='Calc|Charges'!D44 ->  | O46: ='Calc|Charges'!F44 ->  | P46: ='Calc|Charges'!H44 -> 0 | Q46: 0 | R46: 0 | S46: 0 | T46: 0
A47: 36 | K47: 36 | L47: ='Calc|Charges'!B45 ->  | M47: ='Calc|Charges'!C45 ->  | N47: ='Calc|Charges'!D45 ->  | O47: ='Calc|Charges'!F45 ->  | P47: ='Calc|Charges'!H45 -> 0 | Q47: 0 | R47: 0 | S47: 0 | T47: 0
A48: 37 | K48: 37 | L48: ='Calc|Charges'!B46 ->  | M48: ='Calc|Charges'!C46 ->  | N48: ='Calc|Charges'!D46 ->  | O48: ='Calc|Charges'!F46 ->  | P48: ='Calc|Charges'!H46 -> 0 | Q48: 0 | R48: 0 | S48: 0 | T48: 0
A49: 38 | K49: 38 | L49: ='Calc|Charges'!B47 ->  | M49: ='Calc|Charges'!C47 ->  | N49: ='Calc|Charges'!D47 ->  | O49: ='Calc|Charges'!F47 ->  | P49: ='Calc|Charges'!H47 -> 0 | Q49: 0 | R49: 0 | S49: 0 | T49: 0
A50: 39 | K50: 39 | L50: ='Calc|Charges'!B48 ->  | M50: ='Calc|Charges'!C48 ->  | N50: ='Calc|Charges'!D48 ->  | O50: ='Calc|Charges'!F48 ->  | P50: ='Calc|Charges'!H48 -> 0 | Q50: 0 | R50: 0 | S50: 0 | T50: 0
A51: 40 | K51: 40 | L51: ='Calc|Charges'!B49 ->  | M51: ='Calc|Charges'!C49 ->  | N51: ='Calc|Charges'!D49 ->  | O51: ='Calc|Charges'!F49 ->  | P51: ='Calc|Charges'!H49 -> 0 | Q51: 0 | R51: 0 | S51: 0 | T51: 0
A52: 41 | K52: 41 | L52: ='Calc|Charges'!B50 ->  | M52: ='Calc|Charges'!C50 ->  | N52: ='Calc|Charges'!D50 ->  | O52: ='Calc|Charges'!F50 ->  | P52: ='Calc|Charges'!H50 -> 0 | Q52: =P52*(1+Q$5)*(1-Q$6) -> 0 | R52: 0 | S52: 0 | T52: 0
A53: 42 | K53: 42 | L53: ='Calc|Charges'!B51 ->  | M53: ='Calc|Charges'!C51 ->  | N53: ='Calc|Charges'!D51 ->  | O53: ='Calc|Charges'!F51 ->  | P53: ='Calc|Charges'!H51 -> 0 | Q53: 0 | R53: 0 | S53: 0 | T53: 0
A54: 43 | K54: 43 | L54: ='Calc|Charges'!B52 ->  | M54: ='Calc|Charges'!C52 ->  | N54: ='Calc|Charges'!D52 ->  | O54: ='Calc|Charges'!F52 ->  | P54: ='Calc|Charges'!H52 -> 0 | Q54: 0 | R54: 0 | S54: 0 | T54: 0
A55: 44 | K55: 44 | L55: ='Calc|Charges'!B53 ->  | M55: ='Calc|Charges'!C53 ->  | N55: ='Calc|Charges'!D53 ->  | O55: ='Calc|Charges'!F53 ->  | P55: ='Calc|Charges'!H53 -> 0 | Q55: 0 | R55: 0 | S55: 0 | T55: 0
A56: 45 | K56: 45 | L56: ='Calc|Charges'!B54 ->  | M56: ='Calc|Charges'!C54 ->  | N56: ='Calc|Charges'!D54 ->  | O56: ='Calc|Charges'!F54 ->  | P56: ='Calc|Charges'!H54 -> 0 | Q56: 0 | R56: 0 | S56: 0 | T56: 0
A57: 46 | K57: 46 | L57: ='Calc|Charges'!B55 ->  | M57: ='Calc|Charges'!C55 ->  | N57: ='Calc|Charges'!D55 ->  | O57: ='Calc|Charges'!F55 ->  | P57: ='Calc|Charges'!H55 -> 0 | Q57: 0 | R57: 0 | S57: 0 | T57: 0
A58: 47 | K58: 47 | L58: ='Calc|Charges'!B56 ->  | M58: ='Calc|Charges'!C56 ->  | N58: ='Calc|Charges'!D56 ->  | O58: ='Calc|Charges'!F56 ->  | P58: ='Calc|Charges'!H56 -> 0 | Q58: 0 | R58: 0 | S58: 0 | T58: 0
A59: 48 | K59: 48 | L59: ='Calc|Charges'!B57 ->  | M59: ='Calc|Charges'!C57 ->  | N59: ='Calc|Charges'!D57 ->  | O59: ='Calc|Charges'!F57 ->  | P59: ='Calc|Charges'!H57 -> 0 | Q59: 0 | R59: 0 | S59: 0 | T59: 0
A60: 49 | K60: 49 | L60: ='Calc|Charges'!B58 ->  | M60: ='Calc|Charges'!C58 ->  | N60: ='Calc|Charges'!D58 ->  | O60: ='Calc|Charges'!F58 ->  | P60: ='Calc|Charges'!H58 -> 0 | Q60: 0 | R60: 0 | S60: 0 | T60: 0
A61: 50 | K61: 50 | L61: ='Calc|Charges'!B59 ->  | M61: ='Calc|Charges'!C59 ->  | N61: ='Calc|Charges'!D59 ->  | O61: ='Calc|Charges'!F59 ->  | P61: ='Calc|Charges'!H59 -> 0 | Q61: 0 | R61: 0 | S61: 0 | T61: 0
A62: 51 | K62: 51 | L62: ='Calc|Charges'!B60 ->  | M62: ='Calc|Charges'!C60 ->  | N62: ='Calc|Charges'!D60 ->  | O62: ='Calc|Charges'!F60 ->  | P62: ='Calc|Charges'!H60 -> 0 | Q62: 0 | R62: 0 | S62: 0 | T62: 0
A63: 52 | K63: 52 | L63: ='Calc|Charges'!B61 ->  | M63: ='Calc|Charges'!C61 ->  | N63: ='Calc|Charges'!D61 ->  | O63: ='Calc|Charges'!F61 ->  | P63: ='Calc|Charges'!H61 -> 0 | Q63: 0 | R63: 0 | S63: 0 | T63: 0
A64: 53 | K64: 53 | L64: ='Calc|Charges'!B62 ->  | M64: ='Calc|Charges'!C62 ->  | N64: ='Calc|Charges'!D62 ->  | O64: ='Calc|Charges'!F62 ->  | P64: ='Calc|Charges'!H62 -> 0 | Q64: 0 | R64: 0 | S64: 0 | T64: 0
A65: 54 | K65: 54 | L65: ='Calc|Charges'!B63 ->  | M65: ='Calc|Charges'!C63 ->  | N65: ='Calc|Charges'!D63 ->  | O65: ='Calc|Charges'!F63 ->  | P65: ='Calc|Charges'!H63 -> 0 | Q65: 0 | R65: 0 | S65: 0 | T65: 0
A66: 55 | K66: 55 | L66: ='Calc|Charges'!B64 ->  | M66: ='Calc|Charges'!C64 ->  | N66: ='Calc|Charges'!D64 ->  | O66: ='Calc|Charges'!F64 ->  | P66: ='Calc|Charges'!H64 -> 0 | Q66: 0 | R66: 0 | S66: 0 | T66: 0
A67: 56 | K67: 56 | L67: ='Calc|Charges'!B65 ->  | M67: ='Calc|Charges'!C65 ->  | N67: ='Calc|Charges'!D65 ->  | O67: ='Calc|Charges'!F65 ->  | P67: ='Calc|Charges'!H65 -> 0 | Q67: 0 | R67: 0 | S67: 0 | T67: 0
A68: 57 | K68: 57 | L68: ='Calc|Charges'!B66 ->  | M68: ='Calc|Charges'!C66 ->  | N68: ='Calc|Charges'!D66 ->  | O68: ='Calc|Charges'!F66 ->  | P68: ='Calc|Charges'!H66 -> 0 | Q68: 0 | R68: 0 | S68: 0 | T68: 0
A69: 58 | K69: 58 | L69: ='Calc|Charges'!B67 ->  | M69: ='Calc|Charges'!C67 ->  | N69: ='Calc|Charges'!D67 ->  | O69: ='Calc|Charges'!F67 ->  | P69: ='Calc|Charges'!H67 -> 0 | Q69: 0 | R69: 0 | S69: 0 | T69: 0
A70: 59 | K70: 59 | L70: ='Calc|Charges'!B68 ->  | M70: ='Calc|Charges'!C68 ->  | N70: ='Calc|Charges'!D68 ->  | O70: ='Calc|Charges'!F68 ->  | P70: ='Calc|Charges'!H68 -> 0 | Q70: 0 | R70: 0 | S70: 0 | T70: 0
A71: 60 | K71: 60 | L71: ='Calc|Charges'!B69 ->  | M71: ='Calc|Charges'!C69 ->  | N71: ='Calc|Charges'!D69 ->  | O71: ='Calc|Charges'!F69 ->  | P71: ='Calc|Charges'!H69 -> 0 | Q71: 0 | R71: 0 | S71: 0 | T71: 0
A72: 61 | K72: 61 | L72: ='Calc|Charges'!B70 ->  | M72: ='Calc|Charges'!C70 ->  | N72: ='Calc|Charges'!D70 ->  | O72: ='Calc|Charges'!F70 ->  | P72: ='Calc|Charges'!H70 -> 0 | Q72: =P72*(1+Q$5)*(1-Q$6) -> 0 | R72: 0 | S72: 0 | T72: 0
A73: 62 | K73: 62 | L73: ='Calc|Charges'!B71 ->  | M73: ='Calc|Charges'!C71 ->  | N73: ='Calc|Charges'!D71 ->  | O73: ='Calc|Charges'!F71 ->  | P73: ='Calc|Charges'!H71 -> 0 | Q73: 0 | R73: 0 | S73: 0 | T73: 0
A74: 63 | K74: 63 | L74: ='Calc|Charges'!B72 ->  | M74: ='Calc|Charges'!C72 ->  | N74: ='Calc|Charges'!D72 ->  | O74: ='Calc|Charges'!F72 ->  | P74: ='Calc|Charges'!H72 -> 0 | Q74: 0 | R74: 0 | S74: 0 | T74: 0
A75: 64 | K75: 64 | L75: ='Calc|Charges'!B73 ->  | M75: ='Calc|Charges'!C73 ->  | N75: ='Calc|Charges'!D73 ->  | O75: ='Calc|Charges'!F73 ->  | P75: ='Calc|Charges'!H73 -> 0 | Q75: 0 | R75: 0 | S75: 0 | T75: 0
A76: 65 | K76: 65 | L76: ='Calc|Charges'!B74 ->  | M76: ='Calc|Charges'!C74 ->  | N76: ='Calc|Charges'!D74 ->  | O76: ='Calc|Charges'!F74 ->  | P76: ='Calc|Charges'!H74 -> 0 | Q76: 0 | R76: 0 | S76: 0 | T76: 0
A77: 66 | K77: 66 | L77: ='Calc|Charges'!B75 ->  | M77: ='Calc|Charges'!C75 ->  | N77: ='Calc|Charges'!D75 ->  | O77: ='Calc|Charges'!F75 ->  | P77: ='Calc|Charges'!H75 -> 0 | Q77: 0 | R77: 0 | S77: 0 | T77: 0
A78: =IFERROR(A77+1,"") -> 67 | K78: 67 | L78: ='Calc|Charges'!B76 ->  | M78: ='Calc|Charges'!C76 ->  | N78: ='Calc|Charges'!D76 ->  | O78: ='Calc|Charges'!F76 ->  | P78: ='Calc|Charges'!H76 -> 0 | Q78: 0 | R78: 0 | S78: 0 | T78: 0
A79: 68 | K79: =IFERROR(K78+1,"") -> 68 | L79: ='Calc|Charges'!B77 ->  | M79: ='Calc|Charges'!C77 ->  | N79: ='Calc|Charges'!D77 ->  | O79: ='Calc|Charges'!F77 ->  | P79: ='Calc|Charges'!H77 -> 0 | Q79: 0 | R79: 0 | S79: 0 | T79: 0
A80: 69 | K80: 69 | L80: ='Calc|Charges'!B78 ->  | M80: ='Calc|Charges'!C78 ->  | N80: ='Calc|Charges'!D78 ->  | O80: ='Calc|Charges'!F78 ->  | P80: ='Calc|Charges'!H78 -> 0 | Q80: 0 | R80: 0 | S80: 0 | T80: 0
A81: 70 | K81: 70 | L81: ='Calc|Charges'!B79 ->  | M81: ='Calc|Charges'!C79 ->  | N81: ='Calc|Charges'!D79 ->  | O81: ='Calc|Charges'!F79 ->  | P81: ='Calc|Charges'!H79 -> 0 | Q81: 0 | R81: 0 | S81: 0 | T81: 0
A82: 71 | K82: 71 | L82: ='Calc|Charges'!B80 ->  | M82: ='Calc|Charges'!C80 ->  | N82: ='Calc|Charges'!D80 ->  | O82: ='Calc|Charges'!F80 ->  | P82: ='Calc|Charges'!H80 -> 0 | Q82: 0 | R82: 0 | S82: 0 | T82: 0
A83: 72 | K83: 72 | L83: ='Calc|Charges'!B81 ->  | M83: ='Calc|Charges'!C81 ->  | N83: ='Calc|Charges'!D81 ->  | O83: ='Calc|Charges'!F81 ->  | P83: ='Calc|Charges'!H81 -> 0 | Q83: 0 | R83: 0 | S83: 0 | T83: 0
A84: 73 | K84: 73 | L84: ='Calc|Charges'!B82 ->  | M84: ='Calc|Charges'!C82 ->  | N84: ='Calc|Charges'!D82 ->  | O84: ='Calc|Charges'!F82 ->  | P84: ='Calc|Charges'!H82 -> 0 | Q84: 0 | R84: 0 | S84: 0 | T84: 0
A85: 74 | K85: 74 | L85: ='Calc|Charges'!B83 ->  | M85: ='Calc|Charges'!C83 ->  | N85: ='Calc|Charges'!D83 ->  | O85: ='Calc|Charges'!F83 ->  | P85: ='Calc|Charges'!H83 -> 0 | Q85: 0 | R85: 0 | S85: 0 | T85: 0
A86: 75 | K86: 75 | L86: ='Calc|Charges'!B84 ->  | M86: ='Calc|Charges'!C84 ->  | N86: ='Calc|Charges'!D84 ->  | O86: ='Calc|Charges'!F84 ->  | P86: ='Calc|Charges'!H84 -> 0 | Q86: 0 | R86: 0 | S86: 0 | T86: 0
A87: 76 | K87: 76 | L87: ='Calc|Charges'!B85 ->  | M87: ='Calc|Charges'!C85 ->  | N87: ='Calc|Charges'!D85 ->  | O87: ='Calc|Charges'!F85 ->  | P87: ='Calc|Charges'!H85 -> 0 | Q87: 0 | R87: 0 | S87: 0 | T87: 0
A88: 77 | K88: 77 | L88: ='Calc|Charges'!B86 ->  | M88: ='Calc|Charges'!C86 ->  | N88: ='Calc|Charges'!D86 ->  | O88: ='Calc|Charges'!F86 ->  | P88: ='Calc|Charges'!H86 -> 0 | Q88: 0 | R88: 0 | S88: 0 | T88: 0
A89: 78 | K89: 78 | L89: ='Calc|Charges'!B87 ->  | M89: ='Calc|Charges'!C87 ->  | N89: ='Calc|Charges'!D87 ->  | O89: ='Calc|Charges'!F87 ->  | P89: ='Calc|Charges'!H87 -> 0 | Q89: 0 | R89: 0 | S89: 0 | T89: 0
A90: 79 | K90: 79 | L90: ='Calc|Charges'!B88 ->  | M90: ='Calc|Charges'!C88 ->  | N90: ='Calc|Charges'!D88 ->  | O90: ='Calc|Charges'!F88 ->  | P90: ='Calc|Charges'!H88 -> 0 | Q90: 0 | R90: 0 | S90: 0 | T90: 0
A91: 80 | K91: 80 | L91: ='Calc|Charges'!B89 ->  | M91: ='Calc|Charges'!C89 ->  | N91: ='Calc|Charges'!D89 ->  | O91: ='Calc|Charges'!F89 ->  | P91: ='Calc|Charges'!H89 -> 0 | Q91: 0 | R91: 0 | S91: 0 | T91: 0
A92: 81 | K92: 81 | L92: ='Calc|Charges'!B90 ->  | M92: ='Calc|Charges'!C90 ->  | N92: ='Calc|Charges'!D90 ->  | O92: ='Calc|Charges'!F90 ->  | P92: ='Calc|Charges'!H90 -> 0 | Q92: =P92*(1+Q$5)*(1-Q$6) -> 0 | R92: 0 | S92: 0 | T92: 0
A93: 82 | K93: 82 | L93: ='Calc|Charges'!B91 ->  | M93: ='Calc|Charges'!C91 ->  | N93: ='Calc|Charges'!D91 ->  | O93: ='Calc|Charges'!F91 ->  | P93: ='Calc|Charges'!H91 -> 0 | Q93: 0 | R93: 0 | S93: 0 | T93: 0
A94: 83 | K94: 83 | L94: ='Calc|Charges'!B92 ->  | M94: ='Calc|Charges'!C92 ->  | N94: ='Calc|Charges'!D92 ->  | O94: ='Calc|Charges'!F92 ->  | P94: ='Calc|Charges'!H92 -> 0 | Q94: 0 | R94: 0 | S94: 0 | T94: 0
A95: 84 | K95: 84 | L95: ='Calc|Charges'!B93 ->  | M95: ='Calc|Charges'!C93 ->  | N95: ='Calc|Charges'!D93 ->  | O95: ='Calc|Charges'!F93 ->  | P95: ='Calc|Charges'!H93 -> 0 | Q95: 0 | R95: 0 | S95: 0 | T95: 0
A96: 85 | K96: 85 | L96: ='Calc|Charges'!B94 ->  | M96: ='Calc|Charges'!C94 ->  | N96: ='Calc|Charges'!D94 ->  | O96: ='Calc|Charges'!F94 ->  | P96: ='Calc|Charges'!H94 -> 0 | Q96: 0 | R96: 0 | S96: 0 | T96: 0
A97: 86 | K97: 86 | L97: ='Calc|Charges'!B95 ->  | M97: ='Calc|Charges'!C95 ->  | N97: ='Calc|Charges'!D95 ->  | O97: ='Calc|Charges'!F95 ->  | P97: ='Calc|Charges'!H95 -> 0 | Q97: 0 | R97: 0 | S97: 0 | T97: 0
A98: 87 | K98: 87 | L98: ='Calc|Charges'!B96 ->  | M98: ='Calc|Charges'!C96 ->  | N98: ='Calc|Charges'!D96 ->  | O98: ='Calc|Charges'!F96 ->  | P98: ='Calc|Charges'!H96 -> 0 | Q98: 0 | R98: 0 | S98: 0 | T98: 0
A99: 88 | K99: 88 | L99: ='Calc|Charges'!B97 ->  | M99: ='Calc|Charges'!C97 ->  | N99: ='Calc|Charges'!D97 ->  | O99: ='Calc|Charges'!F97 ->  | P99: ='Calc|Charges'!H97 -> 0 | Q99: 0 | R99: 0 | S99: 0 | T99: 0
A100: 89 | K100: 89 | L100: ='Calc|Charges'!B98 ->  | M100: ='Calc|Charges'!C98 ->  | N100: ='Calc|Charges'!D98 ->  | O100: ='Calc|Charges'!F98 ->  | P100: ='Calc|Charges'!H98 -> 0 | Q100: 0 | R100: 0 | S100: 0 | T100: 0
A101: 90 | K101: 90 | L101: ='Calc|Charges'!B99 ->  | M101: ='Calc|Charges'!C99 ->  | N101: ='Calc|Charges'!D99 ->  | O101: ='Calc|Charges'!F99 ->  | P101: ='Calc|Charges'!H99 -> 0 | Q101: 0 | R101: 0 | S101: 0 | T101: 0
A102: 91 | K102: 91 | L102: ='Calc|Charges'!B100 ->  | M102: ='Calc|Charges'!C100 ->  | N102: ='Calc|Charges'!D100 ->  | O102: ='Calc|Charges'!F100 ->  | P102: ='Calc|Charges'!H100 -> 0 | Q102: 0 | R102: 0 | S102: 0 | T102: 0
A103: 92 | K103: 92 | L103: ='Calc|Charges'!B101 ->  | M103: ='Calc|Charges'!C101 ->  | N103: ='Calc|Charges'!D101 ->  | O103: ='Calc|Charges'!F101 ->  | P103: ='Calc|Charges'!H101 -> 0 | Q103: 0 | R103: 0 | S103: 0 | T103: 0
A104: 93 | K104: 93 | L104: ='Calc|Charges'!B102 ->  | M104: ='Calc|Charges'!C102 ->  | N104: ='Calc|Charges'!D102 ->  | O104: ='Calc|Charges'!F102 ->  | P104: ='Calc|Charges'!H102 -> 0 | Q104: 0 | R104: 0 | S104: 0 | T104: 0
A105: 94 | K105: 94 | L105: ='Calc|Charges'!B103 ->  | M105: ='Calc|Charges'!C103 ->  | N105: ='Calc|Charges'!D103 ->  | O105: ='Calc|Charges'!F103 ->  | P105: ='Calc|Charges'!H103 -> 0 | Q105: 0 | R105: 0 | S105: 0 | T105: 0
A106: 95 | K106: 95 | L106: ='Calc|Charges'!B104 ->  | M106: ='Calc|Charges'!C104 ->  | N106: ='Calc|Charges'!D104 ->  | O106: ='Calc|Charges'!F104 ->  | P106: ='Calc|Charges'!H104 -> 0 | Q106: 0 | R106: 0 | S106: 0 | T106: 0
A107: 96 | K107: 96 | L107: ='Calc|Charges'!B105 ->  | M107: ='Calc|Charges'!C105 ->  | N107: ='Calc|Charges'!D105 ->  | O107: ='Calc|Charges'!F105 ->  | P107: ='Calc|Charges'!H105 -> 0 | Q107: 0 | R107: 0 | S107: 0 | T107: 0
A108: 97 | K108: 97 | L108: ='Calc|Charges'!B106 ->  | M108: ='Calc|Charges'!C106 ->  | N108: ='Calc|Charges'!D106 ->  | O108: ='Calc|Charges'!F106 ->  | P108: ='Calc|Charges'!H106 -> 0 | Q108: 0 | R108: 0 | S108: 0 | T108: 0
A109: 98 | K109: 98 | L109: ='Calc|Charges'!B107 ->  | M109: ='Calc|Charges'!C107 ->  | N109: ='Calc|Charges'!D107 ->  | O109: ='Calc|Charges'!F107 ->  | P109: ='Calc|Charges'!H107 -> 0 | Q109: 0 | R109: 0 | S109: 0 | T109: 0
A110: 99 | K110: 99 | L110: ='Calc|Charges'!B108 ->  | M110: ='Calc|Charges'!C108 ->  | N110: ='Calc|Charges'!D108 ->  | O110: ='Calc|Charges'!F108 ->  | P110: ='Calc|Charges'!H108 -> 0 | Q110: 0 | R110: 0 | S110: 0 | T110: 0
A111: 100 | K111: 100 | L111: ='Calc|Charges'!B109 ->  | M111: ='Calc|Charges'!C109 ->  | N111: ='Calc|Charges'!D109 ->  | O111: ='Calc|Charges'!F109 ->  | P111: ='Calc|Charges'!H109 -> 0 | Q111: 0 | R111: 0 | S111: 0 | T111: 0
A112: 101 | K112: 101 | L112: ='Calc|Charges'!B110 ->  | M112: ='Calc|Charges'!C110 ->  | N112: ='Calc|Charges'!D110 ->  | O112: ='Calc|Charges'!F110 ->  | P112: ='Calc|Charges'!H110 -> 0 | Q112: 0 | R112: 0 | S112: 0 | T112: 0
A113: 102 | K113: 102 | L113: ='Calc|Charges'!B111 ->  | M113: ='Calc|Charges'!C111 ->  | N113: ='Calc|Charges'!D111 ->  | O113: ='Calc|Charges'!F111 ->  | P113: ='Calc|Charges'!H111 -> 0 | Q113: =P113*(1+Q$5)*(1-Q$6) -> 0 | R113: 0 | S113: 0 | T113: 0
A114: 103 | K114: 103 | L114: ='Calc|Charges'!B112 ->  | M114: ='Calc|Charges'!C112 ->  | N114: ='Calc|Charges'!D112 ->  | O114: ='Calc|Charges'!F112 ->  | P114: ='Calc|Charges'!H112 -> 0 | Q114: 0 | R114: 0 | S114: 0 | T114: 0
A115: 104 | K115: 104 | L115: ='Calc|Charges'!B113 ->  | M115: ='Calc|Charges'!C113 ->  | N115: ='Calc|Charges'!D113 ->  | O115: ='Calc|Charges'!F113 ->  | P115: ='Calc|Charges'!H113 -> 0 | Q115: 0 | R115: 0 | S115: 0 | T115: 0
A116: 105 | K116: 105 | L116: ='Calc|Charges'!B114 ->  | M116: ='Calc|Charges'!C114 ->  | N116: ='Calc|Charges'!D114 ->  | O116: ='Calc|Charges'!F114 ->  | P116: ='Calc|Charges'!H114 -> 0 | Q116: 0 | R116: 0 | S116: 0 | T116: 0
A117: 106 | K117: 106 | L117: ='Calc|Charges'!B115 ->  | M117: ='Calc|Charges'!C115 ->  | N117: ='Calc|Charges'!D115 ->  | O117: ='Calc|Charges'!F115 ->  | P117: ='Calc|Charges'!H115 -> 0 | Q117: 0 | R117: 0 | S117: 0 | T117: 0
A118: 107 | K118: 107 | L118: ='Calc|Charges'!B116 ->  | M118: ='Calc|Charges'!C116 ->  | N118: ='Calc|Charges'!D116 ->  | O118: ='Calc|Charges'!F116 ->  | P118: ='Calc|Charges'!H116 -> 0 | Q118: 0 | R118: 0 | S118: 0 | T118: 0
A119: 108 | K119: 108 | L119: ='Calc|Charges'!B117 ->  | M119: ='Calc|Charges'!C117 ->  | N119: ='Calc|Charges'!D117 ->  | O119: ='Calc|Charges'!F117 ->  | P119: ='Calc|Charges'!H117 -> 0 | Q119: 0 | R119: 0 | S119: 0 | T119: 0
A120: 109 | K120: 109 | L120: ='Calc|Charges'!B118 ->  | M120: ='Calc|Charges'!C118 ->  | N120: ='Calc|Charges'!D118 ->  | O120: ='Calc|Charges'!F118 ->  | P120: ='Calc|Charges'!H118 -> 0 | Q120: 0 | R120: 0 | S120: 0 | T120: 0
A121: 110 | K121: 110 | L121: ='Calc|Charges'!B119 ->  | M121: ='Calc|Charges'!C119 ->  | N121: ='Calc|Charges'!D119 ->  | O121: ='Calc|Charges'!F119 ->  | P121: ='Calc|Charges'!H119 -> 0 | Q121: 0 | R121: 0 | S121: 0 | T121: 0
A122: 111 | K122: 111 | L122: ='Calc|Charges'!B120 ->  | M122: ='Calc|Charges'!C120 ->  | N122: ='Calc|Charges'!D120 ->  | O122: ='Calc|Charges'!F120 ->  | P122: ='Calc|Charges'!H120 -> 0 | Q122: 0 | R122: 0 | S122: 0 | T122: 0
A123: 112 | K123: 112 | L123: ='Calc|Charges'!B121 ->  | M123: ='Calc|Charges'!C121 ->  | N123: ='Calc|Charges'!D121 ->  | O123: ='Calc|Charges'!F121 ->  | P123: ='Calc|Charges'!H121 -> 0 | Q123: 0 | R123: 0 | S123: 0 | T123: 0
A124: 113 | K124: 113 | L124: ='Calc|Charges'!B122 ->  | M124: ='Calc|Charges'!C122 ->  | N124: ='Calc|Charges'!D122 ->  | O124: ='Calc|Charges'!F122 ->  | P124: ='Calc|Charges'!H122 -> 0 | Q124: 0 | R124: 0 | S124: 0 | T124: 0
A125: 114 | K125: 114 | L125: ='Calc|Charges'!B123 ->  | M125: ='Calc|Charges'!C123 ->  | N125: ='Calc|Charges'!D123 ->  | O125: ='Calc|Charges'!F123 ->  | P125: ='Calc|Charges'!H123 -> 0 | Q125: 0 | R125: 0 | S125: 0 | T125: 0
A126: 115 | K126: 115 | L126: ='Calc|Charges'!B124 ->  | M126: ='Calc|Charges'!C124 ->  | N126: ='Calc|Charges'!D124 ->  | O126: ='Calc|Charges'!F124 ->  | P126: ='Calc|Charges'!H124 -> 0 | Q126: 0 | R126: 0 | S126: 0 | T126: 0
A127: 116 | K127: 116 | L127: ='Calc|Charges'!B125 ->  | M127: ='Calc|Charges'!C125 ->  | N127: ='Calc|Charges'!D125 ->  | O127: ='Calc|Charges'!F125 ->  | P127: ='Calc|Charges'!H125 -> 0 | Q127: 0 | R127: 0 | S127: 0 | T127: 0
A128: 117 | K128: 117 | L128: ='Calc|Charges'!B126 ->  | M128: ='Calc|Charges'!C126 ->  | N128: ='Calc|Charges'!D126 ->  | O128: ='Calc|Charges'!F126 ->  | P128: ='Calc|Charges'!H126 -> 0 | Q128: 0 | R128: 0 | S128: 0 | T128: 0
A129: 118 | K129: 118 | L129: ='Calc|Charges'!B127 ->  | M129: ='Calc|Charges'!C127 ->  | N129: ='Calc|Charges'!D127 ->  | O129: ='Calc|Charges'!F127 ->  | P129: ='Calc|Charges'!H127 -> 0 | Q129: 0 | R129: 0 | S129: 0 | T129: 0
A130: 119 | K130: 119 | L130: ='Calc|Charges'!B128 ->  | M130: ='Calc|Charges'!C128 ->  | N130: ='Calc|Charges'!D128 ->  | O130: ='Calc|Charges'!F128 ->  | P130: ='Calc|Charges'!H128 -> 0 | Q130: 0 | R130: 0 | S130: 0 | T130: 0
A131: 120 | K131: 120 | L131: ='Calc|Charges'!B129 ->  | M131: ='Calc|Charges'!C129 ->  | N131: ='Calc|Charges'!D129 ->  | O131: ='Calc|Charges'!F129 ->  | P131: ='Calc|Charges'!H129 -> 0 | Q131: 0 | R131: 0 | S131: 0 | T131: 0
A132: 121 | K132: 121 | L132: ='Calc|Charges'!B130 ->  | M132: ='Calc|Charges'!C130 ->  | N132: ='Calc|Charges'!D130 ->  | O132: ='Calc|Charges'!F130 ->  | P132: ='Calc|Charges'!H130 -> 0 | Q132: 0 | R132: 0 | S132: 0 | T132: 0
A133: 122 | K133: 122 | L133: ='Calc|Charges'!B131 ->  | M133: ='Calc|Charges'!C131 ->  | N133: ='Calc|Charges'!D131 ->  | O133: ='Calc|Charges'!F131 ->  | P133: ='Calc|Charges'!H131 -> 0 | Q133: 0 | R133: 0 | S133: 0 | T133: 0
A134: 123 | K134: 123 | L134: ='Calc|Charges'!B132 ->  | M134: ='Calc|Charges'!C132 ->  | N134: ='Calc|Charges'!D132 ->  | O134: ='Calc|Charges'!F132 ->  | P134: ='Calc|Charges'!H132 -> 0 | Q134: 0 | R134: 0 | S134: 0 | T134: 0
A135: 124 | K135: 124 | L135: ='Calc|Charges'!B133 ->  | M135: ='Calc|Charges'!C133 ->  | N135: ='Calc|Charges'!D133 ->  | O135: ='Calc|Charges'!F133 ->  | P135: ='Calc|Charges'!H133 -> 0 | Q135: 0 | R135: 0 | S135: 0 | T135: 0
A136: 125 | K136: 125 | L136: ='Calc|Charges'!B134 ->  | M136: ='Calc|Charges'!C134 ->  | N136: ='Calc|Charges'!D134 ->  | O136: ='Calc|Charges'!F134 ->  | P136: ='Calc|Charges'!H134 -> 0 | Q136: 0 | R136: 0 | S136: 0 | T136: 0
A137: 126 | K137: 126 | L137: ='Calc|Charges'!B135 ->  | M137: ='Calc|Charges'!C135 ->  | N137: ='Calc|Charges'!D135 ->  | O137: ='Calc|Charges'!F135 ->  | P137: ='Calc|Charges'!H135 -> 0 | Q137: 0 | R137: 0 | S137: 0 | T137: 0
A138: 127 | K138: 127 | L138: ='Calc|Charges'!B136 ->  | M138: ='Calc|Charges'!C136 ->  | N138: ='Calc|Charges'!D136 ->  | O138: ='Calc|Charges'!F136 ->  | P138: ='Calc|Charges'!H136 -> 0 | Q138: 0 | R138: 0 | S138: 0 | T138: 0
A139: 128 | K139: 128 | L139: ='Calc|Charges'!B137 ->  | M139: ='Calc|Charges'!C137 ->  | N139: ='Calc|Charges'!D137 ->  | O139: ='Calc|Charges'!F137 ->  | P139: ='Calc|Charges'!H137 -> 0 | Q139: 0 | R139: 0 | S139: 0 | T139: 0
A140: 129 | K140: 129 | L140: ='Calc|Charges'!B138 ->  | M140: ='Calc|Charges'!C138 ->  | N140: ='Calc|Charges'!D138 ->  | O140: ='Calc|Charges'!F138 ->  | P140: ='Calc|Charges'!H138 -> 0 | Q140: 0 | R140: 0 | S140: 0 | T140: 0
A141: 130 | K141: 130 | L141: ='Calc|Charges'!B139 ->  | M141: ='Calc|Charges'!C139 ->  | N141: ='Calc|Charges'!D139 ->  | O141: ='Calc|Charges'!F139 ->  | P141: ='Calc|Charges'!H139 -> 0 | Q141: 0 | R141: 0 | S141: 0 | T141: 0
A142: 131 | K142: 131 | L142: ='Calc|Charges'!B140 ->  | M142: ='Calc|Charges'!C140 ->  | N142: ='Calc|Charges'!D140 ->  | O142: ='Calc|Charges'!F140 ->  | P142: ='Calc|Charges'!H140 -> 0 | Q142: 0 | R142: 0 | S142: 0 | T142: 0
A143: 132 | K143: 132 | L143: ='Calc|Charges'!B141 ->  | M143: ='Calc|Charges'!C141 ->  | N143: ='Calc|Charges'!D141 ->  | O143: ='Calc|Charges'!F141 ->  | P143: ='Calc|Charges'!H141 -> 0 | Q143: 0 | R143: 0 | S143: 0 | T143: 0
A144: 133 | K144: 133 | L144: ='Calc|Charges'!B142 ->  | M144: ='Calc|Charges'!C142 ->  | N144: ='Calc|Charges'!D142 ->  | O144: ='Calc|Charges'!F142 ->  | P144: ='Calc|Charges'!H142 -> 0 | Q144: 0 | R144: 0 | S144: 0 | T144: 0
A145: 134 | K145: 134 | L145: ='Calc|Charges'!B143 ->  | M145: ='Calc|Charges'!C143 ->  | N145: ='Calc|Charges'!D143 ->  | O145: ='Calc|Charges'!F143 ->  | P145: ='Calc|Charges'!H143 -> 0 | Q145: 0 | R145: 0 | S145: 0 | T145: 0
A146: 135 | K146: 135 | L146: ='Calc|Charges'!B144 ->  | M146: ='Calc|Charges'!C144 ->  | N146: ='Calc|Charges'!D144 ->  | O146: ='Calc|Charges'!F144 ->  | P146: ='Calc|Charges'!H144 -> 0 | Q146: 0 | R146: 0 | S146: 0 | T146: 0
A147: 136 | K147: 136 | L147: ='Calc|Charges'!B145 ->  | M147: ='Calc|Charges'!C145 ->  | N147: ='Calc|Charges'!D145 ->  | O147: ='Calc|Charges'!F145 ->  | P147: ='Calc|Charges'!H145 -> 0 | Q147: 0 | R147: 0 | S147: 0 | T147: 0
A148: 137 | K148: 137 | L148: ='Calc|Charges'!B146 ->  | M148: ='Calc|Charges'!C146 ->  | N148: ='Calc|Charges'!D146 ->  | O148: ='Calc|Charges'!F146 ->  | P148: ='Calc|Charges'!H146 -> 0 | Q148: 0 | R148: 0 | S148: 0 | T148: 0
A149: 138 | K149: 138 | L149: ='Calc|Charges'!B147 ->  | M149: ='Calc|Charges'!C147 ->  | N149: ='Calc|Charges'!D147 ->  | O149: ='Calc|Charges'!F147 ->  | P149: ='Calc|Charges'!H147 -> 0 | Q149: 0 | R149: 0 | S149: 0 | T149: 0
A150: 139 | K150: 139 | L150: ='Calc|Charges'!B148 ->  | M150: ='Calc|Charges'!C148 ->  | N150: ='Calc|Charges'!D148 ->  | O150: ='Calc|Charges'!F148 ->  | P150: ='Calc|Charges'!H148 -> 0 | Q150: 0 | R150: 0 | S150: 0 | T150: 0
A151: 140 | K151: 140 | L151: ='Calc|Charges'!B149 ->  | M151: ='Calc|Charges'!C149 ->  | N151: ='Calc|Charges'!D149 ->  | O151: ='Calc|Charges'!F149 ->  | P151: ='Calc|Charges'!H149 -> 0 | Q151: 0 | R151: 0 | S151: 0 | T151: 0
A152: 141 | K152: 141 | L152: ='Calc|Charges'!B150 ->  | M152: ='Calc|Charges'!C150 ->  | N152: ='Calc|Charges'!D150 ->  | O152: ='Calc|Charges'!F150 ->  | P152: ='Calc|Charges'!H150 -> 0 | Q152: 0 | R152: 0 | S152: 0 | T152: 0
A153: 142 | K153: 142 | L153: ='Calc|Charges'!B151 ->  | M153: ='Calc|Charges'!C151 ->  | N153: ='Calc|Charges'!D151 ->  | O153: ='Calc|Charges'!F151 ->  | P153: ='Calc|Charges'!H151 -> 0 | Q153: 0 | R153: 0 | S153: 0 | T153: 0
A154: 143 | K154: 143 | L154: ='Calc|Charges'!B152 ->  | M154: ='Calc|Charges'!C152 ->  | N154: ='Calc|Charges'!D152 ->  | O154: ='Calc|Charges'!F152 ->  | P154: ='Calc|Charges'!H152 -> 0 | Q154: 0 | R154: 0 | S154: 0 | T154: 0
A155: 144 | K155: 144 | L155: ='Calc|Charges'!B153 ->  | M155: ='Calc|Charges'!C153 ->  | N155: ='Calc|Charges'!D153 ->  | O155: ='Calc|Charges'!F153 ->  | P155: ='Calc|Charges'!H153 -> 0 | Q155: 0 | R155: 0 | S155: 0 | T155: 0
A156: 145 | K156: 145 | L156: ='Calc|Charges'!B154 ->  | M156: ='Calc|Charges'!C154 ->  | N156: ='Calc|Charges'!D154 ->  | O156: ='Calc|Charges'!F154 ->  | P156: ='Calc|Charges'!H154 -> 0 | Q156: 0 | R156: 0 | S156: 0 | T156: 0
A157: 146 | K157: 146 | L157: ='Calc|Charges'!B155 ->  | M157: ='Calc|Charges'!C155 ->  | N157: ='Calc|Charges'!D155 ->  | O157: ='Calc|Charges'!F155 ->  | P157: ='Calc|Charges'!H155 -> 0 | Q157: 0 | R157: 0 | S157: 0 | T157: 0
A158: 147 | K158: 147 | L158: ='Calc|Charges'!B156 ->  | M158: ='Calc|Charges'!C156 ->  | N158: ='Calc|Charges'!D156 ->  | O158: ='Calc|Charges'!F156 ->  | P158: ='Calc|Charges'!H156 -> 0 | Q158: 0 | R158: 0 | S158: 0 | T158: 0
A159: 148 | K159: 148 | L159: ='Calc|Charges'!B157 ->  | M159: ='Calc|Charges'!C157 ->  | N159: ='Calc|Charges'!D157 ->  | O159: ='Calc|Charges'!F157 ->  | P159: ='Calc|Charges'!H157 -> 0 | Q159: 0 | R159: 0 | S159: 0 | T159: 0
A160: 149 | K160: 149 | L160: ='Calc|Charges'!B158 ->  | M160: ='Calc|Charges'!C158 ->  | N160: ='Calc|Charges'!D158 ->  | O160: ='Calc|Charges'!F158 ->  | P160: ='Calc|Charges'!H158 -> 0 | Q160: 0 | R160: 0 | S160: 0 | T160: 0
A161: 150 | K161: 150 | L161: ='Calc|Charges'!B159 ->  | M161: ='Calc|Charges'!C159 ->  | N161: ='Calc|Charges'!D159 ->  | O161: ='Calc|Charges'!F159 ->  | P161: ='Calc|Charges'!H159 -> 0 | Q161: 0 | R161: 0 | S161: 0 | T161: 0
A162: 151 | K162: 151 | L162: ='Calc|Charges'!B160 ->  | M162: ='Calc|Charges'!C160 ->  | N162: ='Calc|Charges'!D160 ->  | O162: ='Calc|Charges'!F160 ->  | P162: ='Calc|Charges'!H160 -> 0 | Q162: 0 | R162: 0 | S162: 0 | T162: 0
A163: 152 | K163: 152 | L163: ='Calc|Charges'!B161 ->  | M163: ='Calc|Charges'!C161 ->  | N163: ='Calc|Charges'!D161 ->  | O163: ='Calc|Charges'!F161 ->  | P163: ='Calc|Charges'!H161 -> 0 | Q163: 0 | R163: 0 | S163: 0 | T163: 0
A164: 153 | K164: 153 | L164: ='Calc|Charges'!B162 ->  | M164: ='Calc|Charges'!C162 ->  | N164: ='Calc|Charges'!D162 ->  | O164: ='Calc|Charges'!F162 ->  | P164: ='Calc|Charges'!H162 -> 0 | Q164: 0 | R164: 0 | S164: 0 | T164: 0
A165: 154 | K165: 154 | L165: ='Calc|Charges'!B163 ->  | M165: ='Calc|Charges'!C163 ->  | N165: ='Calc|Charges'!D163 ->  | O165: ='Calc|Charges'!F163 ->  | P165: ='Calc|Charges'!H163 -> 0 | Q165: 0 | R165: 0 | S165: 0 | T165: 0
A166: 155 | K166: 155 | L166: ='Calc|Charges'!B164 ->  | M166: ='Calc|Charges'!C164 ->  | N166: ='Calc|Charges'!D164 ->  | O166: ='Calc|Charges'!F164 ->  | P166: ='Calc|Charges'!H164 -> 0 | Q166: 0 | R166: 0 | S166: 0 | T166: 0
A167: 156 | K167: 156 | L167: ='Calc|Charges'!B165 ->  | M167: ='Calc|Charges'!C165 ->  | N167: ='Calc|Charges'!D165 ->  | O167: ='Calc|Charges'!F165 ->  | P167: ='Calc|Charges'!H165 -> 0 | Q167: 0 | R167: 0 | S167: 0 | T167: 0
A168: 157 | K168: 157 | L168: ='Calc|Charges'!B166 ->  | M168: ='Calc|Charges'!C166 ->  | N168: ='Calc|Charges'!D166 ->  | O168: ='Calc|Charges'!F166 ->  | P168: ='Calc|Charges'!H166 -> 0 | Q168: 0 | R168: 0 | S168: 0 | T168: 0
A169: 158 | K169: 158 | L169: ='Calc|Charges'!B167 ->  | M169: ='Calc|Charges'!C167 ->  | N169: ='Calc|Charges'!D167 ->  | O169: ='Calc|Charges'!F167 ->  | P169: ='Calc|Charges'!H167 -> 0 | Q169: 0 | R169: 0 | S169: 0 | T169: 0
A170: 159 | K170: 159 | L170: ='Calc|Charges'!B168 ->  | M170: ='Calc|Charges'!C168 ->  | N170: ='Calc|Charges'!D168 ->  | O170: ='Calc|Charges'!F168 ->  | P170: ='Calc|Charges'!H168 -> 0 | Q170: 0 | R170: 0 | S170: 0 | T170: 0
A171: 160 | K171: 160 | L171: ='Calc|Charges'!B169 ->  | M171: ='Calc|Charges'!C169 ->  | N171: ='Calc|Charges'!D169 ->  | O171: ='Calc|Charges'!F169 ->  | P171: ='Calc|Charges'!H169 -> 0 | Q171: 0 | R171: 0 | S171: 0 | T171: 0
A172: 161 | K172: 161 | L172: ='Calc|Charges'!B170 ->  | M172: ='Calc|Charges'!C170 ->  | N172: ='Calc|Charges'!D170 ->  | O172: ='Calc|Charges'!F170 ->  | P172: ='Calc|Charges'!H170 -> 0 | Q172: 0 | R172: 0 | S172: 0 | T172: 0
A173: 162 | K173: 162 | L173: ='Calc|Charges'!B171 ->  | M173: ='Calc|Charges'!C171 ->  | N173: ='Calc|Charges'!D171 ->  | O173: ='Calc|Charges'!F171 ->  | P173: ='Calc|Charges'!H171 -> 0 | Q173: 0 | R173: 0 | S173: 0 | T173: 0
A174: 163 | K174: 163 | L174: ='Calc|Charges'!B172 ->  | M174: ='Calc|Charges'!C172 ->  | N174: ='Calc|Charges'!D172 ->  | O174: ='Calc|Charges'!F172 ->  | P174: ='Calc|Charges'!H172 -> 0 | Q174: 0 | R174: 0 | S174: 0 | T174: 0
A175: 164 | K175: 164 | L175: ='Calc|Charges'!B173 ->  | M175: ='Calc|Charges'!C173 ->  | N175: ='Calc|Charges'!D173 ->  | O175: ='Calc|Charges'!F173 ->  | P175: ='Calc|Charges'!H173 -> 0 | Q175: 0 | R175: 0 | S175: 0 | T175: 0
A176: 165 | K176: 165 | L176: ='Calc|Charges'!B174 ->  | M176: ='Calc|Charges'!C174 ->  | N176: ='Calc|Charges'!D174 ->  | O176: ='Calc|Charges'!F174 ->  | P176: ='Calc|Charges'!H174 -> 0 | Q176: 0 | R176: 0 | S176: 0 | T176: =S176*(1+T$5)*(1-T$6) -> 0
A177: 166 | K177: 166 | L177: ='Calc|Charges'!B175 ->  | M177: ='Calc|Charges'!C175 ->  | N177: ='Calc|Charges'!D175 ->  | O177: ='Calc|Charges'!F175 ->  | P177: ='Calc|Charges'!H175 -> 0 | Q177: =P177*(1+Q$5)*(1-Q$6) -> 0 | R177: 0 | S177: 0 | T177: 0
A178: 167 | K178: 167 | L178: ='Calc|Charges'!B176 ->  | M178: ='Calc|Charges'!C176 ->  | N178: ='Calc|Charges'!D176 ->  | O178: ='Calc|Charges'!F176 ->  | P178: ='Calc|Charges'!H176 -> 0 | Q178: 0 | R178: 0 | S178: 0 | T178: 0
A179: 168 | K179: 168 | L179: ='Calc|Charges'!B177 ->  | M179: ='Calc|Charges'!C177 ->  | N179: ='Calc|Charges'!D177 ->  | O179: ='Calc|Charges'!F177 ->  | P179: ='Calc|Charges'!H177 -> 0 | Q179: 0 | R179: 0 | S179: 0 | T179: 0
A180: 169 | K180: 169 | L180: ='Calc|Charges'!B178 ->  | M180: ='Calc|Charges'!C178 ->  | N180: ='Calc|Charges'!D178 ->  | O180: ='Calc|Charges'!F178 ->  | P180: ='Calc|Charges'!H178 -> 0 | Q180: 0 | R180: 0 | S180: 0 | T180: 0
A181: 170 | K181: 170 | L181: ='Calc|Charges'!B179 ->  | M181: ='Calc|Charges'!C179 ->  | N181: ='Calc|Charges'!D179 ->  | O181: ='Calc|Charges'!F179 ->  | P181: ='Calc|Charges'!H179 -> 0 | Q181: 0 | R181: 0 | S181: 0 | T181: 0
A182: 171 | K182: 171 | L182: ='Calc|Charges'!B180 ->  | M182: ='Calc|Charges'!C180 ->  | N182: ='Calc|Charges'!D180 ->  | O182: ='Calc|Charges'!F180 ->  | P182: ='Calc|Charges'!H180 -> 0 | Q182: 0 | R182: 0 | S182: 0 | T182: 0
A183: 172 | K183: 172 | L183: ='Calc|Charges'!B181 ->  | M183: ='Calc|Charges'!C181 ->  | N183: ='Calc|Charges'!D181 ->  | O183: ='Calc|Charges'!F181 ->  | P183: ='Calc|Charges'!H181 -> 0 | Q183: 0 | R183: 0 | S183: 0 | T183: 0
A184: 173 | K184: 173 | L184: ='Calc|Charges'!B182 ->  | M184: ='Calc|Charges'!C182 ->  | N184: ='Calc|Charges'!D182 ->  | O184: ='Calc|Charges'!F182 ->  | P184: ='Calc|Charges'!H182 -> 0 | Q184: 0 | R184: 0 | S184: 0 | T184: 0
A185: 174 | K185: 174 | L185: ='Calc|Charges'!B183 ->  | M185: ='Calc|Charges'!C183 ->  | N185: ='Calc|Charges'!D183 ->  | O185: ='Calc|Charges'!F183 ->  | P185: ='Calc|Charges'!H183 -> 0 | Q185: 0 | R185: 0 | S185: 0 | T185: 0
A186: 175 | K186: 175 | L186: ='Calc|Charges'!B184 ->  | M186: ='Calc|Charges'!C184 ->  | N186: ='Calc|Charges'!D184 ->  | O186: ='Calc|Charges'!F184 ->  | P186: ='Calc|Charges'!H184 -> 0 | Q186: 0 | R186: 0 | S186: 0 | T186: 0
A187: 176 | K187: 176 | L187: ='Calc|Charges'!B185 ->  | M187: ='Calc|Charges'!C185 ->  | N187: ='Calc|Charges'!D185 ->  | O187: ='Calc|Charges'!F185 ->  | P187: ='Calc|Charges'!H185 -> 0 | Q187: 0 | R187: 0 | S187: 0 | T187: 0
A188: 177 | K188: 177 | L188: ='Calc|Charges'!B186 ->  | M188: ='Calc|Charges'!C186 ->  | N188: ='Calc|Charges'!D186 ->  | O188: ='Calc|Charges'!F186 ->  | P188: ='Calc|Charges'!H186 -> 0 | Q188: 0 | R188: 0 | S188: 0 | T188: 0
A189: 178 | K189: 178 | L189: ='Calc|Charges'!B187 ->  | M189: ='Calc|Charges'!C187 ->  | N189: ='Calc|Charges'!D187 ->  | O189: ='Calc|Charges'!F187 ->  | P189: ='Calc|Charges'!H187 -> 0 | Q189: 0 | R189: 0 | S189: 0 | T189: 0
A190: 179 | K190: 179 | L190: ='Calc|Charges'!B188 ->  | M190: ='Calc|Charges'!C188 ->  | N190: ='Calc|Charges'!D188 ->  | O190: ='Calc|Charges'!F188 ->  | P190: ='Calc|Charges'!H188 -> 0 | Q190: 0 | R190: 0 | S190: 0 | T190: 0
A191: 180 | K191: 180 | L191: ='Calc|Charges'!B189 ->  | M191: ='Calc|Charges'!C189 ->  | N191: ='Calc|Charges'!D189 ->  | O191: ='Calc|Charges'!F189 ->  | P191: ='Calc|Charges'!H189 -> 0 | Q191: 0 | R191: 0 | S191: 0 | T191: 0
A192: 181 | K192: 181 | L192: ='Calc|Charges'!B190 ->  | M192: ='Calc|Charges'!C190 ->  | N192: ='Calc|Charges'!D190 ->  | O192: ='Calc|Charges'!F190 ->  | P192: ='Calc|Charges'!H190 -> 0 | Q192: 0 | R192: 0 | S192: 0 | T192: 0
A193: 182 | K193: 182 | L193: ='Calc|Charges'!B191 ->  | M193: ='Calc|Charges'!C191 ->  | N193: ='Calc|Charges'!D191 ->  | O193: ='Calc|Charges'!F191 ->  | P193: ='Calc|Charges'!H191 -> 0 | Q193: 0 | R193: 0 | S193: 0 | T193: 0
A194: 183 | K194: 183 | L194: ='Calc|Charges'!B192 ->  | M194: ='Calc|Charges'!C192 ->  | N194: ='Calc|Charges'!D192 ->  | O194: ='Calc|Charges'!F192 ->  | P194: ='Calc|Charges'!H192 -> 0 | Q194: 0 | R194: 0 | S194: 0 | T194: 0
A195: 184 | K195: 184 | L195: ='Calc|Charges'!B193 ->  | M195: ='Calc|Charges'!C193 ->  | N195: ='Calc|Charges'!D193 ->  | O195: ='Calc|Charges'!F193 ->  | P195: ='Calc|Charges'!H193 -> 0 | Q195: 0 | R195: 0 | S195: 0 | T195: 0
A196: 185 | K196: 185 | L196: ='Calc|Charges'!B194 ->  | M196: ='Calc|Charges'!C194 ->  | N196: ='Calc|Charges'!D194 ->  | O196: ='Calc|Charges'!F194 ->  | P196: ='Calc|Charges'!H194 -> 0 | Q196: 0 | R196: 0 | S196: 0 | T196: 0
A197: 186 | K197: 186 | L197: ='Calc|Charges'!B195 ->  | M197: ='Calc|Charges'!C195 ->  | N197: ='Calc|Charges'!D195 ->  | O197: ='Calc|Charges'!F195 ->  | P197: ='Calc|Charges'!H195 -> 0 | Q197: 0 | R197: 0 | S197: 0 | T197: 0
A198: 187 | K198: 187 | L198: ='Calc|Charges'!B196 ->  | M198: ='Calc|Charges'!C196 ->  | N198: ='Calc|Charges'!D196 ->  | O198: ='Calc|Charges'!F196 ->  | P198: ='Calc|Charges'!H196 -> 0 | Q198: 0 | R198: 0 | S198: 0 | T198: 0
A199: 188 | K199: 188 | L199: ='Calc|Charges'!B197 ->  | M199: ='Calc|Charges'!C197 ->  | N199: ='Calc|Charges'!D197 ->  | O199: ='Calc|Charges'!F197 ->  | P199: ='Calc|Charges'!H197 -> 0 | Q199: 0 | R199: 0 | S199: 0 | T199: 0
A200: 189 | K200: 189 | L200: ='Calc|Charges'!B198 ->  | M200: ='Calc|Charges'!C198 ->  | N200: ='Calc|Charges'!D198 ->  | O200: ='Calc|Charges'!F198 ->  | P200: ='Calc|Charges'!H198 -> 0 | Q200: 0 | R200: 0 | S200: 0 | T200: 0
A201: 190 | K201: 190 | L201: ='Calc|Charges'!B199 ->  | M201: ='Calc|Charges'!C199 ->  | N201: ='Calc|Charges'!D199 ->  | O201: ='Calc|Charges'!F199 ->  | P201: ='Calc|Charges'!H199 -> 0 | Q201: 0 | R201: 0 | S201: 0 | T201: 0
A202: 191 | K202: 191 | L202: ='Calc|Charges'!B200 ->  | M202: ='Calc|Charges'!C200 ->  | N202: ='Calc|Charges'!D200 ->  | O202: ='Calc|Charges'!F200 ->  | P202: ='Calc|Charges'!H200 -> 0 | Q202: 0 | R202: 0 | S202: 0 | T202: 0
A203: 192 | K203: 192 | L203: ='Calc|Charges'!B201 ->  | M203: ='Calc|Charges'!C201 ->  | N203: ='Calc|Charges'!D201 ->  | O203: ='Calc|Charges'!F201 ->  | P203: ='Calc|Charges'!H201 -> 0 | Q203: 0 | R203: 0 | S203: 0 | T203: 0
A204: 193 | K204: 193 | L204: ='Calc|Charges'!B202 ->  | M204: ='Calc|Charges'!C202 ->  | N204: ='Calc|Charges'!D202 ->  | O204: ='Calc|Charges'!F202 ->  | P204: ='Calc|Charges'!H202 -> 0 | Q204: 0 | R204: 0 | S204: 0 | T204: 0
... 307 more rows

Sheet Calc|Labour Rates
B1: =IFERROR(Index!B1,"") -> JGN Ancillary Reference Services Forecast Model | F1: Key: | G1: Input
B2: =IFERROR(MID(CELL("filename",A1),FIND("]",CELL("filename",A1))+1,255),"") -> Calc|Labour Rates | G2: Formula
B7: 8.1 Year 1 labour rates | D7: =IFERROR("Year 1 labour rates, $'s ($"&Output_first_year&")","") ->  | F7: =IFERROR("8.2 Year 1 labour rates build up, $'s ($"&'Input|Setup'!$E$8&")","") -> 8.2 Year 1 labour rates build up, $'s ($2025-26)
B9: ='Input|Labour Rates'!B9 -> Labour type (List) | C9: ='Input|Labour Rates'!C9 -> Hours (List) | D9: TOTAL LABOUR RATE | F9: BASE LABOUR RATE | G9: On costs | H9: STANDARD LABOUR RATE (EXCL OVERHEADS) | I9: Overhead | J9: Vehicle and Other costs
A10: 1 | B10: Billing | C10: Business hours | I10: 0 | J10: 0
A11: 2 | B11: Commercial | C11: Business hours | I11: 0 | J11: 0
A12: 3 | B12: Zinfra Back Office | C12: Business hours | G12: 0 | I12: 0 | J12: 0
A13: 4 | B13: Zinfra GST | C13: Business hours | G13: 0 | I13: 0 | J13: 0
A14: 5 | B14: Startek SME | C14: Business hours | G14: 0 | I14: 0 | J14: 0
A15: 6 | B15: Startek Agent | C15: Business hours | G15: 0 | I15: 0 | J15: 0
A16: 7 | D16: 0 | F16: 0 | G16: 0 | H16: 0 | I16: 0 | J16: 0
A17: 8 | D17: 0 | F17: 0 | G17: 0 | H17: 0 | I17: 0 | J17: 0
A18: 9 | D18: 0 | F18: 0 | G18: 0 | H18: 0 | I18: 0 | J18: 0
A19: 10 | D19: 0 | F19: 0 | G19: 0 | H19: 0 | I19: 0 | J19: 0
A20: 11 | D20: 0 | F20: 0 | G20: 0 | H20: 0 | I20: 0 | J20: 0
A21: 12 | D21: 0 | F21: 0 | G21: 0 | H21: 0 | I21: 0 | J21: 0
A22: 13 | D22: 0 | F22: 0 | G22: 0 | H22: 0 | I22: 0 | J22: 0
A23: 14 | D23: 0 | F23: 0 | G23: 0 | H23: 0 | I23: 0 | J23: 0
A24: 15 | D24: 0 | F24: 0 | G24: 0 | H24: 0 | I24: 0 | J24: 0
A25: 16 | D25: 0 | F25: 0 | G25: 0 | H25: 0 | I25: 0 | J25: 0
A26: 17 | D26: 0 | F26: 0 | G26: 0 | H26: 0 | I26: 0 | J26: 0
A27: 18 | D27: 0 | F27: 0 | G27: 0 | H27: 0 | I27: 0 | J27: 0
A28: 19 | D28: 0 | F28: 0 | G28: 0 | H28: 0 | I28: 0 | J28: 0
A29: 20 | D29: 0 | F29: 0 | G29: 0 | H29: 0 | I29: 0 | J29: 0
A30: 21 | D30: 0 | F30: 0 | G30: 0 | H30: 0 | I30: 0 | J30: 0
A31: 22 | D31: 0 | F31: 0 | G31: 0 | H31: 0 | I31: 0 | J31: 0
A32: 23 | D32: 0 | F32: 0 | G32: 0 | H32: 0 | I32: 0 | J32: 0
A33: 24 | D33: 0 | F33: 0 | G33: 0 | H33: 0 | I33: 0 | J33: 0
A34: 25 | D34: 0 | F34: 0 | G34: 0 | H34: 0 | I34: 0 | J34: 0
A35: 26 | D35: 0 | F35: 0 | G35: 0 | H35: 0 | I35: 0 | J35: 0
A36: 27 | D36: 0 | F36: 0 | G36: 0 | H36: 0 | I36: 0 | J36: 0
A37: 28 | D37: 0 | F37: 0 | G37: 0 | H37: 0 | I37: 0 | J37: 0
A38: 29 | D38: 0 | F38: 0 | G38: 0 | H38: 0 | I38: 0 | J38: 0
A39: 30 | D39: 0 | F39: 0 | G39: 0 | H39: 0 | I39: 0 | J39: 0

Sheet Calc|Charges
B1: =IFERROR(Index!B1,"") -> JGN Ancillary Reference Services Forecast Model | D1: Key: | E1: Input | G1: Sheet Validation | H1: ='Model Validation'!C16 -> 0
B2: =IFERROR(MID(CELL("filename",A1),FIND("]",CELL("filename",A1))+1,255),"") -> Calc|Charges | E2: Formula
B6: 9.1 Ancillary Reference Services | H6: =IFERROR("Year 1 CHARGE, $'s ($"&'Input|Setup'!$E$8&")","") -> Year 1 CHARGE, $'s ($2025-26) | J6: =IFERROR("10.2 Year 1 service cost build up - DIRECT COSTS, $'s ($"&'Input|Setup'!$E$8&")","") -> 10.2 Year 1 service cost build up - DIRECT COSTS, $'s ($2025-26) | AX6: =IFERROR("10.3 Year 1 Service cost build up - INDIRECT COSTS, $'s ($"&'Input|Setup'!$E$8&")","") -> 10.3 Year 1 Service cost build up - INDIRECT COSTS, $'s ($2025-26)
J8: Non-field based labour | T8: 0 | U8: Field based labour | AP8: 0 | AQ8: Materials | AR8: Contracts | AS8: Vehicles | AT8: Other | AV8: Total Direct Cost | AX8: Indirect Costs
B9: Service code | C9: Service | D9: Hours (List) | E9: Service category (List) | F9: [label] (List) | G9: [label] (List) | H9: Total | J9: Labour category 1 | K9: Applied Labour Rate | L9: Labour category 1 Total cost | M9: Labour category 2 | N9: Applied Labour Rate | O9: Labour category 2 Total cost | P9: Labour category 3 | Q9: Applied Labour Rate | R9: Labour category 3 Total cost | S9: TOTAL NON-FIELD LABOUR | U9: Labour category 1 | V9: Applied Labour Rate | W9: Travel cost | X9: Task cost | Y9: Labour category 1 Total cost | Z9: Labour category 2 | AA9: Applied Labour Rate | AB9: Travel cost | AC9: Task cost | AD9: Labour category 2 Total cost | AE9: Labour category 3 | AF9: Applied Labour Rate | AG9: Travel cost | AH9: Task cost | AI9: Labour category 3 Total cost | AJ9: Labour category 4 | AK9: Applied Labour Rate | AL9: Travel cost | AM9: Task cost | AN9: Labour category 4 Total cost | AO9: TOTAL FIELD LABOUR | AQ9: Total | AR9: Total | AS9: Total | AT9: Total | AV9: Total | AX9: Network Overhead | AY9: Corporate Overhead | AZ9: Margin | BA9: Tax recovery
A10: 1 | C10: Hourly charge – non-standard retailer-initiated requests and queries | D10: Business hours | E10: Other | H10: 205.9343094 | J10: Commercial | M10: Billing | Q10: 0 | R10: 0 | S10: 150.396396 | T10: 0 | V10: 0 | W10: 0 | X10: 0 | Y10: 0 | AA10: 0 | AB10: 0 | AC10: 0 | AD10: 0 | AF10: 0 | AG10: 0 | AH10: 0 | AI10: 0 | AK10: 0 | AL10: 0 | AM10: 0 | AN10: 0 | AO10: 0 | AP10: 0 | AQ10: 0 | AR10: 0 | AS10: 0 | AT10: 0 | AV10: 150.396396 | AX10: 15.9174861 | AY10: 39.62042725 | AZ10: 0 | BA10: 0
A11: 2 | C11: Disconnection – Volume Customers – Completed | D11: Business hours | E11: Disconnections and reconnections | H11: 84.25019738 | J11: Zinfra Back Office | M11: Startek SME | P11: Startek Agent | T11: 0 | U11: Zinfra GST | W11: 0 | AA11: 0 | AB11: 0 | AC11: 0 | AD11: 0 | AF11: 0 | AG11: 0 | AH11: 0 | AI11: 0 | AK11: 0 | AL11: 0 | AM11: 0 | AN11: 0 | AP11: 0 | AS11: 0 | AT11: 0 | AV11: 61.52897052 | AX11: 6.512034588 | AY11: 16.20919228 | AZ11: 0 | BA11: 0
A12: 3 | C12: Disconnection – Volume Customers – Wasted Visit | D12: Business hours | E12: Disconnections and reconnections | H12: 46.37756408 | J12: Zinfra Back Office | M12: Startek SME | P12: Startek Agent | T12: 0 | U12: Zinfra GST | W12: 0 | AA12: 0 | AB12: 0 | AC12: 0 | AD12: 0 | AF12: 0 | AG12: 0 | AH12: 0 | AI12: 0 | AK12: 0 | AL12: 0 | AM12: 0 | AN12: 0 | AP12: 0 | AQ12: 0 | AS12: 0 | AT12: 0 | AV12: 33.8701138 | AX12: 3.584707345 | AY12: 8.922742934 | AZ12: 0 | BA12: 0
A13: 4 | C13: Reconnection – Volume Customers – Completed | D13: Business hours | E13: Disconnections and reconnections | H13: 118.011853 | J13: Zinfra Back Office | M13: Startek SME | P13: Startek Agent | T13: 0 | U13: Zinfra GST | W13: 0 | AA13: 0 | AB13: 0 | AC13: 0 | AD13: 0 | AF13: 0 | AG13: 0 | AH13: 0 | AI13: 0 | AK13: 0 | AL13: 0 | AM13: 0 | AN13: 0 | AP13: 0 | AS13: 0 | AT13: 0 | AV13: 86.18552894 | AX13: 9.121607931 | AY13: 22.70471614 | AZ13: 0 | BA13: 0
A14: 5 | C14: Reconnection – Volume Customers – Wasted Visit | D14: Business hours | E14: Disconnections and reconnections | H14: 118.0104937 | J14: Zinfra Back Office | M14: Startek SME | P14: Startek Agent | T14: 0 | U14: Zinfra GST | W14: 0 | AA14: 0 | AB14: 0 | AC14: 0 | AD14: 0 | AF14: 0 | AG14: 0 | AH14: 0 | AI14: 0 | AK14: 0 | AL14: 0 | AM14: 0 | AN14: 0 | AP14: 0 | AQ14: 0 | AS14: 0 | AT14: 0 | AV14: 86.1845362 | AX14: 9.121502862 | AY14: 22.70445461 | AZ14: 0 | BA14: 0
A15: 6 | C15: Expedited reconnection | D15: Business hours | E15: Disconnections and reconnections | H15: 196.4611757 | J15: Zinfra Back Office | M15: Startek SME | P15: Startek Agent | T15: 0 | U15: Zinfra GST | W15: 0 | AA15: 0 | AB15: 0 | AC15: 0 | AD15: 0 | AF15: 0 | AG15: 0 | AH15: 0 | AI15: 0 | AK15: 0 | AL15: 0 | AM15: 0 | AN15: 0 | AP15: 0 | AQ15: 0 | AR15: 0 | AS15: 0 | AT15: 0 | AV15: 143.4780483 | AX15: 15.18526972 | AY15: 37.79785769 | AZ15: 0 | BA15: 0
A16: 7 | C16: Abolishment – Up to 25m3/hr – Completed | D16: Business hours | E16: Abolishments | H16: 1472.461512 | J16: Zinfra Back Office | N16: 0 | O16: 0 | Q16: 0 | R16: 0 | T16: 0 | V16: 0 | W16: 0 | X16: 0 | Y16: 0 | AA16: 0 | AB16: 0 | AC16: 0 | AD16: 0 | AF16: 0 | AG16: 0 | AH16: 0 | AI16: 0 | AK16: 0 | AL16: 0 | AM16: 0 | AN16: 0 | AO16: 0 | AP16: 0 | AS16: 0 | AT16: 0 | AV16: 1075.357017 | AX16: 113.8124372 | AY16: 283.2920575 | AZ16: 0 | BA16: 0
A17: 8 | C17: Special meter read – Completed | D17: Business hours | E17: Special meter reads | H17: 16.63253571 | K17: 0 | L17: 0 | N17: 0 | O17: 0 | Q17: 0 | R17: 0 | S17: 0 | T17: 0 | V17: 0 | W17: 0 | X17: 0 | Y17: 0 | AA17: 0 | AB17: 0 | AC17: 0 | AD17: 0 | AF17: 0 | AG17: 0 | AH17: 0 | AI17: 0 | AK17: 0 | AL17: 0 | AM17: 0 | AN17: 0 | AO17: 0 | AP17: 0 | AQ17: 0 | AS17: 0 | AT17: 0 | AZ17: 0 | BA17: 0
A18: 9 | C18: Special meter read – Wasted Visit | D18: Business hours | E18: Special meter reads | H18: 16.63253571 | K18: 0 | L18: 0 | N18: 0 | O18: 0 | Q18: 0 | R18: 0 | S18: 0 | T18: 0 | V18: 0 | W18: 0 | X18: 0 | Y18: 0 | AA18: 0 | AB18: 0 | AC18: 0 | AD18: 0 | AF18: 0 | AG18: 0 | AH18: 0 | AI18: 0 | AK18: 0 | AL18: 0 | AM18: 0 | AN18: 0 | AO18: 0 | AP18: 0 | AQ18: 0 | AS18: 0 | AT18: 0 | AZ18: 0 | BA18: 0
A19: 10 | H19: 0 | K19: 0 | L19: 0 | N19: 0 | O19: 0 | Q19: 0 | R19: 0 | S19: 0 | T19: 0 | V19: 0 | W19: 0 | X19: 0 | Y19: 0 | AA19: 0 | AB19: 0 | AC19: 0 | AD19: 0 | AF19: 0 | AG19: 0 | AH19: 0 | AI19: 0 | AK19: 0 | AL19: 0 | AM19: 0 | AN19: 0 | AO19: 0 | AP19: 0 | AQ19: 0 | AR19: 0 | AS19: 0 | AT19: 0 | AV19: 0 | AX19: 0 | AY19: 0 | AZ19: 0 | BA19: 0
A20: 11 | H20: 0 | K20: 0 | L20: 0 | N20: 0 | O20: 0 | Q20: 0 | R20: 0 | S20: 0 | T20: 0 | V20: 0 | W20: 0 | X20: 0 | Y20: 0 | AA20: 0 | AB20: 0 | AC20: 0 | AD20: 0 | AF20: 0 | AG20: 0 | AH20: 0 | AI20: 0 | AK20: 0 | AL20: 0 | AM20: 0 | AN20: 0 | AO20: 0 | AP20: 0 | AQ20: 0 | AR20: 0 | AS20: 0 | AT20: 0 | AV20: 0 | AX20: 0 | AY20: 0 | AZ20: 0 | BA20: 0
A21: 12 | H21: 0 | K21: 0 | L21: 0 | N21: 0 | O21: 0 | Q21: 0 | R21: 0 | S21: 0 | T21: 0 | V21: 0 | W21: 0 | X21: 0 | Y21: 0 | AA21: 0 | AB21: 0 | AC21: 0 | AD21: 0 | AF21: 0 | AG21: 0 | AH21: 0 | AI21: 0 | AK21: 0 | AL21: 0 | AM21: 0 | AN21: 0 | AO21: 0 | AP21: 0 | AQ21: 0 | AR21: 0 | AS21: 0 | AT21: 0 | AV21: 0 | AX21: 0 | AY21: 0 | AZ21: 0 | BA21: 0
A22: 13 | H22: 0 | K22: 0 | L22: 0 | N22: 0 | O22: 0 | Q22: 0 | R22: 0 | S22: 0 | T22: 0 | V22: 0 | W22: 0 | X22: 0 | Y22: 0 | AA22: 0 | AB22: 0 | AC22: 0 | AD22: 0 | AF22: 0 | AG22: 0 | AH22: 0 | AI22: 0 | AK22: 0 | AL22: 0 | AM22: 0 | AN22: 0 | AO22: 0 | AP22: 0 | AQ22: 0 | AR22: 0 | AS22: 0 | AT22: 0 | AV22: 0 | AX22: 0 | AY22: 0 | AZ22: 0 | BA22: 0
A23: 14 | H23: 0 | K23: 0 | L23: 0 | N23: 0 | O23: 0 | Q23: 0 | R23: 0 | S23: 0 | T23: 0 | V23: 0 | W23: 0 | X23: 0 | Y23: 0 | AA23: 0 | AB23: 0 | AC23: 0 | AD23: 0 | AF23: 0 | AG23: 0 | AH23: 0 | AI23: 0 | AK23: 0 | AL23: 0 | AM23: 0 | AN23: 0 | AO23: 0 | AP23: 0 | AQ23: 0 | AR23: 0 | AS23: 0 | AT23: 0 | AV23: 0 | AX23: 0 | AY23: 0 | AZ23: 0 | BA23: 0
A24: 15 | H24: 0 | K24: 0 | L24: 0 | N24: 0 | O24: 0 | Q24: 0 | R24: 0 | S24: 0 | T24: 0 | V24: 0 | W24: 0 | X24: 0 | Y24: 0 | AA24: 0 | AB24: 0 | AC24: 0 | AD24: 0 | AF24: 0 | AG24: 0 | AH24: 0 | AI24: 0 | AK24: 0 | AL24: 0 | AM24: 0 | AN24: 0 | AO24: 0 | AP24: 0 | AQ24: 0 | AR24: 0 | AS24: 0 | AT24: 0 | AV24: 0 | AX24: 0 | AY24: 0 | AZ24: 0 | BA24: 0
A25: 16 | H25: 0 | K25: 0 | L25: 0 | N25: 0 | O25: 0 | Q25: 0 | R25: 0 | S25: 0 | T25: 0 | V25: 0 | W25: 0 | X25: 0 | Y25: 0 | AA25: 0 | AB25: 0 | AC25: 0 | AD25: 0 | AF25: 0 | AG25: 0 | AH25: 0 | AI25: 0 | AK25: 0 | AL25: 0 | AM25: 0 | AN25: 0 | AO25: 0 | AP25: 0 | AQ25: 0 | AR25: 0 | AS25: 0 | AT25: 0 | AV25: 0 | AX25: 0 | AY25: 0 | AZ25: 0 | BA25: 0
A26: 17 | H26: 0 | K26: 0 | L26: 0 | N26: 0 | O26: 0 | Q26: 0 | R26: 0 | S26: 0 | T26: 0 | V26: 0 | W26: 0 | X26: 0 | Y26: 0 | AA26: 0 | AB26: 0 | AC26: 0 | AD26: 0 | AF26: 0 | AG26: 0 | AH26: 0 | AI26: 0 | AK26: 0 | AL26: 0 | AM26: 0 | AN26: 0 | AO26: 0 | AP26: 0 | AQ26: 0 | AR26: 0 | AS26: 0 | AT26: 0 | AV26: 0 | AX26: 0 | AY26: 0 | AZ26: 0 | BA26: 0
A27: 18 | H27: 0 | K27: 0 | L27: 0 | N27: 0 | O27: 0 | Q27: 0 | R27: 0 | S27: 0 | T27: 0 | V27: 0 | W27: 0 | X27: 0 | Y27: 0 | AA27: 0 | AB27: 0 | AC27: 0 | AD27: 0 | AF27: 0 | AG27: 0 | AH27: 0 | AI27: 0 | AK27: 0 | AL27: 0 | AM27: 0 | AN27: 0 | AO27: 0 | AP27: 0 | AQ27: 0 | AR27: 0 | AS27: 0 | AT27: 0 | AV27: 0 | AX27: 0 | AY27: 0 | AZ27: 0 | BA27: 0
A28: 19 | H28: 0 | K28: 0 | L28: 0 | N28: 0 | O28: 0 | Q28: 0 | R28: 0 | S28: 0 | T28: 0 | V28: 0 | W28: 0 | X28: 0 | Y28: 0 | AA28: 0 | AB28: 0 | AC28: 0 | AD28: 0 | AF28: 0 | AG28: 0 | AH28: 0 | AI28: 0 | AK28: 0 | AL28: 0 | AM28: 0 | AN28: 0 | AO28: 0 | AP28: 0 | AQ28: 0 | AR28: 0 | AS28: 0 | AT28: 0 | AV28: 0 | AX28: 0 | AY28: 0 | AZ28: 0 | BA28: 0
A29: 20 | H29: 0 | K29: 0 | L29: 0 | N29: 0 | O29: 0 | Q29: 0 | R29: 0 | S29: 0 | T29: 0 | V29: 0 | W29: 0 | X29: 0 | Y29: 0 | AA29: 0 | AB29: 0 | AC29: 0 | AD29: 0 | AF29: 0 | AG29: 0 | AH29: 0 | AI29: 0 | AK29: 0 | AL29: 0 | AM29: 0 | AN29: 0 | AO29: 0 | AP29: 0 | AQ29: 0 | AR29: 0 | AS29: 0 | AT29: 0 | AV29: 0 | AX29: 0 | AY29: 0 | AZ29: 0 | BA29: 0
A30: 21 | H30: 0 | K30: 0 | L30: 0 | N30: 0 | O30: 0 | Q30: 0 | R30: 0 | S30: 0 | T30: 0 | V30: 0 | W30: 0 | X30: 0 | Y30: 0 | AA30: 0 | AB30: 0 | AC30: 0 | AD30: 0 | AF30: 0 | AG30: 0 | AH30: 0 | AI30: 0 | AK30: 0 | AL30: 0 | AM30: 0 | AN30: 0 | AO30: 0 | AP30: 0 | AQ30: 0 | AR30: 0 | AS30: 0 | AT30: 0 | AV30: 0 | AX30: 0 | AY30: 0 | AZ30: 0 | BA30: 0
A31: 22 | H31: 0 | K31: 0 | L31: 0 | N31: 0 | O31: 0 | Q31: 0 | R31: 0 | S31: 0 | T31: 0 | V31: 0 | W31: 0 | X31: 0 | Y31: 0 | AA31: 0 | AB31: 0 | AC31: 0 | AD31: 0 | AF31: 0 | AG31: 0 | AH31: 0 | AI31: 0 | AK31: 0 | AL31: 0 | AM31: 0 | AN31: 0 | AO31: 0 | AP31: 0 | AQ31: 0 | AR31: 0 | AS31: 0 | AT31: 0 | AV31: 0 | AX31: 0 | AY31: 0 | AZ31: 0 | BA31: 0
A32: 23 | H32: 0 | K32: 0 | L32: 0 | N32: 0 | O32: 0 | Q32: 0 | R32: 0 | S32: 0 | T32: 0 | V32: 0 | W32: 0 | X32: 0 | Y32: 0 | AA32: 0 | AB32: 0 | AC32: 0 | AD32: 0 | AF32: 0 | AG32: 0 | AH32: 0 | AI32: 0 | AK32: 0 | AL32: 0 | AM32: 0 | AN32: 0 | AO32: 0 | AP32: 0 | AQ32: 0 | AR32: 0 | AS32: 0 | AT32: 0 | AV32: 0 | AX32: 0 | AY32: 0 | AZ32: 0 | BA32: 0
A33: 24 | H33: 0 | K33: 0 | L33: 0 | N33: 0 | O33: 0 | Q33: 0 | R33: 0 | S33: 0 | T33: 0 | V33: 0 | W33: 0 | X33: 0 | Y33: 0 | AA33: 0 | AB33: 0 | AC33: 0 | AD33: 0 | AF33: 0 | AG33: 0 | AH33: 0 | AI33: 0 | AK33: 0 | AL33: 0 | AM33: 0 | AN33: 0 | AO33: 0 | AP33: 0 | AQ33: 0 | AR33: 0 | AS33: 0 | AT33: 0 | AV33: 0 | AX33: 0 | AY33: 0 | AZ33: 0 | BA33: 0
A34: 25 | H34: 0 | K34: 0 | L34: 0 | N34: 0 | O34: 0 | Q34: 0 | R34: 0 | S34: 0 | T34: 0 | V34: 0 | W34: 0 | X34: 0 | Y34: 0 | AA34: 0 | AB34: 0 | AC34: 0 | AD34: 0 | AF34: 0 | AG34: 0 | AH34: 0 | AI34: 0 | AK34: 0 | AL34: 0 | AM34: 0 | AN34: 0 | AO34: 0 | AP34: 0 | AQ34: 0 | AR34: 0 | AS34: 0 | AT34: 0 | AV34: 0 | AX34: 0 | AY34: 0 | AZ34: 0 | BA34: 0
A35: 26 | H35: 0 | K35: 0 | L35: 0 | N35: 0 | O35: 0 | Q35: 0 | R35: 0 | S35: 0 | T35: 0 | V35: 0 | W35: 0 | X35: 0 | Y35: 0 | AA35: 0 | AB35: 0 | AC35: 0 | AD35: 0 | AF35: 0 | AG35: 0 | AH35: 0 | AI35: 0 | AK35: 0 | AL35: 0 | AM35: 0 | AN35: 0 | AO35: 0 | AP35: 0 | AQ35: 0 | AR35: 0 | AS35: 0 | AT35: 0 | AV35: 0 | AX35: 0 | AY35: 0 | AZ35: 0 | BA35: 0
A36: 27 | H36: 0 | K36: 0 | L36: 0 | N36: 0 | O36: 0 | Q36: 0 | R36: 0 | S36: 0 | T36: 0 | V36: 0 | W36: 0 | X36: 0 | Y36: 0 | AA36: 0 | AB36: 0 | AC36: 0 | AD36: 0 | AF36: 0 | AG36: 0 | AH36: 0 | AI36: 0 | AK36: 0 | AL36: 0 | AM36: 0 | AN36: 0 | AO36: 0 | AP36: 0 | AQ36: 0 | AR36: 0 | AS36: 0 | AT36: 0 | AV36: 0 | AX36: 0 | AY36: 0 | AZ36: 0 | BA36: 0
A37: 28 | H37: 0 | K37: 0 | L37: 0 | N37: 0 | O37: 0 | Q37: 0 | R37: 0 | S37: 0 | T37: 0 | V37: 0 | W37: 0 | X37: 0 | Y37: 0 | AA37: 0 | AB37: 0 | AC37: 0 | AD37: 0 | AF37: 0 | AG37: 0 | AH37: 0 | AI37: 0 | AK37: 0 | AL37: 0 | AM37: 0 | AN37: 0 | AO37: 0 | AP37: 0 | AQ37: 0 | AR37: 0 | AS37: 0 | AT37: 0 | AV37: 0 | AX37: 0 | AY37: 0 | AZ37: 0 | BA37: 0
A38: 29 | H38: 0 | K38: 0 | L38: 0 | N38: 0 | O38: 0 | Q38: 0 | R38: 0 | S38: 0 | T38: 0 | V38: 0 | W38: 0 | X38: 0 | Y38: 0 | AA38: 0 | AB38: 0 | AC38: 0 | AD38: 0 | AF38: 0 | AG38: 0 | AH38: 0 | AI38: 0 | AK38: 0 | AL38: 0 | AM38: 0 | AN38: 0 | AO38: 0 | AP38: 0 | AQ38: 0 | AR38: 0 | AS38: 0 | AT38: 0 | AV38: 0 | AX38: 0 | AY38: 0 | AZ38: 0 | BA38: 0
A39: 30 | H39: 0 | K39: 0 | L39: 0 | N39: 0 | O39: 0 | Q39: 0 | R39: 0 | S39: 0 | T39: 0 | V39: 0 | W39: 0 | X39: 0 | Y39: 0 | AA39: 0 | AB39: 0 | AC39: 0 | AD39: 0 | AF39: 0 | AG39: 0 | AH39: 0 | AI39: 0 | AK39: 0 | AL39: 0 | AM39: 0 | AN39: 0 | AO39: 0 | AP39: 0 | AQ39: 0 | AR39: 0 | AS39: 0 | AT39: 0 | AV39: 0 | AX39: 0 | AY39: 0 | AZ39: 0 | BA39: 0
A40: 31 | H40: 0 | K40: 0 | L40: 0 | N40: 0 | O40: 0 | Q40: 0 | R40: 0 | S40: 0 | T40: 0 | V40: 0 | W40: 0 | X40: 0 | Y40: 0 | AA40: 0 | AB40: 0 | AC40: 0 | AD40: 0 | AF40: 0 | AG40: 0 | AH40: 0 | AI40: 0 | AK40: 0 | AL40: 0 | AM40: 0 | AN40: 0 | AO40: 0 | AP40: 0 | AQ40: 0 | AR40: 0 | AS40: 0 | AT40: 0 | AV40: 0 | AX40: 0 | AY40: 0 | AZ40: 0 | BA40: 0
A41: 32 | H41: 0 | K41: 0 | L41: 0 | N41: 0 | O41: 0 | Q41: 0 | R41: 0 | S41: 0 | T41: 0 | V41: 0 | W41: 0 | X41: 0 | Y41: 0 | AA41: 0 | AB41: 0 | AC41: 0 | AD41: 0 | AF41: 0 | AG41: 0 | AH41: 0 | AI41: 0 | AK41: 0 | AL41: 0 | AM41: 0 | AN41: 0 | AO41: 0 | AP41: 0 | AQ41: 0 | AR41: 0 | AS41: 0 | AT41: 0 | AV41: 0 | AX41: 0 | AY41: 0 | AZ41: 0 | BA41: 0
A42: 33 | H42: 0 | K42: 0 | L42: 0 | N42: 0 | O42: 0 | Q42: 0 | R42: 0 | S42: 0 | T42: 0 | V42: 0 | W42: 0 | X42: 0 | Y42: 0 | AA42: 0 | AB42: 0 | AC42: 0 | AD42: 0 | AF42: 0 | AG42: 0 | AH42: 0 | AI42: 0 | AK42: 0 | AL42: 0 | AM42: 0 | AN42: 0 | AO42: 0 | AP42: 0 | AQ42: 0 | AR42: 0 | AS42: 0 | AT42: 0 | AV42: 0 | AX42: 0 | AY42: 0 | AZ42: 0 | BA42: 0
A43: 34 | H43: 0 | K43: 0 | L43: 0 | N43: 0 | O43: 0 | Q43: 0 | R43: 0 | S43: 0 | T43: 0 | V43: 0 | W43: 0 | X43: 0 | Y43: 0 | AA43: 0 | AB43: 0 | AC43: 0 | AD43: 0 | AF43: 0 | AG43: 0 | AH43: 0 | AI43: 0 | AK43: 0 | AL43: 0 | AM43: 0 | AN43: 0 | AO43: 0 | AP43: 0 | AQ43: 0 | AR43: 0 | AS43: 0 | AT43: 0 | AV43: 0 | AX43: 0 | AY43: 0 | AZ43: 0 | BA43: 0
A44: 35 | H44: 0 | K44: 0 | L44: 0 | N44: 0 | O44: 0 | Q44: 0 | R44: 0 | S44: 0 | T44: 0 | V44: 0 | W44: 0 | X44: 0 | Y44: 0 | AA44: 0 | AB44: 0 | AC44: 0 | AD44: 0 | AF44: 0 | AG44: 0 | AH44: 0 | AI44: 0 | AK44: 0 | AL44: 0 | AM44: 0 | AN44: 0 | AO44: 0 | AP44: 0 | AQ44: 0 | AR44: 0 | AS44: 0 | AT44: 0 | AV44: 0 | AX44: 0 | AY44: 0 | AZ44: 0 | BA44: 0
A45: 36 | H45: 0 | K45: 0 | L45: 0 | N45: 0 | O45: 0 | Q45: 0 | R45: 0 | S45: 0 | T45: 0 | V45: 0 | W45: 0 | X45: 0 | Y45: 0 | AA45: 0 | AB45: 0 | AC45: 0 | AD45: 0 | AF45: 0 | AG45: 0 | AH45: 0 | AI45: 0 | AK45: 0 | AL45: 0 | AM45: 0 | AN45: 0 | AO45: 0 | AP45: 0 | AQ45: 0 | AR45: 0 | AS45: 0 | AT45: 0 | AV45: 0 | AX45: 0 | AY45: 0 | AZ45: 0 | BA45: 0
A46: 37 | H46: 0 | K46: 0 | L46: 0 | N46: 0 | O46: 0 | Q46: 0 | R46: 0 | S46: 0 | T46: 0 | V46: 0 | W46: 0 | X46: 0 | Y46: 0 | AA46: 0 | AB46: 0 | AC46: 0 | AD46: 0 | AF46: 0 | AG46: 0 | AH46: 0 | AI46: 0 | AK46: 0 | AL46: 0 | AM46: 0 | AN46: 0 | AO46: 0 | AP46: 0 | AQ46: 0 | AR46: 0 | AS46: 0 | AT46: 0 | AV46: 0 | AX46: 0 | AY46: 0 | AZ46: 0 | BA46: 0
A47: 38 | H47: 0 | K47: 0 | L47: 0 | N47: 0 | O47: 0 | Q47: 0 | R47: 0 | S47: 0 | T47: 0 | V47: 0 | W47: 0 | X47: 0 | Y47: 0 | AA47: 0 | AB47: 0 | AC47: 0 | AD47: 0 | AF47: 0 | AG47: 0 | AH47: 0 | AI47: 0 | AK47: 0 | AL47: 0 | AM47: 0 | AN47: 0 | AO47: 0 | AP47: 0 | AQ47: 0 | AR47: 0 | AS47: 0 | AT47: 0 | AV47: 0 | AX47: 0 | AY47: 0 | AZ47: 0 | BA47: 0
A48: 39 | H48: 0 | K48: 0 | L48: 0 | N48: 0 | O48: 0 | Q48: 0 | R48: 0 | S48: 0 | T48: 0 | V48: 0 | W48: 0 | X48: 0 | Y48: 0 | AA48: 0 | AB48: 0 | AC48: 0 | AD48: 0 | AF48: 0 | AG48: 0 | AH48: 0 | AI48: 0 | AK48: 0 | AL48: 0 | AM48: 0 | AN48: 0 | AO48: 0 | AP48: 0 | AQ48: 0 | AR48: 0 | AS48: 0 | AT48: 0 | AV48: 0 | AX48: 0 | AY48: 0 | AZ48: 0 | BA48: 0
A49: 40 | H49: 0 | K49: 0 | L49: 0 | N49: 0 | O49: 0 | Q49: 0 | R49: 0 | S49: 0 | T49: 0 | V49: 0 | W49: 0 | X49: 0 | Y49: 0 | AA49: 0 | AB49: 0 | AC49: 0 | AD49: 0 | AF49: 0 | AG49: 0 | AH49: 0 | AI49: 0 | AK49: 0 | AL49: 0 | AM49: 0 | AN49: 0 | AO49: 0 | AP49: 0 | AQ49: 0 | AR49: 0 | AS49: 0 | AT49: 0 | AV49: 0 | AX49: 0 | AY49: 0 | AZ49: 0 | BA49: 0
A50: 41 | H50: 0 | K50: 0 | L50: 0 | N50: 0 | O50: 0 | Q50: 0 | R50: 0 | S50: 0 | T50: 0 | V50: 0 | W50: 0 | X50: 0 | Y50: 0 | AA50: 0 | AB50: 0 | AC50: 0 | AD50: 0 | AF50: 0 | AG50: 0 | AH50: 0 | AI50: 0 | AK50: 0 | AL50: 0 | AM50: 0 | AN50: 0 | AO50: 0 | AP50: 0 | AQ50: 0 | AR50: 0 | AS50: 0 | AT50: 0 | AV50: 0 | AX50: 0 | AY50: 0 | AZ50: 0 | BA50: 0
A51: 42 | H51: 0 | K51: 0 | L51: 0 | N51: 0 | O51: 0 | Q51: 0 | R51: 0 | S51: 0 | T51: 0 | V51: 0 | W51: 0 | X51: 0 | Y51: 0 | AA51: 0 | AB51: 0 | AC51: 0 | AD51: 0 | AF51: 0 | AG51: 0 | AH51: 0 | AI51: 0 | AK51: 0 | AL51: 0 | AM51: 0 | AN51: 0 | AO51: 0 | AP51: 0 | AQ51: 0 | AR51: 0 | AS51: 0 | AT51: 0 | AV51: 0 | AX51: 0 | AY51: 0 | AZ51: 0 | BA51: 0
A52: 43 | H52: 0 | K52: 0 | L52: 0 | N52: 0 | O52: 0 | Q52: 0 | R52: 0 | S52: 0 | T52: 0 | V52: 0 | W52: 0 | X52: 0 | Y52: 0 | AA52: 0 | AB52: 0 | AC52: 0 | AD52: 0 | AF52: 0 | AG52: 0 | AH52: 0 | AI52: 0 | AK52: 0 | AL52: 0 | AM52: 0 | AN52: 0 | AO52: 0 | AP52: 0 | AQ52: 0 | AR52: 0 | AS52: 0 | AT52: 0 | AV52: 0 | AX52: 0 | AY52: 0 | AZ52: 0 | BA52: 0
A53: 44 | H53: 0 | K53: 0 | L53: 0 | N53: 0 | O53: 0 | Q53: 0 | R53: 0 | S53: 0 | T53: 0 | V53: 0 | W53: 0 | X53: 0 | Y53: 0 | AA53: 0 | AB53: 0 | AC53: 0 | AD53: 0 | AF53: 0 | AG53: 0 | AH53: 0 | AI53: 0 | AK53: 0 | AL53: 0 | AM53: 0 | AN53: 0 | AO53: 0 | AP53: 0 | AQ53: 0 | AR53: 0 | AS53: 0 | AT53: 0 | AV53: 0 | AX53: 0 | AY53: 0 | AZ53: 0 | BA53: 0
A54: 45 | H54: 0 | K54: 0 | L54: 0 | N54: 0 | O54: 0 | Q54: 0 | R54: 0 | S54: 0 | T54: 0 | V54: 0 | W54: 0 | X54: 0 | Y54: 0 | AA54: 0 | AB54: 0 | AC54: 0 | AD54: 0 | AF54: 0 | AG54: 0 | AH54: 0 | AI54: 0 | AK54: 0 | AL54: 0 | AM54: 0 | AN54: 0 | AO54: 0 | AP54: 0 | AQ54: 0 | AR54: 0 | AS54: 0 | AT54: 0 | AV54: 0 | AX54: 0 | AY54: 0 | AZ54: 0 | BA54: 0
A55: 46 | H55: 0 | K55: 0 | L55: 0 | N55: 0 | O55: 0 | Q55: 0 | R55: 0 | S55: 0 | T55: 0 | V55: 0 | W55: 0 | X55: 0 | Y55: 0 | AA55: 0 | AB55: 0 | AC55: 0 | AD55: 0 | AF55: 0 | AG55: 0 | AH55: 0 | AI55: 0 | AK55: 0 | AL55: 0 | AM55: 0 | AN55: 0 | AO55: 0 | AP55: 0 | AQ55: 0 | AR55: 0 | AS55: 0 | AT55: 0 | AV55: 0 | AX55: 0 | AY55: 0 | AZ55: 0 | BA55: 0
A56: 47 | H56: 0 | K56: 0 | L56: 0 | N56: 0 | O56: 0 | Q56: 0 | R56: 0 | S56: 0 | T56: 0 | V56: 0 | W56: 0 | X56: 0 | Y56: 0 | AA56: 0 | AB56: 0 | AC56: 0 | AD56: 0 | AF56: 0 | AG56: 0 | AH56: 0 | AI56: 0 | AK56: 0 | AL56: 0 | AM56: 0 | AN56: 0 | AO56: 0 | AP56: 0 | AQ56: 0 | AR56: 0 | AS56: 0 | AT56: 0 | AV56: 0 | AX56: 0 | AY56: 0 | AZ56: 0 | BA56: 0
A57: 48 | H57: 0 | K57: 0 | L57: 0 | N57: 0 | O57: 0 | Q57: 0 | R57: 0 | S57: 0 | T57: 0 | V57: 0 | W57: 0 | X57: 0 | Y57: 0 | AA57: 0 | AB57: 0 | AC57: 0 | AD57: 0 | AF57: 0 | AG57: 0 | AH57: 0 | AI57: 0 | AK57: 0 | AL57: 0 | AM57: 0 | AN57: 0 | AO57: 0 | AP57: 0 | AQ57: 0 | AR57: 0 | AS57: 0 | AT57: 0 | AV57: 0 | AX57: 0 | AY57: 0 | AZ57: 0 | BA57: 0
A58: 49 | H58: 0 | K58: 0 | L58: 0 | N58: 0 | O58: 0 | Q58: 0 | R58: 0 | S58: 0 | T58: 0 | V58: 0 | W58: 0 | X58: 0 | Y58: 0 | AA58: 0 | AB58: 0 | AC58: 0 | AD58: 0 | AF58: 0 | AG58: 0 | AH58: 0 | AI58: 0 | AK58: 0 | AL58: 0 | AM58: 0 | AN58: 0 | AO58: 0 | AP58: 0 | AQ58: 0 | AR58: 0 | AS58: 0 | AT58: 0 | AV58: 0 | AX58: 0 | AY58: 0 | AZ58: 0 | BA58: 0
A59: 50 | H59: 0 | K59: 0 | L59: 0 | N59: 0 | O59: 0 | Q59: 0 | R59: 0 | S59: 0 | T59: 0 | V59: 0 | W59: 0 | X59: 0 | Y59: 0 | AA59: 0 | AB59: 0 | AC59: 0 | AD59: 0 | AF59: 0 | AG59: 0 | AH59: 0 | AI59: 0 | AK59: 0 | AL59: 0 | AM59: 0 | AN59: 0 | AO59: 0 | AP59: 0 | AQ59: 0 | AR59: 0 | AS59: 0 | AT59: 0 | AV59: 0 | AX59: 0 | AY59: 0 | AZ59: 0 | BA59: 0
A60: 51 | H60: 0 | K60: 0 | L60: 0 | N60: 0 | O60: 0 | Q60: 0 | R60: 0 | S60: 0 | T60: 0 | V60: 0 | W60: 0 | X60: 0 | Y60: 0 | AA60: 0 | AB60: 0 | AC60: 0 | AD60: 0 | AF60: 0 | AG60: 0 | AH60: 0 | AI60: 0 | AK60: 0 | AL60: 0 | AM60: 0 | AN60: 0 | AO60: 0 | AP60: 0 | AQ60: 0 | AR60: 0 | AS60: 0 | AT60: 0 | AV60: 0 | AX60: 0 | AY60: 0 | AZ60: 0 | BA60: 0
A61: 52 | H61: 0 | K61: 0 | L61: 0 | N61: 0 | O61: 0 | Q61: 0 | R61: 0 | S61: 0 | T61: 0 | V61: 0 | W61: 0 | X61: 0 | Y61: 0 | AA61: 0 | AB61: 0 | AC61: 0 | AD61: 0 | AF61: 0 | AG61: 0 | AH61: 0 | AI61: 0 | AK61: 0 | AL61: 0 | AM61: 0 | AN61: 0 | AO61: 0 | AP61: 0 | AQ61: 0 | AR61: 0 | AS61: 0 | AT61: 0 | AV61: 0 | AX61: 0 | AY61: 0 | AZ61: 0 | BA61: 0
A62: 53 | H62: 0 | K62: 0 | L62: 0 | N62: 0 | O62: 0 | Q62: 0 | R62: 0 | S62: 0 | T62: 0 | V62: 0 | W62: 0 | X62: 0 | Y62: 0 | AA62: 0 | AB62: 0 | AC62: 0 | AD62: 0 | AF62: 0 | AG62: 0 | AH62: 0 | AI62: 0 | AK62: 0 | AL62: 0 | AM62: 0 | AN62: 0 | AO62: 0 | AP62: 0 | AQ62: 0 | AR62: 0 | AS62: 0 | AT62: 0 | AV62: 0 | AX62: 0 | AY62: 0 | AZ62: 0 | BA62: 0
A63: 54 | H63: 0 | K63: 0 | L63: 0 | N63: 0 | O63: 0 | Q63: 0 | R63: 0 | S63: 0 | T63: 0 | V63: 0 | W63: 0 | X63: 0 | Y63: 0 | AA63: 0 | AB63: 0 | AC63: 0 | AD63: 0 | AF63: 0 | AG63: 0 | AH63: 0 | AI63: 0 | AK63: 0 | AL63: 0 | AM63: 0 | AN63: 0 | AO63: 0 | AP63: 0 | AQ63: 0 | AR63: 0 | AS63: 0 | AT63: 0 | AV63: 0 | AX63: 0 | AY63: 0 | AZ63: 0 | BA63: 0
A64: 55 | H64: 0 | K64: 0 | L64: 0 | N64: 0 | O64: 0 | Q64: 0 | R64: 0 | S64: 0 | T64: 0 | V64: 0 | W64: 0 | X64: 0 | Y64: 0 | AA64: 0 | AB64: 0 | AC64: 0 | AD64: 0 | AF64: 0 | AG64: 0 | AH64: 0 | AI64: 0 | AK64: 0 | AL64: 0 | AM64: 0 | AN64: 0 | AO64: 0 | AP64: 0 | AQ64: 0 | AR64: 0 | AS64: 0 | AT64: 0 | AV64: 0 | AX64: 0 | AY64: 0 | AZ64: 0 | BA64: 0
A65: 56 | H65: 0 | K65: 0 | L65: 0 | N65: 0 | O65: 0 | Q65: 0 | R65: 0 | S65: 0 | T65: 0 | V65: 0 | W65: 0 | X65: 0 | Y65: 0 | AA65: 0 | AB65: 0 | AC65: 0 | AD65: 0 | AF65: 0 | AG65: 0 | AH65: 0 | AI65: 0 | AK65: 0 | AL65: 0 | AM65: 0 | AN65: 0 | AO65: 0 | AP65: 0 | AQ65: 0 | AR65: 0 | AS65: 0 | AT65: 0 | AV65: 0 | AX65: 0 | AY65: 0 | AZ65: 0 | BA65: 0
A66: 57 | H66: 0 | K66: 0 | L66: 0 | N66: 0 | O66: 0 | Q66: 0 | R66: 0 | S66: 0 | T66: 0 | V66: 0 | W66: 0 | X66: 0 | Y66: 0 | AA66: 0 | AB66: 0 | AC66: 0 | AD66: 0 | AF66: 0 | AG66: 0 | AH66: 0 | AI66: 0 | AK66: 0 | AL66: 0 | AM66: 0 | AN66: 0 | AO66: 0 | AP66: 0 | AQ66: 0 | AR66: 0 | AS66: 0 | AT66: 0 | AV66: 0 | AX66: 0 | AY66: 0 | AZ66: 0 | BA66: 0
A67: 58 | H67: 0 | K67: 0 | L67: 0 | N67: 0 | O67: 0 | Q67: 0 | R67: 0 | S67: 0 | T67: 0 | V67: 0 | W67: 0 | X67: 0 | Y67: 0 | AA67: 0 | AB67: 0 | AC67: 0 | AD67: 0 | AF67: 0 | AG67: 0 | AH67: 0 | AI67: 0 | AK67: 0 | AL67: 0 | AM67: 0 | AN67: 0 | AO67: 0 | AP67: 0 | AQ67: 0 | AR67: 0 | AS67: 0 | AT67: 0 | AV67: 0 | AX67: 0 | AY67: 0 | AZ67: 0 | BA67: 0
A68: 59 | H68: 0 | K68: 0 | L68: 0 | N68: 0 | O68: 0 | Q68: 0 | R68: 0 | S68: 0 | T68: 0 | V68: 0 | W68: 0 | X68: 0 | Y68: 0 | AA68: 0 | AB68: 0 | AC68: 0 | AD68: 0 | AF68: 0 | AG68: 0 | AH68: 0 | AI68: 0 | AK68: 0 | AL68: 0 | AM68: 0 | AN68: 0 | AO68: 0 | AP68: 0 | AQ68: 0 | AR68: 0 | AS68: 0 | AT68: 0 | AV68: 0 | AX68: 0 | AY68: 0 | AZ68: 0 | BA68: 0
A69: 60 | H69: 0 | K69: 0 | L69: 0 | N69: 0 | O69: 0 | Q69: 0 | R69: 0 | S69: 0 | T69: 0 | V69: 0 | W69: 0 | X69: 0 | Y69: 0 | AA69: 0 | AB69: 0 | AC69: 0 | AD69: 0 | AF69: 0 | AG69: 0 | AH69: 0 | AI69: 0 | AK69: 0 | AL69: 0 | AM69: 0 | AN69: 0 | AO69: 0 | AP69: 0 | AQ69: 0 | AR69: 0 | AS69: 0 | AT69: 0 | AV69: 0 | AX69: 0 | AY69: 0 | AZ69: 0 | BA69: 0
A70: 61 | H70: 0 | K70: 0 | L70: 0 | N70: 0 | O70: 0 | Q70: 0 | R70: 0 | S70: 0 | T70: 0 | V70: 0 | W70: 0 | X70: 0 | Y70: 0 | AA70: 0 | AB70: 0 | AC70: 0 | AD70: 0 | AF70: 0 | AG70: 0 | AH70: 0 | AI70: 0 | AK70: 0 | AL70: 0 | AM70: 0 | AN70: 0 | AO70: 0 | AP70: 0 | AQ70: 0 | AR70: 0 | AS70: 0 | AT70: 0 | AV70: 0 | AX70: 0 | AY70: 0 | AZ70: 0 | BA70: 0
A71: 62 | H71: 0 | K71: 0 | L71: 0 | N71: 0 | O71: 0 | Q71: 0 | R71: 0 | S71: 0 | T71: 0 | V71: 0 | W71: 0 | X71: 0 | Y71: 0 | AA71: 0 | AB71: 0 | AC71: 0 | AD71: 0 | AF71: 0 | AG71: 0 | AH71: 0 | AI71: 0 | AK71: 0 | AL71: 0 | AM71: 0 | AN71: 0 | AO71: 0 | AP71: 0 | AQ71: 0 | AR71: 0 | AS71: 0 | AT71: 0 | AV71: 0 | AX71: 0 | AY71: 0 | AZ71: 0 | BA71: 0
A72: 63 | H72: 0 | K72: 0 | L72: 0 | N72: 0 | O72: 0 | Q72: 0 | R72: 0 | S72: 0 | T72: 0 | V72: 0 | W72: 0 | X72: 0 | Y72: 0 | AA72: 0 | AB72: 0 | AC72: 0 | AD72: 0 | AF72: 0 | AG72: 0 | AH72: 0 | AI72: 0 | AK72: 0 | AL72: 0 | AM72: 0 | AN72: 0 | AO72: 0 | AP72: 0 | AQ72: 0 | AR72: 0 | AS72: 0 | AT72: 0 | AV72: 0 | AX72: 0 | AY72: 0 | AZ72: 0 | BA72: 0
A73: 64 | H73: 0 | K73: 0 | L73: 0 | N73: 0 | O73: 0 | Q73: 0 | R73: 0 | S73: 0 | T73: 0 | V73: 0 | W73: 0 | X73: 0 | Y73: 0 | AA73: 0 | AB73: 0 | AC73: 0 | AD73: 0 | AF73: 0 | AG73: 0 | AH73: 0 | AI73: 0 | AK73: 0 | AL73: 0 | AM73: 0 | AN73: 0 | AO73: 0 | AP73: 0 | AQ73: 0 | AR73: 0 | AS73: 0 | AT73: 0 | AV73: 0 | AX73: 0 | AY73: 0 | AZ73: 0 | BA73: 0
A74: 65 | H74: 0 | K74: 0 | L74: 0 | N74: 0 | O74: 0 | Q74: 0 | R74: 0 | S74: 0 | T74: 0 | V74: 0 | W74: 0 | X74: 0 | Y74: 0 | AA74: 0 | AB74: 0 | AC74: 0 | AD74: 0 | AF74: 0 | AG74: 0 | AH74: 0 | AI74: 0 | AK74: 0 | AL74: 0 | AM74: 0 | AN74: 0 | AO74: 0 | AP74: 0 | AQ74: 0 | AR74: 0 | AS74: 0 | AT74: 0 | AV74: 0 | AX74: 0 | AY74: 0 | AZ74: 0 | BA74: 0
A75: 66 | H75: 0 | K75: 0 | L75: 0 | N75: 0 | O75: 0 | Q75: 0 | R75: 0 | S75: 0 | T75: 0 | V75: 0 | W75: 0 | X75: 0 | Y75: 0 | AA75: 0 | AB75: 0 | AC75: 0 | AD75: 0 | AF75: 0 | AG75: 0 | AH75: 0 | AI75: 0 | AK75: 0 | AL75: 0 | AM75: 0 | AN75: 0 | AO75: 0 | AP75: 0 | AQ75: 0 | AR75: 0 | AS75: 0 | AT75: 0 | AV75: 0 | AX75: 0 | AY75: 0 | AZ75: 0 | BA75: 0
A76: 67 | H76: 0 | K76: 0 | L76: 0 | N76: 0 | O76: 0 | Q76: 0 | R76: 0 | S76: 0 | T76: 0 | V76: 0 | W76: 0 | X76: 0 | Y76: 0 | AA76: 0 | AB76: 0 | AC76: 0 | AD76: 0 | AF76: 0 | AG76: 0 | AH76: 0 | AI76: 0 | AK76: 0 | AL76: 0 | AM76: 0 | AN76: 0 | AO76: 0 | AP76: 0 | AQ76: 0 | AR76: 0 | AS76: 0 | AT76: 0 | AV76: 0 | AX76: 0 | AY76: 0 | AZ76: 0 | BA76: 0
A77: 68 | H77: 0 | K77: 0 | L77: 0 | N77: 0 | O77: 0 | Q77: 0 | R77: 0 | S77: 0 | T77: 0 | V77: 0 | W77: 0 | X77: 0 | Y77: 0 | AA77: 0 | AB77: 0 | AC77: 0 | AD77: 0 | AF77: 0 | AG77: 0 | AH77: 0 | AI77: 0 | AK77: 0 | AL77: 0 | AM77: 0 | AN77: 0 | AO77: 0 | AP77: 0 | AQ77: 0 | AR77: 0 | AS77: 0 | AT77: 0 | AV77: 0 | AX77: 0 | AY77: 0 | AZ77: 0 | BA77: 0
A78: 69 | H78: 0 | K78: 0 | L78: 0 | N78: 0 | O78: 0 | Q78: 0 | R78: 0 | S78: 0 | T78: 0 | V78: 0 | W78: 0 | X78: 0 | Y78: 0 | AA78: 0 | AB78: 0 | AC78: 0 | AD78: 0 | AF78: 0 | AG78: 0 | AH78: 0 | AI78: 0 | AK78: 0 | AL78: 0 | AM78: 0 | AN78: 0 | AO78: 0 | AP78: 0 | AQ78: 0 | AR78: 0 | AS78: 0 | AT78: 0 | AV78: 0 | AX78: 0 | AY78: 0 | AZ78: 0 | BA78: 0
A79: 70 | H79: 0 | K79: 0 | L79: 0 | N79: 0 | O79: 0 | Q79: 0 | R79: 0 | S79: 0 | T79: 0 | V79: 0 | W79: 0 | X79: 0 | Y79: 0 | AA79: 0 | AB79: 0 | AC79: 0 | AD79: 0 | AF79: 0 | AG79: 0 | AH79: 0 | AI79: 0 | AK79: 0 | AL79: 0 | AM79: 0 | AN79: 0 | AO79: 0 | AP79: 0 | AQ79: 0 | AR79: 0 | AS79: 0 | AT79: 0 | AV79: 0 | AX79: 0 | AY79: 0 | AZ79: 0 | BA79: 0
A80: 71 | H80: 0 | K80: 0 | L80: 0 | N80: 0 | O80: 0 | Q80: 0 | R80: 0 | S80: 0 | T80: 0 | V80: 0 | W80: 0 | X80: 0 | Y80: 0 | AA80: 0 | AB80: 0 | AC80: 0 | AD80: 0 | AF80: 0 | AG80: 0 | AH80: 0 | AI80: 0 | AK80: 0 | AL80: 0 | AM80: 0 | AN80: 0 | AO80: 0 | AP80: 0 | AQ80: 0 | AR80: 0 | AS80: 0 | AT80: 0 | AV80: 0 | AX80: 0 | AY80: 0 | AZ80: 0 | BA80: 0
A81: 72 | H81: 0 | K81: 0 | L81: 0 | N81: 0 | O81: 0 | Q81: 0 | R81: 0 | S81: 0 | T81: 0 | V81: 0 | W81: 0 | X81: 0 | Y81: 0 | AA81: 0 | AB81: 0 | AC81: 0 | AD81: 0 | AF81: 0 | AG81: 0 | AH81: 0 | AI81: 0 | AK81: 0 | AL81: 0 | AM81: 0 | AN81: 0 | AO81: 0 | AP81: 0 | AQ81: 0 | AR81: 0 | AS81: 0 | AT81: 0 | AV81: 0 | AX81: 0 | AY81: 0 | AZ81: 0 | BA81: 0
A82: 73 | H82: 0 | K82: 0 | L82: 0 | N82: 0 | O82: 0 | Q82: 0 | R82: 0 | S82: 0 | T82: 0 | V82: 0 | W82: 0 | X82: 0 | Y82: 0 | AA82: 0 | AB82: 0 | AC82: 0 | AD82: 0 | AF82: 0 | AG82: 0 | AH82: 0 | AI82: 0 | AK82: 0 | AL82: 0 | AM82: 0 | AN82: 0 | AO82: 0 | AP82: 0 | AQ82: 0 | AR82: 0 | AS82: 0 | AT82: 0 | AV82: 0 | AX82: 0 | AY82: 0 | AZ82: 0 | BA82: 0
A83: 74 | H83: 0 | K83: 0 | L83: 0 | N83: 0 | O83: 0 | Q83: 0 | R83: 0 | S83: 0 | T83: 0 | V83: 0 | W83: 0 | X83: 0 | Y83: 0 | AA83: 0 | AB83: 0 | AC83: 0 | AD83: 0 | AF83: 0 | AG83: 0 | AH83: 0 | AI83: 0 | AK83: 0 | AL83: 0 | AM83: 0 | AN83: 0 | AO83: 0 | AP83: 0 | AQ83: 0 | AR83: 0 | AS83: 0 | AT83: 0 | AV83: 0 | AX83: 0 | AY83: 0 | AZ83: 0 | BA83: 0
A84: 75 | H84: 0 | K84: 0 | L84: 0 | N84: 0 | O84: 0 | Q84: 0 | R84: 0 | S84: 0 | T84: 0 | V84: 0 | W84: 0 | X84: 0 | Y84: 0 | AA84: 0 | AB84: 0 | AC84: 0 | AD84: 0 | AF84: 0 | AG84: 0 | AH84: 0 | AI84: 0 | AK84: 0 | AL84: 0 | AM84: 0 | AN84: 0 | AO84: 0 | AP84: 0 | AQ84: 0 | AR84: 0 | AS84: 0 | AT84: 0 | AV84: 0 | AX84: 0 | AY84: 0 | AZ84: 0 | BA84: 0
A85: 76 | H85: 0 | K85: 0 | L85: 0 | N85: 0 | O85: 0 | Q85: 0 | R85: 0 | S85: 0 | T85: 0 | V85: 0 | W85: 0 | X85: 0 | Y85: 0 | AA85: 0 | AB85: 0 | AC85: 0 | AD85: 0 | AF85: 0 | AG85: 0 | AH85: 0 | AI85: 0 | AK85: 0 | AL85: 0 | AM85: 0 | AN85: 0 | AO85: 0 | AP85: 0 | AQ85: 0 | AR85: 0 | AS85: 0 | AT85: 0 | AV85: 0 | AX85: 0 | AY85: 0 | AZ85: 0 | BA85: 0
A86: 77 | H86: 0 | K86: 0 | L86: 0 | N86: 0 | O86: 0 | Q86: 0 | R86: 0 | S86: 0 | T86: 0 | V86: 0 | W86: 0 | X86: 0 | Y86: 0 | AA86: 0 | AB86: 0 | AC86: 0 | AD86: 0 | AF86: 0 | AG86: 0 | AH86: 0 | AI86: 0 | AK86: 0 | AL86: 0 | AM86: 0 | AN86: 0 | AO86: 0 | AP86: 0 | AQ86: 0 | AR86: 0 | AS86: 0 | AT86: 0 | AV86: 0 | AX86: 0 | AY86: 0 | AZ86: 0 | BA86: 0
A87: 78 | H87: 0 | K87: 0 | L87: 0 | N87: 0 | O87: 0 | Q87: 0 | R87: 0 | S87: 0 | T87: 0 | V87: 0 | W87: 0 | X87: 0 | Y87: 0 | AA87: 0 | AB87: 0 | AC87: 0 | AD87: 0 | AF87: 0 | AG87: 0 | AH87: 0 | AI87: 0 | AK87: 0 | AL87: 0 | AM87: 0 | AN87: 0 | AO87: 0 | AP87: 0 | AQ87: 0 | AR87: 0 | AS87: 0 | AT87: 0 | AV87: 0 | AX87: 0 | AY87: 0 | AZ87: 0 | BA87: 0
A88: 79 | H88: 0 | K88: 0 | L88: 0 | N88: 0 | O88: 0 | Q88: 0 | R88: 0 | S88: 0 | T88: 0 | V88: 0 | W88: 0 | X88: 0 | Y88: 0 | AA88: 0 | AB88: 0 | AC88: 0 | AD88: 0 | AF88: 0 | AG88: 0 | AH88: 0 | AI88: 0 | AK88: 0 | AL88: 0 | AM88: 0 | AN88: 0 | AO88: 0 | AP88: 0 | AQ88: 0 | AR88: 0 | AS88: 0 | AT88: 0 | AV88: 0 | AX88: 0 | AY88: 0 | AZ88: 0 | BA88: 0
A89: 80 | H89: 0 | K89: 0 | L89: 0 | N89: 0 | O89: 0 | Q89: 0 | R89: 0 | S89: 0 | T89: 0 | V89: 0 | W89: 0 | X89: 0 | Y89: 0 | AA89: 0 | AB89: 0 | AC89: 0 | AD89: 0 | AF89: 0 | AG89: 0 | AH89: 0 | AI89: 0 | AK89: 0 | AL89: 0 | AM89: 0 | AN89: 0 | AO89: 0 | AP89: 0 | AQ89: 0 | AR89: 0 | AS89: 0 | AT89: 0 | AV89: 0 | AX89: 0 | AY89: 0 | AZ89: 0 | BA89: 0
A90: 81 | H90: 0 | K90: 0 | L90: 0 | N90: 0 | O90: 0 | Q90: 0 | R90: 0 | S90: 0 | T90: 0 | V90: 0 | W90: 0 | X90: 0 | Y90: 0 | AA90: 0 | AB90: 0 | AC90: 0 | AD90: 0 | AF90: 0 | AG90: 0 | AH90: 0 | AI90: 0 | AK90: 0 | AL90: 0 | AM90: 0 | AN90: 0 | AO90: 0 | AP90: 0 | AQ90: 0 | AR90: 0 | AS90: 0 | AT90: 0 | AV90: 0 | AX90: 0 | AY90: 0 | AZ90: 0 | BA90: 0
A91: 82 | H91: 0 | K91: 0 | L91: 0 | N91: 0 | O91: 0 | Q91: 0 | R91: 0 | S91: 0 | T91: 0 | V91: 0 | W91: 0 | X91: 0 | Y91: 0 | AA91: 0 | AB91: 0 | AC91: 0 | AD91: 0 | AF91: 0 | AG91: 0 | AH91: 0 | AI91: 0 | AK91: 0 | AL91: 0 | AM91: 0 | AN91: 0 | AO91: 0 | AP91: 0 | AQ91: 0 | AR91: 0 | AS91: 0 | AT91: 0 | AV91: 0 | AX91: 0 | AY91: 0 | AZ91: 0 | BA91: 0
A92: 83 | H92: 0 | K92: 0 | L92: 0 | N92: 0 | O92: 0 | Q92: 0 | R92: 0 | S92: 0 | T92: 0 | V92: 0 | W92: 0 | X92: 0 | Y92: 0 | AA92: 0 | AB92: 0 | AC92: 0 | AD92: 0 | AF92: 0 | AG92: 0 | AH92: 0 | AI92: 0 | AK92: 0 | AL92: 0 | AM92: 0 | AN92: 0 | AO92: 0 | AP92: 0 | AQ92: 0 | AR92: 0 | AS92: 0 | AT92: 0 | AV92: 0 | AX92: 0 | AY92: 0 | AZ92: 0 | BA92: 0
A93: 84 | H93: 0 | K93: 0 | L93: 0 | N93: 0 | O93: 0 | Q93: 0 | R93: 0 | S93: 0 | T93: 0 | V93: 0 | W93: 0 | X93: 0 | Y93: 0 | AA93: 0 | AB93: 0 | AC93: 0 | AD93: 0 | AF93: 0 | AG93: 0 | AH93: 0 | AI93: 0 | AK93: 0 | AL93: 0 | AM93: 0 | AN93: 0 | AO93: 0 | AP93: 0 | AQ93: 0 | AR93: 0 | AS93: 0 | AT93: 0 | AV93: 0 | AX93: 0 | AY93: 0 | AZ93: 0 | BA93: 0
A94: 85 | H94: 0 | K94: 0 | L94: 0 | N94: 0 | O94: 0 | Q94: 0 | R94: 0 | S94: 0 | T94: 0 | V94: 0 | W94: 0 | X94: 0 | Y94: 0 | AA94: 0 | AB94: 0 | AC94: 0 | AD94: 0 | AF94: 0 | AG94: 0 | AH94: 0 | AI94: 0 | AK94: 0 | AL94: 0 | AM94: 0 | AN94: 0 | AO94: 0 | AP94: 0 | AQ94: 0 | AR94: 0 | AS94: 0 | AT94: 0 | AV94: 0 | AX94: 0 | AY94: 0 | AZ94: 0 | BA94: 0
A95: 86 | H95: 0 | K95: 0 | L95: 0 | N95: 0 | O95: 0 | Q95: 0 | R95: 0 | S95: 0 | T95: 0 | V95: 0 | W95: 0 | X95: 0 | Y95: 0 | AA95: 0 | AB95: 0 | AC95: 0 | AD95: 0 | AF95: 0 | AG95: 0 | AH95: 0 | AI95: 0 | AK95: 0 | AL95: 0 | AM95: 0 | AN95: 0 | AO95: 0 | AP95: 0 | AQ95: 0 | AR95: 0 | AS95: 0 | AT95: 0 | AV95: 0 | AX95: 0 | AY95: 0 | AZ95: 0 | BA95: 0
A96: 87 | H96: 0 | K96: 0 | L96: 0 | N96: 0 | O96: 0 | Q96: 0 | R96: 0 | S96: 0 | T96: 0 | V96: 0 | W96: 0 | X96: 0 | Y96: 0 | AA96: 0 | AB96: 0 | AC96: 0 | AD96: 0 | AF96: 0 | AG96: 0 | AH96: 0 | AI96: 0 | AK96: 0 | AL96: 0 | AM96: 0 | AN96: 0 | AO96: 0 | AP96: 0 | AQ96: 0 | AR96: 0 | AS96: 0 | AT96: 0 | AV96: 0 | AX96: 0 | AY96: 0 | AZ96: 0 | BA96: 0
A97: 88 | H97: 0 | K97: 0 | L97: 0 | N97: 0 | O97: 0 | Q97: 0 | R97: 0 | S97: 0 | T97: 0 | V97: 0 | W97: 0 | X97: 0 | Y97: 0 | AA97: 0 | AB97: 0 | AC97: 0 | AD97: 0 | AF97: 0 | AG97: 0 | AH97: 0 | AI97: 0 | AK97: 0 | AL97: 0 | AM97: 0 | AN97: 0 | AO97: 0 | AP97: 0 | AQ97: 0 | AR97: 0 | AS97: 0 | AT97: 0 | AV97: 0 | AX97: 0 | AY97: 0 | AZ97: 0 | BA97: 0
A98: 89 | H98: 0 | K98: 0 | L98: 0 | N98: 0 | O98: 0 | Q98: 0 | R98: 0 | S98: 0 | T98: 0 | V98: 0 | W98: 0 | X98: 0 | Y98: 0 | AA98: 0 | AB98: 0 | AC98: 0 | AD98: 0 | AF98: 0 | AG98: 0 | AH98: 0 | AI98: 0 | AK98: 0 | AL98: 0 | AM98: 0 | AN98: 0 | AO98: 0 | AP98: 0 | AQ98: 0 | AR98: 0 | AS98: 0 | AT98: 0 | AV98: 0 | AX98: 0 | AY98: 0 | AZ98: 0 | BA98: 0
A99: 90 | H99: 0 | K99: 0 | L99: 0 | N99: 0 | O99: 0 | Q99: 0 | R99: 0 | S99: 0 | T99: 0 | V99: 0 | W99: 0 | X99: 0 | Y99: 0 | AA99: 0 | AB99: 0 | AC99: 0 | AD99: 0 | AF99: 0 | AG99: 0 | AH99: 0 | AI99: 0 | AK99: 0 | AL99: 0 | AM99: 0 | AN99: 0 | AO99: 0 | AP99: 0 | AQ99: 0 | AR99: 0 | AS99: 0 | AT99: 0 | AV99: 0 | AX99: 0 | AY99: 0 | AZ99: 0 | BA99: 0
A100: 91 | H100: 0 | K100: 0 | L100: 0 | N100: 0 | O100: 0 | Q100: 0 | R100: 0 | S100: 0 | T100: 0 | V100: 0 | W100: 0 | X100: 0 | Y100: 0 | AA100: 0 | AB100: 0 | AC100: 0 | AD100: 0 | AF100: 0 | AG100: 0 | AH100: 0 | AI100: 0 | AK100: 0 | AL100: 0 | AM100: 0 | AN100: 0 | AO100: 0 | AP100: 0 | AQ100: 0 | AR100: 0 | AS100: 0 | AT100: 0 | AV100: 0 | AX100: 0 | AY100: 0 | AZ100: 0 | BA100: 0
A101: 92 | H101: 0 | K101: 0 | L101: 0 | N101: 0 | O101: 0 | Q101: 0 | R101: 0 | S101: 0 | T101: 0 | V101: 0 | W101: 0 | X101: 0 | Y101: 0 | AA101: 0 | AB101: 0 | AC101: 0 | AD101: 0 | AF101: 0 | AG101: 0 | AH101: 0 | AI101: 0 | AK101: 0 | AL101: 0 | AM101: 0 | AN101: 0 | AO101: 0 | AP101: 0 | AQ101: 0 | AR101: 0 | AS101: 0 | AT101: 0 | AV101: 0 | AX101: 0 | AY101: 0 | AZ101: 0 | BA101: 0
A102: 93 | H102: 0 | K102: 0 | L102: 0 | N102: 0 | O102: 0 | Q102: 0 | R102: 0 | S102: 0 | T102: 0 | V102: 0 | W102: 0 | X102: 0 | Y102: 0 | AA102: 0 | AB102: 0 | AC102: 0 | AD102: 0 | AF102: 0 | AG102: 0 | AH102: 0 | AI102: 0 | AK102: 0 | AL102: 0 | AM102: 0 | AN102: 0 | AO102: 0 | AP102: 0 | AQ102: 0 | AR102: 0 | AS102: 0 | AT102: 0 | AV102: 0 | AX102: 0 | AY102: 0 | AZ102: 0 | BA102: 0
A103: 94 | H103: 0 | K103: 0 | L103: 0 | N103: 0 | O103: 0 | Q103: 0 | R103: 0 | S103: 0 | T103: 0 | V103: 0 | W103: 0 | X103: 0 | Y103: 0 | AA103: 0 | AB103: 0 | AC103: 0 | AD103: 0 | AF103: 0 | AG103: 0 | AH103: 0 | AI103: 0 | AK103: 0 | AL103: 0 | AM103: 0 | AN103: 0 | AO103: 0 | AP103: 0 | AQ103: 0 | AR103: 0 | AS103: 0 | AT103: 0 | AV103: 0 | AX103: 0 | AY103: 0 | AZ103: 0 | BA103: 0
A104: 95 | H104: 0 | K104: 0 | L104: 0 | N104: 0 | O104: 0 | Q104: 0 | R104: 0 | S104: 0 | T104: 0 | V104: 0 | W104: 0 | X104: 0 | Y104: 0 | AA104: 0 | AB104: 0 | AC104: 0 | AD104: 0 | AF104: 0 | AG104: 0 | AH104: 0 | AI104: 0 | AK104: 0 | AL104: 0 | AM104: 0 | AN104: 0 | AO104: 0 | AP104: 0 | AQ104: 0 | AR104: 0 | AS104: 0 | AT104: 0 | AV104: 0 | AX104: 0 | AY104: 0 | AZ104: 0 | BA104: 0
A105: 96 | H105: 0 | K105: 0 | L105: 0 | N105: 0 | O105: 0 | Q105: 0 | R105: 0 | S105: 0 | T105: 0 | V105: 0 | W105: 0 | X105: 0 | Y105: 0 | AA105: 0 | AB105: 0 | AC105: 0 | AD105: 0 | AF105: 0 | AG105: 0 | AH105: 0 | AI105: 0 | AK105: 0 | AL105: 0 | AM105: 0 | AN105: 0 | AO105: 0 | AP105: 0 | AQ105: 0 | AR105: 0 | AS105: 0 | AT105: 0 | AV105: 0 | AX105: 0 | AY105: 0 | AZ105: 0 | BA105: 0
A106: 97 | H106: 0 | K106: 0 | L106: 0 | N106: 0 | O106: 0 | Q106: 0 | R106: 0 | S106: 0 | T106: 0 | V106: 0 | W106: 0 | X106: 0 | Y106: 0 | AA106: 0 | AB106: 0 | AC106: 0 | AD106: 0 | AF106: 0 | AG106: 0 | AH106: 0 | AI106: 0 | AK106: 0 | AL106: 0 | AM106: 0 | AN106: 0 | AO106: 0 | AP106: 0 | AQ106: 0 | AR106: 0 | AS106: 0 | AT106: 0 | AV106: 0 | AX106: 0 | AY106: 0 | AZ106: 0 | BA106: 0
A107: 98 | H107: 0 | K107: 0 | L107: 0 | N107: 0 | O107: 0 | Q107: 0 | R107: 0 | S107: 0 | T107: 0 | V107: 0 | W107: 0 | X107: 0 | Y107: 0 | AA107: 0 | AB107: 0 | AC107: 0 | AD107: 0 | AF107: 0 | AG107: 0 | AH107: 0 | AI107: 0 | AK107: 0 | AL107: 0 | AM107: 0 | AN107: 0 | AO107: 0 | AP107: 0 | AQ107: 0 | AR107: 0 | AS107: 0 | AT107: 0 | AV107: 0 | AX107: 0 | AY107: 0 | AZ107: 0 | BA107: 0
A108: 99 | H108: 0 | K108: 0 | L108: 0 | N108: 0 | O108: 0 | Q108: 0 | R108: 0 | S108: 0 | T108: 0 | V108: 0 | W108: 0 | X108: 0 | Y108: 0 | AA108: 0 | AB108: 0 | AC108: 0 | AD108: 0 | AF108: 0 | AG108: 0 | AH108: 0 | AI108: 0 | AK108: 0 | AL108: 0 | AM108: 0 | AN108: 0 | AO108: 0 | AP108: 0 | AQ108: 0 | AR108: 0 | AS108: 0 | AT108: 0 | AV108: 0 | AX108: 0 | AY108: 0 | AZ108: 0 | BA108: 0
A109: 100 | H109: 0 | K109: 0 | L109: 0 | N109: 0 | O109: 0 | Q109: 0 | R109: 0 | S109: 0 | T109: 0 | V109: 0 | W109: 0 | X109: 0 | Y109: 0 | AA109: 0 | AB109: 0 | AC109: 0 | AD109: 0 | AF109: 0 | AG109: 0 | AH109: 0 | AI109: 0 | AK109: 0 | AL109: 0 | AM109: 0 | AN109: 0 | AO109: 0 | AP109: 0 | AQ109: 0 | AR109: 0 | AS109: 0 | AT109: 0 | AV109: 0 | AX109: 0 | AY109: 0 | AZ109: 0 | BA109: 0
A110: 101 | H110: 0 | K110: 0 | L110: 0 | N110: 0 | O110: 0 | Q110: 0 | R110: 0 | S110: 0 | T110: 0 | V110: 0 | W110: 0 | X110: 0 | Y110: 0 | AA110: 0 | AB110: 0 | AC110: 0 | AD110: 0 | AF110: 0 | AG110: 0 | AH110: 0 | AI110: 0 | AK110: 0 | AL110: 0 | AM110: 0 | AN110: 0 | AO110: 0 | AP110: 0 | AQ110: 0 | AR110: 0 | AS110: 0 | AT110: 0 | AV110: 0 | AX110: 0 | AY110: 0 | AZ110: 0 | BA110: 0
A111: 102 | H111: 0 | K111: 0 | L111: 0 | N111: 0 | O111: 0 | Q111: 0 | R111: 0 | S111: 0 | T111: 0 | V111: 0 | W111: 0 | X111: 0 | Y111: 0 | AA111: 0 | AB111: 0 | AC111: 0 | AD111: 0 | AF111: 0 | AG111: 0 | AH111: 0 | AI111: 0 | AK111: 0 | AL111: 0 | AM111: 0 | AN111: 0 | AO111: 0 | AP111: 0 | AQ111: 0 | AR111: 0 | AS111: 0 | AT111: 0 | AV111: 0 | AX111: 0 | AY111: 0 | AZ111: 0 | BA111: 0
A112: 103 | H112: 0 | K112: 0 | L112: 0 | N112: 0 | O112: 0 | Q112: 0 | R112: 0 | S112: 0 | T112: 0 | V112: 0 | W112: 0 | X112: 0 | Y112: 0 | AA112: 0 | AB112: 0 | AC112: 0 | AD112: 0 | AF112: 0 | AG112: 0 | AH112: 0 | AI112: 0 | AK112: 0 | AL112: 0 | AM112: 0 | AN112: 0 | AO112: 0 | AP112: 0 | AQ112: 0 | AR112: 0 | AS112: 0 | AT112: 0 | AV112: 0 | AX112: 0 | AY112: 0 | AZ112: 0 | BA112: 0
A113: 104 | H113: 0 | K113: 0 | L113: 0 | N113: 0 | O113: 0 | Q113: 0 | R113: 0 | S113: 0 | T113: 0 | V113: 0 | W113: 0 | X113: 0 | Y113: 0 | AA113: 0 | AB113: 0 | AC113: 0 | AD113: 0 | AF113: 0 | AG113: 0 | AH113: 0 | AI113: 0 | AK113: 0 | AL113: 0 | AM113: 0 | AN113: 0 | AO113: 0 | AP113: 0 | AQ113: 0 | AR113: 0 | AS113: 0 | AT113: 0 | AV113: 0 | AX113: 0 | AY113: 0 | AZ113: 0 | BA113: 0
A114: 105 | H114: 0 | K114: 0 | L114: 0 | N114: 0 | O114: 0 | Q114: 0 | R114: 0 | S114: 0 | T114: 0 | V114: 0 | W114: 0 | X114: 0 | Y114: 0 | AA114: 0 | AB114: 0 | AC114: 0 | AD114: 0 | AF114: 0 | AG114: 0 | AH114: 0 | AI114: 0 | AK114: 0 | AL114: 0 | AM114: 0 | AN114: 0 | AO114: 0 | AP114: 0 | AQ114: 0 | AR114: 0 | AS114: 0 | AT114: 0 | AV114: 0 | AX114: 0 | AY114: 0 | AZ114: 0 | BA114: 0
A115: 106 | H115: 0 | K115: 0 | L115: 0 | N115: 0 | O115: 0 | Q115: 0 | R115: 0 | S115: 0 | T115: 0 | V115: 0 | W115: 0 | X115: 0 | Y115: 0 | AA115: 0 | AB115: 0 | AC115: 0 | AD115: 0 | AF115: 0 | AG115: 0 | AH115: 0 | AI115: 0 | AK115: 0 | AL115: 0 | AM115: 0 | AN115: 0 | AO115: 0 | AP115: 0 | AQ115: 0 | AR115: 0 | AS115: 0 | AT115: 0 | AV115: 0 | AX115: 0 | AY115: 0 | AZ115: 0 | BA115: 0
A116: 107 | H116: 0 | K116: 0 | L116: 0 | N116: 0 | O116: 0 | Q116: 0 | R116: 0 | S116: 0 | T116: 0 | V116: 0 | W116: 0 | X116: 0 | Y116: 0 | AA116: 0 | AB116: 0 | AC116: 0 | AD116: 0 | AF116: 0 | AG116: 0 | AH116: 0 | AI116: 0 | AK116: 0 | AL116: 0 | AM116: 0 | AN116: 0 | AO116: 0 | AP116: 0 | AQ116: 0 | AR116: 0 | AS116: 0 | AT116: 0 | AV116: 0 | AX116: 0 | AY116: 0 | AZ116: 0 | BA116: 0
A117: 108 | H117: 0 | K117: 0 | L117: 0 | N117: 0 | O117: 0 | Q117: 0 | R117: 0 | S117: 0 | T117: 0 | V117: 0 | W117: 0 | X117: 0 | Y117: 0 | AA117: 0 | AB117: 0 | AC117: 0 | AD117: 0 | AF117: 0 | AG117: 0 | AH117: 0 | AI117: 0 | AK117: 0 | AL117: 0 | AM117: 0 | AN117: 0 | AO117: 0 | AP117: 0 | AQ117: 0 | AR117: 0 | AS117: 0 | AT117: 0 | AV117: 0 | AX117: 0 | AY117: 0 | AZ117: 0 | BA117: 0
A118: 109 | H118: 0 | K118: 0 | L118: 0 | N118: 0 | O118: 0 | Q118: 0 | R118: 0 | S118: 0 | T118: 0 | V118: 0 | W118: 0 | X118: 0 | Y118: 0 | AA118: 0 | AB118: 0 | AC118: 0 | AD118: 0 | AF118: 0 | AG118: 0 | AH118: 0 | AI118: 0 | AK118: 0 | AL118: 0 | AM118: 0 | AN118: 0 | AO118: 0 | AP118: 0 | AQ118: 0 | AR118: 0 | AS118: 0 | AT118: 0 | AV118: 0 | AX118: 0 | AY118: 0 | AZ118: 0 | BA118: 0
A119: 110 | H119: 0 | K119: 0 | L119: 0 | N119: 0 | O119: 0 | Q119: 0 | R119: 0 | S119: 0 | T119: 0 | V119: 0 | W119: 0 | X119: 0 | Y119: 0 | AA119: 0 | AB119: 0 | AC119: 0 | AD119: 0 | AF119: 0 | AG119: 0 | AH119: 0 | AI119: 0 | AK119: 0 | AL119: 0 | AM119: 0 | AN119: 0 | AO119: 0 | AP119: 0 | AQ119: 0 | AR119: 0 | AS119: 0 | AT119: 0 | AV119: 0 | AX119: 0 | AY119: 0 | AZ119: 0 | BA119: 0
A120: 111 | H120: 0 | K120: 0 | L120: 0 | N120: 0 | O120: 0 | Q120: 0 | R120: 0 | S120: 0 | T120: 0 | V120: 0 | W120: 0 | X120: 0 | Y120: 0 | AA120: 0 | AB120: 0 | AC120: 0 | AD120: 0 | AF120: 0 | AG120: 0 | AH120: 0 | AI120: 0 | AK120: 0 | AL120: 0 | AM120: 0 | AN120: 0 | AO120: 0 | AP120: 0 | AQ120: 0 | AR120: 0 | AS120: 0 | AT120: 0 | AV120: 0 | AX120: 0 | AY120: 0 | AZ120: 0 | BA120: 0
A121: 112 | H121: 0 | K121: 0 | L121: 0 | N121: 0 | O121: 0 | Q121: 0 | R121: 0 | S121: 0 | T121: 0 | V121: 0 | W121: 0 | X121: 0 | Y121: 0 | AA121: 0 | AB121: 0 | AC121: 0 | AD121: 0 | AF121: 0 | AG121: 0 | AH121: 0 | AI121: 0 | AK121: 0 | AL121: 0 | AM121: 0 | AN121: 0 | AO121: 0 | AP121: 0 | AQ121: 0 | AR121: 0 | AS121: 0 | AT121: 0 | AV121: 0 | AX121: 0 | AY121: 0 | AZ121: 0 | BA121: 0
A122: 113 | H122: 0 | K122: 0 | L122: 0 | N122: 0 | O122: 0 | Q122: 0 | R122: 0 | S122: 0 | T122: 0 | V122: 0 | W122: 0 | X122: 0 | Y122: 0 | AA122: 0 | AB122: 0 | AC122: 0 | AD122: 0 | AF122: 0 | AG122: 0 | AH122: 0 | AI122: 0 | AK122: 0 | AL122: 0 | AM122: 0 | AN122: 0 | AO122: 0 | AP122: 0 | AQ122: 0 | AR122: 0 | AS122: 0 | AT122: 0 | AV122: 0 | AX122: 0 | AY122: 0 | AZ122: 0 | BA122: 0
A123: 114 | H123: 0 | K123: 0 | L123: 0 | N123: 0 | O123: 0 | Q123: 0 | R123: 0 | S123: 0 | T123: 0 | V123: 0 | W123: 0 | X123: 0 | Y123: 0 | AA123: 0 | AB123: 0 | AC123: 0 | AD123: 0 | AF123: 0 | AG123: 0 | AH123: 0 | AI123: 0 | AK123: 0 | AL123: 0 | AM123: 0 | AN123: 0 | AO123: 0 | AP123: 0 | AQ123: 0 | AR123: 0 | AS123: 0 | AT123: 0 | AV123: 0 | AX123: 0 | AY123: 0 | AZ123: 0 | BA123: 0
A124: 115 | H124: 0 | K124: 0 | L124: 0 | N124: 0 | O124: 0 | Q124: 0 | R124: 0 | S124: 0 | T124: 0 | V124: 0 | W124: 0 | X124: 0 | Y124: 0 | AA124: 0 | AB124: 0 | AC124: 0 | AD124: 0 | AF124: 0 | AG124: 0 | AH124: 0 | AI124: 0 | AK124: 0 | AL124: 0 | AM124: 0 | AN124: 0 | AO124: 0 | AP124: 0 | AQ124: 0 | AR124: 0 | AS124: 0 | AT124: 0 | AV124: 0 | AX124: 0 | AY124: 0 | AZ124: 0 | BA124: 0
A125: 116 | H125: 0 | K125: 0 | L125: 0 | N125: 0 | O125: 0 | Q125: 0 | R125: 0 | S125: 0 | T125: 0 | V125: 0 | W125: 0 | X125: 0 | Y125: 0 | AA125: 0 | AB125: 0 | AC125: 0 | AD125: 0 | AF125: 0 | AG125: 0 | AH125: 0 | AI125: 0 | AK125: 0 | AL125: 0 | AM125: 0 | AN125: 0 | AO125: 0 | AP125: 0 | AQ125: 0 | AR125: 0 | AS125: 0 | AT125: 0 | AV125: 0 | AX125: 0 | AY125: 0 | AZ125: 0 | BA125: 0
A126: 117 | H126: 0 | K126: 0 | L126: 0 | N126: 0 | O126: 0 | Q126: 0 | R126: 0 | S126: 0 | T126: 0 | V126: 0 | W126: 0 | X126: 0 | Y126: 0 | AA126: 0 | AB126: 0 | AC126: 0 | AD126: 0 | AF126: 0 | AG126: 0 | AH126: 0 | AI126: 0 | AK126: 0 | AL126: 0 | AM126: 0 | AN126: 0 | AO126: 0 | AP126: 0 | AQ126: 0 | AR126: 0 | AS126: 0 | AT126: 0 | AV126: 0 | AX126: 0 | AY126: 0 | AZ126: 0 | BA126: 0
A127: 118 | H127: 0 | K127: 0 | L127: 0 | N127: 0 | O127: 0 | Q127: 0 | R127: 0 | S127: 0 | T127: 0 | V127: 0 | W127: 0 | X127: 0 | Y127: 0 | AA127: 0 | AB127: 0 | AC127: 0 | AD127: 0 | AF127: 0 | AG127: 0 | AH127: 0 | AI127: 0 | AK127: 0 | AL127: 0 | AM127: 0 | AN127: 0 | AO127: 0 | AP127: 0 | AQ127: 0 | AR127: 0 | AS127: 0 | AT127: 0 | AV127: 0 | AX127: 0 | AY127: 0 | AZ127: 0 | BA127: 0
A128: 119 | H128: 0 | K128: 0 | L128: 0 | N128: 0 | O128: 0 | Q128: 0 | R128: 0 | S128: 0 | T128: 0 | V128: 0 | W128: 0 | X128: 0 | Y128: 0 | AA128: 0 | AB128: 0 | AC128: 0 | AD128: 0 | AF128: 0 | AG128: 0 | AH128: 0 | AI128: 0 | AK128: 0 | AL128: 0 | AM128: 0 | AN128: 0 | AO128: 0 | AP128: 0 | AQ128: 0 | AR128: 0 | AS128: 0 | AT128: 0 | AV128: 0 | AX128: 0 | AY128: 0 | AZ128: 0 | BA128: 0
A129: 120 | H129: 0 | K129: 0 | L129: 0 | N129: 0 | O129: 0 | Q129: 0 | R129: 0 | S129: 0 | T129: 0 | V129: 0 | W129: 0 | X129: 0 | Y129: 0 | AA129: 0 | AB129: 0 | AC129: 0 | AD129: 0 | AF129: 0 | AG129: 0 | AH129: 0 | AI129: 0 | AK129: 0 | AL129: 0 | AM129: 0 | AN129: 0 | AO129: 0 | AP129: 0 | AQ129: 0 | AR129: 0 | AS129: 0 | AT129: 0 | AV129: 0 | AX129: 0 | AY129: 0 | AZ129: 0 | BA129: 0
A130: 121 | H130: 0 | K130: 0 | L130: 0 | N130: 0 | O130: 0 | Q130: 0 | R130: 0 | S130: 0 | T130: 0 | V130: 0 | W130: 0 | X130: 0 | Y130: 0 | AA130: 0 | AB130: 0 | AC130: 0 | AD130: 0 | AF130: 0 | AG130: 0 | AH130: 0 | AI130: 0 | AK130: 0 | AL130: 0 | AM130: 0 | AN130: 0 | AO130: 0 | AP130: 0 | AQ130: 0 | AR130: 0 | AS130: 0 | AT130: 0 | AV130: 0 | AX130: 0 | AY130: 0 | AZ130: 0 | BA130: 0
A131: 122 | H131: 0 | K131: 0 | L131: 0 | N131: 0 | O131: 0 | Q131: 0 | R131: 0 | S131: 0 | T131: 0 | V131: 0 | W131: 0 | X131: 0 | Y131: 0 | AA131: 0 | AB131: 0 | AC131: 0 | AD131: 0 | AF131: 0 | AG131: 0 | AH131: 0 | AI131: 0 | AK131: 0 | AL131: 0 | AM131: 0 | AN131: 0 | AO131: 0 | AP131: 0 | AQ131: 0 | AR131: 0 | AS131: 0 | AT131: 0 | AV131: 0 | AX131: 0 | AY131: 0 | AZ131: 0 | BA131: 0
A132: 123 | H132: 0 | K132: 0 | L132: 0 | N132: 0 | O132: 0 | Q132: 0 | R132: 0 | S132: 0 | T132: 0 | V132: 0 | W132: 0 | X132: 0 | Y132: 0 | AA132: 0 | AB132: 0 | AC132: 0 | AD132: 0 | AF132: 0 | AG132: 0 | AH132: 0 | AI132: 0 | AK132: 0 | AL132: 0 | AM132: 0 | AN132: 0 | AO132: 0 | AP132: 0 | AQ132: 0 | AR132: 0 | AS132: 0 | AT132: 0 | AV132: 0 | AX132: 0 | AY132: 0 | AZ132: 0 | BA132: 0
A133: 124 | H133: 0 | K133: 0 | L133: 0 | N133: 0 | O133: 0 | Q133: 0 | R133: 0 | S133: 0 | T133: 0 | V133: 0 | W133: 0 | X133: 0 | Y133: 0 | AA133: 0 | AB133: 0 | AC133: 0 | AD133: 0 | AF133: 0 | AG133: 0 | AH133: 0 | AI133: 0 | AK133: 0 | AL133: 0 | AM133: 0 | AN133: 0 | AO133: 0 | AP133: 0 | AQ133: 0 | AR133: 0 | AS133: 0 | AT133: 0 | AV133: 0 | AX133: 0 | AY133: 0 | AZ133: 0 | BA133: 0
A134: 125 | H134: 0 | K134: 0 | L134: 0 | N134: 0 | O134: 0 | Q134: 0 | R134: 0 | S134: 0 | T134: 0 | V134: 0 | W134: 0 | X134: 0 | Y134: 0 | AA134: 0 | AB134: 0 | AC134: 0 | AD134: 0 | AF134: 0 | AG134: 0 | AH134: 0 | AI134: 0 | AK134: 0 | AL134: 0 | AM134: 0 | AN134: 0 | AO134: 0 | AP134: 0 | AQ134: 0 | AR134: 0 | AS134: 0 | AT134: 0 | AV134: 0 | AX134: 0 | AY134: 0 | AZ134: 0 | BA134: 0
A135: 126 | H135: 0 | K135: 0 | L135: 0 | N135: 0 | O135: 0 | Q135: 0 | R135: 0 | S135: 0 | T135: 0 | V135: 0 | W135: 0 | X135: 0 | Y135: 0 | AA135: 0 | AB135: 0 | AC135: 0 | AD135: 0 | AF135: 0 | AG135: 0 | AH135: 0 | AI135: 0 | AK135: 0 | AL135: 0 | AM135: 0 | AN135: 0 | AO135: 0 | AP135: 0 | AQ135: 0 | AR135: 0 | AS135: 0 | AT135: 0 | AV135: 0 | AX135: 0 | AY135: 0 | AZ135: 0 | BA135: 0
A136: 127 | H136: 0 | K136: 0 | L136: 0 | N136: 0 | O136: 0 | Q136: 0 | R136: 0 | S136: 0 | T136: 0 | V136: 0 | W136: 0 | X136: 0 | Y136: 0 | AA136: 0 | AB136: 0 | AC136: 0 | AD136: 0 | AF136: 0 | AG136: 0 | AH136: 0 | AI136: 0 | AK136: 0 | AL136: 0 | AM136: 0 | AN136: 0 | AO136: 0 | AP136: 0 | AQ136: 0 | AR136: 0 | AS136: 0 | AT136: 0 | AV136: 0 | AX136: 0 | AY136: 0 | AZ136: 0 | BA136: 0
A137: 128 | H137: 0 | K137: 0 | L137: 0 | N137: 0 | O137: 0 | Q137: 0 | R137: 0 | S137: 0 | T137: 0 | V137: 0 | W137: 0 | X137: 0 | Y137: 0 | AA137: 0 | AB137: 0 | AC137: 0 | AD137: 0 | AF137: 0 | AG137: 0 | AH137: 0 | AI137: 0 | AK137: 0 | AL137: 0 | AM137: 0 | AN137: 0 | AO137: 0 | AP137: 0 | AQ137: 0 | AR137: 0 | AS137: 0 | AT137: 0 | AV137: 0 | AX137: 0 | AY137: 0 | AZ137: 0 | BA137: 0
A138: 129 | H138: 0 | K138: 0 | L138: 0 | N138: 0 | O138: 0 | Q138: 0 | R138: 0 | S138: 0 | T138: 0 | V138: 0 | W138: 0 | X138: 0 | Y138: 0 | AA138: 0 | AB138: 0 | AC138: 0 | AD138: 0 | AF138: 0 | AG138: 0 | AH138: 0 | AI138: 0 | AK138: 0 | AL138: 0 | AM138: 0 | AN138: 0 | AO138: 0 | AP138: 0 | AQ138: 0 | AR138: 0 | AS138: 0 | AT138: 0 | AV138: 0 | AX138: 0 | AY138: 0 | AZ138: 0 | BA138: 0
A139: 130 | H139: 0 | K139: 0 | L139: 0 | N139: 0 | O139: 0 | Q139: 0 | R139: 0 | S139: 0 | T139: 0 | V139: 0 | W139: 0 | X139: 0 | Y139: 0 | AA139: 0 | AB139: 0 | AC139: 0 | AD139: 0 | AF139: 0 | AG139: 0 | AH139: 0 | AI139: 0 | AK139: 0 | AL139: 0 | AM139: 0 | AN139: 0 | AO139: 0 | AP139: 0 | AQ139: 0 | AR139: 0 | AS139: 0 | AT139: 0 | AV139: 0 | AX139: 0 | AY139: 0 | AZ139: 0 | BA139: 0
A140: 131 | H140: 0 | K140: 0 | L140: 0 | N140: 0 | O140: 0 | Q140: 0 | R140: 0 | S140: 0 | T140: 0 | V140: 0 | W140: 0 | X140: 0 | Y140: 0 | AA140: 0 | AB140: 0 | AC140: 0 | AD140: 0 | AF140: 0 | AG140: 0 | AH140: 0 | AI140: 0 | AK140: 0 | AL140: 0 | AM140: 0 | AN140: 0 | AO140: 0 | AP140: 0 | AQ140: 0 | AR140: 0 | AS140: 0 | AT140: 0 | AV140: 0 | AX140: 0 | AY140: 0 | AZ140: 0 | BA140: 0
A141: 132 | H141: 0 | K141: 0 | L141: 0 | N141: 0 | O141: 0 | Q141: 0 | R141: 0 | S141: 0 | T141: 0 | V141: 0 | W141: 0 | X141: 0 | Y141: 0 | AA141: 0 | AB141: 0 | AC141: 0 | AD141: 0 | AF141: 0 | AG141: 0 | AH141: 0 | AI141: 0 | AK141: 0 | AL141: 0 | AM141: 0 | AN141: 0 | AO141: 0 | AP141: 0 | AQ141: 0 | AR141: 0 | AS141: 0 | AT141: 0 | AV141: 0 | AX141: 0 | AY141: 0 | AZ141: 0 | BA141: 0
A142: 133 | H142: 0 | K142: 0 | L142: 0 | N142: 0 | O142: 0 | Q142: 0 | R142: 0 | S142: 0 | T142: 0 | V142: 0 | W142: 0 | X142: 0 | Y142: 0 | AA142: 0 | AB142: 0 | AC142: 0 | AD142: 0 | AF142: 0 | AG142: 0 | AH142: 0 | AI142: 0 | AK142: 0 | AL142: 0 | AM142: 0 | AN142: 0 | AO142: 0 | AP142: 0 | AQ142: 0 | AR142: 0 | AS142: 0 | AT142: 0 | AV142: 0 | AX142: 0 | AY142: 0 | AZ142: 0 | BA142: 0
A143: 134 | H143: 0 | K143: 0 | L143: 0 | N143: 0 | O143: 0 | Q143: 0 | R143: 0 | S143: 0 | T143: 0 | V143: 0 | W143: 0 | X143: 0 | Y143: 0 | AA143: 0 | AB143: 0 | AC143: 0 | AD143: 0 | AF143: 0 | AG143: 0 | AH143: 0 | AI143: 0 | AK143: 0 | AL143: 0 | AM143: 0 | AN143: 0 | AO143: 0 | AP143: 0 | AQ143: 0 | AR143: 0 | AS143: 0 | AT143: 0 | AV143: 0 | AX143: 0 | AY143: 0 | AZ143: 0 | BA143: 0
A144: 135 | H144: 0 | K144: 0 | L144: 0 | N144: 0 | O144: 0 | Q144: 0 | R144: 0 | S144: 0 | T144: 0 | V144: 0 | W144: 0 | X144: 0 | Y144: 0 | AA144: 0 | AB144: 0 | AC144: 0 | AD144: 0 | AF144: 0 | AG144: 0 | AH144: 0 | AI144: 0 | AK144: 0 | AL144: 0 | AM144: 0 | AN144: 0 | AO144: 0 | AP144: 0 | AQ144: 0 | AR144: 0 | AS144: 0 | AT144: 0 | AV144: 0 | AX144: 0 | AY144: 0 | AZ144: 0 | BA144: 0
A145: 136 | H145: 0 | K145: 0 | L145: 0 | N145: 0 | O145: 0 | Q145: 0 | R145: 0 | S145: 0 | T145: 0 | V145: 0 | W145: 0 | X145: 0 | Y145: 0 | AA145: 0 | AB145: 0 | AC145: 0 | AD145: 0 | AF145: 0 | AG145: 0 | AH145: 0 | AI145: 0 | AK145: 0 | AL145: 0 | AM145: 0 | AN145: 0 | AO145: 0 | AP145: 0 | AQ145: 0 | AR145: 0 | AS145: 0 | AT145: 0 | AV145: 0 | AX145: 0 | AY145: 0 | AZ145: 0 | BA145: 0
A146: 137 | H146: 0 | K146: 0 | L146: 0 | N146: 0 | O146: 0 | Q146: 0 | R146: 0 | S146: 0 | T146: 0 | V146: 0 | W146: 0 | X146: 0 | Y146: 0 | AA146: 0 | AB146: 0 | AC146: 0 | AD146: 0 | AF146: 0 | AG146: 0 | AH146: 0 | AI146: 0 | AK146: 0 | AL146: 0 | AM146: 0 | AN146: 0 | AO146: 0 | AP146: 0 | AQ146: 0 | AR146: 0 | AS146: 0 | AT146: 0 | AV146: 0 | AX146: 0 | AY146: 0 | AZ146: 0 | BA146: 0
A147: 138 | H147: 0 | K147: 0 | L147: 0 | N147: 0 | O147: 0 | Q147: 0 | R147: 0 | S147: 0 | T147: 0 | V147: 0 | W147: 0 | X147: 0 | Y147: 0 | AA147: 0 | AB147: 0 | AC147: 0 | AD147: 0 | AF147: 0 | AG147: 0 | AH147: 0 | AI147: 0 | AK147: 0 | AL147: 0 | AM147: 0 | AN147: 0 | AO147: 0 | AP147: 0 | AQ147: 0 | AR147: 0 | AS147: 0 | AT147: 0 | AV147: 0 | AX147: 0 | AY147: 0 | AZ147: 0 | BA147: 0
A148: 139 | H148: 0 | K148: 0 | L148: 0 | N148: 0 | O148: 0 | Q148: 0 | R148: 0 | S148: 0 | T148: 0 | V148: 0 | W148: 0 | X148: 0 | Y148: 0 | AA148: 0 | AB148: 0 | AC148: 0 | AD148: 0 | AF148: 0 | AG148: 0 | AH148: 0 | AI148: 0 | AK148: 0 | AL148: 0 | AM148: 0 | AN148: 0 | AO148: 0 | AP148: 0 | AQ148: 0 | AR148: 0 | AS148: 0 | AT148: 0 | AV148: 0 | AX148: 0 | AY148: 0 | AZ148: 0 | BA148: 0
A149: 140 | H149: 0 | K149: 0 | L149: 0 | N149: 0 | O149: 0 | Q149: 0 | R149: 0 | S149: 0 | T149: 0 | V149: 0 | W149: 0 | X149: 0 | Y149: 0 | AA149: 0 | AB149: 0 | AC149: 0 | AD149: 0 | AF149: 0 | AG149: 0 | AH149: 0 | AI149: 0 | AK149: 0 | AL149: 0 | AM149: 0 | AN149: 0 | AO149: 0 | AP149: 0 | AQ149: 0 | AR149: 0 | AS149: 0 | AT149: 0 | AV149: 0 | AX149: 0 | AY149: 0 | AZ149: 0 | BA149: 0
A150: 141 | H150: 0 | K150: 0 | L150: 0 | N150: 0 | O150: 0 | Q150: 0 | R150: 0 | S150: 0 | T150: 0 | V150: 0 | W150: 0 | X150: 0 | Y150: 0 | AA150: 0 | AB150: 0 | AC150: 0 | AD150: 0 | AF150: 0 | AG150: 0 | AH150: 0 | AI150: 0 | AK150: 0 | AL150: 0 | AM150: 0 | AN150: 0 | AO150: 0 | AP150: 0 | AQ150: 0 | AR150: 0 | AS150: 0 | AT150: 0 | AV150: 0 | AX150: 0 | AY150: 0 | AZ150: 0 | BA150: 0
A151: 142 | H151: 0 | K151: 0 | L151: 0 | N151: 0 | O151: 0 | Q151: 0 | R151: 0 | S151: 0 | T151: 0 | V151: 0 | W151: 0 | X151: 0 | Y151: 0 | AA151: 0 | AB151: 0 | AC151: 0 | AD151: 0 | AF151: 0 | AG151: 0 | AH151: 0 | AI151: 0 | AK151: 0 | AL151: 0 | AM151: 0 | AN151: 0 | AO151: 0 | AP151: 0 | AQ151: 0 | AR151: 0 | AS151: 0 | AT151: 0 | AV151: 0 | AX151: 0 | AY151: 0 | AZ151: 0 | BA151: 0
A152: 143 | H152: 0 | K152: 0 | L152: 0 | N152: 0 | O152: 0 | Q152: 0 | R152: 0 | S152: 0 | T152: 0 | V152: 0 | W152: 0 | X152: 0 | Y152: 0 | AA152: 0 | AB152: 0 | AC152: 0 | AD152: 0 | AF152: 0 | AG152: 0 | AH152: 0 | AI152: 0 | AK152: 0 | AL152: 0 | AM152: 0 | AN152: 0 | AO152: 0 | AP152: 0 | AQ152: 0 | AR152: 0 | AS152: 0 | AT152: 0 | AV152: 0 | AX152: 0 | AY152: 0 | AZ152: 0 | BA152: 0
A153: 144 | H153: 0 | K153: 0 | L153: 0 | N153: 0 | O153: 0 | Q153: 0 | R153: 0 | S153: 0 | T153: 0 | V153: 0 | W153: 0 | X153: 0 | Y153: 0 | AA153: 0 | AB153: 0 | AC153: 0 | AD153: 0 | AF153: 0 | AG153: 0 | AH153: 0 | AI153: 0 | AK153: 0 | AL153: 0 | AM153: 0 | AN153: 0 | AO153: 0 | AP153: 0 | AQ153: 0 | AR153: 0 | AS153: 0 | AT153: 0 | AV153: 0 | AX153: 0 | AY153: 0 | AZ153: 0 | BA153: 0
A154: 145 | H154: 0 | K154: 0 | L154: 0 | N154: 0 | O154: 0 | Q154: 0 | R154: 0 | S154: 0 | T154: 0 | V154: 0 | W154: 0 | X154: 0 | Y154: 0 | AA154: 0 | AB154: 0 | AC154: 0 | AD154: 0 | AF154: 0 | AG154: 0 | AH154: 0 | AI154: 0 | AK154: 0 | AL154: 0 | AM154: 0 | AN154: 0 | AO154: 0 | AP154: 0 | AQ154: 0 | AR154: 0 | AS154: 0 | AT154: 0 | AV154: 0 | AX154: 0 | AY154: 0 | AZ154: 0 | BA154: 0
A155: 146 | H155: 0 | K155: 0 | L155: 0 | N155: 0 | O155: 0 | Q155: 0 | R155: 0 | S155: 0 | T155: 0 | V155: 0 | W155: 0 | X155: 0 | Y155: 0 | AA155: 0 | AB155: 0 | AC155: 0 | AD155: 0 | AF155: 0 | AG155: 0 | AH155: 0 | AI155: 0 | AK155: 0 | AL155: 0 | AM155: 0 | AN155: 0 | AO155: 0 | AP155: 0 | AQ155: 0 | AR155: 0 | AS155: 0 | AT155: 0 | AV155: 0 | AX155: 0 | AY155: 0 | AZ155: 0 | BA155: 0
A156: 147 | H156: 0 | K156: 0 | L156: 0 | N156: 0 | O156: 0 | Q156: 0 | R156: 0 | S156: 0 | T156: 0 | V156: 0 | W156: 0 | X156: 0 | Y156: 0 | AA156: 0 | AB156: 0 | AC156: 0 | AD156: 0 | AF156: 0 | AG156: 0 | AH156: 0 | AI156: 0 | AK156: 0 | AL156: 0 | AM156: 0 | AN156: 0 | AO156: 0 | AP156: 0 | AQ156: 0 | AR156: 0 | AS156: 0 | AT156: 0 | AV156: 0 | AX156: 0 | AY156: 0 | AZ156: 0 | BA156: 0
A157: 148 | H157: 0 | K157: 0 | L157: 0 | N157: 0 | O157: 0 | Q157: 0 | R157: 0 | S157: 0 | T157: 0 | V157: 0 | W157: 0 | X157: 0 | Y157: 0 | AA157: 0 | AB157: 0 | AC157: 0 | AD157: 0 | AF157: 0 | AG157: 0 | AH157: 0 | AI157: 0 | AK157: 0 | AL157: 0 | AM157: 0 | AN157: 0 | AO157: 0 | AP157: 0 | AQ157: 0 | AR157: 0 | AS157: 0 | AT157: 0 | AV157: 0 | AX157: 0 | AY157: 0 | AZ157: 0 | BA157: 0
A158: 149 | H158: 0 | K158: 0 | L158: 0 | N158: 0 | O158: 0 | Q158: 0 | R158: 0 | S158: 0 | T158: 0 | V158: 0 | W158: 0 | X158: 0 | Y158: 0 | AA158: 0 | AB158: 0 | AC158: 0 | AD158: 0 | AF158: 0 | AG158: 0 | AH158: 0 | AI158: 0 | AK158: 0 | AL158: 0 | AM158: 0 | AN158: 0 | AO158: 0 | AP158: 0 | AQ158: 0 | AR158: 0 | AS158: 0 | AT158: 0 | AV158: 0 | AX158: 0 | AY158: 0 | AZ158: 0 | BA158: 0
A159: 150 | H159: 0 | K159: 0 | L159: 0 | N159: 0 | O159: 0 | Q159: 0 | R159: 0 | S159: 0 | T159: 0 | V159: 0 | W159: 0 | X159: 0 | Y159: 0 | AA159: 0 | AB159: 0 | AC159: 0 | AD159: 0 | AF159: 0 | AG159: 0 | AH159: 0 | AI159: 0 | AK159: 0 | AL159: 0 | AM159: 0 | AN159: 0 | AO159: 0 | AP159: 0 | AQ159: 0 | AR159: 0 | AS159: 0 | AT159: 0 | AV159: 0 | AX159: 0 | AY159: 0 | AZ159: 0 | BA159: 0
A160: 151 | H160: 0 | K160: 0 | L160: 0 | N160: 0 | O160: 0 | Q160: 0 | R160: 0 | S160: 0 | T160: 0 | V160: 0 | W160: 0 | X160: 0 | Y160: 0 | AA160: 0 | AB160: 0 | AC160: 0 | AD160: 0 | AF160: 0 | AG160: 0 | AH160: 0 | AI160: 0 | AK160: 0 | AL160: 0 | AM160: 0 | AN160: 0 | AO160: 0 | AP160: 0 | AQ160: 0 | AR160: 0 | AS160: 0 | AT160: 0 | AV160: 0 | AX160: 0 | AY160: 0 | AZ160: 0 | BA160: 0
A161: 152 | H161: 0 | K161: 0 | L161: 0 | N161: 0 | O161: 0 | Q161: 0 | R161: 0 | S161: 0 | T161: 0 | V161: 0 | W161: 0 | X161: 0 | Y161: 0 | AA161: 0 | AB161: 0 | AC161: 0 | AD161: 0 | AF161: 0 | AG161: 0 | AH161: 0 | AI161: 0 | AK161: 0 | AL161: 0 | AM161: 0 | AN161: 0 | AO161: 0 | AP161: 0 | AQ161: 0 | AR161: 0 | AS161: 0 | AT161: 0 | AV161: 0 | AX161: 0 | AY161: 0 | AZ161: 0 | BA161: 0
A162: 153 | H162: 0 | K162: 0 | L162: 0 | N162: 0 | O162: 0 | Q162: 0 | R162: 0 | S162: 0 | T162: 0 | V162: 0 | W162: 0 | X162: 0 | Y162: 0 | AA162: 0 | AB162: 0 | AC162: 0 | AD162: 0 | AF162: 0 | AG162: 0 | AH162: 0 | AI162: 0 | AK162: 0 | AL162: 0 | AM162: 0 | AN162: 0 | AO162: 0 | AP162: 0 | AQ162: 0 | AR162: 0 | AS162: 0 | AT162: 0 | AV162: 0 | AX162: 0 | AY162: 0 | AZ162: 0 | BA162: 0
A163: 154 | H163: 0 | K163: 0 | L163: 0 | N163: 0 | O163: 0 | Q163: 0 | R163: 0 | S163: 0 | T163: 0 | V163: 0 | W163: 0 | X163: 0 | Y163: 0 | AA163: 0 | AB163: 0 | AC163: 0 | AD163: 0 | AF163: 0 | AG163: 0 | AH163: 0 | AI163: 0 | AK163: 0 | AL163: 0 | AM163: 0 | AN163: 0 | AO163: 0 | AP163: 0 | AQ163: 0 | AR163: 0 | AS163: 0 | AT163: 0 | AV163: 0 | AX163: 0 | AY163: 0 | AZ163: 0 | BA163: 0
A164: 155 | H164: 0 | K164: 0 | L164: 0 | N164: 0 | O164: 0 | Q164: 0 | R164: 0 | S164: 0 | T164: 0 | V164: 0 | W164: 0 | X164: 0 | Y164: 0 | AA164: 0 | AB164: 0 | AC164: 0 | AD164: 0 | AF164: 0 | AG164: 0 | AH164: 0 | AI164: 0 | AK164: 0 | AL164: 0 | AM164: 0 | AN164: 0 | AO164: 0 | AP164: 0 | AQ164: 0 | AR164: 0 | AS164: 0 | AT164: 0 | AV164: 0 | AX164: 0 | AY164: 0 | AZ164: 0 | BA164: 0
A165: 156 | H165: 0 | K165: 0 | L165: 0 | N165: 0 | O165: 0 | Q165: 0 | R165: 0 | S165: 0 | T165: 0 | V165: 0 | W165: 0 | X165: 0 | Y165: 0 | AA165: 0 | AB165: 0 | AC165: 0 | AD165: 0 | AF165: 0 | AG165: 0 | AH165: 0 | AI165: 0 | AK165: 0 | AL165: 0 | AM165: 0 | AN165: 0 | AO165: 0 | AP165: 0 | AQ165: 0 | AR165: 0 | AS165: 0 | AT165: 0 | AV165: 0 | AX165: 0 | AY165: 0 | AZ165: 0 | BA165: 0
A166: 157 | H166: 0 | K166: 0 | L166: 0 | N166: 0 | O166: 0 | Q166: 0 | R166: 0 | S166: 0 | T166: 0 | V166: 0 | W166: 0 | X166: 0 | Y166: 0 | AA166: 0 | AB166: 0 | AC166: 0 | AD166: 0 | AF166: 0 | AG166: 0 | AH166: 0 | AI166: 0 | AK166: 0 | AL166: 0 | AM166: 0 | AN166: 0 | AO166: 0 | AP166: 0 | AQ166: 0 | AR166: 0 | AS166: 0 | AT166: 0 | AV166: 0 | AX166: 0 | AY166: 0 | AZ166: 0 | BA166: 0
A167: 158 | H167: 0 | K167: 0 | L167: 0 | N167: 0 | O167: 0 | Q167: 0 | R167: 0 | S167: 0 | T167: 0 | V167: 0 | W167: 0 | X167: 0 | Y167: 0 | AA167: 0 | AB167: 0 | AC167: 0 | AD167: 0 | AF167: 0 | AG167: 0 | AH167: 0 | AI167: 0 | AK167: 0 | AL167: 0 | AM167: 0 | AN167: 0 | AO167: 0 | AP167: 0 | AQ167: 0 | AR167: 0 | AS167: 0 | AT167: 0 | AV167: 0 | AX167: 0 | AY167: 0 | AZ167: 0 | BA167: 0
A168: 159 | H168: 0 | K168: 0 | L168: 0 | N168: 0 | O168: 0 | Q168: 0 | R168: 0 | S168: 0 | T168: 0 | V168: 0 | W168: 0 | X168: 0 | Y168: 0 | AA168: 0 | AB168: 0 | AC168: 0 | AD168: 0 | AF168: 0 | AG168: 0 | AH168: 0 | AI168: 0 | AK168: 0 | AL168: 0 | AM168: 0 | AN168: 0 | AO168: 0 | AP168: 0 | AQ168: 0 | AR168: 0 | AS168: 0 | AT168: 0 | AV168: 0 | AX168: 0 | AY168: 0 | AZ168: 0 | BA168: 0
A169: 160 | H169: 0 | K169: 0 | L169: 0 | N169: 0 | O169: 0 | Q169: 0 | R169: 0 | S169: 0 | T169: 0 | V169: 0 | W169: 0 | X169: 0 | Y169: 0 | AA169: 0 | AB169: 0 | AC169: 0 | AD169: 0 | AF169: 0 | AG169: 0 | AH169: 0 | AI169: 0 | AK169: 0 | AL169: 0 | AM169: 0 | AN169: 0 | AO169: 0 | AP169: 0 | AQ169: 0 | AR169: 0 | AS169: 0 | AT169: 0 | AV169: 0 | AX169: 0 | AY169: 0 | AZ169: 0 | BA169: 0
A170: 161 | H170: 0 | K170: 0 | L170: 0 | N170: 0 | O170: 0 | Q170: 0 | R170: 0 | S170: 0 | T170: 0 | V170: 0 | W170: 0 | X170: 0 | Y170: 0 | AA170: 0 | AB170: 0 | AC170: 0 | AD170: 0 | AF170: 0 | AG170: 0 | AH170: 0 | AI170: 0 | AK170: 0 | AL170: 0 | AM170: 0 | AN170: 0 | AO170: 0 | AP170: 0 | AQ170: 0 | AR170: 0 | AS170: 0 | AT170: 0 | AV170: 0 | AX170: 0 | AY170: 0 | AZ170: 0 | BA170: 0
A171: 162 | H171: 0 | K171: 0 | L171: 0 | N171: 0 | O171: 0 | Q171: 0 | R171: 0 | S171: 0 | T171: 0 | V171: 0 | W171: 0 | X171: 0 | Y171: 0 | AA171: 0 | AB171: 0 | AC171: 0 | AD171: 0 | AF171: 0 | AG171: 0 | AH171: 0 | AI171: 0 | AK171: 0 | AL171: 0 | AM171: 0 | AN171: 0 | AO171: 0 | AP171: 0 | AQ171: 0 | AR171: 0 | AS171: 0 | AT171: 0 | AV171: 0 | AX171: 0 | AY171: 0 | AZ171: 0 | BA171: 0
A172: 163 | H172: 0 | K172: 0 | L172: 0 | N172: 0 | O172: 0 | Q172: 0 | R172: 0 | S172: 0 | T172: 0 | V172: 0 | W172: 0 | X172: 0 | Y172: 0 | AA172: 0 | AB172: 0 | AC172: 0 | AD172: 0 | AF172: 0 | AG172: 0 | AH172: 0 | AI172: 0 | AK172: 0 | AL172: 0 | AM172: 0 | AN172: 0 | AO172: 0 | AP172: 0 | AQ172: 0 | AR172: 0 | AS172: 0 | AT172: 0 | AV172: 0 | AX172: 0 | AY172: 0 | AZ172: 0 | BA172: 0
A173: 164 | H173: 0 | K173: 0 | L173: 0 | N173: 0 | O173: 0 | Q173: 0 | R173: 0 | S173: 0 | T173: 0 | V173: 0 | W173: 0 | X173: 0 | Y173: 0 | AA173: 0 | AB173: 0 | AC173: 0 | AD173: 0 | AF173: 0 | AG173: 0 | AH173: 0 | AI173: 0 | AK173: 0 | AL173: 0 | AM173: 0 | AN173: 0 | AO173: 0 | AP173: 0 | AQ173: 0 | AR173: 0 | AS173: 0 | AT173: 0 | AV173: 0 | AX173: 0 | AY173: 0 | AZ173: 0 | BA173: 0
A174: 165 | H174: 0 | K174: 0 | L174: 0 | N174: 0 | O174: 0 | Q174: 0 | R174: 0 | S174: 0 | T174: 0 | V174: 0 | W174: 0 | X174: 0 | Y174: 0 | AA174: 0 | AB174: 0 | AC174: 0 | AD174: 0 | AF174: 0 | AG174: 0 | AH174: 0 | AI174: 0 | AK174: 0 | AL174: 0 | AM174: 0 | AN174: 0 | AO174: 0 | AP174: 0 | AQ174: 0 | AR174: 0 | AS174: 0 | AT174: 0 | AV174: 0 | AX174: 0 | AY174: 0 | AZ174: 0 | BA174: 0
A175: 166 | H175: 0 | K175: 0 | L175: 0 | N175: 0 | O175: 0 | Q175: 0 | R175: 0 | S175: 0 | T175: 0 | V175: 0 | W175: 0 | X175: 0 | Y175: 0 | AA175: 0 | AB175: 0 | AC175: 0 | AD175: 0 | AF175: 0 | AG175: 0 | AH175: 0 | AI175: 0 | AK175: 0 | AL175: 0 | AM175: 0 | AN175: 0 | AO175: 0 | AP175: 0 | AQ175: 0 | AR175: 0 | AS175: 0 | AT175: 0 | AV175: 0 | AX175: 0 | AY175: 0 | AZ175: 0 | BA175: 0
A176: 167 | H176: 0 | K176: 0 | L176: 0 | N176: 0 | O176: 0 | Q176: 0 | R176: 0 | S176: 0 | T176: 0 | V176: 0 | W176: 0 | X176: 0 | Y176: 0 | AA176: 0 | AB176: 0 | AC176: 0 | AD176: 0 | AF176: 0 | AG176: 0 | AH176: 0 | AI176: 0 | AK176: 0 | AL176: 0 | AM176: 0 | AN176: 0 | AO176: 0 | AP176: 0 | AQ176: 0 | AR176: 0 | AS176: 0 | AT176: 0 | AV176: 0 | AX176: 0 | AY176: 0 | AZ176: 0 | BA176: 0
A177: 168 | H177: 0 | K177: 0 | L177: 0 | N177: 0 | O177: 0 | Q177: 0 | R177: 0 | S177: 0 | T177: 0 | V177: 0 | W177: 0 | X177: 0 | Y177: 0 | AA177: 0 | AB177: 0 | AC177: 0 | AD177: 0 | AF177: 0 | AG177: 0 | AH177: 0 | AI177: 0 | AK177: 0 | AL177: 0 | AM177: 0 | AN177: 0 | AO177: 0 | AP177: 0 | AQ177: 0 | AR177: 0 | AS177: 0 | AT177: 0 | AV177: 0 | AX177: 0 | AY177: 0 | AZ177: 0 | BA177: 0
A178: 169 | H178: 0 | K178: 0 | L178: 0 | N178: 0 | O178: 0 | Q178: 0 | R178: 0 | S178: 0 | T178: 0 | V178: 0 | W178: 0 | X178: 0 | Y178: 0 | AA178: 0 | AB178: 0 | AC178: 0 | AD178: 0 | AF178: 0 | AG178: 0 | AH178: 0 | AI178: 0 | AK178: 0 | AL178: 0 | AM178: 0 | AN178: 0 | AO178: 0 | AP178: 0 | AQ178: 0 | AR178: 0 | AS178: 0 | AT178: 0 | AV178: 0 | AX178: 0 | AY178: 0 | AZ178: 0 | BA178: 0
A179: 170 | H179: 0 | K179: 0 | L179: 0 | N179: 0 | O179: 0 | Q179: 0 | R179: 0 | S179: 0 | T179: 0 | V179: 0 | W179: 0 | X179: 0 | Y179: 0 | AA179: 0 | AB179: 0 | AC179: 0 | AD179: 0 | AF179: 0 | AG179: 0 | AH179: 0 | AI179: 0 | AK179: 0 | AL179: 0 | AM179: 0 | AN179: 0 | AO179: 0 | AP179: 0 | AQ179: 0 | AR179: 0 | AS179: 0 | AT179: 0 | AV179: 0 | AX179: 0 | AY179: 0 | AZ179: 0 | BA179: 0
A180: 171 | H180: 0 | K180: 0 | L180: 0 | N180: 0 | O180: 0 | Q180: 0 | R180: 0 | S180: 0 | T180: 0 | V180: 0 | W180: 0 | X180: 0 | Y180: 0 | AA180: 0 | AB180: 0 | AC180: 0 | AD180: 0 | AF180: 0 | AG180: 0 | AH180: 0 | AI180: 0 | AK180: 0 | AL180: 0 | AM180: 0 | AN180: 0 | AO180: 0 | AP180: 0 | AQ180: 0 | AR180: 0 | AS180: 0 | AT180: 0 | AV180: 0 | AX180: 0 | AY180: 0 | AZ180: 0 | BA180: 0
A181: 172 | H181: 0 | K181: 0 | L181: 0 | N181: 0 | O181: 0 | Q181: 0 | R181: 0 | S181: 0 | T181: 0 | V181: 0 | W181: 0 | X181: 0 | Y181: 0 | AA181: 0 | AB181: 0 | AC181: 0 | AD181: 0 | AF181: 0 | AG181: 0 | AH181: 0 | AI181: 0 | AK181: 0 | AL181: 0 | AM181: 0 | AN181: 0 | AO181: 0 | AP181: 0 | AQ181: 0 | AR181: 0 | AS181: 0 | AT181: 0 | AV181: 0 | AX181: 0 | AY181: 0 | AZ181: 0 | BA181: 0
A182: 173 | H182: 0 | K182: 0 | L182: 0 | N182: 0 | O182: 0 | Q182: 0 | R182: 0 | S182: 0 | T182: 0 | V182: 0 | W182: 0 | X182: 0 | Y182: 0 | AA182: 0 | AB182: 0 | AC182: 0 | AD182: 0 | AF182: 0 | AG182: 0 | AH182: 0 | AI182: 0 | AK182: 0 | AL182: 0 | AM182: 0 | AN182: 0 | AO182: 0 | AP182: 0 | AQ182: 0 | AR182: 0 | AS182: 0 | AT182: 0 | AV182: 0 | AX182: 0 | AY182: 0 | AZ182: 0 | BA182: 0
A183: 174 | H183: 0 | K183: 0 | L183: 0 | N183: 0 | O183: 0 | Q183: 0 | R183: 0 | S183: 0 | T183: 0 | V183: 0 | W183: 0 | X183: 0 | Y183: 0 | AA183: 0 | AB183: 0 | AC183: 0 | AD183: 0 | AF183: 0 | AG183: 0 | AH183: 0 | AI183: 0 | AK183: 0 | AL183: 0 | AM183: 0 | AN183: 0 | AO183: 0 | AP183: 0 | AQ183: 0 | AR183: 0 | AS183: 0 | AT183: 0 | AV183: 0 | AX183: 0 | AY183: 0 | AZ183: 0 | BA183: 0
A184: 175 | H184: 0 | K184: 0 | L184: 0 | N184: 0 | O184: 0 | Q184: 0 | R184: 0 | S184: 0 | T184: 0 | V184: 0 | W184: 0 | X184: 0 | Y184: 0 | AA184: 0 | AB184: 0 | AC184: 0 | AD184: 0 | AF184: 0 | AG184: 0 | AH184: 0 | AI184: 0 | AK184: 0 | AL184: 0 | AM184: 0 | AN184: 0 | AO184: 0 | AP184: 0 | AQ184: 0 | AR184: 0 | AS184: 0 | AT184: 0 | AV184: 0 | AX184: 0 | AY184: 0 | AZ184: 0 | BA184: 0
A185: 176 | H185: 0 | K185: 0 | L185: 0 | N185: 0 | O185: 0 | Q185: 0 | R185: 0 | S185: 0 | T185: 0 | V185: 0 | W185: 0 | X185: 0 | Y185: 0 | AA185: 0 | AB185: 0 | AC185: 0 | AD185: 0 | AF185: 0 | AG185: 0 | AH185: 0 | AI185: 0 | AK185: 0 | AL185: 0 | AM185: 0 | AN185: 0 | AO185: 0 | AP185: 0 | AQ185: 0 | AR185: 0 | AS185: 0 | AT185: 0 | AV185: 0 | AX185: 0 | AY185: 0 | AZ185: 0 | BA185: 0
A186: 177 | H186: 0 | K186: 0 | L186: 0 | N186: 0 | O186: 0 | Q186: 0 | R186: 0 | S186: 0 | T186: 0 | V186: 0 | W186: 0 | X186: 0 | Y186: 0 | AA186: 0 | AB186: 0 | AC186: 0 | AD186: 0 | AF186: 0 | AG186: 0 | AH186: 0 | AI186: 0 | AK186: 0 | AL186: 0 | AM186: 0 | AN186: 0 | AO186: 0 | AP186: 0 | AQ186: 0 | AR186: 0 | AS186: 0 | AT186: 0 | AV186: 0 | AX186: 0 | AY186: 0 | AZ186: 0 | BA186: 0
A187: 178 | H187: 0 | K187: 0 | L187: 0 | N187: 0 | O187: 0 | Q187: 0 | R187: 0 | S187: 0 | T187: 0 | V187: 0 | W187: 0 | X187: 0 | Y187: 0 | AA187: 0 | AB187: 0 | AC187: 0 | AD187: 0 | AF187: 0 | AG187: 0 | AH187: 0 | AI187: 0 | AK187: 0 | AL187: 0 | AM187: 0 | AN187: 0 | AO187: 0 | AP187: 0 | AQ187: 0 | AR187: 0 | AS187: 0 | AT187: 0 | AV187: 0 | AX187: 0 | AY187: 0 | AZ187: 0 | BA187: 0
A188: 179 | H188: 0 | K188: 0 | L188: 0 | N188: 0 | O188: 0 | Q188: 0 | R188: 0 | S188: 0 | T188: 0 | V188: 0 | W188: 0 | X188: 0 | Y188: 0 | AA188: 0 | AB188: 0 | AC188: 0 | AD188: 0 | AF188: 0 | AG188: 0 | AH188: 0 | AI188: 0 | AK188: 0 | AL188: 0 | AM188: 0 | AN188: 0 | AO188: 0 | AP188: 0 | AQ188: 0 | AR188: 0 | AS188: 0 | AT188: 0 | AV188: 0 | AX188: 0 | AY188: 0 | AZ188: 0 | BA188: 0
A189: 180 | H189: 0 | K189: 0 | L189: 0 | N189: 0 | O189: 0 | Q189: 0 | R189: 0 | S189: 0 | T189: 0 | V189: 0 | W189: 0 | X189: 0 | Y189: 0 | AA189: 0 | AB189: 0 | AC189: 0 | AD189: 0 | AF189: 0 | AG189: 0 | AH189: 0 | AI189: 0 | AK189: 0 | AL189: 0 | AM189: 0 | AN189: 0 | AO189: 0 | AP189: 0 | AQ189: 0 | AR189: 0 | AS189: 0 | AT189: 0 | AV189: 0 | AX189: 0 | AY189: 0 | AZ189: 0 | BA189: 0
A190: 181 | H190: 0 | K190: 0 | L190: 0 | N190: 0 | O190: 0 | Q190: 0 | R190: 0 | S190: 0 | T190: 0 | V190: 0 | W190: 0 | X190: 0 | Y190: 0 | AA190: 0 | AB190: 0 | AC190: 0 | AD190: 0 | AF190: 0 | AG190: 0 | AH190: 0 | AI190: 0 | AK190: 0 | AL190: 0 | AM190: 0 | AN190: 0 | AO190: 0 | AP190: 0 | AQ190: 0 | AR190: 0 | AS190: 0 | AT190: 0 | AV190: 0 | AX190: 0 | AY190: 0 | AZ190: 0 | BA190: 0
A191: 182 | H191: 0 | K191: 0 | L191: 0 | N191: 0 | O191: 0 | Q191: 0 | R191: 0 | S191: 0 | T191: 0 | V191: 0 | W191: 0 | X191: 0 | Y191: 0 | AA191: 0 | AB191: 0 | AC191: 0 | AD191: 0 | AF191: 0 | AG191: 0 | AH191: 0 | AI191: 0 | AK191: 0 | AL191: 0 | AM191: 0 | AN191: 0 | AO191: 0 | AP191: 0 | AQ191: 0 | AR191: 0 | AS191: 0 | AT191: 0 | AV191: 0 | AX191: 0 | AY191: 0 | AZ191: 0 | BA191: 0
A192: 183 | H192: 0 | K192: 0 | L192: 0 | N192: 0 | O192: 0 | Q192: 0 | R192: 0 | S192: 0 | T192: 0 | V192: 0 | W192: 0 | X192: 0 | Y192: 0 | AA192: 0 | AB192: 0 | AC192: 0 | AD192: 0 | AF192: 0 | AG192: 0 | AH192: 0 | AI192: 0 | AK192: 0 | AL192: 0 | AM192: 0 | AN192: 0 | AO192: 0 | AP192: 0 | AQ192: 0 | AR192: 0 | AS192: 0 | AT192: 0 | AV192: 0 | AX192: 0 | AY192: 0 | AZ192: 0 | BA192: 0
A193: 184 | H193: 0 | K193: 0 | L193: 0 | N193: 0 | O193: 0 | Q193: 0 | R193: 0 | S193: 0 | T193: 0 | V193: 0 | W193: 0 | X193: 0 | Y193: 0 | AA193: 0 | AB193: 0 | AC193: 0 | AD193: 0 | AF193: 0 | AG193: 0 | AH193: 0 | AI193: 0 | AK193: 0 | AL193: 0 | AM193: 0 | AN193: 0 | AO193: 0 | AP193: 0 | AQ193: 0 | AR193: 0 | AS193: 0 | AT193: 0 | AV193: 0 | AX193: 0 | AY193: 0 | AZ193: 0 | BA193: 0
A194: 185 | H194: 0 | K194: 0 | L194: 0 | N194: 0 | O194: 0 | Q194: 0 | R194: 0 | S194: 0 | T194: 0 | V194: 0 | W194: 0 | X194: 0 | Y194: 0 | AA194: 0 | AB194: 0 | AC194: 0 | AD194: 0 | AF194: 0 | AG194: 0 | AH194: 0 | AI194: 0 | AK194: 0 | AL194: 0 | AM194: 0 | AN194: 0 | AO194: 0 | AP194: 0 | AQ194: 0 | AR194: 0 | AS194: 0 | AT194: 0 | AV194: 0 | AX194: 0 | AY194: 0 | AZ194: 0 | BA194: 0
A195: 186 | H195: 0 | K195: 0 | L195: 0 | N195: 0 | O195: 0 | Q195: 0 | R195: 0 | S195: 0 | T195: 0 | V195: 0 | W195: 0 | X195: 0 | Y195: 0 | AA195: 0 | AB195: 0 | AC195: 0 | AD195: 0 | AF195: 0 | AG195: 0 | AH195: 0 | AI195: 0 | AK195: 0 | AL195: 0 | AM195: 0 | AN195: 0 | AO195: 0 | AP195: 0 | AQ195: 0 | AR195: 0 | AS195: 0 | AT195: 0 | AV195: 0 | AX195: 0 | AY195: 0 | AZ195: 0 | BA195: 0
A196: 187 | H196: 0 | K196: 0 | L196: 0 | N196: 0 | O196: 0 | Q196: 0 | R196: 0 | S196: 0 | T196: 0 | V196: 0 | W196: 0 | X196: 0 | Y196: 0 | AA196: 0 | AB196: 0 | AC196: 0 | AD196: 0 | AF196: 0 | AG196: 0 | AH196: 0 | AI196: 0 | AK196: 0 | AL196: 0 | AM196: 0 | AN196: 0 | AO196: 0 | AP196: 0 | AQ196: 0 | AR196: 0 | AS196: 0 | AT196: 0 | AV196: 0 | AX196: 0 | AY196: 0 | AZ196: 0 | BA196: 0
A197: 188 | H197: 0 | K197: 0 | L197: 0 | N197: 0 | O197: 0 | Q197: 0 | R197: 0 | S197: 0 | T197: 0 | V197: 0 | W197: 0 | X197: 0 | Y197: 0 | AA197: 0 | AB197: 0 | AC197: 0 | AD197: 0 | AF197: 0 | AG197: 0 | AH197: 0 | AI197: 0 | AK197: 0 | AL197: 0 | AM197: 0 | AN197: 0 | AO197: 0 | AP197: 0 | AQ197: 0 | AR197: 0 | AS197: 0 | AT197: 0 | AV197: 0 | AX197: 0 | AY197: 0 | AZ197: 0 | BA197: 0
A198: 189 | H198: 0 | K198: 0 | L198: 0 | N198: 0 | O198: 0 | Q198: 0 | R198: 0 | S198: 0 | T198: 0 | V198: 0 | W198: 0 | X198: 0 | Y198: 0 | AA198: 0 | AB198: 0 | AC198: 0 | AD198: 0 | AF198: 0 | AG198: 0 | AH198: 0 | AI198: 0 | AK198: 0 | AL198: 0 | AM198: 0 | AN198: 0 | AO198: 0 | AP198: 0 | AQ198: 0 | AR198: 0 | AS198: 0 | AT198: 0 | AV198: 0 | AX198: 0 | AY198: 0 | AZ198: 0 | BA198: 0
A199: 190 | H199: 0 | K199: 0 | L199: 0 | N199: 0 | O199: 0 | Q199: 0 | R199: 0 | S199: 0 | T199: 0 | V199: 0 | W199: 0 | X199: 0 | Y199: 0 | AA199: 0 | AB199: 0 | AC199: 0 | AD199: 0 | AF199: 0 | AG199: 0 | AH199: 0 | AI199: 0 | AK199: 0 | AL199: 0 | AM199: 0 | AN199: 0 | AO199: 0 | AP199: 0 | AQ199: 0 | AR199: 0 | AS199: 0 | AT199: 0 | AV199: 0 | AX199: 0 | AY199: 0 | AZ199: 0 | BA199: 0
A200: 191 | H200: 0 | K200: 0 | L200: 0 | N200: 0 | O200: 0 | Q200: 0 | R200: 0 | S200: 0 | T200: 0 | V200: 0 | W200: 0 | X200: 0 | Y200: 0 | AA200: 0 | AB200: 0 | AC200: 0 | AD200: 0 | AF200: 0 | AG200: 0 | AH200: 0 | AI200: 0 | AK200: 0 | AL200: 0 | AM200: 0 | AN200: 0 | AO200: 0 | AP200: 0 | AQ200: 0 | AR200: 0 | AS200: 0 | AT200: 0 | AV200: 0 | AX200: 0 | AY200: 0 | AZ200: 0 | BA200: 0
A201: 192 | H201: 0 | K201: 0 | L201: 0 | N201: 0 | O201: 0 | Q201: 0 | R201: 0 | S201: 0 | T201: 0 | V201: 0 | W201: 0 | X201: 0 | Y201: 0 | AA201: 0 | AB201: 0 | AC201: 0 | AD201: 0 | AF201: 0 | AG201: 0 | AH201: 0 | AI201: 0 | AK201: 0 | AL201: 0 | AM201: 0 | AN201: 0 | AO201: 0 | AP201: 0 | AQ201: 0 | AR201: 0 | AS201: 0 | AT201: 0 | AV201: 0 | AX201: 0 | AY201: 0 | AZ201: 0 | BA201: 0
A202: 193 | H202: 0 | K202: 0 | L202: 0 | N202: 0 | O202: 0 | Q202: 0 | R202: 0 | S202: 0 | T202: 0 | V202: 0 | W202: 0 | X202: 0 | Y202: 0 | AA202: 0 | AB202: 0 | AC202: 0 | AD202: 0 | AF202: 0 | AG202: 0 | AH202: 0 | AI202: 0 | AK202: 0 | AL202: 0 | AM202: 0 | AN202: 0 | AO202: 0 | AP202: 0 | AQ202: 0 | AR202: 0 | AS202: 0 | AT202: 0 | AV202: 0 | AX202: 0 | AY202: 0 | AZ202: 0 | BA202: 0
A203: 194 | H203: 0 | K203: 0 | L203: 0 | N203: 0 | O203: 0 | Q203: 0 | R203: 0 | S203: 0 | T203: 0 | V203: 0 | W203: 0 | X203: 0 | Y203: 0 | AA203: 0 | AB203: 0 | AC203: 0 | AD203: 0 | AF203: 0 | AG203: 0 | AH203: 0 | AI203: 0 | AK203: 0 | AL203: 0 | AM203: 0 | AN203: 0 | AO203: 0 | AP203: 0 | AQ203: 0 | AR203: 0 | AS203: 0 | AT203: 0 | AV203: 0 | AX203: 0 | AY203: 0 | AZ203: 0 | BA203: 0
A204: 195 | H204: 0 | K204: 0 | L204: 0 | N204: 0 | O204: 0 | Q204: 0 | R204: 0 | S204: 0 | T204: 0 | V204: 0 | W204: 0 | X204: 0 | Y204: 0 | AA204: 0 | AB204: 0 | AC204: 0 | AD204: 0 | AF204: 0 | AG204: 0 | AH204: 0 | AI204: 0 | AK204: 0 | AL204: 0 | AM204: 0 | AN204: 0 | AO204: 0 | AP204: 0 | AQ204: 0 | AR204: 0 | AS204: 0 | AT204: 0 | AV204: 0 | AX204: 0 | AY204: 0 | AZ204: 0 | BA204: 0
... 305 more rows

Sheet Model Validation
B1: =Index!B1 -> JGN Ancillary Reference Services Forecast Model
B2: =MID(CELL("filename",A1),FIND("]",CELL("filename",A1))+1,255) -> Model Validation
B4: Overall Model Check | C4: =IF(SUM(C8:C16)=0,0,1) -> 0
B7: =Index!B7 -> Worksheet name
B8: =Index!B8 -> Output|Charges | C8: =IF(SUM(C20:C21)=0,0,1) -> 0
B9: =Index!B9 -> Input|Setup | C9: =IF(SUM(C24:C27)=0,0,1) -> 0
B10: =Index!B10 -> Input|Escalations | C10: =IF(SUM(C30:C31)=0,0,1) -> 0
B11: =Index!B11 -> Input|Indirect Cost Rates | C11: NA
B12: =Index!B12 -> Input|Labour Rates | C12: =IF(SUM(C34:C35)=0,0,1) -> 0
B13: =Index!B13 -> Input|Units | C13: =IF(SUM(C38:C41)=0,0,1) -> 0
B14: =Index!B14 -> Input|Mapping | C14: NA
B15: =Index!B15 -> Calc|Labour Rates | C15: NA
B16: =Index!B16 -> Calc|Charges | C16: =IF(SUM(C44)=0,0,1) -> 0
B17: =Index!B17 -> Model Validation | C17: NA
B19: =B8 -> Output|Charges
B20: =Index!B23 -> 1.1 X-factors for each year of 2025-26 to 2029-30 regulatory period, (per cent) | C20: =IF(SUM('Output|Charges'!D4:G4)=0,0,1) -> 0
B21: =Index!B24 -> 1.2 Ancillary Reference Services for 2025-26 | C21: =IF(SUM('Output|Charges'!I12:I511)=0,0,1) -> 0
B23: =B9 -> Input|Setup
B24: =Index!B25 -> 2.1 Years setup | C24: ='Input|Setup'!F5 -> 0
B25: =Index!B29 -> 2.5 Hours | C25: ='Input|Setup'!C24 -> 0
B26: =Index!B30 -> 2.6 Labour type | C26: ='Input|Setup'!C30 -> 0
B27: =Index!B31 -> 2.7 Service category | C27: ='Input|Setup'!F30 -> 0
B29: =B10 -> Input|Escalations
B30: =Index!B35 -> 3.2 Inflation | C30: =IF(SUM('Input|Escalations'!N21:N22)=0,0,1) -> 0
B31: =Index!B37 -> 3.3.1 Real wage price escalation | C31: =IF('Input|Escalations'!N42+'Input|Escalations'!N48+'Input|Escalations'!N53=0,0,1) -> 0
B33: =B12 -> Input|Labour Rates
B34: =Index!B43 -> 5.1 Labour rates | C34: =IF(SUM('Input|Labour Rates'!I10:I39)=0,0,1) -> 0
B35: =Index!B44 -> 5.2 Notes and sources for "Other costs" | C35: =IF(SUM('Input|Labour Rates'!K10:K39)=0,0,1) -> 0
B37: =B13 -> Input|Units
B38: =Index!B45 -> 6.1 Ancillary Reference Services | C38: =IF(SUM('Input|Units'!H10:H509)=0,0,1) -> 0
B39: =Index!B46 -> 6.2 Service cost build up - DIRECT COSTS, $'s ($2023-24) | C39: =IF(SUM('Input|Units'!U8,'Input|Units'!AP8)=0,0,1) -> 0
B40: =Index!B47 -> 6.3 Service cost build - INDIRECT COSTS (per cent) | C40: =IF(SUM('Input|Units'!AZ10:BC509)=0,0,1) -> 0
B41: =Index!B48 -> 6.4 Notes and sources for "Other costs" | C41: =IF(SUM('Input|Units'!BE10:BE509)=0,0,1) -> 0
B43: =B16 -> Calc|Charges
B44: =Index!B54 -> 10.2 Year 1 service cost build up - DIRECT COSTS, $'s ($2025-26) | C44: =IF('Calc|Charges'!T8+'Calc|Charges'!AP8=0,0,1) -> 0
